Workbook

Sheet Содержание
C1: ЗАВОД «ОПК» Тел.: +7 (496) 704-52-11 e-mail:manager@ozpk.ru сайт: ozpk.ru
A2: Ваша скидка | B2: - | C2: 0
A3: НДС | B3: -
A4: Стеллажные системы
A5: Eco Line | C5: Аксессуары
A6: Комплекты Eco Line | C6: Аксессуары
A7: Детали Eco Line | C7: Оргстекло
A8: Сборки Eco Line | C8: Кассовые модули KAISER (NEW)
A9: Наценка Eco Line | C9: Детали и аксессуары KAISER
A10: Stahler | C10: Сборки KAISER
A11: Детали Praktisch | C11: Кассовые боксы (NEW)
A12: Детали Lager/Lager LX | C12: Кассовые боксы
A13: Наценка Stahler
A14: Сборки Praktisch
A15: Сборки сетчатых стеллажей
A16: Сборки Lager

Sheet Техно (hidden)
A1: ДЛ/ГЛУ | C1: Высота | D1: Кол полок
A3: 150
A4: 200
A5: 250
A6: 300
A7: 350 | C7: 600 | E7: СП | F7: 250 | G7: 500 | U7: Стол закрытый | W7: Стол закрытый с ванной | AE7: Рукомойник | AG7: Столы под рыбу | AQ7: Полки,шкафы закрытые | AS7: Зонты пристенные | AU7: Зонты островные | AW7: Подставки
A8: =A7+50 -> 400 | C8: =C7+50 -> 650 | D8: 1 | E8: СП2Б | F8: 300 | G8: =G7+10 -> 510 | H8: У | J8: 0.785 | L8: 0.785 | N8: 0.785 | P8: 0.785 | R8: 0.785 | T8: 0.785 | Z8: 0.785 | AB8: 0.785 | AD8: 0.785 | AJ8: 0.785 | AL8: 0.785 | AN8: 0.785 | AP8: 0.785
A9: 450 | C9: =C8+50 -> 700 | D9: 2 | E9: СП3Б | G9: =G8+10 -> 520
A10: 500 | C10: =C9+50 -> 750 | D10: 3 | G10: 530 | I10: 1 | J10: 94.17 | K10: 1 | L10: 94.17 | M10: 1 | N10: 94.17 | O10: 1 | P10: 94.17 | Q10: 1 | R10: 94.17 | S10: 1 | T10: 94.17 | X10: 2060 | Y10: 1 | Z10: 94.17 | AA10: 1 | AB10: 94.17 | AC10: 1 | AD10: 94.17 | AI10: 1 | AJ10: 94.17 | AK10: 1 | AL10: 94.17 | AM10: 1 | AN10: 94.17 | AO10: 1 | AP10: 94.17
A11: 550 | C11: =C10+50 -> 800 | D11: 4 | E11: ОБ | G11: 540 | I11: 0.8 | J11: 101.63 | K11: 0.8 | L11: 101.63 | M11: 0.8 | N11: 101.63 | O11: 0.8 | P11: 101.63 | Q11: 0.8 | R11: 101.63 | S11: 0.8 | T11: 101.63 | X11: 2995 | Y11: 0.8 | Z11: 101.63 | AA11: 0.8 | AB11: 101.63 | AC11: 0.8 | AD11: 101.63 | AI11: 0.8 | AJ11: 101.63 | AK11: 0.8 | AL11: 101.63 | AM11: 0.8 | AN11: 101.63 | AO11: 0.8 | AP11: 101.63
A12: 600 | C12: =C11+50 -> 850 | D12: 5 | E12: СП | G12: 550 | I12: 0.8 | J12: 90.09 | K12: 0.8 | L12: 90.09 | M12: 0.8 | N12: 90.09 | O12: 0.8 | P12: 90.09 | Q12: 0.8 | R12: 90.09 | S12: 0.8 | T12: 90.09 | Y12: 0.8 | Z12: 90.09 | AA12: 0.8 | AB12: 90.09 | AC12: 0.8 | AD12: 90.09 | AI12: 0.8 | AJ12: 90.09 | AK12: 0.8 | AL12: 90.09 | AM12: 0.8 | AN12: 90.09 | AO12: 0.8 | AP12: 90.09
A13: 650 | C13: 870 | D13: 6 | G13: 560 | I13: 0.5 | J13: 92.76 | K13: 0.5 | L13: 92.76 | M13: 0.5 | N13: 92.76 | O13: 0.5 | P13: 92.76 | Q13: 0.5 | R13: 92.76 | S13: 0.5 | T13: 92.76 | Y13: 0.5 | Z13: 92.76 | AA13: 0.5 | AB13: 92.76 | AC13: 0.5 | AD13: 92.76 | AI13: 0.5 | AJ13: 92.76 | AK13: 0.5 | AL13: 92.76 | AM13: 0.5 | AN13: 92.76 | AO13: 0.5 | AP13: 92.76
A14: 700 | C14: 900 | D14: 7 | E14: ОБ | G14: 570 | I14: 1.5 | J14: 94.41 | K14: 1.5 | L14: 94.41 | M14: 1.5 | N14: 94.41 | O14: 1.5 | P14: 94.41 | Q14: 1.5 | R14: 94.41 | S14: 1.5 | T14: 94.41 | Y14: 1.5 | Z14: 94.41 | AA14: 1.5 | AB14: 94.41 | AC14: 1.5 | AD14: 94.41 | AI14: 1.5 | AJ14: 94.41 | AK14: 1.5 | AL14: 94.41 | AM14: 1.5 | AN14: 94.41 | AO14: 1.5 | AP14: 94.41
A15: 750 | C15: 950 | D15: 8 | E15: ОБ2Б | G15: 580 | I15: 1.5 | J15: 51 | K15: 1.5 | L15: 51 | M15: 1.5 | N15: 51 | O15: 1.5 | P15: 51 | Q15: 1.5 | R15: 51 | S15: 1.5 | T15: 51 | Y15: 1.5 | Z15: 51 | AA15: 1.5 | AB15: 51 | AC15: 1.5 | AD15: 51 | AI15: 1.5 | AJ15: 51 | AK15: 1.5 | AL15: 51 | AM15: 1.5 | AN15: 51 | AO15: 1.5 | AP15: 51
A16: 800 | C16: 1000 | G16: 590 | I16: 0.45 | J16: 49.4 | K16: 0.45 | L16: 49.4 | M16: 0.45 | N16: 49.4 | O16: 0.45 | P16: 49.4 | Q16: 0.45 | R16: 49.4 | S16: 0.45 | T16: 49.4 | Y16: 0.45 | Z16: 49.4 | AA16: 0.45 | AB16: 49.4 | AC16: 0.45 | AD16: 49.4 | AI16: 0.45 | AJ16: 49.4 | AK16: 0.45 | AL16: 49.4 | AM16: 0.45 | AN16: 49.4 | AO16: 0.45 | AP16: 49.4
A17: 850 | G17: 600 | I17: 0.8 | J17: 49.19 | K17: 0.8 | L17: 49.19 | M17: 0.8 | N17: 49.19 | O17: 0.8 | P17: 49.19 | Q17: 0.8 | R17: 49.19 | S17: 0.8 | T17: 49.19 | Y17: 0.8 | Z17: 49.19 | AA17: 0.8 | AB17: 49.19 | AC17: 0.8 | AD17: 49.19 | AI17: 0.8 | AJ17: 49.19 | AK17: 0.8 | AL17: 49.19 | AM17: 0.8 | AN17: 49.19 | AO17: 0.8 | AP17: 49.19
A18: 900 | C18: 700 | E18: ОБ | G18: 610 | J18: 136.99 | L18: 136.99 | N18: 136.99 | P18: 136.99 | R18: 136.99 | T18: 136.99 | Z18: 136.99 | AB18: 136.99 | AD18: 136.99 | AJ18: 136.99 | AL18: 136.99 | AN18: 136.99 | AP18: 136.99
A19: 950 | C19: 750 | E19: Н | G19: 620 | J19: 199.64 | L19: 199.64 | N19: 199.64 | P19: 199.64 | R19: 199.64 | T19: 199.64 | Z19: 199.64 | AB19: 199.64 | AD19: 199.64 | AJ19: 199.64 | AL19: 199.64 | AN19: 199.64 | AP19: 199.64
A20: 1000 | C20: 770 | G20: 630 | J20: 184.32 | L20: 184.32 | N20: 184.32 | P20: 184.32 | R20: 184.32 | T20: 184.32 | Z20: 184.32 | AB20: 184.32 | AD20: 184.32 | AJ20: 184.32 | AL20: 184.32 | AN20: 184.32 | AP20: 184.32
A21: 1050 | C21: 800 | G21: 640 | J21: 63.56 | L21: 63.56 | N21: 63.56 | P21: 63.56 | R21: 63.56 | T21: 63.56 | Z21: 63.56 | AB21: 63.56 | AD21: 63.56 | AJ21: 63.56 | AL21: 63.56 | AN21: 63.56 | AP21: 63.56
A22: 1100 | G22: 650 | J22: 125.76 | L22: 125.76 | N22: 125.76 | P22: 125.76 | R22: 125.76 | T22: 125.76 | Z22: 125.76 | AB22: 125.76 | AD22: 125.76 | AJ22: 125.76 | AL22: 125.76 | AN22: 125.76 | AP22: 125.76
A23: 1150 | G23: 660
A24: 1200 | G24: 670 | J24: 650 | L24: 650 | N24: 650 | T24: 650 | Z24: 650 | AB24: 650
A25: 1250 | G25: 680 | J25: 1000 | L25: 1000 | N25: 1000 | P25: 1000 | R25: 1000 | T25: 1000 | Z25: 1000 | AB25: 1000 | AD25: 1000 | AJ25: 1000 | AL25: 1000 | AN25: 1000 | AP25: 1000
A26: 1300 | G26: 690 | J26: 215 | L26: 215 | N26: 215 | P26: 215 | R26: 215 | T26: 215 | Z26: 215 | AB26: 215 | AD26: 215 | AJ26: 215 | AL26: 215 | AN26: 215 | AP26: 215
A27: 1350 | G27: 700 | J27: =J26*0.33 -> 70.95 | L27: =L26*0.33 -> 70.95 | N27: =N26*0.33 -> 70.95 | P27: =P26*0.33 -> 70.95 | R27: =R26*0.33 -> 70.95 | T27: =T26*0.33 -> 70.95 | Z27: =Z26*0.33 -> 70.95 | AB27: =AB26*0.33 -> 70.95 | AD27: =AD26*0.33 -> 70.95 | AJ27: =AJ26*0.33 -> 70.95 | AL27: =AL26*0.33 -> 70.95 | AN27: =AN26*0.33 -> 70.95 | AP27: =AP26*0.33 -> 70.95
A28: 1400 | G28: 710
A29: 1450 | G29: 720 | J29: 2060 | L29: 2060 | N29: 2060 | P29: 5568 | R29: 5568 | T29: 2060 | Z29: 2060 | AB29: 2060 | AD29: 2060
A30: 1500 | G30: 730 | J30: 2995 | L30: 2995 | N30: 2995 | P30: 33314 | R30: 33314 | T30: 2995 | Z30: 2995 | AB30: 2995 | AD30: 2995
A31: 1550 | G31: 740
A32: 1600 | G32: 750
A33: 1650 | G33: 760
A34: 1700 | G34: 770
A35: 1750 | G35: 780
A36: 1800 | G36: 790
A37: 1850 | G37: 800
A38: 1900 | G38: 810
A39: 1950 | G39: 820
A40: 2000 | G40: 830
A41: 2050 | G41: 840
A42: 2100 | G42: 850
A43: 2150 | G43: 860
A44: 2200 | G44: 870
A45: 2250 | G45: 880
A46: 2300 | G46: 890
A47: 2350 | G47: 900
A48: 2400 | G48: 910
A49: 2450 | G49: 920
A50: 2500 | G50: 930
G51: 940
G52: 950
A53: 530
A54: 550
A55: 600
A56: 630
A57: 650
A58: 700
A59: 750
A60: =A59+50 -> 800
A61: 850
A62: 900
A63: 950
A64: 1000
A65: 1050
A66: 1100
A67: 1150
A68: 1200
A69: 1250
A70: 1300
A71: 1350
A72: 1400
A73: 1450
A74: 1500
A75: 1550
A76: 1600
A77: 1650
A78: 1700
A79: 1750
A80: 1800
A93: ВМПНS1
A94: ВМПНSЛ1
A95: ВМПНSП1
A96: ВМЦНS1
A97: ВМЦНSЛП1
A98: ВМПНS2
A99: ВМПНSЛ2
A100: ВМПНSП2
A101: ВМЦНS2
A102: ВМЦНSЛП2
A103: ВМПНS3
A104: ВМЦНS3
A105: ВМПЦS1
A106: ВМПЦSЛ1
A107: ВМПЦSП1
A108: ВМЦЦS1
A109: ВМЦЦSЛП1
A110: ВМПЦS2
A111: ВМПЦSЛ2
A112: ВМПЦSП2
A113: ВМЦЦS2
A114: ВМЦЦSЛП2
A115: ВМПЦS3
A116: ВМЦЦS3

Sheet Комплекты Eco Line
B1: Комплекты торговых стеллажей ECO LINE | I1: На главную
B3: Ваша скидка: | D3: =Содержание!C2 -> 0
B4: НДС: | D4: =IF(Лист2!A1=TRUE,"С НДС","БЕЗ НДС") -> С НДС
A7: Код 1с | B7: Артикул | D7: Наименование | E7: Кол-во в сборке, шт. | F7: Базовая цена, руб. (с НДС) | H7: =[7]Лист2!$A$5 -> Ваша цена, руб.
F8: за элемент в сборке | G8: за сборку | H8: за комплект
A9: З0000098473 | B9: Стойка1ЕCO370 | D9: Стойка ЕCO односторонняяя H=1600 G=370 | G9: 1378 | H9: =ROUND(G9*(1-$D$3)/Лист2!$A$6,0) -> 1378
B10: E-LT 16037160 | D10: Стойка сварная с двухсторонней перфорацией (60х30) G=370 H=1600 L-образная | E10: 1 | F10: =VLOOKUP(B10,'Детали Eco Line'!B$8:D$113,3,0) -> 1378 | G10: 1378 | H10: =ROUND(G10*(1-$D$3)/Лист2!$A$6,0) -> 1378
A11: З0000098474 | B11: Стойка2ЕCO370 | D11: Стойка ЕCO двусторонняя H=1600 G=370 | G11: 1998 | H11: =ROUND(G11*(1-$D$3)/Лист2!$A$6,0) -> 1998
B12: E-LT 26037160 | D12: Стойка сварная с двухсторонней перфорацией (60х30) G=370 H=1600 Т-образная | E12: 1 | F12: =VLOOKUP(B12,'Детали Eco Line'!B$8:D$113,3,0) -> 1998 | G12: 1998 | H12: =ROUND(G12*(1-$D$3)/Лист2!$A$6,0) -> 1998
A13: З0000098473 | B13: Стойка1ЕCO370 | D13: Стойка ЕCO односторонняя H=2100 G=370 | G13: 1643 | H13: =ROUND(G13*(1-$D$3)/Лист2!$A$6,0) -> 1643
B14: E-LT 16037210 | D14: Стойка сварная с двухсторонней перфорацией (60х30) G=370 H=2100 L-образная | E14: 1 | F14: =VLOOKUP(B14,'Детали Eco Line'!B$8:D$113,3,0) -> 1643 | G14: 1643 | H14: =ROUND(G14*(1-$D$3)/Лист2!$A$6,0) -> 1643
A15: З0000098473 | B15: Стойка1ЕCO370 | D15: Стойка ЕCO односторонняя H=2250 G=370 | G15: 1697 | H15: =ROUND(G15*(1-$D$3)/Лист2!$A$6,0) -> 1697
B16: E-LT 16037225 | D16: Стойка сварная с двухсторонней перфорацией (60х30) G=370 H=2250 L-образная | E16: 1 | F16: =VLOOKUP(B16,'Детали Eco Line'!B$8:D$113,3,0) -> 1697 | G16: 1697 | H16: =ROUND(G16*(1-$D$3)/Лист2!$A$6,0) -> 1697
A17: b0000002519 | B17: Стойка.1 ЕCO | D17: Стойка ЕCO односторонняя H=1600 | G17: 1614 | H17: =ROUND(G17*(1-$D$3)/Лист2!$A$6,0) -> 1614
B18: E-LT 02601600 | C18: E-LT 02601600 | D18: E-LT 02601600-30_Стойка свар с двух пер ECO (60х30) Н=1600 с баз (RAL 9016,глян) | E18: 1 | F18: =VLOOKUP(B18,'Детали Eco Line'!B$8:D$113,3,0) -> 1614 | G18: 1614 | H18: =ROUND(G18*(1-$D$3)/Лист2!$A$6,0) -> 1614
A19: b0000002494 | B19: Стойка.2 ЕCO | D19: Стойка ЕCO двусторонняя H=1600 | G19: 2315 | H19: =ROUND(G19*(1-$D$3)/Лист2!$A$6,0) -> 2315
B20: E-LT 82471600 | C20: E-LT 82471600 | D20: E-LT 82471600-30_Стойка сварная с двухст перф.ECO (60х30) Н=1600 (RAL9016,глянц) | E20: 1 | F20: =VLOOKUP(B20,'Детали Eco Line'!B$8:D$113,3,0) -> 2315 | G20: 2315 | H20: =ROUND(G20*(1-$D$3)/Лист2!$A$6,0) -> 2315
A21: b0000002519 | B21: Стойка.1 ЕCO | D21: Стойка ЕCO односторонняя H=1800 | G21: 1696 | H21: =ROUND(G21*(1-$D$3)/Лист2!$A$6,0) -> 1696
B22: E-LT 02601800 | D22: E-LT 02601800-30_Стойка свар с двух пер ECO (60х30) Н=1800 с баз (RAL 9016,глян) | E22: 1 | F22: =VLOOKUP(B22,'Детали Eco Line'!B$8:D$113,3,0) -> 1696 | G22: 1696 | H22: =ROUND(G22*(1-$D$3)/Лист2!$A$6,0) -> 1696
A23: b0000002494 | B23: Стойка.2 ЕCO | D23: Стойка ЕCO двусторонняя H=1800 | G23: 2393 | H23: =ROUND(G23*(1-$D$3)/Лист2!$A$6,0) -> 2393
B24: E-LT 82471800 | D24: E-LT 82471800-30_Стойка сварная с двухст перф.ECO (60х30) Н=1800 (RAL9016,глянц) | E24: 1 | F24: =VLOOKUP(B24,'Детали Eco Line'!B$8:D$113,3,0) -> 2393 | G24: 2393 | H24: =ROUND(G24*(1-$D$3)/Лист2!$A$6,0) -> 2393
A25: b0000002519 | B25: Стойка.1 ЕCO | C25: Стойка ЕCO односторонняя H=2100 | D25: Стойка ЕCO односторонняя H=2100 | G25: 1812 | H25: =ROUND(G25*(1-$D$3)/Лист2!$A$6,0) -> 1812
B26: E-LT 02602100 | D26: Стойка сварная с двухстор.перф. L-образная Н=2100 | E26: 1 | F26: =VLOOKUP(B26,'Детали Eco Line'!B$8:D$113,3,0) -> 1812 | G26: 1812 | H26: =ROUND(G26*(1-$D$3)/Лист2!$A$6,0) -> 1812
A27: b0000002494 | B27: Стойка.2 ЕCO | D27: Стойка ЕCO двусторонняя H=2100 | G27: 2497 | H27: =ROUND(G27*(1-$D$3)/Лист2!$A$6,0) -> 2497
B28: E-LT 82472100 | C28: E-LT 82472250 | D28: E-LT 82472100-30_Стойка свар с дв.пер ECO (60х30) Н=2100 с 2 баз (RAL 9016,глян) | E28: 1 | F28: =VLOOKUP(B28,'Детали Eco Line'!B$8:D$113,3,0) -> 2497 | G28: 2497 | H28: =ROUND(G28*(1-$D$3)/Лист2!$A$6,0) -> 2497
A29: b0000002519 | B29: Стойка.1 ЕCO | D29: Стойка ЕCO односторонняя H=2250 | G29: 1878 | H29: =ROUND(G29*(1-$D$3)/Лист2!$A$6,0) -> 1878
B30: E-LT 02602250 | C30: E-LT 02602250 | D30: E-LT 02602250-30_Стойка свар с двух пер ECO (60х30) Н=2250 с баз (RAL 9016,глян) | E30: 1 | F30: =VLOOKUP(B30,'Детали Eco Line'!B$8:D$113,3,0) -> 1878 | G30: 1878 | H30: =ROUND(G30*(1-$D$3)/Лист2!$A$6,0) -> 1878
A31: b0000002494 | B31: Стойка.2 ЕCO | D31: Стойка ЕCO двусторонняя H=2250 | G31: 2587 | H31: =ROUND(G31*(1-$D$3)/Лист2!$A$6,0) -> 2587
B32: E-LT 82472250 | C32: E-LT 82472250 | D32: E-LT 82472250-30_Стойка свар с дв.пер ECO (60х30) Н=2250 с 2 баз (RAL 9016,глян) | E32: 1 | F32: =VLOOKUP(B32,'Детали Eco Line'!B$8:D$113,3,0) -> 2587 | G32: 2587 | H32: =ROUND(G32*(1-$D$3)/Лист2!$A$6,0) -> 2587
A33: b0000002594 | B33: Полка ЕСО | D33: Полка ECO 1000х310 с кроншт | G33: 817 | H33: =ROUND(G33*(1-$D$3)/Лист2!$A$6,0) -> 817
B34: E-BS 01000310 | C34: E-BS 01000310 | D34: E-BS 01000310-30_Кронштейн G=310 (комплект) (RAL 9016 глянц) | E34: 1 | F34: =VLOOKUP(B34,'Детали Eco Line'!B$8:D$113,3,0) -> 199 | G34: 199 | H34: =ROUND(G34*(1-$D$3)/Лист2!$A$6,0) -> 199
B35: E-ST 01311000 | C35: E-ST 01311000 | D35: E-ST 01311000-30_Полка L=1000 G=310 (RAL 9016 глянц) | E35: 1 | F35: =VLOOKUP(B35,'Детали Eco Line'!B$8:D$113,3,0) -> 618 | G35: 618 | H35: =ROUND(G35*(1-$D$3)/Лист2!$A$6,0) -> 618
A36: b0000002594 | B36: Полка ЕСО | D36: Полка ECO 1000х370 с кроншт | G36: 1061 | H36: =ROUND(G36*(1-$D$3)/Лист2!$A$6,0) -> 1061
B37: E-BS 01000370 | C37: E-BS 01000370 | D37: E-BS 01000370-30_Кронштейн G=370 (комплект) (RAL 9016 глянц) | E37: 1 | F37: =VLOOKUP(B37,'Детали Eco Line'!B$8:D$113,3,0) -> 250 | G37: 250 | H37: =ROUND(G37*(1-$D$3)/Лист2!$A$6,0) -> 250
B38: E-ST 01371000 | C38: E-ST 01371000 | D38: E-ST 01371000-30_Полка L=1000 G=370 (RAL 9016 глянц) | E38: 1 | F38: =VLOOKUP(B38,'Детали Eco Line'!B$8:D$113,3,0) -> 811 | G38: 811 | H38: =ROUND(G38*(1-$D$3)/Лист2!$A$6,0) -> 811
A39: b0000002594 | B39: Полка ЕСО | D39: Полка ECO 1000х470 с кроншт | G39: 1386 | H39: =ROUND(G39*(1-$D$3)/Лист2!$A$6,0) -> 1386
B40: E-BS 01000470 | C40: E-BS 01000470 | D40: E-BS 01000470-30_Кронштейн G=470 (комплект) (RAL 9016 глянц) | E40: 1 | F40: =VLOOKUP(B40,'Детали Eco Line'!B$8:D$113,3,0) -> 451 | G40: 451 | H40: =ROUND(G40*(1-$D$3)/Лист2!$A$6,0) -> 451
B41: E-ST 01471000 | C41: E-ST 01471000 | D41: E-ST 01471000-30_Полка L=1000 G=470 (RAL 9016 глянц) | E41: 1 | F41: =VLOOKUP(B41,'Детали Eco Line'!B$8:D$113,3,0) -> 934 | G41: 934 | H41: =ROUND(G41*(1-$D$3)/Лист2!$A$6,0) -> 934
A42: b0000002594 | B42: Полка ЕСО | D42: Полка ECO 1250х310 с кроншт | G42: 951 | H42: =ROUND(G42*(1-$D$3)/Лист2!$A$6,0) -> 951
B43: E-BS 01000310 | C43: E-BS 01000310 | D43: E-BS 01000310-30_Кронштейн G=310 (комплект) (RAL 9016 глянц) | E43: 1 | F43: =VLOOKUP(B43,'Детали Eco Line'!B$8:D$113,3,0) -> 199 | G43: 199 | H43: =ROUND(G43*(1-$D$3)/Лист2!$A$6,0) -> 199
B44: E-ST 01311250 | C44: E-ST 01311250 | D44: E-ST 01311250-30_Полка L=1250 G=310 (RAL 9016, глянц) | E44: 1 | F44: =VLOOKUP(B44,'Детали Eco Line'!B$8:D$113,3,0) -> 751 | G44: 751 | H44: =ROUND(G44*(1-$D$3)/Лист2!$A$6,0) -> 751
A45: b0000002594 | B45: Полка ЕСО | D45: Полка ECO 1250х370 с кроншт | G45: 1141 | H45: =ROUND(G45*(1-$D$3)/Лист2!$A$6,0) -> 1141
B46: E-BS 01000370 | C46: E-BS 01000370 | D46: E-BS 01000370-30_Кронштейн G=370 (комплект) (RAL 9016 глянц) | E46: 1 | F46: =VLOOKUP(B46,'Детали Eco Line'!B$8:D$113,3,0) -> 250 | G46: 250 | H46: =ROUND(G46*(1-$D$3)/Лист2!$A$6,0) -> 250
B47: E-ST 01371250 | C47: E-ST 01371250 | D47: E-ST 01371250-30_Полка L=1250 G=370 (RAL 9016, глянц) | E47: 1 | F47: =VLOOKUP(B47,'Детали Eco Line'!B$8:D$113,3,0) -> 891 | G47: 891 | H47: =ROUND(G47*(1-$D$3)/Лист2!$A$6,0) -> 891
A48: b0000002594 | B48: Полка ЕСО | D48: Полка ECO 1250х470 с кроншт | G48: 1565 | H48: =ROUND(G48*(1-$D$3)/Лист2!$A$6,0) -> 1565
B49: E-BS 01000470 | C49: E-BS 01000470 | D49: E-BS 01000470-30_Кронштейн G=470 (комплект) (RAL 9016 глянц) | E49: 1 | F49: =VLOOKUP(B49,'Детали Eco Line'!B$8:D$113,3,0) -> 451 | G49: 451 | H49: =ROUND(G49*(1-$D$3)/Лист2!$A$6,0) -> 451
B50: E-ST 01471250 | C50: E-ST 01471250 | D50: E-ST 01471250-30_Полка L=1250 G=470 (RAL 9016, глянц) | E50: 1 | F50: =VLOOKUP(B50,'Детали Eco Line'!B$8:D$113,3,0) -> 1113 | G50: 1113 | H50: =ROUND(G50*(1-$D$3)/Лист2!$A$6,0) -> 1113
A51: b0000002594 | B51: Полка ЕСО | D51: Полка ECO 665х310 с кроншт | G51: 653 | H51: =ROUND(G51*(1-$D$3)/Лист2!$A$6,0) -> 653
B52: E-BS 01000310 | C52: E-BS 01000310 | D52: E-BS 01000310-30_Кронштейн G=310 (комплект) (RAL 9016 глянц) | E52: 1 | F52: =VLOOKUP(B52,'Детали Eco Line'!B$8:D$113,3,0) -> 199 | G52: 199 | H52: =ROUND(G52*(1-$D$3)/Лист2!$A$6,0) -> 199
B53: E-ST 01310665 | C53: E-ST 01310665 | D53: E-ST 01310665-30_Полка L=665 G=310 (RAL 9016, глянц) | E53: 1 | F53: =VLOOKUP(B53,'Детали Eco Line'!B$8:D$113,3,0) -> 453 | G53: 453 | H53: =ROUND(G53*(1-$D$3)/Лист2!$A$6,0) -> 453
A54: b0000002594 | B54: Полка ЕСО | D54: Полка ECO 665х370 с кроншт | G54: 789 | H54: =ROUND(G54*(1-$D$3)/Лист2!$A$6,0) -> 789
B55: E-BS 01000370 | C55: E-BS 01000370 | D55: E-BS 01000370-30_Кронштейн G=370 (комплект) (RAL 9016 глянц) | E55: 1 | F55: =VLOOKUP(B55,'Детали Eco Line'!B$8:D$113,3,0) -> 250 | G55: 250 | H55: =ROUND(G55*(1-$D$3)/Лист2!$A$6,0) -> 250
B56: E-ST 01370665 | C56: E-ST 01370665 | D56: E-ST 01370665-30_Полка L=665 G=370 (RAL 9016, глянц) | E56: 1 | F56: =VLOOKUP(B56,'Детали Eco Line'!B$8:D$113,3,0) -> 539 | G56: 539 | H56: =ROUND(G56*(1-$D$3)/Лист2!$A$6,0) -> 539
A57: b0000002594 | B57: Полка ЕСО | D57: Полка ECO 665х470 с кроншт | G57: 1106 | H57: =ROUND(G57*(1-$D$3)/Лист2!$A$6,0) -> 1106
B58: E-BS 01000470 | C58: E-BS 01000470 | D58: E-BS 01000470-30_Кронштейн G=470 (комплект) (RAL 9016 глянц) | E58: 1 | F58: =VLOOKUP(B58,'Детали Eco Line'!B$8:D$113,3,0) -> 451 | G58: 451 | H58: =ROUND(G58*(1-$D$3)/Лист2!$A$6,0) -> 451
B59: E-ST 01470665 | C59: E-ST 01470665 | D59: E-ST 01470665-30_Полка L=665 G=470 (RAL 9016, глянц) | E59: 1 | F59: =VLOOKUP(B59,'Детали Eco Line'!B$8:D$113,3,0) -> 655 | G59: 655 | H59: =ROUND(G59*(1-$D$3)/Лист2!$A$6,0) -> 655
A60: З0000002900 | B60: Полка IC ЕСО | D60: Полка ECO угл. вн. 310 с кроншт | G60: 921 | H60: =ROUND(G60*(1-$D$3)/Лист2!$A$6,0) -> 921
B61: E-BS 01000310 | C61: E-BS 01000310 | D61: E-BS 01000310-30_Кронштейн G=310 (комплект) (RAL 9016 глянц) | E61: 1 | F61: =VLOOKUP(B61,'Детали Eco Line'!B$8:D$113,3,0) -> 199 | G61: 199 | H61: =ROUND(G61*(1-$D$3)/Лист2!$A$6,0) -> 199
B62: E-ST 05000310 | C62: E-ST 05000310 | D62: E-ST 05000310-30_Полка угловая внутренняя G=310 (RAL 9016, глянц) | E62: 1 | F62: =VLOOKUP(B62,'Детали Eco Line'!B$8:D$113,3,0) -> 722 | G62: 722 | H62: =ROUND(G62*(1-$D$3)/Лист2!$A$6,0) -> 722
A63: З0000002900 | B63: Полка IC ЕСО | D63: Полка ECO угл. вн. 370 с кроншт | G63: 1108 | H63: =ROUND(G63*(1-$D$3)/Лист2!$A$6,0) -> 1108
B64: E-BS 01000370 | C64: E-BS 01000370 | D64: E-BS 01000370-30_Кронштейн G=370 (комплект) (RAL 9016 глянц) | E64: 1 | F64: =VLOOKUP(B64,'Детали Eco Line'!B$8:D$113,3,0) -> 250 | G64: 250 | H64: =ROUND(G64*(1-$D$3)/Лист2!$A$6,0) -> 250
B65: E-ST 05000370 | C65: E-ST 05000370 | D65: E-ST 05000370-30_Полка угловая внутренняя G=370 (RAL 9016, глянц) | E65: 1 | F65: =VLOOKUP(B65,'Детали Eco Line'!B$8:D$113,3,0) -> 858 | G65: 858 | H65: =ROUND(G65*(1-$D$3)/Лист2!$A$6,0) -> 858
A66: З0000002900 | B66: Полка IC ЕСО | D66: Полка ECO угл. вн. 470 с кроншт | G66: 1394 | H66: =ROUND(G66*(1-$D$3)/Лист2!$A$6,0) -> 1394
B67: E-BS 01000470 | C67: E-BS 01000470 | D67: E-BS 01000470-30_Кронштейн G=470 (комплект) (RAL 9016 глянц) | E67: 1 | F67: =VLOOKUP(B67,'Детали Eco Line'!B$8:D$113,3,0) -> 451 | G67: 451 | H67: =ROUND(G67*(1-$D$3)/Лист2!$A$6,0) -> 451
B68: E-ST 05000470 | C68: E-ST 05000470 | D68: E-ST 05000470-30_Полка угловая внутренняя G=470 (RAL 9016, глянц) | E68: 1 | F68: =VLOOKUP(B68,'Детали Eco Line'!B$8:D$113,3,0) -> 942 | G68: 942 | H68: =ROUND(G68*(1-$D$3)/Лист2!$A$6,0) -> 942
A69: З0000002901 | B69: Полка OC ECO | D69: Полка ECO угл. внеш. 310 с кроншт | G69: 804 | H69: =ROUND(G69*(1-$D$3)/Лист2!$A$6,0) -> 804
B70: E-BS 01000310 | C70: E-BS 01000310 | D70: E-BS 01000310-30_Кронштейн G=310 (комплект) (RAL 9016 глянц) | E70: 1 | F70: =VLOOKUP(B70,'Детали Eco Line'!B$8:D$113,3,0) -> 199 | G70: 199 | H70: =ROUND(G70*(1-$D$3)/Лист2!$A$6,0) -> 199
B71: E-ST 06000310 | C71: E-ST 06000310 | D71: E-ST 06000310-30_Полка угловая внешняя G=310 (RAL 9016 глянц) | E71: 1 | F71: =VLOOKUP(B71,'Детали Eco Line'!B$8:D$113,3,0) -> 605 | G71: 605 | H71: =ROUND(G71*(1-$D$3)/Лист2!$A$6,0) -> 605
A72: З0000002901 | B72: Полка OC ECO | D72: Полка ECO угл. внеш. 370 с кроншт | G72: 1024 | H72: =ROUND(G72*(1-$D$3)/Лист2!$A$6,0) -> 1024
B73: E-BS 01000370 | C73: E-BS 01000370 | D73: E-BS 01000370-30_Кронштейн G=370 (комплект) (RAL 9016 глянц) | E73: 1 | F73: =VLOOKUP(B73,'Детали Eco Line'!B$8:D$113,3,0) -> 250 | G73: 250 | H73: =ROUND(G73*(1-$D$3)/Лист2!$A$6,0) -> 250
B74: E-ST 06000370 | C74: E-ST 06000370 | D74: E-ST 06000370-30_Полка угловая внешняя G=370 (RAL 9016 глянц) | E74: 1 | F74: =VLOOKUP(B74,'Детали Eco Line'!B$8:D$113,3,0) -> 774 | G74: 774 | H74: =ROUND(G74*(1-$D$3)/Лист2!$A$6,0) -> 774
A75: З0000002901 | B75: Полка OC ECO | D75: Полка ECO угл. внеш. 470 с кроншт | G75: 1360 | H75: =ROUND(G75*(1-$D$3)/Лист2!$A$6,0) -> 1360
B76: E-BS 01000470 | C76: E-BS 01000470 | D76: E-BS 01000470-30_Кронштейн G=470 (комплект) (RAL 9016 глянц) | E76: 1 | F76: =VLOOKUP(B76,'Детали Eco Line'!B$8:D$113,3,0) -> 451 | G76: 451 | H76: =ROUND(G76*(1-$D$3)/Лист2!$A$6,0) -> 451
B77: E-ST 06000470 | C77: E-ST 06000470 | D77: E-ST 06000470-30_Полка угловая внешняя G=470 (RAL 9016 глянц) | E77: 1 | F77: =VLOOKUP(B77,'Детали Eco Line'!B$8:D$113,3,0) -> 909 | G77: 909 | H77: =ROUND(G77*(1-$D$3)/Лист2!$A$6,0) -> 909
A78: З0000009624 | B78: Полка рееч.ECO | D78: Полка реечная (э) ЕСО G=470 H=80 L=1000 | G78: 2849 | H78: =ROUND(G78*(1-$D$3)/Лист2!$A$6,0) -> 2849
B79: E-BW 13081000 | C79: E-BW 13081000 | D79: E-BW 13081000_Полка реечная (э) G=470 H=80 L=1000(массив листвен) | E79: 1 | F79: =VLOOKUP(B79,'Детали Eco Line'!B$8:D$119,3,0) -> 2849 | G79: 2849 | H79: =ROUND(G79*(1-$D$3)/Лист2!$A$6,0) -> 2849
A80: З0000002898 | B80: ПЛ ECO РВ | D80: Полка реечная высокая (э) ЕСО G=470 H=250 L=1000 | G80: 3410 | H80: =ROUND(G80*(1-$D$3)/Лист2!$A$6,0) -> 3410
B81: E-BW 12251000 | C81: E-BW 12251000 | D81: E-BW 12251000_Полка реечная высокая (э) G=470 H=250 L=1000(массив листвен) | E81: 1 | F81: =VLOOKUP(B81,'Детали Eco Line'!B$8:D$119,3,0) -> 3410 | G81: 3410 | H81: =ROUND(G81*(1-$D$3)/Лист2!$A$6,0) -> 3410
A82: З0000002899 | B82: Накоп.рееч.ECО | D82: Накопитель реечный (э) ЕСО G=470 H=500 L=1000 | G82: 4331 | H82: =ROUND(G82*(1-$D$3)/Лист2!$A$6,0) -> 4331
B83: E-BW 11501000 | C83: E-BW 11501000 | D83: E-BW 11501000_Накопитель реечн (э) G=470 H=500 L=1000 (массив листвен) | E83: 1 | F83: =VLOOKUP(B83,'Детали Eco Line'!B$8:D$119,3,0) -> 4331 | G83: 4331 | H83: =ROUND(G83*(1-$D$3)/Лист2!$A$6,0) -> 4331
A84: З0000098472 | B84: БазаОЕСО370 | D84: База островного стеллажа ECO L=1000 G=370 H=1600 | G84: 6150 | H84: =ROUND(G84*(1-$D$3)/Лист2!$A$6,0) -> 6150
B85: E-BP 01151000 | D85: E-BP 01151000-30_Панель задняя ECO L=1000 H=150 (RAL 9016 глянц) | E85: 4 | F85: =VLOOKUP(B85,'Детали Eco Line'!B$8:D$119,3,0) -> 267 | G85: 1070 | H85: =ROUND(G85*(1-$D$3)/Лист2!$A$6,0) -> 1070
B86: E-BP 01401000 | D86: E-BP 01401000-30_Панель задняя ECO L=1000 H=400 (RAL 9016 глянц) | E86: 6 | F86: =VLOOKUP(B86,'Детали Eco Line'!B$8:D$119,3,0) -> 535 | G86: 3209 | H86: =ROUND(G86*(1-$D$3)/Лист2!$A$6,0) -> 3209
B87: E-ST 01371000 | D87: E-ST 01371000-30_Полка L=1000 G= 370 (RAL 9016 глянц) | E87: 2 | F87: =VLOOKUP(B87,'Детали Eco Line'!B$8:D$119,3,0) -> 811 | G87: 1623 | H87: =ROUND(G87*(1-$D$3)/Лист2!$A$6,0) -> 1623
B88: E-TC 01601000 | D88: E-TC 01601000-30_Крышка стеллажа L=1000 ECO (60х30) (RAL 9016, глянц) | E88: 1 | F88: =VLOOKUP(B88,'Детали Eco Line'!B$8:D$119,3,0) -> 249 | G88: 249 | H88: =ROUND(G88*(1-$D$3)/Лист2!$A$6,0) -> 249
A89: З0000098472 | B89: БазаОЕСО370 | D89: База островного стеллажа ECO L=1250 G=370 H=1600 | G89: 7288 | H89: =ROUND(G89*(1-$D$3)/Лист2!$A$6,0) -> 7288
B90: E-BP 01151250 | D90: E-BP 01151250-30_Панель задняя ECO L=1250 H=150 (RAL 9016, глянц) | E90: 4 | F90: =VLOOKUP(B90,'Детали Eco Line'!B$8:D$119,3,0) -> 320 | G90: 1281 | H90: =ROUND(G90*(1-$D$3)/Лист2!$A$6,0) -> 1281
B91: E-BP 01401250 | D91: E-BP 01401250-30_Панель задняя ECO L=1250 H=400 (RAL 9016, глянц) | E91: 6 | F91: =VLOOKUP(B91,'Детали Eco Line'!B$8:D$119,3,0) -> 653 | G91: 3916 | H91: =ROUND(G91*(1-$D$3)/Лист2!$A$6,0) -> 3916
B92: E-ST 01371250 | D92: E-ST 01371250-30_Полка L=1250 G=370 (RAL 9016, глянц) | E92: 2 | F92: =VLOOKUP(B92,'Детали Eco Line'!B$8:D$119,3,0) -> 891 | G92: 1781 | H92: =ROUND(G92*(1-$D$3)/Лист2!$A$6,0) -> 1781
B93: E-TC 01601250 | D93: E-TC 01601250-30_Крышка стеллажа L=1250 ECO (60х30) (RAL 9016, глянц) | E93: 1 | F93: =VLOOKUP(B93,'Детали Eco Line'!B$8:D$119,3,0) -> 310 | G93: 310 | H93: =ROUND(G93*(1-$D$3)/Лист2!$A$6,0) -> 310
A94: b0000002676 | B94: База.О ЕСО | D94: База островного стеллажа ECO L=1000 H=1600 | G94: 6396 | H94: =ROUND(G94*(1-$D$3)/Лист2!$A$6,0) -> 6396
B95: E-BP 01151000 | C95: E-BP 01151000 | D95: E-BP 01151000-30_Панель задняя ECO L=1000 H=150 (RAL 9016 глянц) | E95: 4 | F95: =VLOOKUP(B95,'Детали Eco Line'!B$8:D$119,3,0) -> 267 | G95: 1070 | H95: =ROUND(G95*(1-$D$3)/Лист2!$A$6,0) -> 1070
B96: E-BP 01401000 | C96: E-BP 01401000 | D96: E-BP 01401000-30_Панель задняя ECO L=1000 H=400 (RAL 9016 глянц) | E96: 6 | F96: =VLOOKUP(B96,'Детали Eco Line'!B$8:D$119,3,0) -> 535 | G96: 3209 | H96: =ROUND(G96*(1-$D$3)/Лист2!$A$6,0) -> 3209
B97: E-ST 01471000 | C97: E-ST 01471000 | D97: E-ST 01471000-30_Полка L=1000 G=470 (RAL 9016 глянц) | E97: 2 | F97: =VLOOKUP(B97,'Детали Eco Line'!B$8:D$119,3,0) -> 934 | G97: 1869 | H97: =ROUND(G97*(1-$D$3)/Лист2!$A$6,0) -> 1869
B98: E-TC 01601000 | C98: E-TC 01601000 | D98: E-TC 01601000-30_Крышка стеллажа L=1000 ECO (60х30) (RAL 9016, глянц) | E98: 1 | F98: =VLOOKUP(B98,'Детали Eco Line'!B$8:D$119,3,0) -> 249 | G98: 249 | H98: =ROUND(G98*(1-$D$3)/Лист2!$A$6,0) -> 249
A99: b0000002676 | B99: База.О ЕСО | D99: База островного стеллажа ECO L=1250 H=1600 | G99: 7734 | H99: =ROUND(G99*(1-$D$3)/Лист2!$A$6,0) -> 7734
B100: E-BP 01151250 | C100: E-BP 01151250 | D100: E-BP 01151250-30_Панель задняя ECO L=1250 H=150 (RAL 9016, глянц) | E100: 4 | F100: =VLOOKUP(B100,'Детали Eco Line'!B$8:D$119,3,0) -> 320 | G100: 1281 | H100: =ROUND(G100*(1-$D$3)/Лист2!$A$6,0) -> 1281
B101: E-BP 01401250 | C101: E-BP 01401250 | D101: E-BP 01401250-30_Панель задняя ECO L=1250 H=400 (RAL 9016, глянц) | E101: 6 | F101: =VLOOKUP(B101,'Детали Eco Line'!B$8:D$119,3,0) -> 653 | G101: 3916 | H101: =ROUND(G101*(1-$D$3)/Лист2!$A$6,0) -> 3916
B102: E-ST 01471250 | C102: E-ST 01471250 | D102: E-ST 01471250-30_Полка L=1250 G=470 (RAL 9016, глянц) | E102: 2 | F102: =VLOOKUP(B102,'Детали Eco Line'!B$8:D$119,3,0) -> 1113 | G102: 2227 | H102: =ROUND(G102*(1-$D$3)/Лист2!$A$6,0) -> 2227
B103: E-TC 01601250 | C103: E-TC 01601250 | D103: E-TC 01601250-30_Крышка стеллажа L=1250 ECO (60х30) (RAL 9016, глянц) | E103: 1 | F103: =VLOOKUP(B103,'Детали Eco Line'!B$8:D$119,3,0) -> 310 | G103: 310 | H103: =ROUND(G103*(1-$D$3)/Лист2!$A$6,0) -> 310
A104: b0000002676 | B104: База.О ЕСО | D104: База островного стеллажа ECO L=665 H=1600 | G104: 4604 | H104: =ROUND(G104*(1-$D$3)/Лист2!$A$6,0) -> 4604
B105: E-BP 01150665 | C105: E-BP 01150665 | D105: E-BP 01150665-30_Панель задняя ECO L=665 H=150 (RAL 9016, глянц) | E105: 4 | F105: =VLOOKUP(B105,'Детали Eco Line'!B$8:D$119,3,0) -> 221 | G105: 882 | H105: =ROUND(G105*(1-$D$3)/Лист2!$A$6,0) -> 882
B106: E-BP 01400665 | C106: E-BP 01400665 | D106: E-BP 01400665-30_Панель задняя ECO L=665 H=400 (RAL 9016, глянц) | E106: 6 | F106: =VLOOKUP(B106,'Детали Eco Line'!B$8:D$119,3,0) -> 371 | G106: 2227 | H106: =ROUND(G106*(1-$D$3)/Лист2!$A$6,0) -> 2227
B107: E-ST 01470665 | C107: E-ST 01470665 | D107: E-ST 01470665-30_Полка L=665 G=470 (RAL 9016, глянц) | E107: 2 | F107: =VLOOKUP(B107,'Детали Eco Line'!B$8:D$119,3,0) -> 655 | G107: 1309 | H107: =ROUND(G107*(1-$D$3)/Лист2!$A$6,0) -> 1309
B108: E-TC 01600665 | C108: E-TC 01600665 | D108: E-TC 01600665-30_Крышка стеллажа L=665 ECO (60х30) (RAL 9016, глянц) | E108: 1 | F108: =VLOOKUP(B108,'Детали Eco Line'!B$8:D$119,3,0) -> 186 | G108: 186 | H108: =ROUND(G108*(1-$D$3)/Лист2!$A$6,0) -> 186
A109: З0000098471 | B109: БазаПерОЕСО370 | D109: База островного перфорирован стеллажа ECO L=1000 G=370 H=1600 | G109: 8391 | H109: =ROUND(G109*(1-$D$3)/Лист2!$A$6,0) -> 8391
B110: E-BP 01151000 | D110: E-BP 01151000-30_Панель задняя ECO L=1000 H=150 (RAL 9016 глянц) | E110: 2 | F110: =VLOOKUP(B110,'Детали Eco Line'!B$8:D$119,3,0) -> 267 | G110: 535 | H110: =ROUND(G110*(1-$D$3)/Лист2!$A$6,0) -> 535
B111: E-BP 02151000 | D111: E-BP 02151000-30_Панель перфорированная ECO L=1000 H=150 (RAL 9016, глянц) | E111: 2 | F111: =VLOOKUP(B111,'Детали Eco Line'!B$8:D$119,3,0) -> 543 | G111: 1086 | H111: =ROUND(G111*(1-$D$3)/Лист2!$A$6,0) -> 1086
B112: E-BP 02401000 | D112: E-BP 02401000-30_Панель перфорированная ECO L=1000 H=400 (RAL 9016, глянц) | E112: 6 | F112: =VLOOKUP(B112,'Детали Eco Line'!B$8:D$119,3,0) -> 816 | G112: 4898 | H112: =ROUND(G112*(1-$D$3)/Лист2!$A$6,0) -> 4898
B113: E-ST 01371000 | D113: E-ST 01371000-30_Полка L=1000 G= 370 (RAL 9016 глянц) | E113: 2 | F113: =VLOOKUP(B113,'Детали Eco Line'!B$8:D$119,3,0) -> 811 | G113: 1623 | H113: =ROUND(G113*(1-$D$3)/Лист2!$A$6,0) -> 1623
B114: E-TC 01601000 | D114: E-TC 01601000-30_Крышка стеллажа L=1000 ECO (60х30) (RAL 9016, глянц) | E114: 1 | F114: =VLOOKUP(B114,'Детали Eco Line'!B$8:D$119,3,0) -> 249 | G114: 249 | H114: =ROUND(G114*(1-$D$3)/Лист2!$A$6,0) -> 249
A115: З0000089849 | B115: База.Пер О ЕСО | D115: База островного перфорирован стеллажа ECO L=1000 H=1600 | G115: 8637 | H115: =ROUND(G115*(1-$D$3)/Лист2!$A$6,0) -> 8637
B116: E-BP 01151000 | D116: E-BP 01151000-30_Панель задняя ECO L=1000 H=150 (RAL 9016 глянц) | E116: 2 | F116: =VLOOKUP(B116,'Детали Eco Line'!B$8:D$119,3,0) -> 267 | G116: 535 | H116: =ROUND(G116*(1-$D$3)/Лист2!$A$6,0) -> 535
B117: E-BP 02151000 | D117: E-BP 02151000-30_Панель перфорированная ECO L=1000 H=150 (RAL 9016, глянц) | E117: 2 | F117: =VLOOKUP(B117,'Детали Eco Line'!B$8:D$119,3,0) -> 543 | G117: 1086 | H117: =ROUND(G117*(1-$D$3)/Лист2!$A$6,0) -> 1086
B118: E-BP 02401000 | D118: E-BP 02401000-30_Панель перфорированная ECO L=1000 H=400 (RAL 9016, глянц) | E118: 6 | F118: =VLOOKUP(B118,'Детали Eco Line'!B$8:D$119,3,0) -> 816 | G118: 4898 | H118: =ROUND(G118*(1-$D$3)/Лист2!$A$6,0) -> 4898
B119: E-ST 01471000 | D119: E-ST 01471000-30_Полка L=1000 G= 470 (RAL 9016 глянц) | E119: 2 | F119: =VLOOKUP(B119,'Детали Eco Line'!B$8:D$119,3,0) -> 934 | G119: 1869 | H119: =ROUND(G119*(1-$D$3)/Лист2!$A$6,0) -> 1869
B120: E-TC 01601000 | D120: E-TC 01601000-30_Крышка стеллажа L=1000 ECO (60х30) (RAL 9016, глянц) | E120: 1 | F120: =VLOOKUP(B120,'Детали Eco Line'!B$8:D$119,3,0) -> 249 | G120: 249 | H120: =ROUND(G120*(1-$D$3)/Лист2!$A$6,0) -> 249
A121: З0000089849 | B121: База.Пер О ЕСО | D121: База островного перфорирован стеллажа ECO L=1250 H=1600 | G121: 10542 | H121: =ROUND(G121*(1-$D$3)/Лист2!$A$6,0) -> 10542
B122: E-BP 01151250 | D122: E-BP 01151250-30_Панель задняя ECO L=1250 H=150 (RAL 9016, глянц) | E122: 2 | F122: =VLOOKUP(B122,'Детали Eco Line'!B$8:D$119,3,0) -> 320 | G122: 641 | H122: =ROUND(G122*(1-$D$3)/Лист2!$A$6,0) -> 641
B123: E-BP 02151250 | D123: E-BP 02151250-30_Панель перфорированная ECO L=1250 H=150 (RAL 9016, глянц) | E123: 2 | F123: =VLOOKUP(B123,'Детали Eco Line'!B$8:D$119,3,0) -> 651 | G123: 1301 | H123: =ROUND(G123*(1-$D$3)/Лист2!$A$6,0) -> 1301
B124: E-BP 02401250 | D124: E-BP 02401250-30_Панель перфорированная ECO L=1250 H=400 (RAL 9016, глянц) | E124: 6 | F124: =VLOOKUP(B124,'Детали Eco Line'!B$8:D$119,3,0) -> 1011 | G124: 6063 | H124: =ROUND(G124*(1-$D$3)/Лист2!$A$6,0) -> 6063
B125: E-ST 01471250 | D125: E-ST 01471250-30_Полка L=1250 G=470 (RAL 9016, глянц) | E125: 2 | F125: =VLOOKUP(B125,'Детали Eco Line'!B$8:D$119,3,0) -> 1113 | G125: 2227 | H125: =ROUND(G125*(1-$D$3)/Лист2!$A$6,0) -> 2227
B126: E-TC 01601250 | D126: E-TC 01601250-30_Крышка стеллажа L=1250 ECO (60х30) (RAL 9016, глянц) | E126: 1 | F126: =VLOOKUP(B126,'Детали Eco Line'!B$8:D$119,3,0) -> 310 | G126: 310 | H126: =ROUND(G126*(1-$D$3)/Лист2!$A$6,0) -> 310
A127: З0000089849 | B127: База.Пер О ЕСО | D127: База островного перфорирован стеллажа ECO L=665 H=1600 | G127: 6178 | H127: =ROUND(G127*(1-$D$3)/Лист2!$A$6,0) -> 6178
B128: E-BP 01150665 | D128: E-BP 01150665-30_Панель задняя ECO L=665 H=150 (RAL 9016, глянц) | E128: 2 | F128: =VLOOKUP(B128,'Детали Eco Line'!B$8:D$119,3,0) -> 221 | G128: 441 | H128: =ROUND(G128*(1-$D$3)/Лист2!$A$6,0) -> 441
B129: E-BP 02150665 | D129: E-BP 02150665-30_Панель перфорированная ECO L=665 H=150 (RAL 9016, глянц) | E129: 2 | F129: =VLOOKUP(B129,'Детали Eco Line'!B$8:D$119,3,0) -> 431 | G129: 862 | H129: =ROUND(G129*(1-$D$3)/Лист2!$A$6,0) -> 862
B130: E-BP 02400665 | D130: E-BP 02400665-30_Панель перфорированная ECO L=665 H=400 (RAL 9016, глянц) | E130: 6 | F130: =VLOOKUP(B130,'Детали Eco Line'!B$8:D$119,3,0) -> 563 | G130: 3379 | H130: =ROUND(G130*(1-$D$3)/Лист2!$A$6,0) -> 3379
B131: E-ST 01470665 | D131: E-ST 01470665-30_Полка L=665 G=470 (RAL 9016, глянц) | E131: 2 | F131: =VLOOKUP(B131,'Детали Eco Line'!B$8:D$119,3,0) -> 655 | G131: 1309 | H131: =ROUND(G131*(1-$D$3)/Лист2!$A$6,0) -> 1309
B132: E-TC 01600665 | D132: E-TC 01600665-30_Крышка стеллажа L=665 ECO (60х30) (RAL 9016, глянц) | E132: 1 | F132: =VLOOKUP(B132,'Детали Eco Line'!B$8:D$119,3,0) -> 186 | G132: 186 | H132: =ROUND(G132*(1-$D$3)/Лист2!$A$6,0) -> 186
A133: b0000002676 | B133: База.О ЕСО | D133: База островного стеллажа ECO L=1000 H=1800 | G133: 6916 | H133: =ROUND(G133*(1-$D$3)/Лист2!$A$6,0) -> 6916
B134: E-BP 01101000 | D134: E-BP 01101000-30_Панель задняя ECO L=1000 H=100 (RAL 9016 глянц) | E134: 2 | F134: =VLOOKUP(B134,'Детали Eco Line'!B$8:D$119,3,0) -> 260 | G134: 521 | H134: =ROUND(G134*(1-$D$3)/Лист2!$A$6,0) -> 521
B135: E-BP 01401000 | D135: E-BP 01401000-30_Панель задняя ECO L=1000 H=400 (RAL 9016 глянц) | E135: 8 | F135: =VLOOKUP(B135,'Детали Eco Line'!B$8:D$119,3,0) -> 535 | G135: 4278 | H135: =ROUND(G135*(1-$D$3)/Лист2!$A$6,0) -> 4278
B136: E-ST 01471000 | D136: E-ST 01471000-30_Полка L=1000 G=470 (RAL 9016 глянц) | E136: 2 | F136: =VLOOKUP(B136,'Детали Eco Line'!B$8:D$119,3,0) -> 934 | G136: 1869 | H136: =ROUND(G136*(1-$D$3)/Лист2!$A$6,0) -> 1869
B137: E-TC 01601000 | D137: E-TC 01601000-30_Крышка стеллажа L=1000 ECO (60х30) (RAL 9016, глянц) | E137: 1 | F137: =VLOOKUP(B137,'Детали Eco Line'!B$8:D$119,3,0) -> 249 | G137: 249 | H137: =ROUND(G137*(1-$D$3)/Лист2!$A$6,0) -> 249
A138: b0000002676 | B138: База.О ЕСО | D138: База островного стеллажа ECO L=1250 H=1800 | G138: 8360 | H138: =ROUND(G138*(1-$D$3)/Лист2!$A$6,0) -> 8360
B139: E-BP 01101250 | D139: E-BP 01101250-30_Панель задняя ECO L=1250 H=100 (RAL 9016, глянц) | E139: 2 | F139: =VLOOKUP(B139,'Детали Eco Line'!B$8:D$119,3,0) -> 301 | G139: 602 | H139: =ROUND(G139*(1-$D$3)/Лист2!$A$6,0) -> 602
B140: E-BP 01401250 | D140: E-BP 01401250-30_Панель задняя ECO L=1250 H=400 (RAL 9016, глянц) | E140: 8 | F140: =VLOOKUP(B140,'Детали Eco Line'!B$8:D$119,3,0) -> 653 | G140: 5222 | H140: =ROUND(G140*(1-$D$3)/Лист2!$A$6,0) -> 5222
B141: E-ST 01471250 | D141: E-ST 01471250-30_Полка L=1250 G=470 (RAL 9016, глянц) | E141: 2 | F141: =VLOOKUP(B141,'Детали Eco Line'!B$8:D$119,3,0) -> 1113 | G141: 2227 | H141: =ROUND(G141*(1-$D$3)/Лист2!$A$6,0) -> 2227
B142: E-TC 01601250 | D142: E-TC 01601250-30_Крышка стеллажа L=1250 ECO (60х30) (RAL 9016, глянц) | E142: 1 | F142: =VLOOKUP(B142,'Детали Eco Line'!B$8:D$119,3,0) -> 310 | G142: 310 | H142: =ROUND(G142*(1-$D$3)/Лист2!$A$6,0) -> 310
A143: b0000002676 | B143: База.О ЕСО | D143: База островного стеллажа ECO L=665 H=1800 | G143: 4871 | H143: =ROUND(G143*(1-$D$3)/Лист2!$A$6,0) -> 4871
B144: E-BP 01100665 | D144: E-BP 01100665-30_Панель задняя ECO L=665 H=100 (RAL 9016, глянц) | E144: 2 | F144: =VLOOKUP(B144,'Детали Eco Line'!B$8:D$119,3,0) -> 203 | G144: 407 | H144: =ROUND(G144*(1-$D$3)/Лист2!$A$6,0) -> 407
B145: E-BP 01400665 | D145: E-BP 01400665-30_Панель задняя ECO L=665 H=400 (RAL 9016, глянц) | E145: 8 | F145: =VLOOKUP(B145,'Детали Eco Line'!B$8:D$119,3,0) -> 371 | G145: 2969 | H145: =ROUND(G145*(1-$D$3)/Лист2!$A$6,0) -> 2969
B146: E-ST 01470665 | D146: E-ST 01471250-30_Полка L=665 G=470 (RAL 9016, глянц) | E146: 2 | F146: =VLOOKUP(B146,'Детали Eco Line'!B$8:D$119,3,0) -> 655 | G146: 1309 | H146: =ROUND(G146*(1-$D$3)/Лист2!$A$6,0) -> 1309
B147: E-TC 01600665 | D147: E-TC 01601250-30_Крышка стеллажа L=665 ECO (60х30) (RAL 9016, глянц) | E147: 1 | F147: =VLOOKUP(B147,'Детали Eco Line'!B$8:D$119,3,0) -> 186 | G147: 186 | H147: =ROUND(G147*(1-$D$3)/Лист2!$A$6,0) -> 186
A148: З0000089849 | B148: База.Пер О ЕСО | D148: База островного перфорирован стеллажа ECO L=1000 H=1800 | G148: 9169 | H148: =ROUND(G148*(1-$D$3)/Лист2!$A$6,0) -> 9169
B149: E-BP 01101000 | D149: E-BP 01101000-30_Панель задняя ECO L=1000 H=100 (RAL 9016 глянц) | E149: 2 | F149: =VLOOKUP(B149,'Детали Eco Line'!B$8:D$119,3,0) -> 260 | G149: 521 | H149: =ROUND(G149*(1-$D$3)/Лист2!$A$6,0) -> 521
B150: E-BP 02401000 | D150: E-BP 02401000-30_Панель перфорированная ECO L=1000 H=400 (RAL 9016, глянц) | E150: 8 | F150: =VLOOKUP(B150,'Детали Eco Line'!B$8:D$119,3,0) -> 816 | G150: 6531 | H150: =ROUND(G150*(1-$D$3)/Лист2!$A$6,0) -> 6531
B151: E-ST 01471000 | D151: E-ST 01471000-30_Полка L=1000 G= 470 (RAL 9016 глянц) | E151: 2 | F151: =VLOOKUP(B151,'Детали Eco Line'!B$8:D$119,3,0) -> 934 | G151: 1869 | H151: =ROUND(G151*(1-$D$3)/Лист2!$A$6,0) -> 1869
B152: E-TC 01601000 | D152: E-TC 01601000-30_Крышка стеллажа L=1000 ECO (60х30) (RAL 9016, глянц) | E152: 1 | F152: =VLOOKUP(B152,'Детали Eco Line'!B$8:D$119,3,0) -> 249 | G152: 249 | H152: =ROUND(G152*(1-$D$3)/Лист2!$A$6,0) -> 249
A153: З0000089849 | B153: База.Пер О ЕСО | D153: База островного перфорирован стеллажа ECO L=1250 H=1800 | G153: 11223 | H153: =ROUND(G153*(1-$D$3)/Лист2!$A$6,0) -> 11223
B154: E-BP 01101250 | D154: E-BP 01101250-30_Панель задняя ECO L=1250 H=100 (RAL 9016, глянц) | E154: 2 | F154: =VLOOKUP(B154,'Детали Eco Line'!B$8:D$119,3,0) -> 301 | G154: 602 | H154: =ROUND(G154*(1-$D$3)/Лист2!$A$6,0) -> 602
B155: E-BP 02401250 | D155: E-BP 02401250-30_Панель перфорированная ECO L=1250 H=400 (RAL 9016, глянц) | E155: 8 | F155: =VLOOKUP(B155,'Детали Eco Line'!B$8:D$119,3,0) -> 1011 | G155: 8085 | H155: =ROUND(G155*(1-$D$3)/Лист2!$A$6,0) -> 8085
B156: E-ST 01471250 | D156: E-ST 01471250-30_Полка L=1250 G=470 (RAL 9016, глянц) | E156: 2 | F156: =VLOOKUP(B156,'Детали Eco Line'!B$8:D$119,3,0) -> 1113 | G156: 2227 | H156: =ROUND(G156*(1-$D$3)/Лист2!$A$6,0) -> 2227
B157: E-TC 01601250 | D157: E-TC 01601250-30_Крышка стеллажа L=1250 ECO (60х30) (RAL 9016, глянц) | E157: 1 | F157: =VLOOKUP(B157,'Детали Eco Line'!B$8:D$119,3,0) -> 310 | G157: 310 | H157: =ROUND(G157*(1-$D$3)/Лист2!$A$6,0) -> 310
A158: З0000089849 | B158: База.Пер О ЕСО | D158: База островного перфорирован стеллажа ECO L=665 H=1800 | G158: 6408 | H158: =ROUND(G158*(1-$D$3)/Лист2!$A$6,0) -> 6408
B159: E-BP 01100665 | D159: E-BP 01100665-30_Панель задняя ECO L=665 H=100 (RAL 9016, глянц) | E159: 2 | F159: =VLOOKUP(B159,'Детали Eco Line'!B$8:D$119,3,0) -> 203 | G159: 407 | H159: =ROUND(G159*(1-$D$3)/Лист2!$A$6,0) -> 407
B160: E-BP 02400665 | D160: E-BP 02400665-30_Панель перфорированная ECO L=665 H=400 (RAL 9016, глянц) | E160: 8 | F160: =VLOOKUP(B160,'Детали Eco Line'!B$8:D$119,3,0) -> 563 | G160: 4506 | H160: =ROUND(G160*(1-$D$3)/Лист2!$A$6,0) -> 4506
B161: E-ST 01470665 | D161: E-ST 01470665-30_Полка L=665 G=470 (RAL 9016, глянц) | E161: 2 | F161: =VLOOKUP(B161,'Детали Eco Line'!B$8:D$119,3,0) -> 655 | G161: 1309 | H161: =ROUND(G161*(1-$D$3)/Лист2!$A$6,0) -> 1309
B162: E-TC 01600665 | D162: E-TC 01600665-30_Крышка стеллажа L=665 ECO (60х30) (RAL 9016, глянц) | E162: 1 | F162: =VLOOKUP(B162,'Детали Eco Line'!B$8:D$119,3,0) -> 186 | G162: 186 | H162: =ROUND(G162*(1-$D$3)/Лист2!$A$6,0) -> 186
A163: b0000002676 | B163: База.О ЕСО | D163: База островного стеллажа ECO L=1000 H=2250 | G163: 7751 | H163: =ROUND(G163*(1-$D$3)/Лист2!$A$6,0) -> 7751
B164: E-BP 01151000 | C164: E-BP 01151000 | D164: E-BP 01151000-30_Панель задняя ECO L=1000 H=150 (RAL 9016 глянц) | E164: 2 | F164: =VLOOKUP(B164,'Детали Eco Line'!B$8:D$119,3,0) -> 267 | G164: 535 | H164: =ROUND(G164*(1-$D$3)/Лист2!$A$6,0) -> 535
B165: E-BP 01401000 | C165: E-BP 01401000 | D165: E-BP 01401000-30_Панель задняя ECO L=1000 H=400 (RAL 9016 глянц) | E165: 10 | F165: =VLOOKUP(B165,'Детали Eco Line'!B$8:D$119,3,0) -> 535 | G165: 5348 | H165: =ROUND(G165*(1-$D$3)/Лист2!$A$6,0) -> 5348
B166: E-ST 01471000 | C166: E-ST 01471000 | D166: E-ST 01471000-30_Полка L=1000 G=470 (RAL 9016 глянц) | E166: 2 | F166: =VLOOKUP(B166,'Детали Eco Line'!B$8:D$119,3,0) -> 934 | G166: 1869 | H166: =ROUND(G166*(1-$D$3)/Лист2!$A$6,0) -> 1869
A167: b0000002676 | B167: База.О ЕСО | D167: База островного стеллажа ECO L=1250 H=2250 | G167: 9394 | H167: =ROUND(G167*(1-$D$3)/Лист2!$A$6,0) -> 9394
B168: E-BP 01151250 | C168: E-BP 01151250 | D168: E-BP 01151250-30_Панель задняя ECO L=1250 H=150 (RAL 9016, глянц) | E168: 2 | F168: =VLOOKUP(B168,'Детали Eco Line'!B$8:D$119,3,0) -> 320 | G168: 641 | H168: =ROUND(G168*(1-$D$3)/Лист2!$A$6,0) -> 641
B169: E-BP 01401250 | C169: E-BP 01401250 | D169: E-BP 01401250-30_Панель задняя ECO L=1250 H=400 (RAL 9016, глянц) | E169: 10 | F169: =VLOOKUP(B169,'Детали Eco Line'!B$8:D$119,3,0) -> 653 | G169: 6527 | H169: =ROUND(G169*(1-$D$3)/Лист2!$A$6,0) -> 6527
B170: E-ST 01471250 | C170: E-ST 01471250 | D170: E-ST 01471250-30_Полка L=1250 G=470 (RAL 9016, глянц) | E170: 2 | F170: =VLOOKUP(B170,'Детали Eco Line'!B$8:D$119,3,0) -> 1113 | G170: 2227 | H170: =ROUND(G170*(1-$D$3)/Лист2!$A$6,0) -> 2227
A171: b0000002676 | B171: База.О ЕСО | D171: База островного стеллажа ECO L=665 H=2250 | G171: 5462 | H171: =ROUND(G171*(1-$D$3)/Лист2!$A$6,0) -> 5462
B172: E-BP 01150665 | C172: E-BP 01150665 | D172: E-BP 01150665-30_Панель задняя ECO L=665 H=150 (RAL 9016, глянц) | E172: 2 | F172: =VLOOKUP(B172,'Детали Eco Line'!B$8:D$119,3,0) -> 221 | G172: 441 | H172: =ROUND(G172*(1-$D$3)/Лист2!$A$6,0) -> 441
B173: E-BP 01400665 | C173: E-BP 01400665 | D173: E-BP 01400665-30_Панель задняя ECO L=665 H=400 (RAL 9016, глянц) | E173: 10 | F173: =VLOOKUP(B173,'Детали Eco Line'!B$8:D$119,3,0) -> 371 | G173: 3711 | H173: =ROUND(G173*(1-$D$3)/Лист2!$A$6,0) -> 3711
B174: E-ST 01470665 | C174: E-ST 01470665 | D174: E-ST 01470665-30_Полка L=665 G=470 (RAL 9016, глянц) | E174: 2 | F174: =VLOOKUP(B174,'Детали Eco Line'!B$8:D$119,3,0) -> 655 | G174: 1309 | H174: =ROUND(G174*(1-$D$3)/Лист2!$A$6,0) -> 1309
A175: З0000098470 | B175: БазаПрЕСО370 | D175: База пристенного стеллажа ECO L=1000 G=370 H=2250 | G175: 3753 | H175: =ROUND(G175*(1-$D$3)/Лист2!$A$6,0) -> 3753
B176: E-BP 01151000 | D176: E-BP 01151000-30_Панель задняя ECO L=1000 H=150 (RAL 9016 глянц) | E176: 1 | F176: =VLOOKUP(B176,'Детали Eco Line'!B$8:D$119,3,0) -> 267 | G176: 267 | H176: =ROUND(G176*(1-$D$3)/Лист2!$A$6,0) -> 267
B177: E-BP 01401000 | D177: E-BP 01401000-30_Панель задняя ECO L=1000 H=400 (RAL 9016 глянц) | E177: 5 | F177: =VLOOKUP(B177,'Детали Eco Line'!B$8:D$119,3,0) -> 535 | G177: 2674 | H177: =ROUND(G177*(1-$D$3)/Лист2!$A$6,0) -> 2674
B178: E-ST 01371000 | D178: E-ST 01371000-30_Полка L=1000 G= 370 (RAL 9016 глянц) | E178: 1 | F178: =VLOOKUP(B178,'Детали Eco Line'!B$8:D$119,3,0) -> 811 | G178: 811 | H178: =ROUND(G178*(1-$D$3)/Лист2!$A$6,0) -> 811
A179: b0000002685 | B179: База.Пр ЕСО | D179: База пристенного стеллажа ECO L=1000 H=2250 | G179: 3876 | H179: =ROUND(G179*(1-$D$3)/Лист2!$A$6,0) -> 3876
B180: E-BP 01151000 | C180: E-BP 01151000 | D180: E-BP 01151000-30_Панель задняя ECO L=1000 H=150 (RAL 9016 глянц) | E180: 1 | F180: =VLOOKUP(B180,'Детали Eco Line'!B$8:D$119,3,0) -> 267 | G180: 267 | H180: =ROUND(G180*(1-$D$3)/Лист2!$A$6,0) -> 267
B181: E-BP 01401000 | C181: E-BP 01401000 | D181: E-BP 01401000-30_Панель задняя ECO L=1000 H=400 (RAL 9016 глянц) | E181: 5 | F181: =VLOOKUP(B181,'Детали Eco Line'!B$8:D$119,3,0) -> 535 | G181: 2674 | H181: =ROUND(G181*(1-$D$3)/Лист2!$A$6,0) -> 2674
B182: E-ST 01471000 | C182: E-ST 01471000 | D182: E-ST 01471000-30_Полка L=1000 G=470 (RAL 9016 глянц) | E182: 1 | F182: =VLOOKUP(B182,'Детали Eco Line'!B$8:D$119,3,0) -> 934 | G182: 934 | H182: =ROUND(G182*(1-$D$3)/Лист2!$A$6,0) -> 934
A183: З0000098470 | B183: БазаПрЕСО370 | D183: База пристенного стеллажа ECO L=1250 G=370 H=2250 | G183: 4474 | H183: =ROUND(G183*(1-$D$3)/Лист2!$A$6,0) -> 4474
B184: E-BP 01151250 | D184: E-BP 01151250-30_Панель задняя ECO L=1250 H=150 (RAL 9016, глянц) | E184: 1 | F184: =VLOOKUP(B184,'Детали Eco Line'!B$8:D$119,3,0) -> 320 | G184: 320 | H184: =ROUND(G184*(1-$D$3)/Лист2!$A$6,0) -> 320
B185: E-BP 01401250 | D185: E-BP 01401250-30_Панель задняя ECO L=1250 H=400 (RAL 9016, глянц) | E185: 5 | F185: =VLOOKUP(B185,'Детали Eco Line'!B$8:D$119,3,0) -> 653 | G185: 3264 | H185: =ROUND(G185*(1-$D$3)/Лист2!$A$6,0) -> 3264
B186: E-ST 01371250 | D186: E-ST 01371250-30_Полка L=1250 G=370 (RAL 9016, глянц) | E186: 1 | F186: =VLOOKUP(B186,'Детали Eco Line'!B$8:D$119,3,0) -> 891 | G186: 891 | H186: =ROUND(G186*(1-$D$3)/Лист2!$A$6,0) -> 891
A187: b0000002685 | B187: База.Пр ЕСО | D187: База пристенного стеллажа ECO L=1250 H=2250 | G187: 4697 | H187: =ROUND(G187*(1-$D$3)/Лист2!$A$6,0) -> 4697
B188: E-BP 01151250 | C188: E-BP 01151250 | D188: E-BP 01151250-30_Панель задняя ECO L=1250 H=150 (RAL 9016, глянц) | E188: 1 | F188: =VLOOKUP(B188,'Детали Eco Line'!B$8:D$119,3,0) -> 320 | G188: 320 | H188: =ROUND(G188*(1-$D$3)/Лист2!$A$6,0) -> 320
B189: E-BP 01401250 | C189: E-BP 01401250 | D189: E-BP 01401250-30_Панель задняя ECO L=1250 H=400 (RAL 9016, глянц) | E189: 5 | F189: =VLOOKUP(B189,'Детали Eco Line'!B$8:D$119,3,0) -> 653 | G189: 3264 | H189: =ROUND(G189*(1-$D$3)/Лист2!$A$6,0) -> 3264
B190: E-ST 01471250 | C190: E-ST 01471250 | D190: E-ST 01471250-30_Полка L=1250 G=470 (RAL 9016, глянц) | E190: 1 | F190: =VLOOKUP(B190,'Детали Eco Line'!B$8:D$119,3,0) -> 1113 | G190: 1113 | H190: =ROUND(G190*(1-$D$3)/Лист2!$A$6,0) -> 1113
A191: З0000098470 | B191: БазаПрЕСО370 | D191: База пристенного стеллажа ECO L=665 G=370 H=2250 | G191: 2615 | H191: =ROUND(G191*(1-$D$3)/Лист2!$A$6,0) -> 2615
B192: E-BP 01150665 | D192: E-BP 01150665-30_Панель задняя ECO L=665 H=150 (RAL 9016, глянц) | E192: 1 | F192: =VLOOKUP(B192,'Детали Eco Line'!B$8:D$119,3,0) -> 221 | G192: 221 | H192: =ROUND(G192*(1-$D$3)/Лист2!$A$6,0) -> 221
B193: E-BP 01400665 | D193: E-BP 01400665-30_Панель задняя ECO L=665 H=400 (RAL 9016, глянц) | E193: 5 | F193: =VLOOKUP(B193,'Детали Eco Line'!B$8:D$119,3,0) -> 371 | G193: 1855 | H193: =ROUND(G193*(1-$D$3)/Лист2!$A$6,0) -> 1855
B194: E-ST 01370665 | D194: E-ST 01370665-30_Полка L=665 G=370 (RAL 9016, глянц) | E194: 1 | F194: =VLOOKUP(B194,'Детали Eco Line'!B$8:D$119,3,0) -> 539 | G194: 539 | H194: =ROUND(G194*(1-$D$3)/Лист2!$A$6,0) -> 539
A195: b0000002685 | B195: База.Пр ЕСО | D195: База пристенного стеллажа ECO L=665 H=2250 | G195: 2731 | H195: =ROUND(G195*(1-$D$3)/Лист2!$A$6,0) -> 2731
B196: E-BP 01150665 | C196: E-BP 01150665 | D196: E-BP 01150665-30_Панель задняя ECO L=665 H=150 (RAL 9016, глянц) | E196: 1 | F196: =VLOOKUP(B196,'Детали Eco Line'!B$8:D$119,3,0) -> 221 | G196: 221 | H196: =ROUND(G196*(1-$D$3)/Лист2!$A$6,0) -> 221
B197: E-BP 01400665 | C197: E-BP 01400665 | D197: E-BP 01400665-30_Панель задняя ECO L=665 H=400 (RAL 9016, глянц) | E197: 5 | F197: =VLOOKUP(B197,'Детали Eco Line'!B$8:D$119,3,0) -> 371 | G197: 1855 | H197: =ROUND(G197*(1-$D$3)/Лист2!$A$6,0) -> 1855
B198: E-ST 01470665 | C198: E-ST 01470665 | D198: E-ST 01470665-30_Полка L=665 G=470 (RAL 9016, глянц) | E198: 1 | F198: =VLOOKUP(B198,'Детали Eco Line'!B$8:D$119,3,0) -> 655 | G198: 655 | H198: =ROUND(G198*(1-$D$3)/Лист2!$A$6,0) -> 655
A199: b0000002685 | B199: База.Пр ЕСО | D199: База пристенного стеллажа ECO L=1000 H=1600 | G199: 3073 | H199: =ROUND(G199*(1-$D$3)/Лист2!$A$6,0) -> 3073
B200: E-BP 01151000 | D200: E-BP 01151000-30_Панель задняя ECO L=1000 H=150 (RAL 9016 глянц) | E200: 2 | F200: =VLOOKUP(B200,'Детали Eco Line'!B$8:D$119,3,0) -> 267 | G200: 535 | H200: =ROUND(G200*(1-$D$3)/Лист2!$A$6,0) -> 535
B201: E-BP 01401000 | D201: E-BP 01401000-30_Панель задняя ECO L=1000 H=400 (RAL 9016 глянц) | E201: 3 | F201: =VLOOKUP(B201,'Детали Eco Line'!B$8:D$119,3,0) -> 535 | G201: 1604 | H201: =ROUND(G201*(1-$D$3)/Лист2!$A$6,0) -> 1604
B202: E-ST 01471000 | D202: E-ST 01471000-30_Полка L=1000 G= 470 (RAL 9016 глянц) | E202: 1 | F202: =VLOOKUP(B202,'Детали Eco Line'!B$8:D$119,3,0) -> 934 | G202: 934 | H202: =ROUND(G202*(1-$D$3)/Лист2!$A$6,0) -> 934
A203: b0000002685 | B203: База.Пр ЕСО | D203: База пристенного стеллажа ECO L=1000 H=1800 | G203: 3334 | H203: =ROUND(G203*(1-$D$3)/Лист2!$A$6,0) -> 3334
... 121 more rows

Sheet Детали Eco Line
A1: Детали торговых стеллажей ECO LINE | B1: Детали торговых стеллажей Eco Line
A3: Ваша скидка: | C3: =Содержание!C2 -> 0
A4: НДС: | C4: =IF(Лист2!A1=TRUE,"С НДС","БЕЗ НДС") -> С НДС
C6: Новинки
A7: N | B7: Артикул | C7: Наименование | D7: Базовая цена, руб. (с НДС) | E7: =[7]Лист2!$A$5 -> Ваша цена, руб.
E8: =[7]Лист2!$A$5 -> Ваша цена, руб.
A9: 1 | B9: E-BP 01100665 | C9: Панель задняя ECO L=665 H=100 | D9: 203 | E9: =ROUND(D9*(1-$C$3)/Лист2!$A$6,0) -> 203
A10: 2 | B10: E-BP 01101000 | C10: Панель задняя ECO L=1000 H=100 | D10: 260 | E10: =ROUND(D10*(1-$C$3)/Лист2!$A$6,0) -> 260
A11: 3 | B11: E-BP 01101250 | C11: Панель задняя ECO L=1250 H=100 | D11: 301 | E11: =ROUND(D11*(1-$C$3)/Лист2!$A$6,0) -> 301
A12: 4 | B12: E-BP 01150665 | C12: Панель задняя ECO L=665 H=150 | D12: 221 | E12: =ROUND(D12*(1-$C$3)/Лист2!$A$6,0) -> 221
A13: 5 | B13: E-BP 01151000 | C13: Панель задняя ECO L=1000 H=150 | D13: 267 | E13: =ROUND(D13*(1-$C$3)/Лист2!$A$6,0) -> 267
A14: 6 | B14: E-BP 01151250 | C14: Панель задняя ECO L=1250 H=150 | D14: 320 | E14: =ROUND(D14*(1-$C$3)/Лист2!$A$6,0) -> 320
A15: 7 | B15: E-BP 01400665 | C15: Панель задняя ECO L=665 H=400 | D15: 371 | E15: =ROUND(D15*(1-$C$3)/Лист2!$A$6,0) -> 371
A16: 8 | B16: E-BP 01401000 | C16: Панель задняя ECO L=1000 H=400 | D16: 535 | E16: =ROUND(D16*(1-$C$3)/Лист2!$A$6,0) -> 535
A17: 9 | B17: E-BP 01401250 | C17: Панель задняя ECO L=1250 H=400 | D17: 653 | E17: =ROUND(D17*(1-$C$3)/Лист2!$A$6,0) -> 653
A18: 10 | B18: E-BP 02150665 | C18: Панель перфорированная ECO L=665 H=150 | D18: 431 | E18: =ROUND(D18*(1-$C$3)/Лист2!$A$6,0) -> 431
A19: 11 | B19: E-BP 02151000 | C19: Панель перфорированная ECO L=1000 H=150 | D19: 543 | E19: =ROUND(D19*(1-$C$3)/Лист2!$A$6,0) -> 543
A20: 12 | B20: E-BP 02151250 | C20: Панель перфорированная ECO L=1250 H=150 | D20: 651 | E20: =ROUND(D20*(1-$C$3)/Лист2!$A$6,0) -> 651
A21: 13 | B21: E-BP 02400665 | C21: Панель перфорированная ECO L=665 H=400 | D21: 563 | E21: =ROUND(D21*(1-$C$3)/Лист2!$A$6,0) -> 563
A22: 14 | B22: E-BP 02401000 | C22: Панель перфорированная ECO L=1000 H=400 | D22: 816 | E22: =ROUND(D22*(1-$C$3)/Лист2!$A$6,0) -> 816
A23: 15 | B23: E-BP 02401250 | C23: Панель перфорированная ECO L=1250 H=400 | D23: 1011 | E23: =ROUND(D23*(1-$C$3)/Лист2!$A$6,0) -> 1011
A24: 16 | B24: E-BP 05900150 | C24: Панель угловая внутренняя H=150 | D24: 303 | E24: =ROUND(D24*(1-$C$3)/Лист2!$A$6,0) -> 303
A25: 17 | B25: E-BP 05900400 | C25: Панель угловая внутренняя H=400 | D25: 624 | E25: =ROUND(D25*(1-$C$3)/Лист2!$A$6,0) -> 624
A26: 18 | B26: E-BP 06900150 | C26: Панель угловая внешняя H=150 | D26: 148 | E26: =ROUND(D26*(1-$C$3)/Лист2!$A$6,0) -> 148
A27: 19 | B27: E-BP 06900400 | C27: Панель угловая внешняя H=400 | D27: 242 | E27: =ROUND(D27*(1-$C$3)/Лист2!$A$6,0) -> 242
A28: 20 | B28: E-BS 01000310 | C28: Кронштейн G=310 (комплект) | D28: 199 | E28: =ROUND(D28*(1-$C$3)/Лист2!$A$6,0) -> 199
A29: 21 | B29: E-BS 01000370 | C29: Кронштейн G=370 (комплект) | D29: 250 | E29: =ROUND(D29*(1-$C$3)/Лист2!$A$6,0) -> 250
A30: 22 | B30: E-BS 01000470 | C30: Кронштейн G=470 (комплект) | D30: 451 | E30: =ROUND(D30*(1-$C$3)/Лист2!$A$6,0) -> 451
A31: 23 | B31: E-BS 15020210 | C31: Кроншт для торц полукр полок комп с адапт стойк60х30с торц баз, G=210 | D31: 970 | E31: =ROUND(D31*(1-$C$3)/Лист2!$A$6,0) -> 970
A32: 24 | B32: E-BS 15020310 | C32: Кроншт для торц полукр полок комп с адапт стойк60х30с торц баз, G=310 | D32: 1074 | E32: =ROUND(D32*(1-$C$3)/Лист2!$A$6,0) -> 1074
A33: 25 | B33: E-BS 15020370 | C33: Кроншт для торц полукр полок комп с адапт стойк60х30с торц баз, G=370 | D33: 1164 | E33: =ROUND(D33*(1-$C$3)/Лист2!$A$6,0) -> 1164
A34: 26 | B34: E-BS 15020470 | C34: Кроншт для торц полукр полок комп с адапт стойк60х30с торц баз, G=470 | D34: 1586 | E34: =ROUND(D34*(1-$C$3)/Лист2!$A$6,0) -> 1586
A35: 27 | B35: E-LT 16037150 | C35: Стойка сварная с двухст перф (60х30)L-образ H=1500, G=370 | D35: 1344 | E35: =ROUND(D35*(1-$C$3)/Лист2!$A$6,0) -> 1344
A36: 28 | B36: E-LT 16037160 | C36: Стойка сварная с двухст перф (60х30)L-образ H=1600, G=370 | D36: 1378 | E36: =ROUND(D36*(1-$C$3)/Лист2!$A$6,0) -> 1378
A37: 29 | B37: E-LT 16037180 | C37: Стойка сварная с двухст перф (60х30)L-образ H=1800, G=370 | D37: 1472 | E37: =ROUND(D37*(1-$C$3)/Лист2!$A$6,0) -> 1472
A38: 30 | B38: E-LT 16037210 | C38: Стойка сварная с двухст перф (60х30)L-образ H=2100, G=370 | D38: 1643 | E38: =ROUND(D38*(1-$C$3)/Лист2!$A$6,0) -> 1643
A39: 31 | B39: E-LT 16037225 | C39: Стойка сварная с двухст перф (60х30)L-образ H=2250, G=370 | D39: 1697 | E39: =ROUND(D39*(1-$C$3)/Лист2!$A$6,0) -> 1697
A40: 32 | B40: E-LT 22371600 | C40: Стойка сварн 80х30 с базой 60х30 L-образ H=1600, G=370 | D40: 1939 | E40: =ROUND(D40*(1-$C$3)/Лист2!$A$6,0) -> 1939
A41: 33 | B41: E-LT 22371800 | C41: Стойка сварн 80х30 с базой 60х30 L-образ H=1800, G=370 | D41: 2109 | E41: =ROUND(D41*(1-$C$3)/Лист2!$A$6,0) -> 2109
A42: 34 | B42: E-LT 22372100 | C42: Стойка сварн 80х30 с базой 60х30 L-образ H=2100, G=370 | D42: 2205 | E42: =ROUND(D42*(1-$C$3)/Лист2!$A$6,0) -> 2205
A43: 35 | B43: E-LT 22372250 | C43: Стойка сварн 80х30 с базой 60х30 L-образ H=2250, G=370 | D43: 2451 | E43: =ROUND(D43*(1-$C$3)/Лист2!$A$6,0) -> 2451
A44: 36 | B44: E-LT 22471600 | C44: Стойка сварн 80х30 с базой 60х30 L-образ H=1600, G=470 | D44: 1989 | E44: =ROUND(D44*(1-$C$3)/Лист2!$A$6,0) -> 1989
A45: 37 | B45: E-LT 22471800 | C45: Стойка сварн 80х30 с базой 60х30 L-образ H=1800, G=470 | D45: 2142 | E45: =ROUND(D45*(1-$C$3)/Лист2!$A$6,0) -> 2142
A46: 38 | B46: E-LT 22472100 | C46: Стойка сварн 80х30 с базой 60х30 L-образ H=2100, G=470 | D46: 2269 | E46: =ROUND(D46*(1-$C$3)/Лист2!$A$6,0) -> 2269
A47: 39 | B47: E-LT 22472250 | C47: Стойка сварн 80х30 с базой 60х30 L-образ H=2250, G=470 | D47: 2411 | E47: =ROUND(D47*(1-$C$3)/Лист2!$A$6,0) -> 2411
A48: 40 | B48: E-LT 02601500 | C48: Стойка сварная с двухстор.перф. L-образная Н=1500 | D48: 1561 | E48: =ROUND(D48*(1-$C$3)/Лист2!$A$6,0) -> 1561
A49: 41 | B49: E-LT 02601600 | C49: Стойка сварная с двухстор.перф. L-образная Н=1600 | D49: 1614 | E49: =ROUND(D49*(1-$C$3)/Лист2!$A$6,0) -> 1614
A50: 42 | B50: E-LT 02601700 | C50: Стойка сварная с двухстор.перф. L-образная Н=1700 | D50: 1653 | E50: =ROUND(D50*(1-$C$3)/Лист2!$A$6,0) -> 1653
A51: 43 | B51: E-LT 02601800 | C51: Стойка сварная с двухстор.перф. L-образная Н=1800 | D51: 1696 | E51: =ROUND(D51*(1-$C$3)/Лист2!$A$6,0) -> 1696
A52: 44 | B52: E-LT 02602000 | C52: Стойка сварная с двухстор.перф. L-образная Н=2000 | D52: 1773 | E52: =ROUND(D52*(1-$C$3)/Лист2!$A$6,0) -> 1773
A53: 45 | B53: E-LT 02602100 | C53: Стойка сварная с двухстор.перф. L-образная Н=2100 | D53: 1812 | E53: =ROUND(D53*(1-$C$3)/Лист2!$A$6,0) -> 1812
A54: 46 | B54: E-LT 02602250 | C54: Стойка сварная с двухстор.перф. L-образная Н=2250 | D54: 1878 | E54: =ROUND(D54*(1-$C$3)/Лист2!$A$6,0) -> 1878
A55: 47 | B55: E-LT 26037150 | C55: Стойка сварная с двухст перф (60х30)Т-образ H=1500, G=370х2 | D55: 1834 | E55: =ROUND(D55*(1-$C$3)/Лист2!$A$6,0) -> 1834
A56: 48 | B56: E-LT 26037160 | C56: Стойка сварная с двухст перф (60х30)Т-образ H=1600, G=370х2 | D56: 1998 | E56: =ROUND(D56*(1-$C$3)/Лист2!$A$6,0) -> 1998
A57: 49 | B57: E-LT 26037180 | C57: Стойка сварная с двухст перф (60х30)Т-образ H=1800, G=370х2 | D57: 2161 | E57: =ROUND(D57*(1-$C$3)/Лист2!$A$6,0) -> 2161
B58: E-LT 26037225 | C58: Стойка сварная с двухст перф (60х30)Т-образ H=2250, G=370х2 | D58: 2391 | E58: =ROUND(D58*(1-$C$3)/Лист2!$A$6,0) -> 2391
A59: 50 | B59: E-LT 86371600 | C59: Стойка сварн 80х30 с базой 60х30 Т-образ H=1600, G=370 | D59: 2472 | E59: =ROUND(D59*(1-$C$3)/Лист2!$A$6,0) -> 2472
A60: 51 | B60: E-LT 86371800 | C60: Стойка сварн 80х30 с базой 60х30 Т-образ H=1800, G=370 | D60: 2630 | E60: =ROUND(D60*(1-$C$3)/Лист2!$A$6,0) -> 2630
A61: 52 | B61: E-LT 86372100 | C61: Стойка сварн 80х30 с базой 60х30 Т-образ H=2100, G=370 | D61: 2784 | E61: =ROUND(D61*(1-$C$3)/Лист2!$A$6,0) -> 2784
A62: 53 | B62: E-LT 86372250 | C62: Стойка сварн 80х30 с базой 60х30 Т-образ H=2250, G=370 | D62: 2925 | E62: =ROUND(D62*(1-$C$3)/Лист2!$A$6,0) -> 2925
A63: 54 | B63: E-LT 86471600 | C63: Стойка сварн 80х30 с базой 60х30 Т-образ H=1600, G=470 | D63: 2669 | E63: =ROUND(D63*(1-$C$3)/Лист2!$A$6,0) -> 2669
A64: 55 | B64: E-LT 86471800 | C64: Стойка сварн 80х30 с базой 60х30 Т-образ H=1800, G=470 | D64: 2742 | E64: =ROUND(D64*(1-$C$3)/Лист2!$A$6,0) -> 2742
A65: 56 | B65: E-LT 86472100 | C65: Стойка сварн 80х30 с базой 60х30 Т-образ H=2100, G=470 | D65: 2943 | E65: =ROUND(D65*(1-$C$3)/Лист2!$A$6,0) -> 2943
A66: 57 | B66: E-LT 86472250 | C66: Стойка сварн 80х30 с базой 60х30 Т-образ H=2250, G=470 | D66: 3076 | E66: =ROUND(D66*(1-$C$3)/Лист2!$A$6,0) -> 3076
A67: 58 | B67: E-LT 82471500 | C67: Стойка сварная с двухстор.перф. T-образная Н=1500 | D67: 2279 | E67: =ROUND(D67*(1-$C$3)/Лист2!$A$6,0) -> 2279
A68: 59 | B68: E-LT 82471600 | C68: Стойка сварная с двухстор.перф. T-образная Н=1600 | D68: 2315 | E68: =ROUND(D68*(1-$C$3)/Лист2!$A$6,0) -> 2315
A69: 60 | B69: E-LT 82471700 | C69: Стойка сварная с двухстор.перф. T-образная Н=1700 | D69: 2356 | E69: =ROUND(D69*(1-$C$3)/Лист2!$A$6,0) -> 2356
A70: 61 | B70: E-LT 82471800 | C70: Стойка сварная с двухстор.перф. T-образная Н=1800 | D70: 2393 | E70: =ROUND(D70*(1-$C$3)/Лист2!$A$6,0) -> 2393
A71: 62 | B71: E-LT 82472100 | C71: Стойка сварная с двухстор.перф. T-образная Н=2100 | D71: 2497 | E71: =ROUND(D71*(1-$C$3)/Лист2!$A$6,0) -> 2497
A72: 63 | B72: E-LT 82472250 | C72: Стойка сварная с двухстор.перф. T-образная Н=2250 | D72: 2587 | E72: =ROUND(D72*(1-$C$3)/Лист2!$A$6,0) -> 2587
A73: 64 | B73: T-LT 81371600 | C73: Стойка 30х60 с торцевой базой, G=370 Н = 1600 | D73: 4886 | E73: =ROUND(D73*(1-$C$3)/Лист2!$A$6,0) -> 4886
A74: 65 | B74: T-LT 81371800 | C74: Стойка 30х60 с торцевой базой, G=370 Н = 1800 | D74: 4931 | E74: =ROUND(D74*(1-$C$3)/Лист2!$A$6,0) -> 4931
A75: 66 | B75: T-LT 81372250 | C75: Стойка 30х60 с торцевой базой, G=370 Н = 2250 | D75: 5013 | E75: =ROUND(D75*(1-$C$3)/Лист2!$A$6,0) -> 5013
A76: 67 | B76: T-LT 81471600 | C76: Стойка 30х60 с торцевой базой, G=470 Н = 1600 | D76: 5016 | E76: =ROUND(D76*(1-$C$3)/Лист2!$A$6,0) -> 5016
A77: 68 | B77: T-LT 81471800 | C77: Стойка 30х60 с торцевой базой, G=470 Н = 1800 | D77: 5062 | E77: =ROUND(D77*(1-$C$3)/Лист2!$A$6,0) -> 5062
A78: 69 | B78: T-LT 81472250 | C78: Стойка 30х60 с торцевой базой, G=470 Н = 2250 | D78: 5150 | E78: =ROUND(D78*(1-$C$3)/Лист2!$A$6,0) -> 5150
A79: 70 | B79: E-ST 01310665 | C79: Полка L=665 G=310 | D79: 453 | E79: =ROUND(D79*(1-$C$3)/Лист2!$A$6,0) -> 453
A80: 71 | B80: E-ST 01311000 | C80: Полка L=1000 G=310 | D80: 618 | E80: =ROUND(D80*(1-$C$3)/Лист2!$A$6,0) -> 618
A81: 72 | B81: E-ST 01311250 | C81: Полка L=1250 G=310 | D81: 751 | E81: =ROUND(D81*(1-$C$3)/Лист2!$A$6,0) -> 751
A82: 73 | B82: E-ST 01370665 | C82: Полка L=665 G=370 | D82: 539 | E82: =ROUND(D82*(1-$C$3)/Лист2!$A$6,0) -> 539
A83: 74 | B83: E-ST 01371000 | C83: Полка L=1000 G=370 | D83: 811 | E83: =ROUND(D83*(1-$C$3)/Лист2!$A$6,0) -> 811
A84: 75 | B84: E-ST 01371250 | C84: Полка L=1250 G=370 | D84: 891 | E84: =ROUND(D84*(1-$C$3)/Лист2!$A$6,0) -> 891
A85: 76 | B85: E-ST 01470665 | C85: Полка L=665 G=470 | D85: 655 | E85: =ROUND(D85*(1-$C$3)/Лист2!$A$6,0) -> 655
A86: 77 | B86: E-ST 01471000 | C86: Полка L=1000 G=470 | D86: 934 | E86: =ROUND(D86*(1-$C$3)/Лист2!$A$6,0) -> 934
A87: 78 | B87: E-ST 01471250 | C87: Полка L=1250 G=470 | D87: 1113 | E87: =ROUND(D87*(1-$C$3)/Лист2!$A$6,0) -> 1113
A88: 79 | B88: E-ST 05000310 | C88: Полка угловая внутренняя G=310 | D88: 722 | E88: =ROUND(D88*(1-$C$3)/Лист2!$A$6,0) -> 722
A89: 80 | B89: E-ST 05000370 | C89: Полка угловая внутренняя G=370 | D89: 858 | E89: =ROUND(D89*(1-$C$3)/Лист2!$A$6,0) -> 858
A90: 81 | B90: E-ST 05000470 | C90: Полка угловая внутренняя G=470 | D90: 942 | E90: =ROUND(D90*(1-$C$3)/Лист2!$A$6,0) -> 942
A91: 82 | B91: E-ST 06000310 | C91: Полка угловая внешняя G=310 | D91: 605 | E91: =ROUND(D91*(1-$C$3)/Лист2!$A$6,0) -> 605
A92: 83 | B92: E-ST 06000370 | C92: Полка угловая внешняя G=370 | D92: 774 | E92: =ROUND(D92*(1-$C$3)/Лист2!$A$6,0) -> 774
A93: 84 | B93: E-ST 06000470 | C93: Полка угловая внешняя G=470 | D93: 909 | E93: =ROUND(D93*(1-$C$3)/Лист2!$A$6,0) -> 909
A94: 85 | B94: E-TC 01600665 | C94: Крышка стеллажа L=665 ECO (60х30) | D94: 186 | E94: =ROUND(D94*(1-$C$3)/Лист2!$A$6,0) -> 186
A95: 86 | B95: E-TC 01601000 | C95: Крышка стеллажа L=1000 ECO (60х30) | D95: 249 | E95: =ROUND(D95*(1-$C$3)/Лист2!$A$6,0) -> 249
A96: 87 | B96: E-TC 01601250 | C96: Крышка стеллажа L=1250 ECO (60х30) | D96: 310 | E96: =ROUND(D96*(1-$C$3)/Лист2!$A$6,0) -> 310
A97: 88 | B97: E-TP 03470665 | C97: Навес прямой с подсветкой G=470 L=665 (без передней панели) | D97: 2492 | E97: =ROUND(D97*(1-$C$3)/Лист2!$A$6,0) -> 2492
A98: 89 | B98: E-TP 03471000 | C98: Навес прямой с подсветкой G=470 L=1000 (без передней панели) | D98: 3085 | E98: =ROUND(D98*(1-$C$3)/Лист2!$A$6,0) -> 3085
A99: 90 | B99: E-TP 03471250 | C99: Навес прямой с подсветкой G=470 L=1250 (без передней панели) | D99: 4013 | E99: =ROUND(D99*(1-$C$3)/Лист2!$A$6,0) -> 4013
A100: 91 | B100: E-TP 02470010 | C100: Навес прямой угловой внутренний с подсветкой G=470 | D100: 1952 | E100: =ROUND(D100*(1-$C$3)/Лист2!$A$6,0) -> 1952
A101: 92 | B101: E-TP 02470020 | C101: Навес прямой угловой внешний с подсветкой G=470 | D101: 2882 | E101: =ROUND(D101*(1-$C$3)/Лист2!$A$6,0) -> 2882
A102: 93 | B102: N-LC 01003060 | C102: Заглушка стойки 30x60 (для плинт с одним зацеп) | D102: 120 | E102: =ROUND(D102*(1-$C$3)/Лист2!$A$6,0) -> 120
A103: 94 | B103: N-PT 00200665 | C103: Плинтус с одним зацепом (для стойки Эколайн),L=665 | D103: 230 | E103: =ROUND(D103*(1-$C$3)/Лист2!$A$6,0) -> 230
A104: 95 | B104: N-PT 00201000 | C104: Плинтус с одним зацепом (для стойки Эколайн),L=1000 | D104: 280 | E104: =ROUND(D104*(1-$C$3)/Лист2!$A$6,0) -> 280
A105: 96 | B105: N-PT 00201250 | C105: Плинтус с одним зацепом (для стойки Эколайн),L=1250 | D105: 377 | E105: =ROUND(D105*(1-$C$3)/Лист2!$A$6,0) -> 377
A106: 97 | B106: N-PT 00200370 | C106: Плинтус с одним зацеп угол внутр (для стойки Эколайн), G=370 | D106: 323 | E106: =ROUND(D106*(1-$C$3)/Лист2!$A$6,0) -> 323
A107: 98 | B107: N-PT 00200470 | C107: Плинтус с одним зацеп угол внутр (для стойки Эколайн), G=470 | D107: 309 | E107: =ROUND(D107*(1-$C$3)/Лист2!$A$6,0) -> 309
A108: 99 | B108: N-PT 00210370 | C108: Плинтус с одним зацеп угол внеш (для стойки Эколайн), G=370 | D108: 420 | E108: =ROUND(D108*(1-$C$3)/Лист2!$A$6,0) -> 420
A109: 100 | B109: N-PT 00210470 | C109: Плинтус с одним зацеп угол внеш (для стойки Эколайн), G=470 | D109: 434 | E109: =ROUND(D109*(1-$C$3)/Лист2!$A$6,0) -> 434
A110: 101 | B110: E-ST 02300210 | C110: Полка торцевая полукруглая под ограничитель G=210 | D110: 816 | E110: =ROUND(D110*(1-$C$3)/Лист2!$A$6,0) -> 816
A111: 102 | B111: E-ST 02300310 | C111: Полка торцевая полукруглая под ограничитель G=310 | D111: 1169 | E111: =ROUND(D111*(1-$C$3)/Лист2!$A$6,0) -> 1169
A112: 103 | B112: E-ST 02300370 | C112: Полка торцевая полукруглая под ограничитель G=370 | D112: 1418 | E112: =ROUND(D112*(1-$C$3)/Лист2!$A$6,0) -> 1418
A113: 104 | B113: E-ST 02300470 | C113: Полка торцевая полукруглая под ограничитель G=470 | D113: 1880 | E113: =ROUND(D113*(1-$C$3)/Лист2!$A$6,0) -> 1880
A114: 105 | B114: E-BW 13081000 | C114: Полка реечная (э) G=470 H=80 L=1000(массив листвен) | D114: 2849 | E114: =ROUND(D114*(1-$C$3)/Лист2!$A$6,0) -> 2849
A115: 106 | B115: E-BW 12251000 | C115: Полка реечная высокая (э) G=470 H=250 L=1000(массив листвен) | D115: 3410 | E115: =ROUND(D115*(1-$C$3)/Лист2!$A$6,0) -> 3410
A116: 107 | B116: E-BW 11501000 | C116: Накопитель реечн (э) G=470 H=500 L=1000 (массив листвен) | D116: 4331 | E116: =ROUND(D116*(1-$C$3)/Лист2!$A$6,0) -> 4331
A117: 108 | B117: E-SS 03471600 | C117: Боковина сетчатая Eco, H=1600, G=470 | D117: 3717 | E117: =ROUND(D117*(1-$C$3)/Лист2!$A$6,0) -> 3717
A118: 109 | B118: E-SS 03471800 | C118: Боковина сетчатая Eco, H=1800, G=470 | D118: 4026 | E118: =ROUND(D118*(1-$C$3)/Лист2!$A$6,0) -> 4026
A119: 110 | B119: E-SS 03472250 | C119: Боковина сетчатая Eco, H=2250, G=470 | D119: 4641 | E119: =ROUND(D119*(1-$C$3)/Лист2!$A$6,0) -> 4641
A120: 111 | B120: T-FT 03000070 | C120: Опора регулируемая М10х45 (КДАБ.301319.008-01) | D120: 57 | E120: =ROUND(D120*(1-$C$3)/Лист2!$A$6,0) -> 57
A122: Примечание:
A123: Деталь N-PT 00200 Плинтус с одним зацепом (для стойки Эколайн) может использоваться только с изделием:
B124: N-LC 01003060 | C124: Заглушка стойки 30x60 (для плинт с одним зацеп)

Sheet Сборки Eco Line
A1: Cборки торговых стеллажей ECO LINE | H1: На главную
A3: Ваша скидка: | C3: =Содержание!C2 -> 0
A4: НДС: | C4: =IF(Лист2!A1=TRUE,"С НДС","БЕЗ НДС") -> С НДС
A6: Изображение | B6: Артикул | C6: Наименование | D6: Кол-во в сборке, шт. | E6: Базовая цена, руб. (с НДС) | G6: =[7]Лист2!$A$5 -> Ваша цена, руб.
E7: за элемент в сборке | F7: за сборку | G7: за сборку
A8: 1 | B8: Пристенный стеллаж L=665 мм H=2250 мм | F8: =SUMPRODUCT(D9:D12,E9:E12) -> 7493 | G8: =ROUND(F8*(1-$C$3)/Лист2!$A$6,0) -> 7493
B9: Стойка.1 ЕCO | C9: Стойка ЕCO односторонняя H=2250 | D9: 1 | E9: =INDEX('Комплекты Eco Line'!$G$9:$G$314,MATCH('Сборки Eco Line'!C9,'Комплекты Eco Line'!$D$9:$D$323,)) -> 1878
B10: Полка ЕСО | C10: Полка ECO 665х310 с кроншт | D10: 2 | E10: =INDEX('Комплекты Eco Line'!$G$9:$G$314,MATCH('Сборки Eco Line'!C10,'Комплекты Eco Line'!$D$9:$D$323,)) -> 653
B11: Полка ЕСО | C11: Полка ECO 665х370 с кроншт | D11: 2 | E11: =INDEX('Комплекты Eco Line'!$G$9:$G$314,MATCH('Сборки Eco Line'!C11,'Комплекты Eco Line'!$D$9:$D$323,)) -> 789
B12: База.Пр ЕСО | C12: База пристенного стеллажа ECO L=665 H=2250 | D12: 1 | E12: =INDEX('Комплекты Eco Line'!$G$9:$G$314,MATCH('Сборки Eco Line'!C12,'Комплекты Eco Line'!$D$9:$D$323,)) -> 2731
A13: 2 | B13: Пристенный стеллаж L=1000 мм H=2250 мм | F13: =SUMPRODUCT(D14:D17,E14:E17) -> 9510 | G13: =ROUND(F13*(1-$C$3)/Лист2!$A$6,0) -> 9510
B14: Стойка.1 ЕCO | C14: Стойка ЕCO односторонняя H=2250 | D14: 1 | E14: =INDEX('Комплекты Eco Line'!$G$9:$G$314,MATCH('Сборки Eco Line'!C14,'Комплекты Eco Line'!$D$9:$D$323,)) -> 1878
B15: Полка ЕСО | C15: Полка ECO 1000х310 с кроншт | D15: 2 | E15: =INDEX('Комплекты Eco Line'!$G$9:$G$314,MATCH('Сборки Eco Line'!C15,'Комплекты Eco Line'!$D$9:$D$323,)) -> 817
B16: Полка ЕСО | C16: Полка ECO 1000х370 с кроншт | D16: 2 | E16: =INDEX('Комплекты Eco Line'!$G$9:$G$314,MATCH('Сборки Eco Line'!C16,'Комплекты Eco Line'!$D$9:$D$323,)) -> 1061
B17: База.Пр ЕСО | C17: База пристенного стеллажа ECO L=1000 H=2250 | D17: 1 | E17: =INDEX('Комплекты Eco Line'!$G$9:$G$314,MATCH('Сборки Eco Line'!C17,'Комплекты Eco Line'!$D$9:$D$323,)) -> 3876
A18: 3 | B18: Пристенный стеллаж L=1250 мм H=2250 мм | F18: =SUMPRODUCT(D19:D22,E19:E22) -> 10759 | G18: =ROUND(F18*(1-$C$3)/Лист2!$A$6,0) -> 10759
B19: Стойка.1 ЕCO | C19: Стойка ЕCO односторонняя H=2250 | D19: 1 | E19: =INDEX('Комплекты Eco Line'!$G$9:$G$314,MATCH('Сборки Eco Line'!C19,'Комплекты Eco Line'!$D$9:$D$323,)) -> 1878
B20: Полка ЕСО | C20: Полка ECO 1250х310 с кроншт | D20: 2 | E20: =INDEX('Комплекты Eco Line'!$G$9:$G$314,MATCH('Сборки Eco Line'!C20,'Комплекты Eco Line'!$D$9:$D$323,)) -> 951
B21: Полка ЕСО | C21: Полка ECO 1250х370 с кроншт | D21: 2 | E21: =INDEX('Комплекты Eco Line'!$G$9:$G$314,MATCH('Сборки Eco Line'!C21,'Комплекты Eco Line'!$D$9:$D$323,)) -> 1141
B22: База.Пр ЕСО | C22: База пристенного стеллажа ECO L=1250 H=2250 | D22: 1 | E22: =INDEX('Комплекты Eco Line'!$G$9:$G$314,MATCH('Сборки Eco Line'!C22,'Комплекты Eco Line'!$D$9:$D$323,)) -> 4697
A23: 4 | B23: Пристенный перфорированный стеллаж L=665 мм H=2250 мм | F23: =SUMPRODUCT(D24:D25,E24:E25) -> 5570 | G23: =ROUND(F23*(1-$C$3)/Лист2!$A$6,0) -> 5570
B24: Стойка.1 ЕCO | C24: Стойка ЕCO односторонняя H=2250 | D24: 1 | E24: =INDEX('Комплекты Eco Line'!$G$9:$G$314,MATCH('Сборки Eco Line'!C24,'Комплекты Eco Line'!$D$9:$D$323,)) -> 1878
B25: База.Пер ЕСО | C25: База пристенного перфориров стел ECO L=665 H=2250 | D25: 1 | E25: =INDEX('Комплекты Eco Line'!$G$9:$G$314,MATCH('Сборки Eco Line'!C25,'Комплекты Eco Line'!$D$9:$D$323,)) -> 3692
A26: 5 | B26: Пристенный перфорированный стеллаж L=1000 мм H=2250 мм | F26: =SUMPRODUCT(D27:D28,E27:E28) -> 7162 | G26: =ROUND(F26*(1-$C$3)/Лист2!$A$6,0) -> 7162
B27: Стойка.1 ЕCO | C27: Стойка ЕCO односторонняя H=2250 | D27: 1 | E27: =INDEX('Комплекты Eco Line'!$G$9:$G$314,MATCH('Сборки Eco Line'!C27,'Комплекты Eco Line'!$D$9:$D$323,)) -> 1878
B28: База.Пер ЕСО | C28: База пристенного перфориров стел ECO L=1000 H=2250 | D28: 1 | E28: =INDEX('Комплекты Eco Line'!$G$9:$G$314,MATCH('Сборки Eco Line'!C28,'Комплекты Eco Line'!$D$9:$D$323,)) -> 5284
A29: 6 | B29: Пристенный перфорированный стеллаж L=1250 мм H=2250 мм | F29: =SUMPRODUCT(D30:D31,E30:E31) -> 8364 | G29: =ROUND(F29*(1-$C$3)/Лист2!$A$6,0) -> 8364
B30: Стойка.1 ЕCO | C30: Стойка ЕCO односторонняя H=2250 | D30: 1 | E30: =INDEX('Комплекты Eco Line'!$G$9:$G$314,MATCH('Сборки Eco Line'!C30,'Комплекты Eco Line'!$D$9:$D$323,)) -> 1878
B31: База.Пер ЕСО | C31: База пристенного перфориров стел ECO L=1250 H=2250 | D31: 1 | E31: =INDEX('Комплекты Eco Line'!$G$9:$G$314,MATCH('Сборки Eco Line'!C31,'Комплекты Eco Line'!$D$9:$D$323,)) -> 6486
A32: 7 | B32: Островной стеллаж L=665 мм H=1600 мм | F32: =SUMPRODUCT(D33:D36,E33:E36) -> 11381 | G32: =ROUND(F32*(1-$C$3)/Лист2!$A$6,0) -> 11381
B33: Стойка.2 ЕCO | C33: Стойка ЕCO двусторонняя H=1600 | D33: 1 | E33: =INDEX('Комплекты Eco Line'!$G$9:$G$314,MATCH('Сборки Eco Line'!C33,'Комплекты Eco Line'!$D$9:$D$323,)) -> 2315
B34: Полка ЕСО | C34: Полка ECO 665х310 с кроншт | D34: 2 | E34: =INDEX('Комплекты Eco Line'!$G$9:$G$314,MATCH('Сборки Eco Line'!C34,'Комплекты Eco Line'!$D$9:$D$323,)) -> 653
B35: Полка ЕСО | C35: Полка ECO 665х370 с кроншт | D35: 4 | E35: =INDEX('Комплекты Eco Line'!$G$9:$G$314,MATCH('Сборки Eco Line'!C35,'Комплекты Eco Line'!$D$9:$D$323,)) -> 789
B36: База.О ЕСО | C36: База островного стеллажа ECO L=665 H=1600 | D36: 1 | E36: =INDEX('Комплекты Eco Line'!$G$9:$G$314,MATCH('Сборки Eco Line'!C36,'Комплекты Eco Line'!$D$9:$D$323,)) -> 4604
A37: 8 | B37: Островной стеллаж L=1000 мм H=1600 мм | F37: =SUMPRODUCT(D38:D41,E38:E41) -> 14589 | G37: =ROUND(F37*(1-$C$3)/Лист2!$A$6,0) -> 14589
B38: Стойка.2 ЕCO | C38: Стойка ЕCO двусторонняя H=1600 | D38: 1 | E38: =INDEX('Комплекты Eco Line'!$G$9:$G$314,MATCH('Сборки Eco Line'!C38,'Комплекты Eco Line'!$D$9:$D$323,)) -> 2315
B39: Полка ЕСО | C39: Полка ECO 1000х310 с кроншт | D39: 2 | E39: =INDEX('Комплекты Eco Line'!$G$9:$G$314,MATCH('Сборки Eco Line'!C39,'Комплекты Eco Line'!$D$9:$D$323,)) -> 817
B40: Полка ЕСО | C40: Полка ECO 1000х370 с кроншт | D40: 4 | E40: =INDEX('Комплекты Eco Line'!$G$9:$G$314,MATCH('Сборки Eco Line'!C40,'Комплекты Eco Line'!$D$9:$D$323,)) -> 1061
B41: База.О ЕСО | C41: База островного стеллажа ECO L=1000 H=1600 | D41: 1 | E41: =INDEX('Комплекты Eco Line'!$G$9:$G$314,MATCH('Сборки Eco Line'!C41,'Комплекты Eco Line'!$D$9:$D$323,)) -> 6396
A42: 9 | B42: Островной стеллаж L=1250 мм H=1600 мм | F42: =SUMPRODUCT(D43:D46,E43:E46) -> 16515 | G42: =ROUND(F42*(1-$C$3)/Лист2!$A$6,0) -> 16515
B43: Стойка.2 ЕCO | C43: Стойка ЕCO двусторонняя H=1600 | D43: 1 | E43: =INDEX('Комплекты Eco Line'!$G$9:$G$314,MATCH('Сборки Eco Line'!C43,'Комплекты Eco Line'!$D$9:$D$323,)) -> 2315
B44: Полка ЕСО | C44: Полка ECO 1250х310 с кроншт | D44: 2 | E44: =INDEX('Комплекты Eco Line'!$G$9:$G$314,MATCH('Сборки Eco Line'!C44,'Комплекты Eco Line'!$D$9:$D$323,)) -> 951
B45: Полка ЕСО | C45: Полка ECO 1250х370 с кроншт | D45: 4 | E45: =INDEX('Комплекты Eco Line'!$G$9:$G$314,MATCH('Сборки Eco Line'!C45,'Комплекты Eco Line'!$D$9:$D$323,)) -> 1141
B46: База.О ЕСО | C46: База островного стеллажа ECO L=1250 H=1600 | D46: 1 | E46: =INDEX('Комплекты Eco Line'!$G$9:$G$314,MATCH('Сборки Eco Line'!C46,'Комплекты Eco Line'!$D$9:$D$323,)) -> 7734
A47: 10 | B47: Островной стеллаж L=665 мм H=1800 мм | F47: =SUMPRODUCT(D48:D51,E48:E51) -> 11726 | G47: =ROUND(F47*(1-$C$3)/Лист2!$A$6,0) -> 11726
B48: Стойка.2 ЕCO | C48: Стойка ЕCO двусторонняя H=1800 | D48: 1 | E48: =INDEX('Комплекты Eco Line'!$G$9:$G$314,MATCH('Сборки Eco Line'!C48,'Комплекты Eco Line'!$D$9:$D$323,)) -> 2393
B49: Полка ЕСО | C49: Полка ECO 665х310 с кроншт | D49: 2 | E49: =INDEX('Комплекты Eco Line'!$G$9:$G$314,MATCH('Сборки Eco Line'!C49,'Комплекты Eco Line'!$D$9:$D$323,)) -> 653
B50: Полка ЕСО | C50: Полка ECO 665х370 с кроншт | D50: 4 | E50: =INDEX('Комплекты Eco Line'!$G$9:$G$314,MATCH('Сборки Eco Line'!C50,'Комплекты Eco Line'!$D$9:$D$323,)) -> 789
B51: База.О ЕСО | C51: База островного стеллажа ECO L=665 H=1800 | D51: 1 | E51: =INDEX('Комплекты Eco Line'!$G$9:$G$314,MATCH('Сборки Eco Line'!C51,'Комплекты Eco Line'!$D$9:$D$323,)) -> 4871
A52: 11 | B52: Островной стеллаж L=1000 мм H=1800 мм | F52: =SUMPRODUCT(D53:D56,E53:E56) -> 15187 | G52: =ROUND(F52*(1-$C$3)/Лист2!$A$6,0) -> 15187
B53: Стойка.2 ЕCO | C53: Стойка ЕCO двусторонняя H=1800 | D53: 1 | E53: =INDEX('Комплекты Eco Line'!$G$9:$G$314,MATCH('Сборки Eco Line'!C53,'Комплекты Eco Line'!$D$9:$D$323,)) -> 2393
B54: Полка ЕСО | C54: Полка ECO 1000х310 с кроншт | D54: 2 | E54: =INDEX('Комплекты Eco Line'!$G$9:$G$314,MATCH('Сборки Eco Line'!C54,'Комплекты Eco Line'!$D$9:$D$323,)) -> 817
B55: Полка ЕСО | C55: Полка ECO 1000х370 с кроншт | D55: 4 | E55: =INDEX('Комплекты Eco Line'!$G$9:$G$314,MATCH('Сборки Eco Line'!C55,'Комплекты Eco Line'!$D$9:$D$323,)) -> 1061
B56: База.О ЕСО | C56: База островного стеллажа ECO L=1000 H=1800 | D56: 1 | E56: =INDEX('Комплекты Eco Line'!$G$9:$G$314,MATCH('Сборки Eco Line'!C56,'Комплекты Eco Line'!$D$9:$D$323,)) -> 6916
A57: 12 | B57: Островной стеллаж L=1250 мм H=1800 мм | F57: =SUMPRODUCT(D58:D61,E58:E61) -> 17219 | G57: =ROUND(F57*(1-$C$3)/Лист2!$A$6,0) -> 17219
B58: Стойка.2 ЕCO | C58: Стойка ЕCO двусторонняя H=1800 | D58: 1 | E58: =INDEX('Комплекты Eco Line'!$G$9:$G$314,MATCH('Сборки Eco Line'!C58,'Комплекты Eco Line'!$D$9:$D$323,)) -> 2393
B59: Полка ЕСО | C59: Полка ECO 1250х310 с кроншт | D59: 2 | E59: =INDEX('Комплекты Eco Line'!$G$9:$G$314,MATCH('Сборки Eco Line'!C59,'Комплекты Eco Line'!$D$9:$D$323,)) -> 951
B60: Полка ЕСО | C60: Полка ECO 1250х370 с кроншт | D60: 4 | E60: =INDEX('Комплекты Eco Line'!$G$9:$G$314,MATCH('Сборки Eco Line'!C60,'Комплекты Eco Line'!$D$9:$D$323,)) -> 1141
B61: База.О ЕСО | C61: База островного стеллажа ECO L=1250 H=1800 | D61: 1 | E61: =INDEX('Комплекты Eco Line'!$G$9:$G$314,MATCH('Сборки Eco Line'!C61,'Комплекты Eco Line'!$D$9:$D$323,)) -> 8360
A62: 13 | B62: Островной стеллаж L=665 мм H=2250 мм | F62: =SUMPRODUCT(D63:D66,E63:E66) -> 13817 | G62: =ROUND(F62*(1-$C$3)/Лист2!$A$6,0) -> 13817
B63: Стойка.2 ЕCO | C63: Стойка ЕCO двусторонняя H=2250 | D63: 1 | E63: =INDEX('Комплекты Eco Line'!$G$9:$G$314,MATCH('Сборки Eco Line'!C63,'Комплекты Eco Line'!$D$9:$D$323,)) -> 2587
B64: Полка ЕСО | C64: Полка ECO 665х310 с кроншт | D64: 4 | E64: =INDEX('Комплекты Eco Line'!$G$9:$G$314,MATCH('Сборки Eco Line'!C64,'Комплекты Eco Line'!$D$9:$D$323,)) -> 653
B65: Полка ЕСО | C65: Полка ECO 665х370 с кроншт | D65: 4 | E65: =INDEX('Комплекты Eco Line'!$G$9:$G$314,MATCH('Сборки Eco Line'!C65,'Комплекты Eco Line'!$D$9:$D$323,)) -> 789
B66: База.О ЕСО | C66: База островного стеллажа ECO L=665 H=2250 | D66: 1 | E66: =INDEX('Комплекты Eco Line'!$G$9:$G$314,MATCH('Сборки Eco Line'!C66,'Комплекты Eco Line'!$D$9:$D$323,)) -> 5462
A67: 14 | B67: Островной стеллаж L=1000 мм H=2250 мм | F67: =SUMPRODUCT(D68:D71,E68:E71) -> 17850 | G67: =ROUND(F67*(1-$C$3)/Лист2!$A$6,0) -> 17850
B68: Стойка.2 ЕCO | C68: Стойка ЕCO двусторонняя H=2250 | D68: 1 | E68: =INDEX('Комплекты Eco Line'!$G$9:$G$314,MATCH('Сборки Eco Line'!C68,'Комплекты Eco Line'!$D$9:$D$323,)) -> 2587
B69: Полка ЕСО | C69: Полка ECO 1000х310 с кроншт | D69: 4 | E69: =INDEX('Комплекты Eco Line'!$G$9:$G$314,MATCH('Сборки Eco Line'!C69,'Комплекты Eco Line'!$D$9:$D$323,)) -> 817
B70: Полка ЕСО | C70: Полка ECO 1000х370 с кроншт | D70: 4 | E70: =INDEX('Комплекты Eco Line'!$G$9:$G$314,MATCH('Сборки Eco Line'!C70,'Комплекты Eco Line'!$D$9:$D$323,)) -> 1061
B71: База.О ЕСО | C71: База островного стеллажа ECO L=1000 H=2250 | D71: 1 | E71: =INDEX('Комплекты Eco Line'!$G$9:$G$314,MATCH('Сборки Eco Line'!C71,'Комплекты Eco Line'!$D$9:$D$323,)) -> 7751
A72: 15 | B72: Островной стеллаж L=1250 мм H=2250 мм | F72: =SUMPRODUCT(D73:D76,E73:E76) -> 20349 | G72: =ROUND(F72*(1-$C$3)/Лист2!$A$6,0) -> 20349
B73: Стойка.2 ЕCO | C73: Стойка ЕCO двусторонняя H=2250 | D73: 1 | E73: =INDEX('Комплекты Eco Line'!$G$9:$G$314,MATCH('Сборки Eco Line'!C73,'Комплекты Eco Line'!$D$9:$D$323,)) -> 2587
B74: Полка ЕСО | C74: Полка ECO 1250х310 с кроншт | D74: 4 | E74: =INDEX('Комплекты Eco Line'!$G$9:$G$314,MATCH('Сборки Eco Line'!C74,'Комплекты Eco Line'!$D$9:$D$323,)) -> 951
B75: Полка ЕСО | C75: Полка ECO 1250х370 с кроншт | D75: 4 | E75: =INDEX('Комплекты Eco Line'!$G$9:$G$314,MATCH('Сборки Eco Line'!C75,'Комплекты Eco Line'!$D$9:$D$323,)) -> 1141
B76: База.О ЕСО | C76: База островного стеллажа ECO L=1250 H=2250 | D76: 1 | E76: =INDEX('Комплекты Eco Line'!$G$9:$G$314,MATCH('Сборки Eco Line'!C76,'Комплекты Eco Line'!$D$9:$D$323,)) -> 9394
A77: 16 | B77: Торцевой стеллаж L=1000 мм H=1600 мм | F77: =SUMPRODUCT(D78:D81,E78:E81) -> 11629 | G77: =ROUND(F77*(1-$C$3)/Лист2!$A$6,0) -> 11629
B78: Стойка.1 ЕCO | C78: Стойка ЕCO односторонняя H=1600 | D78: 2 | E78: =INDEX('Комплекты Eco Line'!$G$9:$G$314,MATCH('Сборки Eco Line'!C78,'Комплекты Eco Line'!$D$9:$D$323,)) -> 1614
B79: Полка ЕСО | C79: Полка ECO 1000х310 с кроншт | D79: 1 | E79: =INDEX('Комплекты Eco Line'!$G$9:$G$314,MATCH('Сборки Eco Line'!C79,'Комплекты Eco Line'!$D$9:$D$323,)) -> 817
B80: Полка ЕСО | C80: Полка ECO 1000х370 с кроншт | D80: 2 | E80: =INDEX('Комплекты Eco Line'!$G$9:$G$314,MATCH('Сборки Eco Line'!C80,'Комплекты Eco Line'!$D$9:$D$323,)) -> 1061
B81: База.Т ЕСО | C81: База торцевого стел ECO L=1000 H=1600 | D81: 1 | E81: =INDEX('Комплекты Eco Line'!$G$9:$G$314,MATCH('Сборки Eco Line'!C81,'Комплекты Eco Line'!$D$9:$D$323,)) -> 5462
A82: 17 | B82: Торцевой стеллаж L=1000 мм H=1800 мм | F82: =SUMPRODUCT(D83:D86,E83:E86) -> 12313 | G82: =ROUND(F82*(1-$C$3)/Лист2!$A$6,0) -> 12313
B83: Стойка.1 ЕCO | C83: Стойка ЕCO односторонняя H=1800 | D83: 2 | E83: =INDEX('Комплекты Eco Line'!$G$9:$G$314,MATCH('Сборки Eco Line'!C83,'Комплекты Eco Line'!$D$9:$D$323,)) -> 1696
B84: Полка ЕСО | C84: Полка ECO 1000х310 с кроншт | D84: 1 | E84: =INDEX('Комплекты Eco Line'!$G$9:$G$314,MATCH('Сборки Eco Line'!C84,'Комплекты Eco Line'!$D$9:$D$323,)) -> 817
B85: Полка ЕСО | C85: Полка ECO 1000х370 с кроншт | D85: 2 | E85: =INDEX('Комплекты Eco Line'!$G$9:$G$314,MATCH('Сборки Eco Line'!C85,'Комплекты Eco Line'!$D$9:$D$323,)) -> 1061
B86: База.Т ЕСО | C86: База торцевого стел ECO L=1000 H=1800 | D86: 1 | E86: =INDEX('Комплекты Eco Line'!$G$9:$G$314,MATCH('Сборки Eco Line'!C86,'Комплекты Eco Line'!$D$9:$D$323,)) -> 5982
A87: 18 | B87: Торцевой стеллаж L=1000 мм H=2250 мм | F87: =SUMPRODUCT(D88:D91,E88:E91) -> 14329 | G87: =ROUND(F87*(1-$C$3)/Лист2!$A$6,0) -> 14329
B88: Стойка.1 ЕCO | C88: Стойка ЕCO односторонняя H=2250 | D88: 2 | E88: =INDEX('Комплекты Eco Line'!$G$9:$G$314,MATCH('Сборки Eco Line'!C88,'Комплекты Eco Line'!$D$9:$D$323,)) -> 1878
B89: Полка ЕСО | C89: Полка ECO 1000х310 с кроншт | D89: 2 | E89: =INDEX('Комплекты Eco Line'!$G$9:$G$314,MATCH('Сборки Eco Line'!C89,'Комплекты Eco Line'!$D$9:$D$323,)) -> 817
B90: Полка ЕСО | C90: Полка ECO 1000х370 с кроншт | D90: 2 | E90: =INDEX('Комплекты Eco Line'!$G$9:$G$314,MATCH('Сборки Eco Line'!C90,'Комплекты Eco Line'!$D$9:$D$323,)) -> 1061
B91: База.Т ЕСО | C91: База торцевого стел ECO L=1000 H=2250 | D91: 1 | E91: =INDEX('Комплекты Eco Line'!$G$9:$G$314,MATCH('Сборки Eco Line'!C91,'Комплекты Eco Line'!$D$9:$D$323,)) -> 6817
A92: 19 | B92: Пристенный стеллаж L=665 мм H=2250 мм с навесом с подсветкой | F92: =SUMPRODUCT(D93:D97,E93:E97) -> 9985 | G92: =ROUND(F92*(1-$C$3)/Лист2!$A$6,0) -> 9985
B93: Стойка.1 ЕCO | C93: Стойка ЕCO односторонняя H=2250 | D93: 1 | E93: =INDEX('Комплекты Eco Line'!$G$9:$G$314,MATCH('Сборки Eco Line'!C93,'Комплекты Eco Line'!$D$9:$D$323,)) -> 1878
B94: Полка ЕСО | C94: Полка ECO 665х310 с кроншт | D94: 2 | E94: =INDEX('Комплекты Eco Line'!$G$9:$G$314,MATCH('Сборки Eco Line'!C94,'Комплекты Eco Line'!$D$9:$D$323,)) -> 653
B95: Полка ЕСО | C95: Полка ECO 665х370 с кроншт | D95: 2 | E95: =INDEX('Комплекты Eco Line'!$G$9:$G$314,MATCH('Сборки Eco Line'!C95,'Комплекты Eco Line'!$D$9:$D$323,)) -> 789
B96: База.Пр ЕСО | C96: База пристенного стеллажа ECO L=665 H=2250 | D96: 1 | E96: =INDEX('Комплекты Eco Line'!$G$9:$G$314,MATCH('Сборки Eco Line'!C96,'Комплекты Eco Line'!$D$9:$D$323,)) -> 2731
B97: Навес/пд ECO | C97: Навес прямой с подсветкой ECO G=470 L=665 (без передней панели) | D97: 1 | E97: =INDEX('Комплекты Eco Line'!$G$9:$G$314,MATCH('Сборки Eco Line'!C97,'Комплекты Eco Line'!$D$9:$D$323,)) -> 2492
A98: 20 | B98: Пристенный стеллаж L=1000 мм H=2250 мм с навесом с подсветкой | F98: =SUMPRODUCT(D99:D103,E99:E103) -> 12595 | G98: =ROUND(F98*(1-$C$3)/Лист2!$A$6,0) -> 12595
B99: Стойка.1 ЕCO | C99: Стойка ЕCO односторонняя H=2250 | D99: 1 | E99: =INDEX('Комплекты Eco Line'!$G$9:$G$314,MATCH('Сборки Eco Line'!C99,'Комплекты Eco Line'!$D$9:$D$323,)) -> 1878
B100: Полка ЕСО | C100: Полка ECO 1000х310 с кроншт | D100: 2 | E100: =INDEX('Комплекты Eco Line'!$G$9:$G$314,MATCH('Сборки Eco Line'!C100,'Комплекты Eco Line'!$D$9:$D$323,)) -> 817
B101: Полка ЕСО | C101: Полка ECO 1000х370 с кроншт | D101: 2 | E101: =INDEX('Комплекты Eco Line'!$G$9:$G$314,MATCH('Сборки Eco Line'!C101,'Комплекты Eco Line'!$D$9:$D$323,)) -> 1061
B102: База.Пр ЕСО | C102: База пристенного стеллажа ECO L=1000 H=2250 | D102: 1 | E102: =INDEX('Комплекты Eco Line'!$G$9:$G$314,MATCH('Сборки Eco Line'!C102,'Комплекты Eco Line'!$D$9:$D$323,)) -> 3876
B103: Навес/пд ECO | C103: Навес прямой с подсветкой ECO G=470 L=1000 (без передней панели) | D103: 1 | E103: =INDEX('Комплекты Eco Line'!$G$9:$G$314,MATCH('Сборки Eco Line'!C103,'Комплекты Eco Line'!$D$9:$D$323,)) -> 3085
A104: 21 | B104: Пристенный стеллаж L=1250 мм H=2250 мм с навесом с подсветкой | F104: =SUMPRODUCT(D105:D109,E105:E109) -> 14772 | G104: =ROUND(F104*(1-$C$3)/Лист2!$A$6,0) -> 14772
B105: Стойка.1 ЕCO | C105: Стойка ЕCO односторонняя H=2250 | D105: 1 | E105: =INDEX('Комплекты Eco Line'!$G$9:$G$314,MATCH('Сборки Eco Line'!C105,'Комплекты Eco Line'!$D$9:$D$323,)) -> 1878
B106: Полка ЕСО | C106: Полка ECO 1250х310 с кроншт | D106: 2 | E106: =INDEX('Комплекты Eco Line'!$G$9:$G$314,MATCH('Сборки Eco Line'!C106,'Комплекты Eco Line'!$D$9:$D$323,)) -> 951
B107: Полка ЕСО | C107: Полка ECO 1250х370 с кроншт | D107: 2 | E107: =INDEX('Комплекты Eco Line'!$G$9:$G$314,MATCH('Сборки Eco Line'!C107,'Комплекты Eco Line'!$D$9:$D$323,)) -> 1141
B108: База.Пр ЕСО | C108: База пристенного стеллажа ECO L=1250 H=2250 | D108: 1 | E108: =INDEX('Комплекты Eco Line'!$G$9:$G$314,MATCH('Сборки Eco Line'!C108,'Комплекты Eco Line'!$D$9:$D$323,)) -> 4697
B109: Навес/пд ECO | C109: Навес прямой с подсветкой ЕСО G=470 L=1250 (без передней панели) | D109: 1 | E109: =INDEX('Комплекты Eco Line'!$G$9:$G$314,MATCH('Сборки Eco Line'!C109,'Комплекты Eco Line'!$D$9:$D$323,)) -> 4013
A110: 22 | B110: Пристенный стеллаж L=1000 мм H=2250 мм c хлебными полками | F110: =SUMPRODUCT(D111:D115,E111:E115) -> 19754 | G110: =ROUND(F110*(1-$C$3)/Лист2!$A$6,0) -> 19754
B111: Стойка.1 ЕCO | C111: Стойка ЕCO односторонняя H=2250 | D111: 1 | E111: =INDEX('Комплекты Eco Line'!$G$9:$G$314,MATCH('Сборки Eco Line'!C111,'Комплекты Eco Line'!$D$9:$D$323,)) -> 1878
B112: Полка рееч.ECO | C112: Полка реечная (э) ЕСО G=470 H=80 L=1000 | D112: 1 | E112: =INDEX('Комплекты Eco Line'!$G$9:$G$314,MATCH('Сборки Eco Line'!C112,'Комплекты Eco Line'!$D$9:$D$323,)) -> 2849
B113: ПЛ ECO РВ | C113: Полка реечная высокая (э) ЕСО G=470 H=250 L=1000 | D113: 2 | E113: =INDEX('Комплекты Eco Line'!$G$9:$G$314,MATCH('Сборки Eco Line'!C113,'Комплекты Eco Line'!$D$9:$D$323,)) -> 3410
B114: Накоп.рееч.ECО | C114: Накопитель реечный (э) ЕСО G=470 H=500 L=1000 | D114: 1 | E114: =INDEX('Комплекты Eco Line'!$G$9:$G$314,MATCH('Сборки Eco Line'!C114,'Комплекты Eco Line'!$D$9:$D$323,)) -> 4331
B115: База.Пр ЕСО | C115: База пристенного стеллажа ECO L=1000 H=2250 | D115: 1 | E115: =INDEX('Комплекты Eco Line'!$G$9:$G$314,MATCH('Сборки Eco Line'!C115,'Комплекты Eco Line'!$D$9:$D$323,)) -> 3876
A116: 23 | B116: Пристенный стеллаж угловой внешний H=2250 мм | F116: =SUMPRODUCT(D117:D120,E117:E120) -> 7801 | G116: =ROUND(F116*(1-$C$3)/Лист2!$A$6,0) -> 7801
B117: Стойка.1 ЕCO | C117: Стойка ЕCO односторонняя H=2250 | D117: 1 | E117: =INDEX('Комплекты Eco Line'!$G$9:$G$314,MATCH('Сборки Eco Line'!C117,'Комплекты Eco Line'!$D$9:$D$323,)) -> 1878
B118: Полка OC ECO | C118: Полка ECO угл. внеш. 310 с кроншт | D118: 2 | E118: =INDEX('Комплекты Eco Line'!$G$9:$G$314,MATCH('Сборки Eco Line'!C118,'Комплекты Eco Line'!$D$9:$D$323,)) -> 804
B119: Полка OC ECO | C119: Полка ECO угл. внеш. 370 с кроншт | D119: 2 | E119: =INDEX('Комплекты Eco Line'!$G$9:$G$314,MATCH('Сборки Eco Line'!C119,'Комплекты Eco Line'!$D$9:$D$323,)) -> 1024
B120: База.OC ECO | C120: База углового стел (внешний) ECO H=2250 | D120: 1 | E120: =INDEX('Комплекты Eco Line'!$G$9:$G$314,MATCH('Сборки Eco Line'!C120,'Комплекты Eco Line'!$D$9:$D$323,)) -> 2267
A121: 24 | B121: Пристенный стеллаж угловой внутренний H=2250 мм | F121: =SUMPRODUCT(D122:D125,E122:E125) -> 10303 | G121: =ROUND(F121*(1-$C$3)/Лист2!$A$6,0) -> 10303
B122: Стойка.1 ЕCO | C122: Стойка ЕCO односторонняя H=2250 | D122: 1 | E122: =INDEX('Комплекты Eco Line'!$G$9:$G$314,MATCH('Сборки Eco Line'!C122,'Комплекты Eco Line'!$D$9:$D$323,)) -> 1878
B123: Полка IC ЕСО | C123: Полка ECO угл. вн. 310 с кроншт | D123: 2 | E123: =INDEX('Комплекты Eco Line'!$G$9:$G$314,MATCH('Сборки Eco Line'!C123,'Комплекты Eco Line'!$D$9:$D$323,)) -> 921
B124: Полка IC ЕСО | C124: Полка ECO угл. вн. 370 с кроншт | D124: 2 | E124: =INDEX('Комплекты Eco Line'!$G$9:$G$314,MATCH('Сборки Eco Line'!C124,'Комплекты Eco Line'!$D$9:$D$323,)) -> 1108
B125: Баз.уг.вн. ECO | C125: База углового стел (внутренний) ECO H=2250 | D125: 1 | E125: =INDEX('Комплекты Eco Line'!$G$9:$G$314,MATCH('Сборки Eco Line'!C125,'Комплекты Eco Line'!$D$9:$D$323,)) -> 4367
A126: 25 | B126: Пристенный стеллаж угловой внешний с навесом с подсветкой H=2250 мм | F126: =SUMPRODUCT(D127:D131,E127:E131) -> 9943 | G126: =ROUND(F126*(1-$C$3)/Лист2!$A$6,0) -> 9943
B127: Стойка.1 ЕCO | C127: Стойка ЕCO односторонняя H=2250 | D127: 1 | E127: =INDEX('Комплекты Eco Line'!$G$9:$G$314,MATCH('Сборки Eco Line'!C127,'Комплекты Eco Line'!$D$9:$D$323,)) -> 1878
B128: Полка OC ECO | C128: Полка ECO угл. внеш. 310 с кроншт | D128: 2 | E128: =INDEX('Комплекты Eco Line'!$G$9:$G$314,MATCH('Сборки Eco Line'!C128,'Комплекты Eco Line'!$D$9:$D$323,)) -> 804
B129: Полка OC ECO | C129: Полка ECO угл. внеш. 370 с кроншт | D129: 2 | E129: =INDEX('Комплекты Eco Line'!$G$9:$G$314,MATCH('Сборки Eco Line'!C129,'Комплекты Eco Line'!$D$9:$D$323,)) -> 1024
B130: База.OC ECO | C130: База углового стел (внешний) ECO H=2250 | D130: 1 | E130: =INDEX('Комплекты Eco Line'!$G$9:$G$314,MATCH('Сборки Eco Line'!C130,'Комплекты Eco Line'!$D$9:$D$323,)) -> 2267
B131: Навес OC/пдECO | C131: Навес прямой угл. внеш подсветкой ЕСО G=470 | D131: 1 | E131: 2142
A132: 26 | B132: Пристенный стеллаж угловой (внутренний) с навесом с подсветкой H=2250 мм | F132: =SUMPRODUCT(D133:D137,E133:E137) -> 12255 | G132: =ROUND(F132*(1-$C$3)/Лист2!$A$6,0) -> 12255
B133: Стойка.1 ЕCO | C133: Стойка ЕCO односторонняя H=2250 | D133: 1 | E133: =INDEX('Комплекты Eco Line'!$G$9:$G$314,MATCH('Сборки Eco Line'!C133,'Комплекты Eco Line'!$D$9:$D$323,)) -> 1878
B134: Полка IC ЕСО | C134: Полка ECO угл. вн. 310 с кроншт | D134: 2 | E134: =INDEX('Комплекты Eco Line'!$G$9:$G$314,MATCH('Сборки Eco Line'!C134,'Комплекты Eco Line'!$D$9:$D$323,)) -> 921
B135: Полка IC ЕСО | C135: Полка ECO угл. вн. 370 с кроншт | D135: 2 | E135: =INDEX('Комплекты Eco Line'!$G$9:$G$314,MATCH('Сборки Eco Line'!C135,'Комплекты Eco Line'!$D$9:$D$323,)) -> 1108
B136: База.IC ECO | C136: База углового стел (внутренний) ECO H=2250 | D136: 1 | E136: =INDEX('Комплекты Eco Line'!$G$9:$G$314,MATCH('Сборки Eco Line'!C136,'Комплекты Eco Line'!$D$9:$D$323,)) -> 4367
B137: Навес IC/пдECO | C137: Навес прямой угл. вн с подсветкой ЕСО G=470 | D137: 1 | E137: =INDEX('Комплекты Eco Line'!$G$9:$G$314,MATCH('Сборки Eco Line'!C137,'Комплекты Eco Line'!$D$9:$D$323,)) -> 1952

Sheet Наценка Eco Line
A1: Наценка при покраске деталей серии ECO LINE | D1: На главную
A6: Ral | B6: Структура | C6: наценка, %
A7: RAL | B7: Вид поверхности | C7: наценка , %
A8: 1001 | B8: глянец | C8: 11
A9: 1013 | B9: шагрень глянцевая | C9: 8
A10: 1013 | B10: глянец | C10: 15
A11: 1013 | B11: муар Маго | C11: 4
A12: 1015 | B12: глянец | C12: 13
A13: 1018 | B13: глянец | C13: 5
A14: 2004 | B14: глянец | C14: 6
A15: 2008 | B15: глянец | C15: 5
A16: 3000 | B16: глянец | C16: 5
A17: 3002 | B17: глянец | C17: 6
A18: 5005 | B18: глянец | C18: 2
A19: 6018 | B19: глянец | C19: 5
A20: 6029 | B20: глянец | C20: 4
A21: 7011 | B21: глянец | C21: 2
A22: 7016 | B22: структурная муар | C22: 2
A23: 7016 | B23: глянец | C23: 15
A24: 7021 | B24: глянец | C24: 7
A25: 7021 | B25: матовая | C25: 6
A26: 7024 | B26: структурная муар | C26: 3
A27: 7035 | B27: шагрень глянцевая | C27: 2
A28: 7035 | B28: глянец | C28: 2
A29: 7035 | B29: гладкая полуматовая | C29: 13
A30: 7035 | B30: структурная муар | C30: 8
A31: 7040 | B31: матовая | C31: 11
A32: 7040 | B32: структурная муар | C32: 3
A33: 7040 | B33: глянец | C33: 2
A34: 7042 | B34: глянец | C34: 2
A35: 7043 | B35: глянец | C35: 4
A36: 8017 | B36: глянец | C36: 8
A37: 8017 | B37: структурная муар | C37: 5
A38: 9002 | B38: полуматовая | C38: 8
A39: 9005 | B39: шагрень глянцевая | C39: 0
A40: 9005 | B40: глянец | C40: 5
A41: 9005 | B41: матовая | C41: 11
A42: 9005 | B42: структурная муар | C42: 1
A43: 9006 | B43: глянец | C43: 5
A44: 9006 | B44: матовая | C44: 4
A45: 9007 | B45: полуматовая | C45: 11
A46: 9010 | B46: муар | C46: 3
A47: 9010 | B47: матовая | C47: 9
A48: 9016 | B48: глянец | C48: 0

Sheet Детали Praktisch
A1: Детали торговых стеллажей Praktisch | E1: На главную
A3: Ваша скидка: | C3: =Содержание!C2 -> 0
A4: НДС: | C4: =IF(Лист2!A1=TRUE,"С НДС","БЕЗ НДС") -> С НДС
A6: Стандартная окраска:
B7: - металл, цвет RAL 9010 стуктурная муар
B8: - ЛДСП цвет Орех, Клен, Дуб Сонома
B9: Новинки
A10: Артикул | B10: Наименование | C10: Базовая цена, руб. (с НДС) | D10: =[7]Лист2!$A$5 -> Ваша цена, руб.
D11: =[7]Лист2!$A$5 -> Ваша цена, руб.
A12: T-LT 02801000 | B12: Стойка 80х30 с двухсторонней перфорацией Н = 1000 | C12: 970 | D12: =ROUND(C12*(1-$C$3)/Лист2!$A$6,0) -> 970
A13: T-LT 02801100 | B13: Стойка 80х30 с двухсторонней перфорацией Н = 1100 | C13: 1031 | D13: =ROUND(C13*(1-$C$3)/Лист2!$A$6,0) -> 1031
A14: T-LT 02801150 | B14: Стойка 80х30 с двухсторонней перфорацией Н = 1150 | C14: 1058 | D14: =ROUND(C14*(1-$C$3)/Лист2!$A$6,0) -> 1058
A15: T-LT 02801200 | B15: Стойка 80х30 с двухсторонней перфорацией Н = 1200 | C15: 1084 | D15: =ROUND(C15*(1-$C$3)/Лист2!$A$6,0) -> 1084
A16: T-LT 02801250 | B16: Стойка 80х30 с двухсторонней перфорацией Н = 1250 | C16: 1106 | D16: =ROUND(C16*(1-$C$3)/Лист2!$A$6,0) -> 1106
A17: T-LT 02801300 | B17: Стойка 80х30 с двухсторонней перфорацией Н = 1300 | C17: 1132 | D17: =ROUND(C17*(1-$C$3)/Лист2!$A$6,0) -> 1132
A18: T-LT 02801350 | B18: Стойка 80х30 с двухсторонней перфорацией Н = 1350 | C18: 1164 | D18: =ROUND(C18*(1-$C$3)/Лист2!$A$6,0) -> 1164
A19: T-LT 02801400 | B19: Стойка 80х30 с двухсторонней перфорацией Н = 1400 | C19: 1200 | D19: =ROUND(C19*(1-$C$3)/Лист2!$A$6,0) -> 1200
A20: T-LT 02801450 | B20: Стойка 80х30 с двухсторонней перфорацией Н = 1450 | C20: 1238 | D20: =ROUND(C20*(1-$C$3)/Лист2!$A$6,0) -> 1238
A21: T-LT 02801500 | B21: Стойка 80х30 с двухсторонней перфорацией Н = 1500 | C21: 1268 | D21: =ROUND(C21*(1-$C$3)/Лист2!$A$6,0) -> 1268
A22: T-LT 02801550 | B22: Стойка 80х30 с двухсторонней перфорацией Н = 1550 | C22: 1299 | D22: =ROUND(C22*(1-$C$3)/Лист2!$A$6,0) -> 1299
A23: T-LT 02801600 | B23: Стойка 80х30 с двухсторонней перфорацией Н = 1600 | C23: 1330 | D23: =ROUND(C23*(1-$C$3)/Лист2!$A$6,0) -> 1330
A24: T-LT 02801650 | B24: Стойка 80х30 с двухсторонней перфорацией Н = 1650 | C24: 1361 | D24: =ROUND(C24*(1-$C$3)/Лист2!$A$6,0) -> 1361
A25: T-LT 02801700 | B25: Стойка 80х30 с двухсторонней перфорацией Н = 1700 | C25: 1389 | D25: =ROUND(C25*(1-$C$3)/Лист2!$A$6,0) -> 1389
A26: T-LT 02801750 | B26: Стойка 80х30 с двухсторонней перфорацией Н = 1750 | C26: 1418 | D26: =ROUND(C26*(1-$C$3)/Лист2!$A$6,0) -> 1418
A27: T-LT 02801800 | B27: Стойка 80х30 с двухсторонней перфорацией Н = 1800 | C27: 1456 | D27: =ROUND(C27*(1-$C$3)/Лист2!$A$6,0) -> 1456
A28: T-LT 02801850 | B28: Стойка 80х30 с двухсторонней перфорацией Н = 1850 | C28: 1475 | D28: =ROUND(C28*(1-$C$3)/Лист2!$A$6,0) -> 1475
A29: T-LT 02801900 | B29: Стойка 80х30 с двухсторонней перфорацией Н = 1900 | C29: 1512 | D29: =ROUND(C29*(1-$C$3)/Лист2!$A$6,0) -> 1512
A30: T-LT 02801950 | B30: Стойка 80х30 с двухсторонней перфорацией Н = 1950 | C30: 1540 | D30: =ROUND(C30*(1-$C$3)/Лист2!$A$6,0) -> 1540
A31: T-LT 02802000 | B31: Стойка 80х30 с двухсторонней перфорацией Н = 2000 | C31: 1570 | D31: =ROUND(C31*(1-$C$3)/Лист2!$A$6,0) -> 1570
A32: T-LT 02802050 | B32: Стойка 80х30 с двухсторонней перфорацией Н = 2050 | C32: 1600 | D32: =ROUND(C32*(1-$C$3)/Лист2!$A$6,0) -> 1600
A33: T-LT 02802100 | B33: Стойка 80х30 с двухсторонней перфорацией Н = 2100 | C33: 1634 | D33: =ROUND(C33*(1-$C$3)/Лист2!$A$6,0) -> 1634
A34: T-LT 02802150 | B34: Стойка 80х30 с двухсторонней перфорацией Н = 2150 | C34: 1661 | D34: =ROUND(C34*(1-$C$3)/Лист2!$A$6,0) -> 1661
A35: T-LT 02802200 | B35: Стойка 80х30 с двухсторонней перфорацией Н = 2200 | C35: 1697 | D35: =ROUND(C35*(1-$C$3)/Лист2!$A$6,0) -> 1697
A36: T-LT 02802250 | B36: Стойка 80х30 с двухсторонней перфорацией Н = 2250 | C36: 1726 | D36: =ROUND(C36*(1-$C$3)/Лист2!$A$6,0) -> 1726
A37: T-LT 02802300 | B37: Стойка 80х30 с двухсторонней перфорацией Н = 2300 | C37: 1753 | D37: =ROUND(C37*(1-$C$3)/Лист2!$A$6,0) -> 1753
A38: T-LT 02802350 | B38: Стойка 80х30 с двухсторонней перфорацией Н = 2350 | C38: 1788 | D38: =ROUND(C38*(1-$C$3)/Лист2!$A$6,0) -> 1788
A39: T-LT 02802400 | B39: Стойка 80х30 с двухсторонней перфорацией Н = 2400 | C39: 1832 | D39: =ROUND(C39*(1-$C$3)/Лист2!$A$6,0) -> 1832
A40: T-LT 02802450 | B40: Стойка 80х30 с двухсторонней перфорацией Н = 2450 | C40: 1864 | D40: =ROUND(C40*(1-$C$3)/Лист2!$A$6,0) -> 1864
A41: T-LT 02802500 | B41: Стойка 80х30 с двухсторонней перфорацией Н = 2500 | C41: 1892 | D41: =ROUND(C41*(1-$C$3)/Лист2!$A$6,0) -> 1892
A42: T-LT 02802550 | B42: Стойка 80х30 с двухсторонней перфорацией Н = 2550 | C42: 1923 | D42: =ROUND(C42*(1-$C$3)/Лист2!$A$6,0) -> 1923
A43: T-LT 02802600 | B43: Стойка 80х30 с двухсторонней перфорацией Н = 2600 | C43: 1956 | D43: =ROUND(C43*(1-$C$3)/Лист2!$A$6,0) -> 1956
A44: T-LT 02802650 | B44: Стойка 80х30 с двухсторонней перфорацией Н = 2650 | C44: 1989 | D44: =ROUND(C44*(1-$C$3)/Лист2!$A$6,0) -> 1989
A45: T-LT 02802700 | B45: Стойка 80х30 с двухсторонней перфорацией Н = 2700 | C45: 2041 | D45: =ROUND(C45*(1-$C$3)/Лист2!$A$6,0) -> 2041
A46: T-LT 02802750 | B46: Стойка 80х30 с двухсторонней перфорацией Н = 2750 | C46: 2067 | D46: =ROUND(C46*(1-$C$3)/Лист2!$A$6,0) -> 2067
A47: T-LT 02802800 | B47: Стойка 80х30 с двухсторонней перфорацией Н = 2800 | C47: 2097 | D47: =ROUND(C47*(1-$C$3)/Лист2!$A$6,0) -> 2097
A48: T-LT 02802850 | B48: Стойка 80х30 с двухсторонней перфорацией Н = 2850 | C48: 2124 | D48: =ROUND(C48*(1-$C$3)/Лист2!$A$6,0) -> 2124
A49: T-LT 02802900 | B49: Стойка 80х30 с двухсторонней перфорацией Н = 2900 | C49: 2151 | D49: =ROUND(C49*(1-$C$3)/Лист2!$A$6,0) -> 2151
A50: T-LT 02802950 | B50: Стойка 80х30 с двухсторонней перфорацией Н = 2950 | C50: 2192 | D50: =ROUND(C50*(1-$C$3)/Лист2!$A$6,0) -> 2192
A51: T-LT 02803000 | B51: Стойка 80х30 с двухсторонней перфорацией Н = 3000 | C51: 2263 | D51: =ROUND(C51*(1-$C$3)/Лист2!$A$6,0) -> 2263
A52: T-LT 02803100 | B52: Стойка 80х30 с двухсторонней перфорацией H = 3100 | C52: 2431 | D52: =ROUND(C52*(1-$C$3)/Лист2!$A$6,0) -> 2431
A53: T-LT 02803500 | B53: Стойка 80х30 с двухсторонней перфорацией Н = 3500 | C53: 2672 | D53: =ROUND(C53*(1-$C$3)/Лист2!$A$6,0) -> 2672
A54: T-LT 02301050 | B54: Cтойка 30х30 c двухсторонней перфорацией ( для усиленного стеллажа) Н = 1050 | C54: 590 | D54: =ROUND(C54*(1-$C$3)/Лист2!$A$6,0) -> 590
A55: T-LT 02301100 | B55: Cтойка 30х30 c двухсторонней перфорацией ( для усиленного стеллажа) Н = 1100 | C55: 608 | D55: =ROUND(C55*(1-$C$3)/Лист2!$A$6,0) -> 608
A56: T-LT 02301150 | B56: Cтойка 30х30 c двухсторонней перфорацией ( для усиленного стеллажа) Н = 1150 | C56: 621 | D56: =ROUND(C56*(1-$C$3)/Лист2!$A$6,0) -> 621
A57: T-LT 02301200 | B57: Cтойка 30х30 c двухсторонней перфорацией ( для усиленного стеллажа) Н = 1200 | C57: 644 | D57: =ROUND(C57*(1-$C$3)/Лист2!$A$6,0) -> 644
A58: T-LT 02301250 | B58: Cтойка 30х30 c двухсторонней перфорацией ( для усиленного стеллажа) Н = 1250 | C58: 678 | D58: =ROUND(C58*(1-$C$3)/Лист2!$A$6,0) -> 678
A59: T-LT 02301300 | B59: Cтойка 30х30 c двухсторонней перфорацией ( для усиленного стеллажа) Н = 1300 | C59: 706 | D59: =ROUND(C59*(1-$C$3)/Лист2!$A$6,0) -> 706
A60: T-LT 02301350 | B60: Cтойка 30х30 c двухсторонней перфорацией ( для усиленного стеллажа) Н = 1350 | C60: 724 | D60: =ROUND(C60*(1-$C$3)/Лист2!$A$6,0) -> 724
A61: T-LT 02301400 | B61: Cтойка 30х30 c двухсторонней перфорацией ( для усиленного стеллажа) Н = 1400 | C61: 755 | D61: =ROUND(C61*(1-$C$3)/Лист2!$A$6,0) -> 755
A62: T-LT 02301450 | B62: Cтойка 30х30 c двухсторонней перфорацией ( для усиленного стеллажа) Н = 1450 | C62: 782 | D62: =ROUND(C62*(1-$C$3)/Лист2!$A$6,0) -> 782
A63: T-LT 02301500 | B63: Cтойка 30х30 c двухсторонней перфорацией ( для усиленного стеллажа) Н = 1500 | C63: 808 | D63: =ROUND(C63*(1-$C$3)/Лист2!$A$6,0) -> 808
A64: T-LT 02301550 | B64: Cтойка 30х30 c двухсторонней перфорацией ( для усиленного стеллажа) Н = 1550 | C64: 848 | D64: =ROUND(C64*(1-$C$3)/Лист2!$A$6,0) -> 848
A65: T-LT 02301600 | B65: Cтойка 30х30 c двухсторонней перфорацией ( для усиленного стеллажа) Н = 1600 | C65: 875 | D65: =ROUND(C65*(1-$C$3)/Лист2!$A$6,0) -> 875
A66: T-LT 02301650 | B66: Cтойка 30х30 c двухсторонней перфорацией ( для усиленного стеллажа) Н = 1650 | C66: 901 | D66: =ROUND(C66*(1-$C$3)/Лист2!$A$6,0) -> 901
A67: T-LT 02301700 | B67: Cтойка 30х30 c двухсторонней перфорацией ( для усиленного стеллажа) Н = 1700 | C67: 924 | D67: =ROUND(C67*(1-$C$3)/Лист2!$A$6,0) -> 924
A68: T-LT 02301750 | B68: Стойка 30х30 c двухсторонней перфорацией ( для усиленного стеллажа) Н = 1750 | C68: 950 | D68: =ROUND(C68*(1-$C$3)/Лист2!$A$6,0) -> 950
A69: T-LT 02301800 | B69: Cтойка 30х30 c двухсторонней перфорацией ( для усиленного стеллажа) Н = 1800 | C69: 979 | D69: =ROUND(C69*(1-$C$3)/Лист2!$A$6,0) -> 979
A70: T-LT 02301850 | B70: Cтойка 30х30 c двухсторонней перфорацией ( для усиленного стеллажа) Н = 1850 | C70: 1013 | D70: =ROUND(C70*(1-$C$3)/Лист2!$A$6,0) -> 1013
A71: T-LT 02301900 | B71: Cтойка 30х30 c двухсторонней перфорацией ( для усиленного стеллажа) Н = 1900 | C71: 1048 | D71: =ROUND(C71*(1-$C$3)/Лист2!$A$6,0) -> 1048
A72: T-LT 02301950 | B72: Cтойка 30х30 c двухсторонней перфорацией ( для усиленного стеллажа) Н = 1950 | C72: 1073 | D72: =ROUND(C72*(1-$C$3)/Лист2!$A$6,0) -> 1073
A73: T-LT 02302000 | B73: Cтойка 30х30 c двухсторонней перфорацией ( для усиленного стеллажа) Н = 2000 | C73: 1100 | D73: =ROUND(C73*(1-$C$3)/Лист2!$A$6,0) -> 1100
A74: T-LT 02302050 | B74: Cтойка 30х30 c двухсторонней перфорацией ( для усиленного стеллажа) Н = 2050 | C74: 1120 | D74: =ROUND(C74*(1-$C$3)/Лист2!$A$6,0) -> 1120
A75: T-LT 02302100 | B75: Cтойка 30х30 c двухсторонней перфорацией ( для усиленного стеллажа) Н = 2100 | C75: 1149 | D75: =ROUND(C75*(1-$C$3)/Лист2!$A$6,0) -> 1149
A76: T-LT 02302150 | B76: Cтойка 30х30 c двухсторонней перфорацией ( для усиленного стеллажа) Н = 2150 | C76: 1176 | D76: =ROUND(C76*(1-$C$3)/Лист2!$A$6,0) -> 1176
A77: T-LT 02302200 | B77: Cтойка 30х30 c двухсторонней перфорацией ( для усиленного стеллажа) Н = 2200 | C77: 1203 | D77: =ROUND(C77*(1-$C$3)/Лист2!$A$6,0) -> 1203
A78: T-LT 02302250 | B78: Cтойка 30х30 c двухсторонней перфорацией ( для усиленного стеллажа) Н = 2250 | C78: 1233 | D78: =ROUND(C78*(1-$C$3)/Лист2!$A$6,0) -> 1233
A79: T-LT 02302300 | B79: Cтойка 30х30 c двухсторонней перфорацией ( для усиленного стеллажа) Н = 2300 | C79: 1263 | D79: =ROUND(C79*(1-$C$3)/Лист2!$A$6,0) -> 1263
A80: T-LT 02302350 | B80: Cтойка 30х30 c двухсторонней перфорацией ( для усиленного стеллажа) Н = 2350 | C80: 1288 | D80: =ROUND(C80*(1-$C$3)/Лист2!$A$6,0) -> 1288
A81: T-LT 02302400 | B81: Cтойка 30х30 c двухсторонней перфорацией ( для усиленного стеллажа) Н = 2400 | C81: 1303 | D81: =ROUND(C81*(1-$C$3)/Лист2!$A$6,0) -> 1303
A82: T-LT 02302450 | B82: Cтойка 30х30 c двухсторонней перфорацией ( для усиленного стеллажа) Н = 2450 | C82: 1320 | D82: =ROUND(C82*(1-$C$3)/Лист2!$A$6,0) -> 1320
A83: T-LT 02302500 | B83: Cтойка 30х30 c двухсторонней перфорацией ( для усиленного стеллажа) Н = 2500 | C83: 1334 | D83: =ROUND(C83*(1-$C$3)/Лист2!$A$6,0) -> 1334
A84: T-LT 12801100 | B84: Стойка 30х80 с двухсторонней перфорацией для траверс H=1100 | C84: 1260 | D84: =ROUND(C84*(1-$C$3)/Лист2!$A$6,0) -> 1260
A85: T-LT 12801150 | B85: Стойка 30х80 с двухсторонней перфорацией для траверс H=1150 | C85: 1288 | D85: =ROUND(C85*(1-$C$3)/Лист2!$A$6,0) -> 1288
A86: T-LT 12801200 | B86: Стойка 30х80 с двухсторонней перфорацией для траверс H=1200 | C86: 1313 | D86: =ROUND(C86*(1-$C$3)/Лист2!$A$6,0) -> 1313
A87: T-LT 12801250 | B87: Стойка 30х80 с двухсторонней перфорацией для траверс H=1250 | C87: 1344 | D87: =ROUND(C87*(1-$C$3)/Лист2!$A$6,0) -> 1344
A88: T-LT 12801300 | B88: Стойка 30х80 с двухсторонней перфорацией для траверс H=1300 | C88: 1371 | D88: =ROUND(C88*(1-$C$3)/Лист2!$A$6,0) -> 1371
A89: T-LT 12801350 | B89: Стойка 30х80 с двухсторонней перфорацией для траверс H=1350 | C89: 1439 | D89: =ROUND(C89*(1-$C$3)/Лист2!$A$6,0) -> 1439
A90: T-LT 12801400 | B90: Стойка 30х80 с двухсторонней перфорацией для траверс H=1400 | C90: 1512 | D90: =ROUND(C90*(1-$C$3)/Лист2!$A$6,0) -> 1512
A91: T-LT 12801450 | B91: Стойка 30х80 с двухсторонней перфорацией для траверс H=1450 | C91: 1542 | D91: =ROUND(C91*(1-$C$3)/Лист2!$A$6,0) -> 1542
A92: T-LT 12801500 | B92: Стойка 30х80 с двухсторонней перфорацией для траверс H=1500 | C92: 1569 | D92: =ROUND(C92*(1-$C$3)/Лист2!$A$6,0) -> 1569
A93: T-LT 12801550 | B93: Стойка 30х80 с двухсторонней перфорацией для траверс H=1550 | C93: 1595 | D93: =ROUND(C93*(1-$C$3)/Лист2!$A$6,0) -> 1595
A94: T-LT 12801600 | B94: Стойка 30х80 с двухсторонней перфорацией для траверс H=1600 | C94: 1628 | D94: =ROUND(C94*(1-$C$3)/Лист2!$A$6,0) -> 1628
A95: T-LT 12801650 | B95: Стойка 30х80 с двухсторонней перфорацией для траверс H=1650 | C95: 1723 | D95: =ROUND(C95*(1-$C$3)/Лист2!$A$6,0) -> 1723
A96: T-LT 12801700 | B96: Стойка 30х80 с двухсторонней перфорацией для траверс H=1700 | C96: 1825 | D96: =ROUND(C96*(1-$C$3)/Лист2!$A$6,0) -> 1825
A97: T-LT 12801750 | B97: Стойка 30х80 с двухсторонней перфорацией для траверс H=1750 | C97: 1864 | D97: =ROUND(C97*(1-$C$3)/Лист2!$A$6,0) -> 1864
A98: T-LT 12801800 | B98: Стойка 30х80 с двухсторонней перфорацией для траверс H=1800 | C98: 1894 | D98: =ROUND(C98*(1-$C$3)/Лист2!$A$6,0) -> 1894
A99: T-LT 12801850 | B99: Стойка 30х80 с двухсторонней перфорацией для траверс H=1850 | C99: 1920 | D99: =ROUND(C99*(1-$C$3)/Лист2!$A$6,0) -> 1920
A100: T-LT 12801900 | B100: Стойка 30х80 с двухсторонней перфорацией для траверс H=1900 | C100: 1953 | D100: =ROUND(C100*(1-$C$3)/Лист2!$A$6,0) -> 1953
A101: T-LT 12801950 | B101: Стойка 30х80 с двухсторонней перфорацией для траверс H=1950 | C101: 1992 | D101: =ROUND(C101*(1-$C$3)/Лист2!$A$6,0) -> 1992
A102: T-LT 12802000 | B102: Стойка 30х80 с двухсторонней перфорацией для траверс H=2000 | C102: 2061 | D102: =ROUND(C102*(1-$C$3)/Лист2!$A$6,0) -> 2061
A103: T-LT 12802050 | B103: Стойка 30х80 с двухсторонней перфорацией для траверс H=2050 | C103: 2118 | D103: =ROUND(C103*(1-$C$3)/Лист2!$A$6,0) -> 2118
A104: T-LT 12802100 | B104: Стойка 30х80 с двухсторонней перфорацией для траверс H=2100 | C104: 2149 | D104: =ROUND(C104*(1-$C$3)/Лист2!$A$6,0) -> 2149
A105: T-LT 12802150 | B105: Стойка 30х80 с двухсторонней перфорацией для траверс H=2150 | C105: 2189 | D105: =ROUND(C105*(1-$C$3)/Лист2!$A$6,0) -> 2189
A106: T-LT 12802200 | B106: Стойка 30х80 с двухсторонней перфорацией для траверс H=2200 | C106: 2229 | D106: =ROUND(C106*(1-$C$3)/Лист2!$A$6,0) -> 2229
A107: T-LT 12802250 | B107: Стойка 30х80 с двухсторонней перфорацией для траверс H=2250 | C107: 2265 | D107: =ROUND(C107*(1-$C$3)/Лист2!$A$6,0) -> 2265
A108: T-LT 12802300 | B108: Стойка 30х80 с двухсторонней перфорацией для траверс H=2300 | C108: 2299 | D108: =ROUND(C108*(1-$C$3)/Лист2!$A$6,0) -> 2299
A109: T-LT 12802350 | B109: Стойка 30х80 с двухсторонней перфорацией для траверс H=2350 | C109: 2330 | D109: =ROUND(C109*(1-$C$3)/Лист2!$A$6,0) -> 2330
A110: T-LT 12802400 | B110: Стойка 30х80 с двухсторонней перфорацией для траверс H=2400 | C110: 2586 | D110: =ROUND(C110*(1-$C$3)/Лист2!$A$6,0) -> 2586
A111: T-LT 12802450 | B111: Стойка 30х80 с двухсторонней перфорацией для траверс H=2450 | C111: 2873 | D111: =ROUND(C111*(1-$C$3)/Лист2!$A$6,0) -> 2873
A112: T-LT 12802500 | B112: Стойка 30х80 с двухсторонней перфорацией для траверс H=2500 | C112: 2934 | D112: =ROUND(C112*(1-$C$3)/Лист2!$A$6,0) -> 2934
A113: T-LT 12802600 | B113: Стойка 30х80 с двухсторонней перфорацией для траверс H=2600 | C113: 2994 | D113: =ROUND(C113*(1-$C$3)/Лист2!$A$6,0) -> 2994
A114: T-LT 12802700 | B114: Стойка 30х80 с двухсторонней перфорацией для траверс H=2700 | C114: 3087 | D114: =ROUND(C114*(1-$C$3)/Лист2!$A$6,0) -> 3087
A115: T-LT 12803100 | B115: Стойка 30х80 с двухсторонней перфорацией для траверс H=3100 | C115: 3429 | D115: =ROUND(C115*(1-$C$3)/Лист2!$A$6,0) -> 3429
A116: T-LT 62301600 | B116: Стойка дополнительная 30х30 с двухсторонней перфорацией H=1600 | C116: 1124 | D116: =ROUND(C116*(1-$C$3)/Лист2!$A$6,0) -> 1124
A117: T-LT 62301400 | B117: Стойка дополнительная 30х30 с двухсторонней перфорацией H=1400 | C117: 1080 | D117: =ROUND(C117*(1-$C$3)/Лист2!$A$6,0) -> 1080
A118: T-LT 62301650 | B118: Стойка дополнительная 30х30 с двухсторонней перфорацией H=1650 | C118: 1145 | D118: =ROUND(C118*(1-$C$3)/Лист2!$A$6,0) -> 1145
A119: T-LT 62301800 | B119: Стойка дополнительная 30х30 с двухсторонней перфорацией H=1800 | C119: 1181 | D119: =ROUND(C119*(1-$C$3)/Лист2!$A$6,0) -> 1181
A120: T-LT 62301900 | B120: Стойка дополнительная 30х30 с двухсторонней перфорацией H=1900 | C120: 1199 | D120: =ROUND(C120*(1-$C$3)/Лист2!$A$6,0) -> 1199
A121: T-LT 62302050 | B121: Стойка дополнительная 30х30 с двухсторонней перфорацией H=2050 | C121: 1276 | D121: =ROUND(C121*(1-$C$3)/Лист2!$A$6,0) -> 1276
A122: T-LT 62302150 | B122: Стойка дополнительная 30х30 с двухсторонней перфорацией H=2150 | C122: 1303 | D122: =ROUND(C122*(1-$C$3)/Лист2!$A$6,0) -> 1303
A123: T-LT 62302200 | B123: Стойка дополнительная 30х30 с двухсторонней перфорацией H=2200 | C123: 1326 | D123: =ROUND(C123*(1-$C$3)/Лист2!$A$6,0) -> 1326
A124: T-LT 62302300 | B124: Стойка дополнительная 30х30 с двухсторонней перфорацией H=2300 | C124: 1357 | D124: =ROUND(C124*(1-$C$3)/Лист2!$A$6,0) -> 1357
A125: T-LT 62302450 | B125: Стойка дополнительная 30х30 с двухсторонней перфорацией H=2450 | C125: 1406 | D125: =ROUND(C125*(1-$C$3)/Лист2!$A$6,0) -> 1406
A126: T-LT 62302500 | B126: Стойка дополнительная 30х30 с двухсторонней перфорацией H=2500 | C126: 1439 | D126: =ROUND(C126*(1-$C$3)/Лист2!$A$6,0) -> 1439
A127: T-DL 02800050 | B127: Надставка стойки 80х30 Н=50 | C127: 706 | D127: =ROUND(C127*(1-$C$3)/Лист2!$A$6,0) -> 706
A128: T-DL 02800150 | B128: Надставка стойки 80х30 Н=150 | C128: 863 | D128: =ROUND(C128*(1-$C$3)/Лист2!$A$6,0) -> 863
A129: T-DL 02800200 | B129: Надставка стойки 80х30 Н=200 | C129: 897 | D129: =ROUND(C129*(1-$C$3)/Лист2!$A$6,0) -> 897
A130: T-DL 02800300 | B130: Надставка стойки 80х30 Н=300 | C130: 1017 | D130: =ROUND(C130*(1-$C$3)/Лист2!$A$6,0) -> 1017
A131: T-DL 02800400 | B131: Надставка стойки 80х30 Н=400 | C131: 1073 | D131: =ROUND(C131*(1-$C$3)/Лист2!$A$6,0) -> 1073
A132: T-DL 02800500 | B132: Надставка стойки 80х30 Н=500 | C132: 1148 | D132: =ROUND(C132*(1-$C$3)/Лист2!$A$6,0) -> 1148
A133: T-LT 22471600 | B133: Стойка 80x30 с базой L-образная G=470 Н = 1600 | C133: 2198 | D133: =ROUND(C133*(1-$C$3)/Лист2!$A$6,0) -> 2198
A134: T-LT 22471650 | B134: Стойка 80x30 с базой L-образная G=470 Н = 1650 | C134: 2240 | D134: =ROUND(C134*(1-$C$3)/Лист2!$A$6,0) -> 2240
A135: T-LT 22471700 | B135: Стойка 80x30 с базой L-образная G=470 Н = 1700 | C135: 2274 | D135: =ROUND(C135*(1-$C$3)/Лист2!$A$6,0) -> 2274
A136: T-LT 22471750 | B136: Стойка 80x30 с базой L-образная G=470 Н = 1750 | C136: 2315 | D136: =ROUND(C136*(1-$C$3)/Лист2!$A$6,0) -> 2315
A137: T-LT 22471800 | B137: Стойка 80x30 с базой L-образная G=470 Н = 1800 | C137: 2358 | D137: =ROUND(C137*(1-$C$3)/Лист2!$A$6,0) -> 2358
A138: T-LT 22471850 | B138: Стойка 80x30 с базой L-образная G=470 Н = 1850 | C138: 2393 | D138: =ROUND(C138*(1-$C$3)/Лист2!$A$6,0) -> 2393
A139: T-LT 22471900 | B139: Стойка 80x30 с базой L-образная G=470 Н = 1900 | C139: 2428 | D139: =ROUND(C139*(1-$C$3)/Лист2!$A$6,0) -> 2428
A140: T-LT 22471950 | B140: Стойка 80x30 с базой L-образная G=470 Н = 1950 | C140: 2467 | D140: =ROUND(C140*(1-$C$3)/Лист2!$A$6,0) -> 2467
A141: T-LT 22472000 | B141: Стойка 80x30 с базой L-образная G=470 Н = 2000 | C141: 2505 | D141: =ROUND(C141*(1-$C$3)/Лист2!$A$6,0) -> 2505
A142: T-LT 22472050 | B142: Стойка 80x30 с базой L-образная G=470 Н = 2050 | C142: 2543 | D142: =ROUND(C142*(1-$C$3)/Лист2!$A$6,0) -> 2543
A143: T-LT 22472100 | B143: Стойка 80x30 с базой L-образная G=470 Н = 2100 | C143: 2579 | D143: =ROUND(C143*(1-$C$3)/Лист2!$A$6,0) -> 2579
A144: T-LT 22472150 | B144: Стойка 80x30 с базой L-образная G=470 Н = 2150 | C144: 2618 | D144: =ROUND(C144*(1-$C$3)/Лист2!$A$6,0) -> 2618
A145: T-LT 22472200 | B145: Стойка 80x30 с базой L-образная G=470 Н = 2200 | C145: 2657 | D145: =ROUND(C145*(1-$C$3)/Лист2!$A$6,0) -> 2657
A146: T-LT 22472250 | B146: Стойка 80x30 с базой L-образная G=470 Н = 2250 | C146: 2694 | D146: =ROUND(C146*(1-$C$3)/Лист2!$A$6,0) -> 2694
A147: T-LT 22472300 | B147: Стойка 80x30 с базой L-образная G=470 Н = 2300 | C147: 2729 | D147: =ROUND(C147*(1-$C$3)/Лист2!$A$6,0) -> 2729
A148: T-LT 22571600 | B148: Стойка 80x30 с базой L-образная G=570 Н = 1600 | C148: 2425 | D148: =ROUND(C148*(1-$C$3)/Лист2!$A$6,0) -> 2425
A149: T-LT 22571650 | B149: Стойка 80x30 с базой L-образная G=570 Н = 1650 | C149: 2462 | D149: =ROUND(C149*(1-$C$3)/Лист2!$A$6,0) -> 2462
A150: T-LT 22571700 | B150: Стойка 80x30 с базой L-образная G=570 Н = 1700 | C150: 2505 | D150: =ROUND(C150*(1-$C$3)/Лист2!$A$6,0) -> 2505
A151: T-LT 22571750 | B151: Стойка 80x30 с базой L-образная G=570 Н = 1750 | C151: 2548 | D151: =ROUND(C151*(1-$C$3)/Лист2!$A$6,0) -> 2548
A152: T-LT 22571800 | B152: Стойка 80x30 с базой L-образная G=570 Н = 1800 | C152: 2587 | D152: =ROUND(C152*(1-$C$3)/Лист2!$A$6,0) -> 2587
A153: T-LT 22571850 | B153: Стойка 80x30 с базой L-образная G=570 Н = 1850 | C153: 2634 | D153: =ROUND(C153*(1-$C$3)/Лист2!$A$6,0) -> 2634
A154: T-LT 22571900 | B154: Стойка 80x30 с базой L-образная G=570 Н = 1900 | C154: 2672 | D154: =ROUND(C154*(1-$C$3)/Лист2!$A$6,0) -> 2672
A155: T-LT 22571950 | B155: Стойка 80x30 с базой L-образная G=570 Н = 1950 | C155: 2712 | D155: =ROUND(C155*(1-$C$3)/Лист2!$A$6,0) -> 2712
A156: T-LT 22572000 | B156: Стойка 80x30 с базой L-образная G=570 Н = 2000 | C156: 2758 | D156: =ROUND(C156*(1-$C$3)/Лист2!$A$6,0) -> 2758
A157: T-LT 22572050 | B157: Стойка 80x30 с базой L-образная G=570 Н = 2050 | C157: 2795 | D157: =ROUND(C157*(1-$C$3)/Лист2!$A$6,0) -> 2795
A158: T-LT 22572100 | B158: Стойка 80x30 с базой L-образная G=570 Н = 2100 | C158: 2841 | D158: =ROUND(C158*(1-$C$3)/Лист2!$A$6,0) -> 2841
A159: T-LT 22572150 | B159: Стойка 80x30 с базой L-образная G=570 Н = 2150 | C159: 2882 | D159: =ROUND(C159*(1-$C$3)/Лист2!$A$6,0) -> 2882
A160: T-LT 22572200 | B160: Стойка 80x30 с базой L-образная G=570 Н = 2200 | C160: 2922 | D160: =ROUND(C160*(1-$C$3)/Лист2!$A$6,0) -> 2922
A161: T-LT 22572250 | B161: Стойка 80x30 с базой L-образная G=570 Н = 2250 | C161: 2965 | D161: =ROUND(C161*(1-$C$3)/Лист2!$A$6,0) -> 2965
A162: T-LT 22572300 | B162: Стойка 80x30 с базой L-образная G=570 Н = 2300 | C162: 3004 | D162: =ROUND(C162*(1-$C$3)/Лист2!$A$6,0) -> 3004
A163: T-LT 22572350 | B163: Стойка 80x30 с базой L-образная G=570 Н = 2350 | C163: 3050 | D163: =ROUND(C163*(1-$C$3)/Лист2!$A$6,0) -> 3050
A164: T-LT 22572400 | B164: Стойка 80x30 с базой L-образная G=570 Н = 2400 | C164: 3089 | D164: =ROUND(C164*(1-$C$3)/Лист2!$A$6,0) -> 3089
A165: T-LT 32471600 | B165: Стойка 80x30 с базой Т-образная G=2х470 Н = 1600 | C165: 3359 | D165: =ROUND(C165*(1-$C$3)/Лист2!$A$6,0) -> 3359
A166: T-LT 32471650 | B166: Стойка 80x30 с базой Т-образная G=2х470 Н = 1650 | C166: 3396 | D166: =ROUND(C166*(1-$C$3)/Лист2!$A$6,0) -> 3396
A167: T-LT 32471700 | B167: Стойка 80x30 с базой Т-образная G=2х470 Н = 1700 | C167: 3434 | D167: =ROUND(C167*(1-$C$3)/Лист2!$A$6,0) -> 3434
A168: T-LT 32471750 | B168: Стойка 80x30 с базой Т-образная G=2х470 Н = 1750 | C168: 3474 | D168: =ROUND(C168*(1-$C$3)/Лист2!$A$6,0) -> 3474
A169: T-LT 32471800 | B169: Стойка 80x30 с базой Т-образная G=2х470 Н = 1800 | C169: 3508 | D169: =ROUND(C169*(1-$C$3)/Лист2!$A$6,0) -> 3508
A170: T-LT 32471850 | B170: Стойка 80x30 с базой Т-образная G=2х470 Н = 1850 | C170: 3548 | D170: =ROUND(C170*(1-$C$3)/Лист2!$A$6,0) -> 3548
A171: T-LT 32471900 | B171: Стойка 80x30 с базой Т-образная G=2х470 Н = 1900 | C171: 3586 | D171: =ROUND(C171*(1-$C$3)/Лист2!$A$6,0) -> 3586
A172: T-LT 32471950 | B172: Стойка 80x30 с базой Т-образная G=2х470 Н = 1950 | C172: 3623 | D172: =ROUND(C172*(1-$C$3)/Лист2!$A$6,0) -> 3623
A173: T-LT 32472000 | B173: Стойка 80x30 с базой Т-образная G=2х470 Н = 2000 | C173: 3660 | D173: =ROUND(C173*(1-$C$3)/Лист2!$A$6,0) -> 3660
A174: T-LT 32472050 | B174: Стойка 80x30 с базой Т-образная G=2х470 Н = 2050 | C174: 3702 | D174: =ROUND(C174*(1-$C$3)/Лист2!$A$6,0) -> 3702
A175: T-LT 32472100 | B175: Стойка 80x30 с базой Т-образная G=2х470 Н = 2100 | C175: 3738 | D175: =ROUND(C175*(1-$C$3)/Лист2!$A$6,0) -> 3738
A176: T-LT 32472100 | B176: Стойка 80x30 с базой Т-образная G=2х470 Н = 2150 | C176: 3776 | D176: =ROUND(C176*(1-$C$3)/Лист2!$A$6,0) -> 3776
A177: T-LT 32472200 | B177: Стойка 80x30 с базой Т-образная G=2х470 Н = 2200 | C177: 3816 | D177: =ROUND(C177*(1-$C$3)/Лист2!$A$6,0) -> 3816
A178: T-LT 32472250 | B178: Стойка 80x30 с базой Т-образная G=2х470 Н = 2250 | C178: 3851 | D178: =ROUND(C178*(1-$C$3)/Лист2!$A$6,0) -> 3851
A179: T-LT 32472300 | B179: Стойка 80x30 с базой Т-образная G=2х470 Н = 2300 | C179: 3891 | D179: =ROUND(C179*(1-$C$3)/Лист2!$A$6,0) -> 3891
A180: T-LT 32571600 | B180: Стойка 80x30 с базой Т-образная G=2х570 Н = 1600 | C180: 3693 | D180: =ROUND(C180*(1-$C$3)/Лист2!$A$6,0) -> 3693
A181: T-LT 32571650 | B181: Стойка 80x30 с базой Т-образная G=2х570 Н = 1650 | C181: 3738 | D181: =ROUND(C181*(1-$C$3)/Лист2!$A$6,0) -> 3738
A182: T-LT 32571700 | B182: Стойка 80x30 с базой Т-образная G=2х570 Н = 1700 | C182: 3776 | D182: =ROUND(C182*(1-$C$3)/Лист2!$A$6,0) -> 3776
A183: T-LT 32571750 | B183: Стойка 80x30 с базой Т-образная G=2х570 Н = 1750 | C183: 3824 | D183: =ROUND(C183*(1-$C$3)/Лист2!$A$6,0) -> 3824
A184: T-LT 32571800 | B184: Стойка 80x30 с базой Т-образная G=2х570 Н = 1800 | C184: 3864 | D184: =ROUND(C184*(1-$C$3)/Лист2!$A$6,0) -> 3864
A185: T-LT 32571850 | B185: Стойка 80x30 с базой Т-образная G=2х570 Н = 1850 | C185: 3899 | D185: =ROUND(C185*(1-$C$3)/Лист2!$A$6,0) -> 3899
A186: T-LT 32571900 | B186: Стойка 80x30 с базой Т-образная G=2х570 Н = 1900 | C186: 3947 | D186: =ROUND(C186*(1-$C$3)/Лист2!$A$6,0) -> 3947
A187: T-LT 32571950 | B187: Стойка 80x30 с базой Т-образная G=2х570 Н = 1950 | C187: 3987 | D187: =ROUND(C187*(1-$C$3)/Лист2!$A$6,0) -> 3987
A188: T-LT 32572000 | B188: Стойка 80x30 с базой Т-образная G=2х570 Н = 2000 | C188: 4028 | D188: =ROUND(C188*(1-$C$3)/Лист2!$A$6,0) -> 4028
A189: T-LT 32572050 | B189: Стойка 80x30 с базой Т-образная G=2х570 Н = 2050 | C189: 4070 | D189: =ROUND(C189*(1-$C$3)/Лист2!$A$6,0) -> 4070
A190: T-LT 32572100 | B190: Стойка 80x30 с базой Т-образная G=2х570 Н = 2100 | C190: 4110 | D190: =ROUND(C190*(1-$C$3)/Лист2!$A$6,0) -> 4110
A191: T-LT 32572150 | B191: Стойка 80x30 с базой Т-образная G=2х570 Н = 2150 | C191: 4152 | D191: =ROUND(C191*(1-$C$3)/Лист2!$A$6,0) -> 4152
A192: T-LT 32572200 | B192: Стойка 80x30 с базой Т-образная G=2х570 Н = 2200 | C192: 4193 | D192: =ROUND(C192*(1-$C$3)/Лист2!$A$6,0) -> 4193
A193: T-LT 32572250 | B193: Стойка 80x30 с базой Т-образная G=2х570 Н = 2250 | C193: 4238 | D193: =ROUND(C193*(1-$C$3)/Лист2!$A$6,0) -> 4238
A194: T-LT 32572300 | B194: Стойка 80x30 с базой Т-образная G=2х570 Н = 2300 | C194: 4279 | D194: =ROUND(C194*(1-$C$3)/Лист2!$A$6,0) -> 4279
A195: N-LT 22471220 | B195: Стойка 60х30 L-обр (30х30),H=2200, G=470 (30х30) | C195: 2235 | D195: =ROUND(C195*(1-$C$3)/Лист2!$A$6,0) -> 2235
A196: N-LT 32470160 | B196: Стойка 60х30 Т-образная (30х30),H=1600, G=2х470 | C196: 1835 | D196: =ROUND(C196*(1-$C$3)/Лист2!$A$6,0) -> 1835
A197: N-LT 32471160 | B197: Стойка 60х30 Т-обр.(30х30)(для траверс),H=1600, G=2х470 | C197: 2066 | D197: =ROUND(C197*(1-$C$3)/Лист2!$A$6,0) -> 2066
A198: N-LT 22471160 | B198: Стойка 60х30 L-обр (для траверс) H=1600, G=470 (30х30) | C198: 2599 | D198: =ROUND(C198*(1-$C$3)/Лист2!$A$6,0) -> 2599
A199: N-LT 22470160 | B199: Стойка 60х30 L-образ со смещ осн (для трав)(комп) H=1600, G=470 | C199: 3720 | D199: =ROUND(C199*(1-$C$3)/Лист2!$A$6,0) -> 3720
A200: N-LT 22470180 | B200: Стойка 60х30 L-образ со смещ осн (для трав)(комп),H=1800, G=470 | C200: 4047 | D200: =ROUND(C200*(1-$C$3)/Лист2!$A$6,0) -> 4047
A201: N-LT 22470190 | B201: Стойка 60х30 L-образ со смещ осн (для трав)(комп),H=1900, G=470 | C201: 4104 | D201: =ROUND(C201*(1-$C$3)/Лист2!$A$6,0) -> 4104
A202: N-LT 22470195 | B202: Стойка 60х30 L-образ со смещ осн (для трав)(комп),H=1950, G=470 | C202: 4207 | D202: =ROUND(C202*(1-$C$3)/Лист2!$A$6,0) -> 4207
... 1891 more rows

Sheet Детали Lager
A1: Детали торговых стеллажей Lager | F1: На главную
A3: Ваша скидка: | C3: =Содержание!C2 -> 0
A4: НДС: | C4: =IF(Лист2!A1=TRUE,"С НДС","БЕЗ НДС") -> С НДС
C6: Новинки
A7: Изображение | B7: Артикул | C7: Наименование | D7: Базовая цена, руб. (с НДС) | E7: =[7]Лист2!$A$5 -> Ваша цена, руб.
E8: =[7]Лист2!$A$5 -> Ваша цена, руб.
A9: Lager
B10: L-ST 01300500 | C10: Полка L=300, G=500 | D10: 483 | E10: =ROUND(D10*(1-$C$3)/Лист2!$A$6,0) -> 483
B11: L-ST 01300600 | C11: Полка L=300, G=600 | D11: 554 | E11: =ROUND(D11*(1-$C$3)/Лист2!$A$6,0) -> 554
B12: L-ST 01300800 | C12: Полка L=300, G=800 | D12: 731 | E12: =ROUND(D12*(1-$C$3)/Лист2!$A$6,0) -> 731
B13: L-FR 10500700 | C13: Рама стеллажа Н=700, G=500 | D13: 1914 | E13: =ROUND(D13*(1-$C$3)/Лист2!$A$6,0) -> 1914
B14: L-FR 10600700 | C14: Рама стеллажа Н=700, G=600 | D14: 1960 | E14: =ROUND(D14*(1-$C$3)/Лист2!$A$6,0) -> 1960
B15: L-FR 10800700 | C15: Рама стеллажа Н=700, G=800 | D15: 2081 | E15: =ROUND(D15*(1-$C$3)/Лист2!$A$6,0) -> 2081
B16: L-FR 10501400 | C16: Рама стеллажа H=1400, G=500 | D16: 2972 | E16: =ROUND(D16*(1-$C$3)/Лист2!$A$6,0) -> 2972
B17: L-FR 10601400 | C17: Рама стеллажа H=1400, G=600 | D17: 3066 | E17: =ROUND(D17*(1-$C$3)/Лист2!$A$6,0) -> 3066
B18: L-FR 10801400 | C18: Рама стеллажа H=1400, G=800 | D18: 3406 | E18: =ROUND(D18*(1-$C$3)/Лист2!$A$6,0) -> 3406
B19: L-FR 10501700 | C19: Рама стеллажа H=1700, G=500 | D19: 3183 | E19: =ROUND(D19*(1-$C$3)/Лист2!$A$6,0) -> 3183
B20: L-FR 10601700 | C20: Рама стеллажа H=1700, G=600 | D20: 3359 | E20: =ROUND(D20*(1-$C$3)/Лист2!$A$6,0) -> 3359
B21: L-FR 10801700 | C21: Рама стеллажа H=1700, G=800 | D21: 3594 | E21: =ROUND(D21*(1-$C$3)/Лист2!$A$6,0) -> 3594
B22: L-FR 10501900 | C22: Рама стеллажа H=1900, G=500 | D22: 3478 | E22: =ROUND(D22*(1-$C$3)/Лист2!$A$6,0) -> 3478
B23: L-FR 10601900 | C23: Рама стеллажа H=1900, G=600 | D23: 3626 | E23: =ROUND(D23*(1-$C$3)/Лист2!$A$6,0) -> 3626
B24: L-FR 10801900 | C24: Рама стеллажа H=1900, G=800 | D24: 4046 | E24: =ROUND(D24*(1-$C$3)/Лист2!$A$6,0) -> 4046
B25: L-FR 10502200 | C25: Рама стеллажа H=2200, G=500 | D25: 3755 | E25: =ROUND(D25*(1-$C$3)/Лист2!$A$6,0) -> 3755
B26: L-FR 10602200 | C26: Рама стеллажа H=2200, G=600 | D26: 3823 | E26: =ROUND(D26*(1-$C$3)/Лист2!$A$6,0) -> 3823
B27: L-FR 10802200 | C27: Рама стеллажа H=2200, G=800 | D27: 4304 | E27: =ROUND(D27*(1-$C$3)/Лист2!$A$6,0) -> 4304
B28: L-TR 10500950 | C28: Траверса L=950 | D28: 792 | E28: =ROUND(D28*(1-$C$3)/Лист2!$A$6,0) -> 792
B29: L-TR 10501250 | C29: Траверса L=1250 | D29: 960 | E29: =ROUND(D29*(1-$C$3)/Лист2!$A$6,0) -> 960
B30: L-TR 10501550 | C30: Траверса L=1550 | D30: 1120 | E30: =ROUND(D30*(1-$C$3)/Лист2!$A$6,0) -> 1120
A31: Lager (траверса на зацепах)
B32: L-ST 20300500 | C32: Полка L=300, G=500 | D32: 644 | E32: =ROUND(D32*(1-$C$3)/Лист2!$A$6,0) -> 644
B33: L-ST 20300700 | C33: Полка L=300, G=700 | D33: 816 | E33: =ROUND(D33*(1-$C$3)/Лист2!$A$6,0) -> 816
B34: L-FR 20501500 | C34: Рама стеллажа H=1500, G=500 | D34: 3728 | E34: =ROUND(D34*(1-$C$3)/Лист2!$A$6,0) -> 3728
B35: L-FR 20501800 | C35: Рама стеллажа H=1800, G=500 | D35: 4182 | E35: =ROUND(D35*(1-$C$3)/Лист2!$A$6,0) -> 4182
B36: L-FR 20502000 | C36: Рама стеллажа H=2000, G=500 | D36: 4856 | E36: =ROUND(D36*(1-$C$3)/Лист2!$A$6,0) -> 4856
B37: L-FR 20502500 | C37: Рама стеллажа H=2500, G=500 | D37: 5519 | E37: =ROUND(D37*(1-$C$3)/Лист2!$A$6,0) -> 5519
B38: L-FR 20701500 | C38: Рама стеллажа H=1500, G=700 | D38: 3954 | E38: =ROUND(D38*(1-$C$3)/Лист2!$A$6,0) -> 3954
B39: L-FR 20701800 | C39: Рама стеллажа H=1800, G=700 | D39: 4405 | E39: =ROUND(D39*(1-$C$3)/Лист2!$A$6,0) -> 4405
B40: L-FR 20702000 | C40: Рама стеллажа H=2000, G=700 | D40: 5199 | E40: =ROUND(D40*(1-$C$3)/Лист2!$A$6,0) -> 5199
B41: L-FR 20702500 | C41: Рама стеллажа H=2500, G=700 | D41: 5939 | E41: =ROUND(D41*(1-$C$3)/Лист2!$A$6,0) -> 5939
B42: L-FR 20703000 | C42: Рама стеллажа H=3000, G=700 | D42: 6462 | E42: =ROUND(D42*(1-$C$3)/Лист2!$A$6,0) -> 6462
B43: L-TR 20551000 | C43: Траверса L=1000 | D43: 882 | E43: =ROUND(D43*(1-$C$3)/Лист2!$A$6,0) -> 882
B44: L-TR 20551500 | C44: Траверса L=1500 | D44: 1138 | E44: =ROUND(D44*(1-$C$3)/Лист2!$A$6,0) -> 1138
A45: Lager LX
B46: P-ST 05400250 | C46: Полка L=250, G=400 | D46: 373 | E46: =ROUND(D46*(1-$C$3)/Лист2!$A$6,0) -> 373
B47: P-ST 05600250 | C47: Полка L=250, G=600 | D47: 507 | E47: =ROUND(D47*(1-$C$3)/Лист2!$A$6,0) -> 507
B48: P-ST 05800250 | C48: Полка L=250, G=800 | D48: 655 | E48: =ROUND(D48*(1-$C$3)/Лист2!$A$6,0) -> 655
B49: P-ST 06400250 | C49: Полка L=250, G=400 оцинк | D49: 326 | E49: =ROUND(D49*(1-$C$3)/Лист2!$A$6,0) -> 326
B50: P-ST 06600250 | C50: Полка L=250, G=600 оцинк | D50: 422 | E50: =ROUND(D50*(1-$C$3)/Лист2!$A$6,0) -> 422
B51: P-ST 06800250 | C51: Полка L=250, G=800 оцинк | D51: 535 | E51: =ROUND(D51*(1-$C$3)/Лист2!$A$6,0) -> 535
B52: P-FR 32402000 | C52: Рама грузового стеллажа H=2000, G=400 | D52: 2959 | E52: =ROUND(D52*(1-$C$3)/Лист2!$A$6,0) -> 2959
B53: P-FR 32402200 | C53: Рама грузового стеллажа H=2200, G=400 | D53: 3107 | E53: =ROUND(D53*(1-$C$3)/Лист2!$A$6,0) -> 3107
B54: P-FR 32402400 | C54: Рама грузового стеллажа H=2400, G=400 | D54: 3289 | E54: =ROUND(D54*(1-$C$3)/Лист2!$A$6,0) -> 3289
B55: P-FR 32602000 | C55: Рама грузового стеллажа H=2000, G=600 | D55: 3196 | E55: =ROUND(D55*(1-$C$3)/Лист2!$A$6,0) -> 3196
B56: P-FR 32602200 | C56: Рама грузового стеллажа H=2200, G=600 | D56: 3344 | E56: =ROUND(D56*(1-$C$3)/Лист2!$A$6,0) -> 3344
B57: P-FR 32602400 | C57: Рама грузового стеллажа H=2400, G=600 | D57: 3525 | E57: =ROUND(D57*(1-$C$3)/Лист2!$A$6,0) -> 3525
B58: P-FR 32802000 | C58: Рама грузового стеллажа H=2000, G=800 | D58: 3421 | E58: =ROUND(D58*(1-$C$3)/Лист2!$A$6,0) -> 3421
B59: P-FR 32802200 | C59: Рама грузового стеллажа H=2200, G=800 | D59: 3569 | E59: =ROUND(D59*(1-$C$3)/Лист2!$A$6,0) -> 3569
B60: P-FR 32802400 | C60: Рама грузового стеллажа H=2400, G=800 | D60: 3744 | E60: =ROUND(D60*(1-$C$3)/Лист2!$A$6,0) -> 3744
B61: P-TR 42000101 | C61: Траверса L=1010 | D61: 572 | E61: =ROUND(D61*(1-$C$3)/Лист2!$A$6,0) -> 572
B62: P-TR 42000125 | C62: Траверса L=1250 | D62: 637 | E62: =ROUND(D62*(1-$C$3)/Лист2!$A$6,0) -> 637
B63: P-TR 42000149 | C63: Траверса L=1490 | D63: 720 | E63: =ROUND(D63*(1-$C$3)/Лист2!$A$6,0) -> 720

Sheet Наценка Stahler
A1: Наценка при покраске деталей серии STAHLER | D1: На главную
A6: Ral | B6: Структура | C6: наценка, %
A7: RAL | B7: Вид поверхности | C7: наценка , %
A8: 1001 | B8: глянец | C8: 7
A9: 1013 | B9: шагрень глянцевая | C9: 5
A10: 1013 | B10: глянец | C10: 11
A11: 1013 | B11: муар Маго | C11: 2
A12: 1015 | B12: глянец | C12: 10
A13: 1018 | B13: глянец | C13: 2
A14: 2004 | B14: глянец | C14: 3
A15: 2008 | B15: глянец | C15: 1
A16: 3000 | B16: глянец | C16: 2
A17: 3002 | B17: глянец | C17: 3
A18: 5005 | B18: глянец | C18: 0
A19: 6018 | B19: глянец | C19: 3
A20: 6029 | B20: глянец | C20: 1
A21: 7011 | B21: глянец | C21: 0
A22: 7016 | B22: структурная муар | C22: 2
A23: 7016 | B23: глянец | C23: 11
A24: 7021 | B24: глянец | C24: 3
A25: 7021 | B25: матовая | C25: 3
A26: 7024 | B26: структурная муар | C26: 1
A27: 7035 | B27: шагрень глянцевая | C27: 0
A28: 7035 | B28: глянец | C28: 0
A29: 7035 | B29: гладкая полуматовая | C29: 10
A30: 7035 | B30: структурная муар | C30: 4
A31: 7040 | B31: матовая | C31: 8
A32: 7040 | B32: структурная муар | C32: 0
A33: 7040 | B33: глянец | C33: 0
A34: 7042 | B34: глянец | C34: 0
A35: 7043 | B35: глянец | C35: 1
A36: 8017 | B36: глянец | C36: 4
A37: 8017 | B37: структурная муар | C37: 2
A38: 9002 | B38: полуматовая | C38: 4
A39: 9005 | B39: шагрень глянцевая | C39: 0
A40: 9005 | B40: глянец | C40: 1
A41: 9005 | B41: матовая | C41: 8
A42: 9005 | B42: структурная муар | C42: 0
A43: 9006 | B43: глянец | C43: 2
A44: 9006 | B44: матовая | C44: 1
A45: 9007 | B45: полуматовая | C45: 7
A46: 9010 | B46: муар | C46: 0
A47: 9010 | B47: матовая | C47: 5
A48: 9016 | B48: глянец | C48: 0

Sheet Сборки Praktisch
A1: Cборки торговых стеллажей Praktisch | I1: На главную
A3: Ваша скидка: | C3: =Содержание!C2 -> 0
A4: НДС: | C4: =IF(Лист2!A1=TRUE,"С НДС","БЕЗ НДС") -> С НДС
A6: Изображение | B6: Артикул | C6: Наименование | D6: Кол-во в сборке, шт. | E6: Базовая цена, руб. (с НДС) | G6: Ваша цена, руб.
E7: за элемент в сборке | F7: за сборку | G7: за элемент комплекта | H7: за сборку
B8: 1 | C8: Стеллаж торговый пристенный L=665 H=2300 | F8: =SUMPRODUCT(D9:D17,E9:E17) -> 9688 | H8: =SUMPRODUCT(D9:D17,G9:G17) -> 9688
B9: T-LT 02802300 | C9: Стойка с двухсторонней перфорацией (30х80) H=2300 | D9: 1 | E9: =INDEX('Детали Praktisch'!$C$12:$C$2063,MATCH('Сборки Praktisch'!B9,'Детали Praktisch'!$A$12:$A$2063,)) -> 1753 | G9: =ROUND(E9*(1-$C$3)/Лист2!$A$6,0) -> 1753
B10: T-BT 01000470 | C10: База стеллажа G=470 | D10: 1 | E10: =INDEX('Детали Praktisch'!$C$12:$C$2063,MATCH('Сборки Praktisch'!B10,'Детали Praktisch'!$A$12:$A$2063,)) -> 1171 | G10: =ROUND(E10*(1-$C$3)/Лист2!$A$6,0) -> 1171
B11: T-BP 01150665 | C11: Панель сплошная L=665 H=150 | D11: 2 | E11: =INDEX('Детали Praktisch'!$C$12:$C$2063,MATCH('Сборки Praktisch'!B11,'Детали Praktisch'!$A$12:$A$2063,)) -> 241 | G11: =ROUND(E11*(1-$C$3)/Лист2!$A$6,0) -> 241
B12: T-BP 01400665 | C12: Панель сплошная L=665 H=400 | D12: 5 | E12: =INDEX('Детали Praktisch'!$C$12:$C$2063,MATCH('Сборки Praktisch'!B12,'Детали Praktisch'!$A$12:$A$2063,)) -> 440 | G12: =ROUND(E12*(1-$C$3)/Лист2!$A$6,0) -> 440
B13: T-ST 01470665 | C13: Полка L=665 G=470 | D13: 1 | E13: =INDEX('Детали Praktisch'!$C$12:$C$2063,MATCH('Сборки Praktisch'!B13,'Детали Praktisch'!$A$12:$A$2063,)) -> 782 | G13: =ROUND(E13*(1-$C$3)/Лист2!$A$6,0) -> 782
B14: T-ST 01370665 | C14: Полка L=665 G=370 | D14: 2 | E14: =INDEX('Детали Praktisch'!$C$12:$C$2063,MATCH('Сборки Praktisch'!B14,'Детали Praktisch'!$A$12:$A$2063,)) -> 634 | G14: =ROUND(E14*(1-$C$3)/Лист2!$A$6,0) -> 634
B15: T-ST 01310665 | C15: Полка L=665 G=310 | D15: 2 | E15: =INDEX('Детали Praktisch'!$C$12:$C$2063,MATCH('Сборки Praktisch'!B15,'Детали Praktisch'!$A$12:$A$2063,)) -> 535 | G15: =ROUND(E15*(1-$C$3)/Лист2!$A$6,0) -> 535
B16: T-BS 01000370 | C16: Кронштейн G=370 (комплект) | D16: 2 | E16: =INDEX('Детали Praktisch'!$C$12:$C$2063,MATCH('Сборки Praktisch'!B16,'Детали Praktisch'!$A$12:$A$2063,)) -> 272 | G16: =ROUND(E16*(1-$C$3)/Лист2!$A$6,0) -> 272
B17: T-BS 01000310 | C17: Кронштейн G=310 (комплект) | D17: 2 | E17: =INDEX('Детали Praktisch'!$C$12:$C$2063,MATCH('Сборки Praktisch'!B17,'Детали Praktisch'!$A$12:$A$2063,)) -> 209 | G17: =ROUND(E17*(1-$C$3)/Лист2!$A$6,0) -> 209
B18: 2 | C18: Стеллаж торговый пристенный L=1000 H=2300 | F18: =SUMPRODUCT(D19:D27,E19:E27) -> 11609 | H18: =SUMPRODUCT(D19:D27,G19:G27) -> 11609
B19: T-LT 02802300 | C19: Стойка с двухсторонней перфорацией (30х80) H=2300 | D19: 1 | E19: =INDEX('Детали Praktisch'!$C$12:$C$2063,MATCH('Сборки Praktisch'!B19,'Детали Praktisch'!$A$12:$A$2063,)) -> 1753 | G19: =ROUND(E19*(1-$C$3)/Лист2!$A$6,0) -> 1753
B20: T-BT 01000470 | C20: База стеллажа G=470 | D20: 1 | E20: =INDEX('Детали Praktisch'!$C$12:$C$2063,MATCH('Сборки Praktisch'!B20,'Детали Praktisch'!$A$12:$A$2063,)) -> 1171 | G20: =ROUND(E20*(1-$C$3)/Лист2!$A$6,0) -> 1171
B21: T-BP 01151000 | C21: Панель сплошная L=1000 H=150 | D21: 2 | E21: =INDEX('Детали Praktisch'!$C$12:$C$2063,MATCH('Сборки Praktisch'!B21,'Детали Praktisch'!$A$12:$A$2063,)) -> 300 | G21: =ROUND(E21*(1-$C$3)/Лист2!$A$6,0) -> 300
B22: T-BP 01401000 | C22: Панель сплошная L=1000 H=400 | D22: 5 | E22: =INDEX('Детали Praktisch'!$C$12:$C$2063,MATCH('Сборки Praktisch'!B22,'Детали Praktisch'!$A$12:$A$2063,)) -> 576 | G22: =ROUND(E22*(1-$C$3)/Лист2!$A$6,0) -> 576
B23: T-ST 01471000 | C23: Полка L=1000 G= 470 | D23: 1 | E23: =INDEX('Детали Praktisch'!$C$12:$C$2063,MATCH('Сборки Praktisch'!B23,'Детали Praktisch'!$A$12:$A$2063,)) -> 1031 | G23: =ROUND(E23*(1-$C$3)/Лист2!$A$6,0) -> 1031
B24: T-ST 01371000 | C24: Полка L=1000 G=370 | D24: 2 | E24: =INDEX('Детали Praktisch'!$C$12:$C$2063,MATCH('Сборки Praktisch'!B24,'Детали Praktisch'!$A$12:$A$2063,)) -> 918 | G24: =ROUND(E24*(1-$C$3)/Лист2!$A$6,0) -> 918
B25: T-ST 01311000 | C25: Полка L=1000 G=310 | D25: 2 | E25: =INDEX('Детали Praktisch'!$C$12:$C$2063,MATCH('Сборки Praktisch'!B25,'Детали Praktisch'!$A$12:$A$2063,)) -> 688 | G25: =ROUND(E25*(1-$C$3)/Лист2!$A$6,0) -> 688
B26: T-BS 01000370 | C26: Кронштейн G=370 (комплект) | D26: 2 | E26: =INDEX('Детали Praktisch'!$C$12:$C$2063,MATCH('Сборки Praktisch'!B26,'Детали Praktisch'!$A$12:$A$2063,)) -> 272 | G26: =ROUND(E26*(1-$C$3)/Лист2!$A$6,0) -> 272
B27: T-BS 01000310 | C27: Кронштейн G=310 (комплект) | D27: 2 | E27: =INDEX('Детали Praktisch'!$C$12:$C$2063,MATCH('Сборки Praktisch'!B27,'Детали Praktisch'!$A$12:$A$2063,)) -> 209 | G27: =ROUND(E27*(1-$C$3)/Лист2!$A$6,0) -> 209
B28: 3 | C28: Стеллаж торговый пристенный L=1250 H=2300 | D28: 1 | F28: =SUMPRODUCT(D29:D37,E29:E37) -> 13114 | H28: =SUMPRODUCT(D29:D37,G29:G37) -> 13114
B29: T-LT 02802300 | C29: Стойка с двухсторонней перфорацией (30х80) H=2300 | D29: 1 | E29: =INDEX('Детали Praktisch'!$C$12:$C$2063,MATCH('Сборки Praktisch'!B29,'Детали Praktisch'!$A$12:$A$2063,)) -> 1753 | G29: =ROUND(E29*(1-$C$3)/Лист2!$A$6,0) -> 1753
B30: T-BT 01000470 | C30: База стеллажа G=470 | D30: 1 | E30: =INDEX('Детали Praktisch'!$C$12:$C$2063,MATCH('Сборки Praktisch'!B30,'Детали Praktisch'!$A$12:$A$2063,)) -> 1171 | G30: =ROUND(E30*(1-$C$3)/Лист2!$A$6,0) -> 1171
B31: T-BP 01151250 | C31: Панель сплошная L=1250 H=150 | D31: 2 | E31: =INDEX('Детали Praktisch'!$C$12:$C$2063,MATCH('Сборки Praktisch'!B31,'Детали Praktisch'!$A$12:$A$2063,)) -> 360 | G31: =ROUND(E31*(1-$C$3)/Лист2!$A$6,0) -> 360
B32: T-BP 01401250 | C32: Панель сплошная L=1250 H=400 | D32: 5 | E32: =INDEX('Детали Praktisch'!$C$12:$C$2063,MATCH('Сборки Praktisch'!B32,'Детали Praktisch'!$A$12:$A$2063,)) -> 724 | G32: =ROUND(E32*(1-$C$3)/Лист2!$A$6,0) -> 724
B33: T-ST 01471250 | C33: Полка L=1250 G=470 | D33: 1 | E33: =INDEX('Детали Praktisch'!$C$12:$C$2063,MATCH('Сборки Praktisch'!B33,'Детали Praktisch'!$A$12:$A$2063,)) -> 1220 | G33: =ROUND(E33*(1-$C$3)/Лист2!$A$6,0) -> 1220
B34: T-ST 01371250 | C34: Полка L=1250 G=370 | D34: 2 | E34: =INDEX('Детали Praktisch'!$C$12:$C$2063,MATCH('Сборки Praktisch'!B34,'Детали Praktisch'!$A$12:$A$2063,)) -> 994 | G34: =ROUND(E34*(1-$C$3)/Лист2!$A$6,0) -> 994
B35: T-ST 01311250 | C35: Полка L=1250 G=310 | D35: 2 | E35: =INDEX('Детали Praktisch'!$C$12:$C$2063,MATCH('Сборки Praktisch'!B35,'Детали Praktisch'!$A$12:$A$2063,)) -> 840 | G35: =ROUND(E35*(1-$C$3)/Лист2!$A$6,0) -> 840
B36: T-BS 01000370 | C36: Кронштейн G=370 (комплект) | D36: 2 | E36: =INDEX('Детали Praktisch'!$C$12:$C$2063,MATCH('Сборки Praktisch'!B36,'Детали Praktisch'!$A$12:$A$2063,)) -> 272 | G36: =ROUND(E36*(1-$C$3)/Лист2!$A$6,0) -> 272
B37: T-BS 01000310 | C37: Кронштейн G=310 (комплект) | D37: 2 | E37: =INDEX('Детали Praktisch'!$C$12:$C$2063,MATCH('Сборки Praktisch'!B37,'Детали Praktisch'!$A$12:$A$2063,)) -> 209 | G37: =ROUND(E37*(1-$C$3)/Лист2!$A$6,0) -> 209
B38: 4 | C38: Стеллаж торговый с навесом и освещением L=665 H=2300 | D38: 1 | F38: =SUMPRODUCT(D39:D48,E39:E48) -> 13089 | H38: =SUMPRODUCT(D39:D48,G39:G48) -> 13089
B39: T-LT 02802300 | C39: Стойка с двухсторонней перфорацией (30х80) H=2300 | D39: 1 | E39: =INDEX('Детали Praktisch'!$C$12:$C$2063,MATCH('Сборки Praktisch'!B39,'Детали Praktisch'!$A$12:$A$2063,)) -> 1753 | G39: =ROUND(E39*(1-$C$3)/Лист2!$A$6,0) -> 1753
B40: T-BT 01000470 | C40: База стеллажа G=470 | D40: 1 | E40: =INDEX('Детали Praktisch'!$C$12:$C$2063,MATCH('Сборки Praktisch'!B40,'Детали Praktisch'!$A$12:$A$2063,)) -> 1171 | G40: =ROUND(E40*(1-$C$3)/Лист2!$A$6,0) -> 1171
B41: T-BP 01150665 | C41: Панель сплошная L=665 H=150 | D41: 1 | E41: =INDEX('Детали Praktisch'!$C$12:$C$2063,MATCH('Сборки Praktisch'!B41,'Детали Praktisch'!$A$12:$A$2063,)) -> 241 | G41: =ROUND(E41*(1-$C$3)/Лист2!$A$6,0) -> 241
B42: T-BP 01400665 | C42: Панель сплошная L=665 H=400 | D42: 5 | E42: =INDEX('Детали Praktisch'!$C$12:$C$2063,MATCH('Сборки Praktisch'!B42,'Детали Praktisch'!$A$12:$A$2063,)) -> 440 | G42: =ROUND(E42*(1-$C$3)/Лист2!$A$6,0) -> 440
B43: T-TP 02470665 | C43: Навес прямой с подсветкой G=470 L=665 | D43: 1 | E43: =INDEX('Детали Praktisch'!$C$12:$C$2063,MATCH('Сборки Praktisch'!B43,'Детали Praktisch'!$A$12:$A$2063,)) -> 3642 | G43: =ROUND(E43*(1-$C$3)/Лист2!$A$6,0) -> 3642
B44: T-ST 01470665 | C44: Полка L=665 G=470 | D44: 1 | E44: =INDEX('Детали Praktisch'!$C$12:$C$2063,MATCH('Сборки Praktisch'!B44,'Детали Praktisch'!$A$12:$A$2063,)) -> 782 | G44: =ROUND(E44*(1-$C$3)/Лист2!$A$6,0) -> 782
B45: T-ST 01370665 | C45: Полка L=665 G=370 | D45: 2 | E45: =INDEX('Детали Praktisch'!$C$12:$C$2063,MATCH('Сборки Praktisch'!B45,'Детали Praktisch'!$A$12:$A$2063,)) -> 634 | G45: =ROUND(E45*(1-$C$3)/Лист2!$A$6,0) -> 634
B46: T-ST 01310665 | C46: Полка L=665 G=310 | D46: 2 | E46: =INDEX('Детали Praktisch'!$C$12:$C$2063,MATCH('Сборки Praktisch'!B46,'Детали Praktisch'!$A$12:$A$2063,)) -> 535 | G46: =ROUND(E46*(1-$C$3)/Лист2!$A$6,0) -> 535
B47: T-BS 01000370 | C47: Кронштейн G=370 (комплект) | D47: 2 | E47: =INDEX('Детали Praktisch'!$C$12:$C$2063,MATCH('Сборки Praktisch'!B47,'Детали Praktisch'!$A$12:$A$2063,)) -> 272 | G47: =ROUND(E47*(1-$C$3)/Лист2!$A$6,0) -> 272
B48: T-BS 01000310 | C48: Кронштейн G=310 (комплект) | D48: 2 | E48: =INDEX('Детали Praktisch'!$C$12:$C$2063,MATCH('Сборки Praktisch'!B48,'Детали Praktisch'!$A$12:$A$2063,)) -> 209 | G48: =ROUND(E48*(1-$C$3)/Лист2!$A$6,0) -> 209
B49: 5 | C49: Стеллаж торговый с навесом и освещением L=1000 H=2300 | D49: 1 | F49: =SUMPRODUCT(D50:D59,E50:E59) -> 15579 | H49: =SUMPRODUCT(D50:D59,G50:G59) -> 15579
B50: T-LT 02802300 | C50: Стойка с двухсторонней перфорацией (30х80) H=2300 | D50: 1 | E50: =INDEX('Детали Praktisch'!$C$12:$C$2063,MATCH('Сборки Praktisch'!B50,'Детали Praktisch'!$A$12:$A$2063,)) -> 1753 | G50: =ROUND(E50*(1-$C$3)/Лист2!$A$6,0) -> 1753
B51: T-BT 01000470 | C51: База стеллажа G=470 | D51: 1 | E51: =INDEX('Детали Praktisch'!$C$12:$C$2063,MATCH('Сборки Praktisch'!B51,'Детали Praktisch'!$A$12:$A$2063,)) -> 1171 | G51: =ROUND(E51*(1-$C$3)/Лист2!$A$6,0) -> 1171
B52: T-BP 01151000 | C52: Панель сплошная L=1000 H=150 | D52: 1 | E52: =INDEX('Детали Praktisch'!$C$12:$C$2063,MATCH('Сборки Praktisch'!B52,'Детали Praktisch'!$A$12:$A$2063,)) -> 300 | G52: =ROUND(E52*(1-$C$3)/Лист2!$A$6,0) -> 300
B53: T-BP 01401000 | C53: Панель сплошная L=1000 H=400 | D53: 5 | E53: =INDEX('Детали Praktisch'!$C$12:$C$2063,MATCH('Сборки Praktisch'!B53,'Детали Praktisch'!$A$12:$A$2063,)) -> 576 | G53: =ROUND(E53*(1-$C$3)/Лист2!$A$6,0) -> 576
B54: T-TP 02471000 | C54: Навес прямой с подсветкой G=470 L=1000 | D54: 1 | E54: =INDEX('Детали Praktisch'!$C$12:$C$2063,MATCH('Сборки Praktisch'!B54,'Детали Praktisch'!$A$12:$A$2063,)) -> 4270 | G54: =ROUND(E54*(1-$C$3)/Лист2!$A$6,0) -> 4270
B55: T-ST 01471000 | C55: Полка L=1000 G= 470 | D55: 1 | E55: =INDEX('Детали Praktisch'!$C$12:$C$2063,MATCH('Сборки Praktisch'!B55,'Детали Praktisch'!$A$12:$A$2063,)) -> 1031 | G55: =ROUND(E55*(1-$C$3)/Лист2!$A$6,0) -> 1031
B56: T-ST 01371000 | C56: Полка L=1000 G=370 | D56: 2 | E56: =INDEX('Детали Praktisch'!$C$12:$C$2063,MATCH('Сборки Praktisch'!B56,'Детали Praktisch'!$A$12:$A$2063,)) -> 918 | G56: =ROUND(E56*(1-$C$3)/Лист2!$A$6,0) -> 918
B57: T-ST 01311000 | C57: Полка L=1000 G=310 | D57: 2 | E57: =INDEX('Детали Praktisch'!$C$12:$C$2063,MATCH('Сборки Praktisch'!B57,'Детали Praktisch'!$A$12:$A$2063,)) -> 688 | G57: =ROUND(E57*(1-$C$3)/Лист2!$A$6,0) -> 688
B58: T-BS 01000370 | C58: Кронштейн G=370 (комплект) | D58: 2 | E58: =INDEX('Детали Praktisch'!$C$12:$C$2063,MATCH('Сборки Praktisch'!B58,'Детали Praktisch'!$A$12:$A$2063,)) -> 272 | G58: =ROUND(E58*(1-$C$3)/Лист2!$A$6,0) -> 272
B59: T-BS 01000310 | C59: Кронштейн G=310 (комплект) | D59: 2 | E59: =INDEX('Детали Praktisch'!$C$12:$C$2063,MATCH('Сборки Praktisch'!B59,'Детали Praktisch'!$A$12:$A$2063,)) -> 209 | G59: =ROUND(E59*(1-$C$3)/Лист2!$A$6,0) -> 209
B60: 6 | C60: Стеллаж торговый с навесом и освещением L=1250 H=2300 | D60: 1 | F60: =SUMPRODUCT(D61:D70,E61:E70) -> 17873 | H60: =SUMPRODUCT(D61:D70,G61:G70) -> 17873
B61: T-LT 02802300 | C61: Стойка с двухсторонней перфорацией (30х80) H=2300 | D61: 1 | E61: =INDEX('Детали Praktisch'!$C$12:$C$2063,MATCH('Сборки Praktisch'!B61,'Детали Praktisch'!$A$12:$A$2063,)) -> 1753 | G61: =ROUND(E61*(1-$C$3)/Лист2!$A$6,0) -> 1753
B62: T-BT 01000470 | C62: База стеллажа G=470 | D62: 1 | E62: =INDEX('Детали Praktisch'!$C$12:$C$2063,MATCH('Сборки Praktisch'!B62,'Детали Praktisch'!$A$12:$A$2063,)) -> 1171 | G62: =ROUND(E62*(1-$C$3)/Лист2!$A$6,0) -> 1171
B63: T-BP 01151250 | C63: Панель сплошная L=1250 H=150 | D63: 1 | E63: =INDEX('Детали Praktisch'!$C$12:$C$2063,MATCH('Сборки Praktisch'!B63,'Детали Praktisch'!$A$12:$A$2063,)) -> 360 | G63: =ROUND(E63*(1-$C$3)/Лист2!$A$6,0) -> 360
B64: T-BP 01401250 | C64: Панель сплошная L=1250 H=400 | D64: 5 | E64: =INDEX('Детали Praktisch'!$C$12:$C$2063,MATCH('Сборки Praktisch'!B64,'Детали Praktisch'!$A$12:$A$2063,)) -> 724 | G64: =ROUND(E64*(1-$C$3)/Лист2!$A$6,0) -> 724
B65: T-TP 02471250 | C65: Навес прямой с подсветкой G=470 L=1250 | D65: 1 | E65: =INDEX('Детали Praktisch'!$C$12:$C$2063,MATCH('Сборки Praktisch'!B65,'Детали Praktisch'!$A$12:$A$2063,)) -> 5119 | G65: =ROUND(E65*(1-$C$3)/Лист2!$A$6,0) -> 5119
B66: T-ST 01471250 | C66: Полка L=1250 G=470 | D66: 1 | E66: =INDEX('Детали Praktisch'!$C$12:$C$2063,MATCH('Сборки Praktisch'!B66,'Детали Praktisch'!$A$12:$A$2063,)) -> 1220 | G66: =ROUND(E66*(1-$C$3)/Лист2!$A$6,0) -> 1220
B67: T-ST 01371250 | C67: Полка L=1250 G=370 | D67: 2 | E67: =INDEX('Детали Praktisch'!$C$12:$C$2063,MATCH('Сборки Praktisch'!B67,'Детали Praktisch'!$A$12:$A$2063,)) -> 994 | G67: =ROUND(E67*(1-$C$3)/Лист2!$A$6,0) -> 994
B68: T-ST 01311250 | C68: Полка L=1250 G=310 | D68: 2 | E68: =INDEX('Детали Praktisch'!$C$12:$C$2063,MATCH('Сборки Praktisch'!B68,'Детали Praktisch'!$A$12:$A$2063,)) -> 840 | G68: =ROUND(E68*(1-$C$3)/Лист2!$A$6,0) -> 840
B69: T-BS 01000370 | C69: Кронштейн G=370 (комплект) | D69: 2 | E69: =INDEX('Детали Praktisch'!$C$12:$C$2063,MATCH('Сборки Praktisch'!B69,'Детали Praktisch'!$A$12:$A$2063,)) -> 272 | G69: =ROUND(E69*(1-$C$3)/Лист2!$A$6,0) -> 272
B70: T-BS 01000310 | C70: Кронштейн G=310 (комплект) | D70: 2 | E70: =INDEX('Детали Praktisch'!$C$12:$C$2063,MATCH('Сборки Praktisch'!B70,'Детали Praktisch'!$A$12:$A$2063,)) -> 209 | G70: =ROUND(E70*(1-$C$3)/Лист2!$A$6,0) -> 209
B71: 7 | C71: Стеллаж торговый угла внутреннего H=2300 | D71: 1 | F71: =SUMPRODUCT(D72:D81,E72:E81) -> 11703 | H71: =SUMPRODUCT(D72:D81,G72:G81) -> 11703
B72: T-LT 02802300 | C72: Стойка с двухсторонней перфорацией (30х80) H=2300 | D72: 1 | E72: =INDEX('Детали Praktisch'!$C$12:$C$2063,MATCH('Сборки Praktisch'!B72,'Детали Praktisch'!$A$12:$A$2063,)) -> 1753 | G72: =ROUND(E72*(1-$C$3)/Лист2!$A$6,0) -> 1753
B73: T-BT 01000470 | C73: База стеллажа G=470 | D73: 1 | E73: =INDEX('Детали Praktisch'!$C$12:$C$2063,MATCH('Сборки Praktisch'!B73,'Детали Praktisch'!$A$12:$A$2063,)) -> 1171 | G73: =ROUND(E73*(1-$C$3)/Лист2!$A$6,0) -> 1171
B74: T-BP 05900150 | C74: Панель угла внутреннего Н=150 | D74: 1 | E74: =INDEX('Детали Praktisch'!$C$12:$C$2063,MATCH('Сборки Praktisch'!B74,'Детали Praktisch'!$A$12:$A$2063,)) -> 331 | G74: =ROUND(E74*(1-$C$3)/Лист2!$A$6,0) -> 331
B75: T-BP 05900400 | C75: Панель угла внутреннего Н=400 | D75: 5 | E75: =INDEX('Детали Praktisch'!$C$12:$C$2063,MATCH('Сборки Praktisch'!B75,'Детали Praktisch'!$A$12:$A$2063,)) -> 621 | G75: =ROUND(E75*(1-$C$3)/Лист2!$A$6,0) -> 621
B76: T-ST 05000470 | C76: Полка угловая внутренняя G= 470 | D76: 1 | E76: =INDEX('Детали Praktisch'!$C$12:$C$2063,MATCH('Сборки Praktisch'!B76,'Детали Praktisch'!$A$12:$A$2063,)) -> 968 | G76: =ROUND(E76*(1-$C$3)/Лист2!$A$6,0) -> 968
B77: T-PT 03000470 | C77: Плинтус угла внутреннего L=470мм | D77: 1 | E77: =INDEX('Детали Praktisch'!$C$12:$C$2063,MATCH('Сборки Praktisch'!B77,'Детали Praktisch'!$A$12:$A$2063,)) -> 203 | G77: =ROUND(E77*(1-$C$3)/Лист2!$A$6,0) -> 203
B78: T-ST 05000310 | C78: Полка угловая внутренняя G=310 | D78: 2 | E78: =INDEX('Детали Praktisch'!$C$12:$C$2063,MATCH('Сборки Praktisch'!B78,'Детали Praktisch'!$A$12:$A$2063,)) -> 723 | G78: =ROUND(E78*(1-$C$3)/Лист2!$A$6,0) -> 723
B79: T-ST 05000370 | C79: Полка угловая внутренняя G=370 | D79: 2 | E79: =INDEX('Детали Praktisch'!$C$12:$C$2063,MATCH('Сборки Praktisch'!B79,'Детали Praktisch'!$A$12:$A$2063,)) -> 882 | G79: =ROUND(E79*(1-$C$3)/Лист2!$A$6,0) -> 882
B80: T-BS 01000310 | C80: Кронштейн G=310 (комплект) | D80: 2 | E80: =INDEX('Детали Praktisch'!$C$12:$C$2063,MATCH('Сборки Praktisch'!B80,'Детали Praktisch'!$A$12:$A$2063,)) -> 209 | G80: =ROUND(E80*(1-$C$3)/Лист2!$A$6,0) -> 209
B81: T-BS 01000370 | C81: Кронштейн G=370 (комплект) | D81: 2 | E81: =INDEX('Детали Praktisch'!$C$12:$C$2063,MATCH('Сборки Praktisch'!B81,'Детали Praktisch'!$A$12:$A$2063,)) -> 272 | G81: =ROUND(E81*(1-$C$3)/Лист2!$A$6,0) -> 272
B82: 8 | C82: Стеллаж торговый угла внешнего H=2300 | D82: 1 | F82: =SUMPRODUCT(D83:D92,E83:E92) -> 9491 | H82: =SUMPRODUCT(D83:D92,G83:G92) -> 9491
B83: T-LT 02802300 | C83: Стойка с двухсторонней перфорацией (30х80) H=2300 | D83: 1 | E83: =INDEX('Детали Praktisch'!$C$12:$C$2063,MATCH('Сборки Praktisch'!B83,'Детали Praktisch'!$A$12:$A$2063,)) -> 1753 | G83: =ROUND(E83*(1-$C$3)/Лист2!$A$6,0) -> 1753
B84: T-BT 01000470 | C84: База стеллажа G=470 | D84: 1 | E84: =INDEX('Детали Praktisch'!$C$12:$C$2063,MATCH('Сборки Praktisch'!B84,'Детали Praktisch'!$A$12:$A$2063,)) -> 1171 | G84: =ROUND(E84*(1-$C$3)/Лист2!$A$6,0) -> 1171
B85: T-BP 06900150 | C85: Панель угла внешнего Н=150 | D85: 1 | E85: =INDEX('Детали Praktisch'!$C$12:$C$2063,MATCH('Сборки Praktisch'!B85,'Детали Praktisch'!$A$12:$A$2063,)) -> 183 | G85: =ROUND(E85*(1-$C$3)/Лист2!$A$6,0) -> 183
B86: T-BP 06900400 | C86: Панель угла внешнего Н=400 | D86: 5 | E86: =INDEX('Детали Praktisch'!$C$12:$C$2063,MATCH('Сборки Praktisch'!B86,'Детали Praktisch'!$A$12:$A$2063,)) -> 271 | G86: =ROUND(E86*(1-$C$3)/Лист2!$A$6,0) -> 271
B87: T-ST 06000470 | C87: Полка угловая внешняя G= 470 | D87: 1 | E87: =INDEX('Детали Praktisch'!$C$12:$C$2063,MATCH('Сборки Praktisch'!B87,'Детали Praktisch'!$A$12:$A$2063,)) -> 928 | G87: =ROUND(E87*(1-$C$3)/Лист2!$A$6,0) -> 928
B88: T-PT 04000470 | C88: Плинтус угла внешнего L=470мм | D88: 1 | E88: =INDEX('Детали Praktisch'!$C$12:$C$2063,MATCH('Сборки Praktisch'!B88,'Детали Praktisch'!$A$12:$A$2063,)) -> 301 | G88: =ROUND(E88*(1-$C$3)/Лист2!$A$6,0) -> 301
B89: T-ST 06000310 | C89: Полка угловая внешняя G=310 | D89: 2 | E89: =INDEX('Детали Praktisch'!$C$12:$C$2063,MATCH('Сборки Praktisch'!B89,'Детали Praktisch'!$A$12:$A$2063,)) -> 621 | G89: =ROUND(E89*(1-$C$3)/Лист2!$A$6,0) -> 621
B90: T-ST 06000370 | C90: Полка угловая внешняя G=370 | D90: 2 | E90: =INDEX('Детали Praktisch'!$C$12:$C$2063,MATCH('Сборки Praktisch'!B90,'Детали Praktisch'!$A$12:$A$2063,)) -> 798 | G90: =ROUND(E90*(1-$C$3)/Лист2!$A$6,0) -> 798
B91: T-BS 01000310 | C91: Кронштейн G=310 (комплект) | D91: 2 | E91: =INDEX('Детали Praktisch'!$C$12:$C$2063,MATCH('Сборки Praktisch'!B91,'Детали Praktisch'!$A$12:$A$2063,)) -> 209 | G91: =ROUND(E91*(1-$C$3)/Лист2!$A$6,0) -> 209
B92: T-BS 01000370 | C92: Кронштейн G=370 (комплект) | D92: 2 | E92: =INDEX('Детали Praktisch'!$C$12:$C$2063,MATCH('Сборки Praktisch'!B92,'Детали Praktisch'!$A$12:$A$2063,)) -> 272 | G92: =ROUND(E92*(1-$C$3)/Лист2!$A$6,0) -> 272
B93: 9 | C93: Стеллаж торговый угла внутреннего c навесом и освещением H=2300 | D93: 1 | F93: =SUMPRODUCT(D94:D103,E94:E103) -> 13521 | H93: =SUMPRODUCT(D94:D103,G94:G103) -> 13521
B94: T-LT 02802300 | C94: Стойка с двухсторонней перфорацией (30х80) H=2300 | D94: 1 | E94: =INDEX('Детали Praktisch'!$C$12:$C$2063,MATCH('Сборки Praktisch'!B94,'Детали Praktisch'!$A$12:$A$2063,)) -> 1753 | G94: =ROUND(E94*(1-$C$3)/Лист2!$A$6,0) -> 1753
B95: T-BT 01000470 | C95: База стеллажа G=470 | D95: 1 | E95: =INDEX('Детали Praktisch'!$C$12:$C$2063,MATCH('Сборки Praktisch'!B95,'Детали Praktisch'!$A$12:$A$2063,)) -> 1171 | G95: =ROUND(E95*(1-$C$3)/Лист2!$A$6,0) -> 1171
B96: T-TP 02470010 | C96: Навес прямой с подсветкой G=470 угловой внутренний | D96: 1 | E96: =INDEX('Детали Praktisch'!$C$12:$C$2063,MATCH('Сборки Praktisch'!B96,'Детали Praktisch'!$A$12:$A$2063,)) -> 2149 | G96: =ROUND(E96*(1-$C$3)/Лист2!$A$6,0) -> 2149
B97: T-BP 05900400 | C97: Панель угла внутреннего Н=400 | D97: 5 | E97: =INDEX('Детали Praktisch'!$C$12:$C$2063,MATCH('Сборки Praktisch'!B97,'Детали Praktisch'!$A$12:$A$2063,)) -> 621 | G97: =ROUND(E97*(1-$C$3)/Лист2!$A$6,0) -> 621
B98: T-ST 05000470 | C98: Полка угловая внутренняя G= 470 | D98: 1 | E98: =INDEX('Детали Praktisch'!$C$12:$C$2063,MATCH('Сборки Praktisch'!B98,'Детали Praktisch'!$A$12:$A$2063,)) -> 968 | G98: =ROUND(E98*(1-$C$3)/Лист2!$A$6,0) -> 968
B99: T-PT 03000470 | C99: Плинтус угла внутреннего L=470мм | D99: 1 | E99: =INDEX('Детали Praktisch'!$C$12:$C$2063,MATCH('Сборки Praktisch'!B99,'Детали Praktisch'!$A$12:$A$2063,)) -> 203 | G99: =ROUND(E99*(1-$C$3)/Лист2!$A$6,0) -> 203
B100: T-ST 05000310 | C100: Полка угловая внутренняя G=310 | D100: 2 | E100: =INDEX('Детали Praktisch'!$C$12:$C$2063,MATCH('Сборки Praktisch'!B100,'Детали Praktisch'!$A$12:$A$2063,)) -> 723 | G100: =ROUND(E100*(1-$C$3)/Лист2!$A$6,0) -> 723
B101: T-ST 05000370 | C101: Полка угловая внутренняя G=370 | D101: 2 | E101: =INDEX('Детали Praktisch'!$C$12:$C$2063,MATCH('Сборки Praktisch'!B101,'Детали Praktisch'!$A$12:$A$2063,)) -> 882 | G101: =ROUND(E101*(1-$C$3)/Лист2!$A$6,0) -> 882
B102: T-BS 01000310 | C102: Кронштейн G=310 (комплект) | D102: 2 | E102: =INDEX('Детали Praktisch'!$C$12:$C$2063,MATCH('Сборки Praktisch'!B102,'Детали Praktisch'!$A$12:$A$2063,)) -> 209 | G102: =ROUND(E102*(1-$C$3)/Лист2!$A$6,0) -> 209
B103: T-BS 01000370 | C103: Кронштейн G=370 (комплект) | D103: 2 | E103: =INDEX('Детали Praktisch'!$C$12:$C$2063,MATCH('Сборки Praktisch'!B103,'Детали Praktisch'!$A$12:$A$2063,)) -> 272 | G103: =ROUND(E103*(1-$C$3)/Лист2!$A$6,0) -> 272
B104: 10 | C104: Стеллаж торговый угла внешнего с навесом и освещением H=2300 | D104: 1 | F104: =SUMPRODUCT(D105:D114,E105:E114) -> 12691 | H104: =SUMPRODUCT(D105:D114,G105:G114) -> 12691
B105: T-LT 02802300 | C105: Стойка с двухсторонней перфорацией (30х80) H=2300 | D105: 1 | E105: =INDEX('Детали Praktisch'!$C$12:$C$2063,MATCH('Сборки Praktisch'!B105,'Детали Praktisch'!$A$12:$A$2063,)) -> 1753 | G105: =ROUND(E105*(1-$C$3)/Лист2!$A$6,0) -> 1753
B106: T-BT 01000470 | C106: База стеллажа G=470 | D106: 1 | E106: =INDEX('Детали Praktisch'!$C$12:$C$2063,MATCH('Сборки Praktisch'!B106,'Детали Praktisch'!$A$12:$A$2063,)) -> 1171 | G106: =ROUND(E106*(1-$C$3)/Лист2!$A$6,0) -> 1171
B107: T-TP 02470020 | C107: Навес прямой с подсветкой G=470 угловой внешний | D107: 1 | E107: =INDEX('Детали Praktisch'!$C$12:$C$2063,MATCH('Сборки Praktisch'!B107,'Детали Praktisch'!$A$12:$A$2063,)) -> 3383 | G107: =ROUND(E107*(1-$C$3)/Лист2!$A$6,0) -> 3383
B108: T-BP 06900400 | C108: Панель угла внешнего Н=400 | D108: 5 | E108: =INDEX('Детали Praktisch'!$C$12:$C$2063,MATCH('Сборки Praktisch'!B108,'Детали Praktisch'!$A$12:$A$2063,)) -> 271 | G108: =ROUND(E108*(1-$C$3)/Лист2!$A$6,0) -> 271
B109: T-ST 06000470 | C109: Полка угловая внешняя G= 470 | D109: 1 | E109: =INDEX('Детали Praktisch'!$C$12:$C$2063,MATCH('Сборки Praktisch'!B109,'Детали Praktisch'!$A$12:$A$2063,)) -> 928 | G109: =ROUND(E109*(1-$C$3)/Лист2!$A$6,0) -> 928
B110: T-PT 04000470 | C110: Плинтус угла внешнего L=470мм | D110: 1 | E110: =INDEX('Детали Praktisch'!$C$12:$C$2063,MATCH('Сборки Praktisch'!B110,'Детали Praktisch'!$A$12:$A$2063,)) -> 301 | G110: =ROUND(E110*(1-$C$3)/Лист2!$A$6,0) -> 301
B111: T-ST 06000310 | C111: Полка угловая внешняя G=310 | D111: 2 | E111: =INDEX('Детали Praktisch'!$C$12:$C$2063,MATCH('Сборки Praktisch'!B111,'Детали Praktisch'!$A$12:$A$2063,)) -> 621 | G111: =ROUND(E111*(1-$C$3)/Лист2!$A$6,0) -> 621
B112: T-ST 06000370 | C112: Полка угловая внешняя G=370 | D112: 2 | E112: =INDEX('Детали Praktisch'!$C$12:$C$2063,MATCH('Сборки Praktisch'!B112,'Детали Praktisch'!$A$12:$A$2063,)) -> 798 | G112: =ROUND(E112*(1-$C$3)/Лист2!$A$6,0) -> 798
B113: T-BS 01000310 | C113: Кронштейн G=310 (комплект) | D113: 2 | E113: =INDEX('Детали Praktisch'!$C$12:$C$2063,MATCH('Сборки Praktisch'!B113,'Детали Praktisch'!$A$12:$A$2063,)) -> 209 | G113: =ROUND(E113*(1-$C$3)/Лист2!$A$6,0) -> 209
B114: T-BS 01000370 | C114: Кронштейн G=370 (комплект) | D114: 2 | E114: =INDEX('Детали Praktisch'!$C$12:$C$2063,MATCH('Сборки Praktisch'!B114,'Детали Praktisch'!$A$12:$A$2063,)) -> 272 | G114: =ROUND(E114*(1-$C$3)/Лист2!$A$6,0) -> 272
B115: 11 | C115: Стеллаж торговый перфорированный L=665 H=2300 | D115: 1 | F115: =SUMPRODUCT(D116:D120,E116:E120) -> 7698 | H115: =SUMPRODUCT(D116:D120,G116:G120) -> 7698
B116: T-LT 02802300 | C116: Стойка с двухсторонней перфорацией (30х80) H=2300 | D116: 1 | E116: =INDEX('Детали Praktisch'!$C$12:$C$2063,MATCH('Сборки Praktisch'!B116,'Детали Praktisch'!$A$12:$A$2063,)) -> 1753 | G116: =ROUND(E116*(1-$C$3)/Лист2!$A$6,0) -> 1753
B117: T-BT 01000470 | C117: База стеллажа G=470 | D117: 1 | E117: =INDEX('Детали Praktisch'!$C$12:$C$2063,MATCH('Сборки Praktisch'!B117,'Детали Praktisch'!$A$12:$A$2063,)) -> 1171 | G117: =ROUND(E117*(1-$C$3)/Лист2!$A$6,0) -> 1171
B118: T-BP 01150665 | C118: Панель сплошная L=665 H=150 | D118: 2 | E118: =INDEX('Детали Praktisch'!$C$12:$C$2063,MATCH('Сборки Praktisch'!B118,'Детали Praktisch'!$A$12:$A$2063,)) -> 241 | G118: =ROUND(E118*(1-$C$3)/Лист2!$A$6,0) -> 241
B119: T-BP 02400665 | C119: Панель перфорированная L=665 H=400 | D119: 5 | E119: =INDEX('Детали Praktisch'!$C$12:$C$2063,MATCH('Сборки Praktisch'!B119,'Детали Praktisch'!$A$12:$A$2063,)) -> 702 | G119: =ROUND(E119*(1-$C$3)/Лист2!$A$6,0) -> 702
B120: T-ST 01470665 | C120: Полка L=665 G=470 | D120: 1 | E120: =INDEX('Детали Praktisch'!$C$12:$C$2063,MATCH('Сборки Praktisch'!B120,'Детали Praktisch'!$A$12:$A$2063,)) -> 782 | G120: =ROUND(E120*(1-$C$3)/Лист2!$A$6,0) -> 782
B121: 12 | C121: Стеллаж торговый перфорированный L=1000 H=2300 | D121: 1 | F121: =SUMPRODUCT(D122:D126,E122:E126) -> 9315 | H121: =SUMPRODUCT(D122:D126,G122:G126) -> 9315
B122: T-LT 02802300 | C122: Стойка с двухсторонней перфорацией (30х80) H=2300 | D122: 1 | E122: =INDEX('Детали Praktisch'!$C$12:$C$2063,MATCH('Сборки Praktisch'!B122,'Детали Praktisch'!$A$12:$A$2063,)) -> 1753 | G122: =ROUND(E122*(1-$C$3)/Лист2!$A$6,0) -> 1753
B123: T-BT 01000470 | C123: База стеллажа G=470 | D123: 1 | E123: =INDEX('Детали Praktisch'!$C$12:$C$2063,MATCH('Сборки Praktisch'!B123,'Детали Praktisch'!$A$12:$A$2063,)) -> 1171 | G123: =ROUND(E123*(1-$C$3)/Лист2!$A$6,0) -> 1171
B124: T-BP 01151000 | C124: Панель сплошная L=1000 H=150 | D124: 2 | E124: =INDEX('Детали Praktisch'!$C$12:$C$2063,MATCH('Сборки Praktisch'!B124,'Детали Praktisch'!$A$12:$A$2063,)) -> 300 | G124: =ROUND(E124*(1-$C$3)/Лист2!$A$6,0) -> 300
B125: T-BP 02401000 | C125: Панель перфорированная L=1000 H=400 | D125: 5 | E125: =INDEX('Детали Praktisch'!$C$12:$C$2063,MATCH('Сборки Praktisch'!B125,'Детали Praktisch'!$A$12:$A$2063,)) -> 952 | G125: =ROUND(E125*(1-$C$3)/Лист2!$A$6,0) -> 952
B126: T-ST 01471000 | C126: Полка L=1000 G= 470 | D126: 1 | E126: =INDEX('Детали Praktisch'!$C$12:$C$2063,MATCH('Сборки Praktisch'!B126,'Детали Praktisch'!$A$12:$A$2063,)) -> 1031 | G126: =ROUND(E126*(1-$C$3)/Лист2!$A$6,0) -> 1031
B127: 13 | C127: Стеллаж торговый перфорированный L=1250 H=2300 | D127: 1 | F127: =SUMPRODUCT(D128:D132,E128:E132) -> 10639 | H127: =SUMPRODUCT(D128:D132,G128:G132) -> 10639
B128: T-LT 02802300 | C128: Стойка с двухсторонней перфорацией (30х80) H=2300 | D128: 1 | E128: =INDEX('Детали Praktisch'!$C$12:$C$2063,MATCH('Сборки Praktisch'!B128,'Детали Praktisch'!$A$12:$A$2063,)) -> 1753 | G128: =ROUND(E128*(1-$C$3)/Лист2!$A$6,0) -> 1753
B129: T-BT 01000470 | C129: База стеллажа G=470 | D129: 1 | E129: =INDEX('Детали Praktisch'!$C$12:$C$2063,MATCH('Сборки Praktisch'!B129,'Детали Praktisch'!$A$12:$A$2063,)) -> 1171 | G129: =ROUND(E129*(1-$C$3)/Лист2!$A$6,0) -> 1171
B130: T-BP 01151250 | C130: Панель сплошная L=1250 H=150 | D130: 2 | E130: =INDEX('Детали Praktisch'!$C$12:$C$2063,MATCH('Сборки Praktisch'!B130,'Детали Praktisch'!$A$12:$A$2063,)) -> 360 | G130: =ROUND(E130*(1-$C$3)/Лист2!$A$6,0) -> 360
B131: T-BP 02401250 | C131: Панель перфорированная L=1250 H=400 | D131: 5 | E131: =INDEX('Детали Praktisch'!$C$12:$C$2063,MATCH('Сборки Praktisch'!B131,'Детали Praktisch'!$A$12:$A$2063,)) -> 1155 | G131: =ROUND(E131*(1-$C$3)/Лист2!$A$6,0) -> 1155
B132: T-ST 01471250 | C132: Полка L=1250 G=470 | D132: 1 | E132: =INDEX('Детали Praktisch'!$C$12:$C$2063,MATCH('Сборки Praktisch'!B132,'Детали Praktisch'!$A$12:$A$2063,)) -> 1220 | G132: =ROUND(E132*(1-$C$3)/Лист2!$A$6,0) -> 1220
B133: 14 | C133: Стеллаж торговый островной L=665 Н=1650 | D133: 1 | F133: =SUMPRODUCT(D134:D143,E134:E143) -> 14259 | H133: =SUMPRODUCT(D134:D143,G134:G143) -> 14259
B134: T-LT 02801650 | C134: Стойка с двухсторонней перфорацией (30х80) H=1650 | D134: 1 | E134: =INDEX('Детали Praktisch'!$C$12:$C$2063,MATCH('Сборки Praktisch'!B134,'Детали Praktisch'!$A$12:$A$2063,)) -> 1361 | G134: =ROUND(E134*(1-$C$3)/Лист2!$A$6,0) -> 1361
B135: T-BT 01000470 | C135: База стеллажа G=470 | D135: 2 | E135: =INDEX('Детали Praktisch'!$C$12:$C$2063,MATCH('Сборки Praktisch'!B135,'Детали Praktisch'!$A$12:$A$2063,)) -> 1171 | G135: =ROUND(E135*(1-$C$3)/Лист2!$A$6,0) -> 1171
B136: T-BP 01150665 | C136: Панель сплошная L=665 H=150 | D136: 2 | E136: =INDEX('Детали Praktisch'!$C$12:$C$2063,MATCH('Сборки Praktisch'!B136,'Детали Praktisch'!$A$12:$A$2063,)) -> 241 | G136: =ROUND(E136*(1-$C$3)/Лист2!$A$6,0) -> 241
B137: T-BP 01300665 | C137: Панель сплошная L=665 H=300 | D137: 2 | E137: =INDEX('Детали Praktisch'!$C$12:$C$2063,MATCH('Сборки Praktisch'!B137,'Детали Praktisch'!$A$12:$A$2063,)) -> 379 | G137: =ROUND(E137*(1-$C$3)/Лист2!$A$6,0) -> 379
B138: T-BP 01400665 | C138: Панель сплошная L=665 H=400 | D138: 6 | E138: =INDEX('Детали Praktisch'!$C$12:$C$2063,MATCH('Сборки Praktisch'!B138,'Детали Praktisch'!$A$12:$A$2063,)) -> 440 | G138: =ROUND(E138*(1-$C$3)/Лист2!$A$6,0) -> 440
B139: T-ST 01470665 | C139: Полка L=665 G=470 | D139: 2 | E139: =INDEX('Детали Praktisch'!$C$12:$C$2063,MATCH('Сборки Praktisch'!B139,'Детали Praktisch'!$A$12:$A$2063,)) -> 782 | G139: =ROUND(E139*(1-$C$3)/Лист2!$A$6,0) -> 782
B140: T-ST 01370665 | C140: Полка L=665 G=370 | D140: 4 | E140: =INDEX('Детали Praktisch'!$C$12:$C$2063,MATCH('Сборки Praktisch'!B140,'Детали Praktisch'!$A$12:$A$2063,)) -> 634 | G140: =ROUND(E140*(1-$C$3)/Лист2!$A$6,0) -> 634
B141: T-ST 01310665 | C141: Полка L=665 G=310 | D141: 2 | E141: =INDEX('Детали Praktisch'!$C$12:$C$2063,MATCH('Сборки Praktisch'!B141,'Детали Praktisch'!$A$12:$A$2063,)) -> 535 | G141: =ROUND(E141*(1-$C$3)/Лист2!$A$6,0) -> 535
B142: T-BS 01000370 | C142: Кронштейн G=370 (комплект) | D142: 4 | E142: =INDEX('Детали Praktisch'!$C$12:$C$2063,MATCH('Сборки Praktisch'!B142,'Детали Praktisch'!$A$12:$A$2063,)) -> 272 | G142: =ROUND(E142*(1-$C$3)/Лист2!$A$6,0) -> 272
B143: T-BS 01000310 | C143: Кронштейн G=310 (комплект) | D143: 2 | E143: =INDEX('Детали Praktisch'!$C$12:$C$2063,MATCH('Сборки Praktisch'!B143,'Детали Praktisch'!$A$12:$A$2063,)) -> 209 | G143: =ROUND(E143*(1-$C$3)/Лист2!$A$6,0) -> 209
B144: 15 | C144: Стеллаж торговый островной L=1000 Н=1650 | D144: 1 | F144: =SUMPRODUCT(D145:D154,E145:E154) -> 17341 | H144: =SUMPRODUCT(D145:D154,G145:G154) -> 17341
B145: T-LT 02801650 | C145: Стойка с двухсторонней перфорацией (30х80) H=1650 | D145: 1 | E145: =INDEX('Детали Praktisch'!$C$12:$C$2063,MATCH('Сборки Praktisch'!B145,'Детали Praktisch'!$A$12:$A$2063,)) -> 1361 | G145: =ROUND(E145*(1-$C$3)/Лист2!$A$6,0) -> 1361
B146: T-BT 01000470 | C146: База стеллажа G=470 | D146: 2 | E146: =INDEX('Детали Praktisch'!$C$12:$C$2063,MATCH('Сборки Praktisch'!B146,'Детали Praktisch'!$A$12:$A$2063,)) -> 1171 | G146: =ROUND(E146*(1-$C$3)/Лист2!$A$6,0) -> 1171
B147: T-BP 01151000 | C147: Панель сплошная L=1000 H=150 | D147: 2 | E147: =INDEX('Детали Praktisch'!$C$12:$C$2063,MATCH('Сборки Praktisch'!B147,'Детали Praktisch'!$A$12:$A$2063,)) -> 300 | G147: =ROUND(E147*(1-$C$3)/Лист2!$A$6,0) -> 300
B148: T-BP 01301000 | C148: Панель сплошная L=1000 H=300 | D148: 2 | E148: =INDEX('Детали Praktisch'!$C$12:$C$2063,MATCH('Сборки Praktisch'!B148,'Детали Praktisch'!$A$12:$A$2063,)) -> 483 | G148: =ROUND(E148*(1-$C$3)/Лист2!$A$6,0) -> 483
B149: T-BP 01401000 | C149: Панель сплошная L=1000 H=400 | D149: 6 | E149: =INDEX('Детали Praktisch'!$C$12:$C$2063,MATCH('Сборки Praktisch'!B149,'Детали Praktisch'!$A$12:$A$2063,)) -> 576 | G149: =ROUND(E149*(1-$C$3)/Лист2!$A$6,0) -> 576
B150: T-ST 01471000 | C150: Полка L=1000 G= 470 | D150: 2 | E150: =INDEX('Детали Praktisch'!$C$12:$C$2063,MATCH('Сборки Praktisch'!B150,'Детали Praktisch'!$A$12:$A$2063,)) -> 1031 | G150: =ROUND(E150*(1-$C$3)/Лист2!$A$6,0) -> 1031
B151: T-ST 01371000 | C151: Полка L=1000 G=370 | D151: 4 | E151: =INDEX('Детали Praktisch'!$C$12:$C$2063,MATCH('Сборки Praktisch'!B151,'Детали Praktisch'!$A$12:$A$2063,)) -> 918 | G151: =ROUND(E151*(1-$C$3)/Лист2!$A$6,0) -> 918
B152: T-ST 01311000 | C152: Полка L=1000 G=310 | D152: 2 | E152: =INDEX('Детали Praktisch'!$C$12:$C$2063,MATCH('Сборки Praktisch'!B152,'Детали Praktisch'!$A$12:$A$2063,)) -> 688 | G152: =ROUND(E152*(1-$C$3)/Лист2!$A$6,0) -> 688
B153: T-BS 01000370 | C153: Кронштейн G=370 (комплект) | D153: 4 | E153: =INDEX('Детали Praktisch'!$C$12:$C$2063,MATCH('Сборки Praktisch'!B153,'Детали Praktisch'!$A$12:$A$2063,)) -> 272 | G153: =ROUND(E153*(1-$C$3)/Лист2!$A$6,0) -> 272
B154: T-BS 01000310 | C154: Кронштейн G=310 (комплект) | D154: 2 | E154: =INDEX('Детали Praktisch'!$C$12:$C$2063,MATCH('Сборки Praktisch'!B154,'Детали Praktisch'!$A$12:$A$2063,)) -> 209 | G154: =ROUND(E154*(1-$C$3)/Лист2!$A$6,0) -> 209
B155: 16 | C155: Стеллаж торговый островной L=1250 Н=1650 | D155: 1 | F155: =SUMPRODUCT(D156:D165,E156:E165) -> 19521 | H155: =SUMPRODUCT(D156:D165,G156:G165) -> 19521
B156: T-LT 02801650 | C156: Стойка с двухсторонней перфорацией (30х80) H=1650 | D156: 1 | E156: =INDEX('Детали Praktisch'!$C$12:$C$2063,MATCH('Сборки Praktisch'!B156,'Детали Praktisch'!$A$12:$A$2063,)) -> 1361 | G156: =ROUND(E156*(1-$C$3)/Лист2!$A$6,0) -> 1361
B157: T-BT 01000470 | C157: База стеллажа G=470 | D157: 2 | E157: =INDEX('Детали Praktisch'!$C$12:$C$2063,MATCH('Сборки Praktisch'!B157,'Детали Praktisch'!$A$12:$A$2063,)) -> 1171 | G157: =ROUND(E157*(1-$C$3)/Лист2!$A$6,0) -> 1171
B158: T-BP 01151250 | C158: Панель сплошная L=1250 H=150 | D158: 2 | E158: =INDEX('Детали Praktisch'!$C$12:$C$2063,MATCH('Сборки Praktisch'!B158,'Детали Praktisch'!$A$12:$A$2063,)) -> 360 | G158: =ROUND(E158*(1-$C$3)/Лист2!$A$6,0) -> 360
B159: T-BP 01301250 | C159: Панель сплошная L=1250 H=300 | D159: 2 | E159: =INDEX('Детали Praktisch'!$C$12:$C$2063,MATCH('Сборки Praktisch'!B159,'Детали Praktisch'!$A$12:$A$2063,)) -> 576 | G159: =ROUND(E159*(1-$C$3)/Лист2!$A$6,0) -> 576
B160: T-BP 01401250 | C160: Панель сплошная L=1250 H=400 | D160: 6 | E160: =INDEX('Детали Praktisch'!$C$12:$C$2063,MATCH('Сборки Praktisch'!B160,'Детали Praktisch'!$A$12:$A$2063,)) -> 724 | G160: =ROUND(E160*(1-$C$3)/Лист2!$A$6,0) -> 724
B161: T-ST 01471250 | C161: Полка L=1250 G=470 | D161: 2 | E161: =INDEX('Детали Praktisch'!$C$12:$C$2063,MATCH('Сборки Praktisch'!B161,'Детали Praktisch'!$A$12:$A$2063,)) -> 1220 | G161: =ROUND(E161*(1-$C$3)/Лист2!$A$6,0) -> 1220
B162: T-ST 01371250 | C162: Полка L=1250 G=370 | D162: 4 | E162: =INDEX('Детали Praktisch'!$C$12:$C$2063,MATCH('Сборки Praktisch'!B162,'Детали Praktisch'!$A$12:$A$2063,)) -> 994 | G162: =ROUND(E162*(1-$C$3)/Лист2!$A$6,0) -> 994
B163: T-ST 01311250 | C163: Полка L=1250 G=310 | D163: 2 | E163: =INDEX('Детали Praktisch'!$C$12:$C$2063,MATCH('Сборки Praktisch'!B163,'Детали Praktisch'!$A$12:$A$2063,)) -> 840 | G163: =ROUND(E163*(1-$C$3)/Лист2!$A$6,0) -> 840
B164: T-BS 01000370 | C164: Кронштейн G=370 (комплект) | D164: 4 | E164: =INDEX('Детали Praktisch'!$C$12:$C$2063,MATCH('Сборки Praktisch'!B164,'Детали Praktisch'!$A$12:$A$2063,)) -> 272 | G164: =ROUND(E164*(1-$C$3)/Лист2!$A$6,0) -> 272
B165: T-BS 01000310 | C165: Кронштейн G=310 (комплект) | D165: 2 | E165: =INDEX('Детали Praktisch'!$C$12:$C$2063,MATCH('Сборки Praktisch'!B165,'Детали Praktisch'!$A$12:$A$2063,)) -> 209 | G165: =ROUND(E165*(1-$C$3)/Лист2!$A$6,0) -> 209
B166: 17 | C166: Стеллаж торговый торцевой L=1000 Н=1650 | D166: 1 | F166: =SUMPRODUCT(D167:D176,E167:E176) -> 14394 | H166: =SUMPRODUCT(D167:D176,G167:G176) -> 14394
B167: T-LT 02801650 | C167: Стойка с двухсторонней перфорацией (30х80) H=1650 | D167: 2 | E167: =INDEX('Детали Praktisch'!$C$12:$C$2063,MATCH('Сборки Praktisch'!B167,'Детали Praktisch'!$A$12:$A$2063,)) -> 1361 | G167: =ROUND(E167*(1-$C$3)/Лист2!$A$6,0) -> 1361
B168: T-BT 01000470 | C168: База стеллажа G=470 | D168: 2 | E168: =INDEX('Детали Praktisch'!$C$12:$C$2063,MATCH('Сборки Praktisch'!B168,'Детали Praktisch'!$A$12:$A$2063,)) -> 1171 | G168: =ROUND(E168*(1-$C$3)/Лист2!$A$6,0) -> 1171
B169: T-BP 01151000 | C169: Панель сплошная L=1000 H=150 | D169: 2 | E169: =INDEX('Детали Praktisch'!$C$12:$C$2063,MATCH('Сборки Praktisch'!B169,'Детали Praktisch'!$A$12:$A$2063,)) -> 300 | G169: =ROUND(E169*(1-$C$3)/Лист2!$A$6,0) -> 300
B170: T-BP 01301000 | C170: Панель сплошная L=1000 H=300 | D170: 2 | E170: =INDEX('Детали Praktisch'!$C$12:$C$2063,MATCH('Сборки Praktisch'!B170,'Детали Praktisch'!$A$12:$A$2063,)) -> 483 | G170: =ROUND(E170*(1-$C$3)/Лист2!$A$6,0) -> 483
B171: T-BP 01401000 | C171: Панель сплошная L=1000 H=400 | D171: 6 | E171: =INDEX('Детали Praktisch'!$C$12:$C$2063,MATCH('Сборки Praktisch'!B171,'Детали Praktisch'!$A$12:$A$2063,)) -> 576 | G171: =ROUND(E171*(1-$C$3)/Лист2!$A$6,0) -> 576
B172: T-ST 01471000 | C172: Полка L=1000 G= 470 | D172: 1 | E172: =INDEX('Детали Praktisch'!$C$12:$C$2063,MATCH('Сборки Praktisch'!B172,'Детали Praktisch'!$A$12:$A$2063,)) -> 1031 | G172: =ROUND(E172*(1-$C$3)/Лист2!$A$6,0) -> 1031
B173: T-ST 01371000 | C173: Полка L=1000 G=370 | D173: 2 | E173: =INDEX('Детали Praktisch'!$C$12:$C$2063,MATCH('Сборки Praktisch'!B173,'Детали Praktisch'!$A$12:$A$2063,)) -> 918 | G173: =ROUND(E173*(1-$C$3)/Лист2!$A$6,0) -> 918
B174: T-ST 01311000 | C174: Полка L=1000 G=310 | D174: 1 | E174: =INDEX('Детали Praktisch'!$C$12:$C$2063,MATCH('Сборки Praktisch'!B174,'Детали Praktisch'!$A$12:$A$2063,)) -> 688 | G174: =ROUND(E174*(1-$C$3)/Лист2!$A$6,0) -> 688
B175: T-BS 01000370 | C175: Кронштейн G=370 (комплект) | D175: 2 | E175: =INDEX('Детали Praktisch'!$C$12:$C$2063,MATCH('Сборки Praktisch'!B175,'Детали Praktisch'!$A$12:$A$2063,)) -> 272 | G175: =ROUND(E175*(1-$C$3)/Лист2!$A$6,0) -> 272
B176: T-BS 01000310 | C176: Кронштейн G=310 (комплект) | D176: 1 | E176: =INDEX('Детали Praktisch'!$C$12:$C$2063,MATCH('Сборки Praktisch'!B176,'Детали Praktisch'!$A$12:$A$2063,)) -> 209 | G176: =ROUND(E176*(1-$C$3)/Лист2!$A$6,0) -> 209
B177: 18 | C177: Стеллаж торговый торцевой полукруглый L=1000 H=2300 | D177: 1 | F177: =SUMPRODUCT(D178:D184,E178:E184) -> 14933 | H177: =SUMPRODUCT(D178:D184,G178:G184) -> 14933
B178: T-BT 02000470 | C178: База полки торцевой G=470 | D178: 1 | E178: =INDEX('Детали Praktisch'!$C$12:$C$2063,MATCH('Сборки Praktisch'!B178,'Детали Praktisch'!$A$12:$A$2063,)) -> 3130 | G178: =ROUND(E178*(1-$C$3)/Лист2!$A$6,0) -> 3130
B179: T-PT 06000470 | C179: Плинтус торцевой полукруглый G=470мм | D179: 1 | E179: =INDEX('Детали Praktisch'!$C$12:$C$2063,MATCH('Сборки Praktisch'!B179,'Детали Praktisch'!$A$12:$A$2063,)) -> 966 | G179: =ROUND(E179*(1-$C$3)/Лист2!$A$6,0) -> 966
B180: T-ST 02300310 | C180: Полка торцевая полукруглая под ограничитель G=310 | D180: 1 | E180: =INDEX('Детали Praktisch'!$C$12:$C$2063,MATCH('Сборки Praktisch'!B180,'Детали Praktisch'!$A$12:$A$2063,)) -> 1255 | G180: =ROUND(E180*(1-$C$3)/Лист2!$A$6,0) -> 1255
B181: T-ST 02300370 | C181: Полка торцевая полукруглая под ограничитель G=370 | D181: 2 | E181: =INDEX('Детали Praktisch'!$C$12:$C$2063,MATCH('Сборки Praktisch'!B181,'Детали Praktisch'!$A$12:$A$2063,)) -> 1570 | G181: =ROUND(E181*(1-$C$3)/Лист2!$A$6,0) -> 1570
B182: T-ST 02300470 | C182: Полка торцевая полукруглая под ограничитель G=470 | D182: 1 | E182: =INDEX('Детали Praktisch'!$C$12:$C$2063,MATCH('Сборки Praktisch'!B182,'Детали Praktisch'!$A$12:$A$2063,)) -> 2134 | G182: =ROUND(E182*(1-$C$3)/Лист2!$A$6,0) -> 2134
B183: T-BS 15020310 | C183: Кронштейн для торц полукр полок (комп с адапт)для стойк80х30 G=310 | D183: 1 | E183: =INDEX('Детали Praktisch'!$C$12:$C$2063,MATCH('Сборки Praktisch'!B183,'Детали Praktisch'!$A$12:$A$2063,)) -> 1378 | G183: =ROUND(E183*(1-$C$3)/Лист2!$A$6,0) -> 1378
B184: T-BS 15020370 | C184: Кронштейн для торц полукр полок (комп с адапт)для стойк80х30 G=370 | D184: 2 | E184: =INDEX('Детали Praktisch'!$C$12:$C$2063,MATCH('Сборки Praktisch'!B184,'Детали Praktisch'!$A$12:$A$2063,)) -> 1465 | G184: =ROUND(E184*(1-$C$3)/Лист2!$A$6,0) -> 1465
B185: 19 | C185: Стеллаж торговый для CD / DVD L=1000 H=1650 | D185: 1 | F185: =SUMPRODUCT(D186:D196,E186:E196) -> 24446 | H185: =SUMPRODUCT(D186:D196,G186:G196) -> 24446
B186: T-LT 02801650 | C186: Стойка с двухсторонней перфорацией (30х80) H=1650 | D186: 1 | E186: =INDEX('Детали Praktisch'!$C$12:$C$2063,MATCH('Сборки Praktisch'!B186,'Детали Praktisch'!$A$12:$A$2063,)) -> 1361 | G186: =ROUND(E186*(1-$C$3)/Лист2!$A$6,0) -> 1361
B187: T-BT 01000570 | C187: База стеллажа G=570 | D187: 1 | E187: =INDEX('Детали Praktisch'!$C$12:$C$2063,MATCH('Сборки Praktisch'!B187,'Детали Praktisch'!$A$12:$A$2063,)) -> 1215 | G187: =ROUND(E187*(1-$C$3)/Лист2!$A$6,0) -> 1215
B188: T-PT 01001000 | C188: Плинтус L=1000 | D188: 1 | E188: =INDEX('Детали Praktisch'!$C$12:$C$2063,MATCH('Сборки Praktisch'!B188,'Детали Praktisch'!$A$12:$A$2063,)) -> 287 | G188: =ROUND(E188*(1-$C$3)/Лист2!$A$6,0) -> 287
B189: T-BP 01401000 | C189: Панель сплошная L=1000 H=400 | D189: 3 | E189: =INDEX('Детали Praktisch'!$C$12:$C$2063,MATCH('Сборки Praktisch'!B189,'Детали Praktisch'!$A$12:$A$2063,)) -> 576 | G189: =ROUND(E189*(1-$C$3)/Лист2!$A$6,0) -> 576
B190: T-BP 01301000 | C190: Панель сплошная L=1000 H=300 | D190: 1 | E190: =INDEX('Детали Praktisch'!$C$12:$C$2063,MATCH('Сборки Praktisch'!B190,'Детали Praktisch'!$A$12:$A$2063,)) -> 483 | G190: =ROUND(E190*(1-$C$3)/Лист2!$A$6,0) -> 483
B191: T-ST 01571000 | C191: Полка G=570 L=1000 | D191: 1 | E191: =INDEX('Детали Praktisch'!$C$12:$C$2063,MATCH('Сборки Praktisch'!B191,'Детали Praktisch'!$A$12:$A$2063,)) -> 1475 | G191: =ROUND(E191*(1-$C$3)/Лист2!$A$6,0) -> 1475
B192: N-LC 00003080 | C192: Заглушка стойки 30х80 | D192: 1 | E192: =INDEX('Детали Praktisch'!$C$12:$C$2063,MATCH('Сборки Praktisch'!B192,'Детали Praktisch'!$A$12:$A$2063,)) -> 118 | G192: =ROUND(E192*(1-$C$3)/Лист2!$A$6,0) -> 118
B193: T-BS 06000100 | C193: Кронштейн для полки CD G=100 (комплект) | D193: 4 | E193: =INDEX('Детали Praktisch'!$C$12:$C$2063,MATCH('Сборки Praktisch'!B193,'Детали Praktisch'!$A$12:$A$2063,)) -> 458 | G193: =ROUND(E193*(1-$C$3)/Лист2!$A$6,0) -> 458
B194: T-BS 07000630 | C194: Кронштейн для пяти полок СD G=630 (клмплект) | D194: 1 | E194: =INDEX('Детали Praktisch'!$C$12:$C$2063,MATCH('Сборки Praktisch'!B194,'Детали Praktisch'!$A$12:$A$2063,)) -> 3402 | G194: =ROUND(E194*(1-$C$3)/Лист2!$A$6,0) -> 3402
B195: T-CD 01101000 | C195: Полка для CD дисков G=100 L=1000 | D195: 9 | E195: =INDEX('Детали Praktisch'!$C$12:$C$2063,MATCH('Сборки Praktisch'!B195,'Детали Praktisch'!$A$12:$A$2063,)) -> 865 | G195: =ROUND(E195*(1-$C$3)/Лист2!$A$6,0) -> 865
B196: T-DS 08010010 | C196: Разделитель пластиковый G=100 H=100 | D196: 70 | E196: 68 | G196: =ROUND(E196*(1-$C$3)/Лист2!$A$6,0) -> 68
B197: 20 | C197: Стеллаж торговый для книг L=1000 H=1650 | D197: 1 | F197: =SUMPRODUCT(D198:D208,E198:E208) -> 17832 | H197: =SUMPRODUCT(D198:D208,G198:G208) -> 17832
B198: T-LT 02801650 | C198: Стойка с двухсторонней перфорацией (30х80) H=1650 | D198: 1 | E198: =INDEX('Детали Praktisch'!$C$12:$C$2063,MATCH('Сборки Praktisch'!B198,'Детали Praktisch'!$A$12:$A$2063,)) -> 1361 | G198: =ROUND(E198*(1-$C$3)/Лист2!$A$6,0) -> 1361
B199: T-BT 01000470 | C199: База стеллажа G=470 | D199: 1 | E199: =INDEX('Детали Praktisch'!$C$12:$C$2063,MATCH('Сборки Praktisch'!B199,'Детали Praktisch'!$A$12:$A$2063,)) -> 1171 | G199: =ROUND(E199*(1-$C$3)/Лист2!$A$6,0) -> 1171
B200: T-PT 01001000 | C200: Плинтус L=1000 | D200: 1 | E200: =INDEX('Детали Praktisch'!$C$12:$C$2063,MATCH('Сборки Praktisch'!B200,'Детали Praktisch'!$A$12:$A$2063,)) -> 287 | G200: =ROUND(E200*(1-$C$3)/Лист2!$A$6,0) -> 287
B201: T-BP 01401000 | C201: Панель сплошная L=1000 H=400 | D201: 3 | E201: =INDEX('Детали Praktisch'!$C$12:$C$2063,MATCH('Сборки Praktisch'!B201,'Детали Praktisch'!$A$12:$A$2063,)) -> 576 | G201: =ROUND(E201*(1-$C$3)/Лист2!$A$6,0) -> 576
B202: T-BP 01301000 | C202: Панель сплошная L=1000 H=300 | D202: 1 | E202: =INDEX('Детали Praktisch'!$C$12:$C$2063,MATCH('Сборки Praktisch'!B202,'Детали Praktisch'!$A$12:$A$2063,)) -> 483 | G202: =ROUND(E202*(1-$C$3)/Лист2!$A$6,0) -> 483
... 255 more rows

Sheet Сборки сетчатых стел
A1: Cборки торговых сетчатых стеллажей Praktisch | I1: На главную
A3: Ваша скидка: | C3: =Содержание!C2 -> 0
A4: НДС: | C4: =IF(Лист2!A1=TRUE,"С НДС","БЕЗ НДС") -> С НДС
A6: Изображение | B6: Артикул | C6: Наименование | D6: Кол-во в сборке, шт. | E6: Базовая цена, руб. (с НДС) | G6: Ваша цена, руб.
E7: за элемент в сборке | F7: за сборку | G7: за элемент в сборке | H7: за сборку
B8: 1 | C8: Стеллаж пристенный сетчатый 2150 x 665 x 470 | F8: =SUMPRODUCT(D9:D20,E9:E20) -> 18324 | H8: =SUMPRODUCT(D9:D20,G9:G20) -> 18324
B9: T-PT 01000665 | C9: Плинтус L = 665 | D9: 1 | E9: =VLOOKUP(B9,'Детали Praktisch'!$A$12:$C$2072,3,0) -> 230 | G9: =ROUND(E9*(1-$C$3)/Лист2!$A$6,0) -> 230
B10: T-FL 01060665 | C10: Ограничитель фронтальный Н=60 L=665 | D10: 1 | E10: =VLOOKUP(B10,Аксессуары!$A$105:$F$347,6,0) -> 195 | G10: =ROUND(E10*(1-$C$3)/Лист2!$A$6,0) -> 195
B11: T-TH 01001000 | C11: Ценникодержатель съемный L=1000 | D11: 1 | E11: =Аксессуары!F36 -> 86 | G11: =ROUND(E11*(1-$C$3)/Лист2!$A$6,0) -> 86
B12: T-ST 11137665 | C12: Полка сетчатая L=665 G=370 | D12: 4 | E12: =VLOOKUP(B12,Аксессуары!$A$105:$F$347,6,0) -> 1625 | G12: =ROUND(E12*(1-$C$3)/Лист2!$A$6,0) -> 1625
B13: T-BS 14000370 | C13: Кронштейн полки сетчатой(компл) G=370 | D13: 4 | E13: =VLOOKUP(B13,Аксессуары!$A$105:$F$347,6,0) -> 264 | G13: =ROUND(E13*(1-$C$3)/Лист2!$A$6,0) -> 264
B14: T-TH 0640100 | C14: Ценникодержатель съемный сетчатой полки FRW39 L=1000 | D14: 4 | E14: =Аксессуары!F60 -> 373 | G14: =ROUND(E14*(1-$C$3)/Лист2!$A$6,0) -> 373
B15: T-FL 02040665 | C15: Ограничитель фронтальный полки сетчатой H=40 L=665 | D15: 4 | E15: =VLOOKUP(B15,Аксессуары!$A$105:$F$347,6,0) -> 310 | G15: =ROUND(E15*(1-$C$3)/Лист2!$A$6,0) -> 310
B16: T-BP 13160665 | C16: Панель сетчатая H=600 L=665 | D16: 3 | E16: =VLOOKUP(B16,Аксессуары!$A$105:$F$347,6,0) -> 1120 | G16: =ROUND(E16*(1-$C$3)/Лист2!$A$6,0) -> 1120
B17: T-BP 13120665 | C17: Панель сетчатая H=200 L=665 | D17: 1 | E17: =VLOOKUP(B17,Аксессуары!$A$105:$F$347,6,0) -> 551 | G17: =ROUND(E17*(1-$C$3)/Лист2!$A$6,0) -> 551
B18: T-BT 01000470 | C18: База стеллажа G=470 | D18: 1 | E18: =VLOOKUP(B18,'Детали Praktisch'!$A$12:$C$2072,3,0) -> 1171 | G18: =ROUND(E18*(1-$C$3)/Лист2!$A$6,0) -> 1171
B19: T-LT 02802150 | C19: Стойка 80х30 с двухсторонней перфорацией Н = 2150 | D19: 1 | E19: =VLOOKUP(B19,'Детали Praktisch'!$A$12:$C$2072,3,0) -> 1661 | G19: =ROUND(E19*(1-$C$3)/Лист2!$A$6,0) -> 1661
B20: T-ST 01470665 | C20: Полка G=470 L = 665 | D20: 1 | E20: =VLOOKUP(B20,'Детали Praktisch'!$A$12:$C$2072,3,0) -> 782 | G20: =ROUND(E20*(1-$C$3)/Лист2!$A$6,0) -> 782
B21: 2 | C21: Стеллаж пристенный сетчатый 2150 x 1000 x 470 | F21: =SUMPRODUCT(D22:D33,E22:E33) -> 21546 | H21: =SUMPRODUCT(D22:D33,G22:G33) -> 21546
B22: T-PT 01001000 | C22: Плинтус L = 1000 | D22: 1 | E22: =VLOOKUP(B22,'Детали Praktisch'!$A$12:$C$2072,3,0) -> 287 | G22: =ROUND(E22*(1-$C$3)/Лист2!$A$6,0) -> 287
B23: T-FL 01060100 | C23: Ограничитель фронтальный Н=60 L=1000 | D23: 1 | E23: =VLOOKUP(B23,Аксессуары!$A$105:$F$347,6,0) -> 246 | G23: =ROUND(E23*(1-$C$3)/Лист2!$A$6,0) -> 246
B24: T-TH 01001000 | C24: Ценникодержатель съемный L=1000 | D24: 1 | E24: =Аксессуары!F36 -> 86 | G24: =ROUND(E24*(1-$C$3)/Лист2!$A$6,0) -> 86
B25: T-ST 11137100 | C25: Полка сетчатая L=1000 G=370 | D25: 4 | E25: =VLOOKUP(B25,Аксессуары!$A$105:$F$347,6,0) -> 2032 | G25: =ROUND(E25*(1-$C$3)/Лист2!$A$6,0) -> 2032
B26: T-BS 14000370 | C26: Кронштейн полки сетчатой(компл) G=370 | D26: 4 | E26: =VLOOKUP(B26,Аксессуары!$A$105:$F$347,6,0) -> 264 | G26: =ROUND(E26*(1-$C$3)/Лист2!$A$6,0) -> 264
B27: T-TH 0640100 | C27: Ценникодержатель съемный сетчатой полки FRW39 L=1000 | D27: 4 | E27: =Аксессуары!F60 -> 373 | G27: =ROUND(E27*(1-$C$3)/Лист2!$A$6,0) -> 373
B28: T-FL 02040100 | C28: Ограничитель фронтальный полки сетчатой H=40 L=1000 | D28: 4 | E28: =VLOOKUP(B28,Аксессуары!$A$105:$F$347,6,0) -> 374 | G28: =ROUND(E28*(1-$C$3)/Лист2!$A$6,0) -> 374
B29: T-BP 13160100 | C29: Панель сетчатая H=600 L=1000 | D29: 3 | E29: =VLOOKUP(B29,Аксессуары!$A$105:$F$347,6,0) -> 1401 | G29: =ROUND(E29*(1-$C$3)/Лист2!$A$6,0) -> 1401
B30: T-BP 13120100 | C30: Панель сетчатая H=200 L=1000 | D30: 1 | E30: =VLOOKUP(B30,Аксессуары!$A$105:$F$347,6,0) -> 689 | G30: =ROUND(E30*(1-$C$3)/Лист2!$A$6,0) -> 689
B31: T-BT 01000470 | C31: База стеллажа G=470 | D31: 1 | E31: =VLOOKUP(B31,'Детали Praktisch'!$A$12:$C$2072,3,0) -> 1171 | G31: =ROUND(E31*(1-$C$3)/Лист2!$A$6,0) -> 1171
B32: T-LT 02802150 | C32: Стойка 80х30 с двухсторонней перфорацией Н = 2150 | D32: 1 | E32: =VLOOKUP(B32,'Детали Praktisch'!$A$12:$C$2072,3,0) -> 1661 | G32: =ROUND(E32*(1-$C$3)/Лист2!$A$6,0) -> 1661
B33: T-ST 01471000 | C33: Полка G=470 L = 1000 | D33: 1 | E33: =VLOOKUP(B33,'Детали Praktisch'!$A$12:$C$2072,3,0) -> 1031 | G33: =ROUND(E33*(1-$C$3)/Лист2!$A$6,0) -> 1031
B34: 3 | C34: Стеллаж пристенный сетчатый 2150 x 1250 x 470 | F34: =SUMPRODUCT(D35:D46,E35:E46) -> 24948 | H34: =SUMPRODUCT(D35:D46,G35:G46) -> 24948
B35: T-PT 01001250 | C35: Плинтус L = 1250 | D35: 1 | E35: =VLOOKUP(B35,'Детали Praktisch'!$A$12:$C$2072,3,0) -> 345 | F35: =E35*D35 -> 345 | G35: =ROUND(E35*(1-$C$3)/Лист2!$A$6,0) -> 345
B36: T-FL 01060125 | C36: Ограничитель фронтальный Н=60 L=1250 | D36: 1 | E36: =VLOOKUP(B36,Аксессуары!$A$105:$F$347,6,0) -> 311 | F36: 311 | G36: =ROUND(E36*(1-$C$3)/Лист2!$A$6,0) -> 311
B37: T-TH 01001250 | C37: Ценникодержатель съемный L=1250 | D37: 1 | E37: =Аксессуары!F42 -> 110 | F37: 110 | G37: =ROUND(E37*(1-$C$3)/Лист2!$A$6,0) -> 110
B38: T-ST 11137125 | C38: Полка сетчатая L=1250 G=370 | D38: 4 | E38: =VLOOKUP(B38,Аксессуары!$A$105:$F$347,6,0) -> 2417 | F38: 9668 | G38: =ROUND(E38*(1-$C$3)/Лист2!$A$6,0) -> 2417
B39: T-BS 14000370 | C39: Кронштейн полки сетчатой(компл) G=370 | D39: 4 | E39: =VLOOKUP(B39,Аксессуары!$A$105:$F$347,6,0) -> 264 | F39: 1056 | G39: =ROUND(E39*(1-$C$3)/Лист2!$A$6,0) -> 264
B40: T-TH 0640125 | C40: Ценникодержатель съемный сетчатой полки FRW39 L=1250 | D40: 4 | E40: =Аксессуары!F61 -> 468 | F40: 1872 | G40: =ROUND(E40*(1-$C$3)/Лист2!$A$6,0) -> 468
B41: T-FL 02040125 | C41: Ограничитель фронтальный полки сетчатой H=40 L=1250 | D41: 4 | E41: =VLOOKUP(B41,Аксессуары!$A$105:$F$347,6,0) -> 415 | F41: 1660 | G41: =ROUND(E41*(1-$C$3)/Лист2!$A$6,0) -> 415
B42: T-BP 13160125 | C42: Панель сетчатая H=600 L=1250 | D42: 3 | E42: =VLOOKUP(B42,Аксессуары!$A$105:$F$347,6,0) -> 1685 | F42: 5055 | G42: =ROUND(E42*(1-$C$3)/Лист2!$A$6,0) -> 1685
B43: T-BP 13120125 | C43: Панель сетчатая H=200 L=1250 | D43: 1 | E43: =VLOOKUP(B43,Аксессуары!$A$105:$F$347,6,0) -> 819 | F43: 819 | G43: =ROUND(E43*(1-$C$3)/Лист2!$A$6,0) -> 819
B44: T-BT 01000470 | C44: База стеллажа G=470 | D44: 1 | E44: =VLOOKUP(B44,'Детали Praktisch'!$A$12:$C$2072,3,0) -> 1171 | F44: 1171 | G44: =ROUND(E44*(1-$C$3)/Лист2!$A$6,0) -> 1171
B45: T-LT 02802150 | C45: Стойка 80х30 с двухсторонней перфорацией Н = 2150 | D45: 1 | E45: =VLOOKUP(B45,'Детали Praktisch'!$A$12:$C$2072,3,0) -> 1661 | F45: 1661 | G45: =ROUND(E45*(1-$C$3)/Лист2!$A$6,0) -> 1661
B46: T-ST 01471250 | C46: Полка G=470 L = 1250 | D46: 1 | E46: =VLOOKUP(B46,'Детали Praktisch'!$A$12:$C$2072,3,0) -> 1220 | F46: 1220 | G46: =ROUND(E46*(1-$C$3)/Лист2!$A$6,0) -> 1220
B47: 4 | C47: Стеллаж сетчатый угола внутреннего 2150 x 1022 x 470 | F47: =SUMPRODUCT(D48:D59,E48:E59) -> 18533 | H47: =SUMPRODUCT(D48:D59,G48:G59) -> 18533
B48: T-PT 03000470 | C48: Плинтус угла внутреннего L=470 | D48: 1 | E48: =VLOOKUP(B48,'Детали Praktisch'!$A$12:$C$2072,3,0) -> 203 | G48: =ROUND(E48*(1-$C$3)/Лист2!$A$6,0) -> 203
B49: T-FL 05906047 | C49: Ограничитель фронтальный угла внутр.90гр.Н=60 G=470 | D49: 1 | E49: =VLOOKUP(B49,Аксессуары!$A$105:$F$347,6,0) -> 123 | G49: =ROUND(E49*(1-$C$3)/Лист2!$A$6,0) -> 123
B50: T-TH 01001000 | C50: Ценникодержатель съемный L=1000 | D50: 1 | E50: =Аксессуары!F36 -> 86 | G50: =ROUND(E50*(1-$C$3)/Лист2!$A$6,0) -> 86
B51: T-ST 11159370 | C51: Полка сетч угловая внутр G=370 | D51: 4 | E51: =VLOOKUP(B51,Аксессуары!$A$105:$F$347,6,0) -> 1622 | G51: =ROUND(E51*(1-$C$3)/Лист2!$A$6,0) -> 1622
B52: T-BS 14000370 | C52: Кронштейн полки сетчатой(компл) G=370 | D52: 4 | E52: =VLOOKUP(B52,Аксессуары!$A$105:$F$347,6,0) -> 264 | G52: =ROUND(E52*(1-$C$3)/Лист2!$A$6,0) -> 264
B53: T-FL 02140370 | C53: Ограничитель фронтальный сетчатой полки угла внутр.90гр.Н=40 G=370 | D53: 4 | E53: =VLOOKUP(B53,Аксессуары!$A$105:$F$347,6,0) -> 273 | G53: =ROUND(E53*(1-$C$3)/Лист2!$A$6,0) -> 273
B54: T-TH 0640100 | C54: Ценникодержатель съемный сетчатой полки FRW39 L=1000 | D54: 4 | E54: =Аксессуары!F60 -> 373 | G54: =ROUND(E54*(1-$C$3)/Лист2!$A$6,0) -> 373
B55: T-BP 35900600 | C55: Панель сетчатая угловая внутренняя H=600 | D55: 3 | E55: =VLOOKUP(B55,Аксессуары!$A$105:$F$347,6,0) -> 1185 | G55: =ROUND(E55*(1-$C$3)/Лист2!$A$6,0) -> 1185
B56: T-BP 35900200 | C56: Панель сетчатая угловая внутренняя H=200 | D56: 1 | E56: =VLOOKUP(B56,Аксессуары!$A$105:$F$347,6,0) -> 638 | G56: =ROUND(E56*(1-$C$3)/Лист2!$A$6,0) -> 638
B57: T-BT 01000470 | C57: База стеллажа G=470 | D57: 1 | E57: =VLOOKUP(B57,'Детали Praktisch'!$A$12:$C$2072,3,0) -> 1171 | G57: =ROUND(E57*(1-$C$3)/Лист2!$A$6,0) -> 1171
B58: T-LT 02802150 | C58: Стойка 80х30 с двухсторонней перфорацией Н = 2150 | D58: 1 | E58: =VLOOKUP(B58,'Детали Praktisch'!$A$12:$C$2072,3,0) -> 1661 | G58: =ROUND(E58*(1-$C$3)/Лист2!$A$6,0) -> 1661
B59: T-ST 05000470 | C59: Полка угловая внутренняя G=470 | D59: 1 | E59: =VLOOKUP(B59,'Детали Praktisch'!$A$12:$C$2072,3,0) -> 968 | G59: =ROUND(E59*(1-$C$3)/Лист2!$A$6,0) -> 968
B60: 5 | C60: Стеллаж сетчатый угола внешнего 2150 x 237 x 470 | F60: =SUMPRODUCT(D61:D72,E61:E72) -> 16258 | H60: =SUMPRODUCT(D61:D72,G61:G72) -> 16258
B61: T-PT 04000470 | C61: Плинтус угла внешнего L=470 | D61: 1 | E61: =VLOOKUP(B61,'Детали Praktisch'!$A$12:$C$2072,3,0) -> 301 | F61: =E61*D61 -> 301 | G61: =ROUND(E61*(1-$C$3)/Лист2!$A$6,0) -> 301
B62: T-FL 06906047 | C62: Ограничитель фронтальный угла внешн.90гр.Н=60 G=470 | D62: 1 | E62: =VLOOKUP(B62,Аксессуары!$A$105:$F$347,6,0) -> 244 | F62: 244 | G62: =ROUND(E62*(1-$C$3)/Лист2!$A$6,0) -> 244
B63: T-TH 01001000 | C63: Ценникодержатель съемный L=1000 | D63: 1 | E63: =Аксессуары!F36 -> 86 | F63: 86 | G63: =ROUND(E63*(1-$C$3)/Лист2!$A$6,0) -> 86
B64: T-ST 11169370 | C64: Полка сетч угловая внеш G=370 | D64: 4 | E64: =VLOOKUP(B64,Аксессуары!$A$105:$F$347,6,0) -> 1458 | F64: 5832 | G64: =ROUND(E64*(1-$C$3)/Лист2!$A$6,0) -> 1458
B65: T-BS 14000370 | C65: Кронштейн полки сетчатой(компл) G=370 | D65: 4 | E65: =VLOOKUP(B65,Аксессуары!$A$105:$F$347,6,0) -> 264 | F65: 1056 | G65: =ROUND(E65*(1-$C$3)/Лист2!$A$6,0) -> 264
B66: T-FL 02240370 | C66: Ограничитель фронтальный сетчатой полки угла внешн.90гр.Н=40 G=370 | D66: 4 | E66: =VLOOKUP(B66,Аксессуары!$A$105:$F$347,6,0) -> 343 | F66: 1372 | G66: =ROUND(E66*(1-$C$3)/Лист2!$A$6,0) -> 343
B67: T-TH 0640100 | C67: Ценникодержатель съемный сетчатой полки FRW39 L=1000 | D67: 4 | E67: =Аксессуары!F60 -> 373 | F67: 1492 | G67: =ROUND(E67*(1-$C$3)/Лист2!$A$6,0) -> 373
B68: T-BP 36900600 | C68: Панель сетчатая угловая внешняя H=600 | D68: 3 | E68: =VLOOKUP(B68,Аксессуары!$A$105:$F$347,6,0) -> 598 | F68: 1794 | G68: =ROUND(E68*(1-$C$3)/Лист2!$A$6,0) -> 598
B69: T-BP 36900200 | C69: Панель сетчатая угловая внешняя H=200 | D69: 1 | E69: =VLOOKUP(B69,Аксессуары!$A$105:$F$347,6,0) -> 321 | F69: 321 | G69: =ROUND(E69*(1-$C$3)/Лист2!$A$6,0) -> 321
B70: T-BT 01000470 | C70: База стеллажа G=470 | D70: 1 | E70: =VLOOKUP(B70,'Детали Praktisch'!$A$12:$C$2072,3,0) -> 1171 | F70: 1171 | G70: =ROUND(E70*(1-$C$3)/Лист2!$A$6,0) -> 1171
B71: T-LT 02802150 | C71: Стойка 80х30 с двухсторонней перфорацией Н = 2150 | D71: 1 | E71: =VLOOKUP(B71,'Детали Praktisch'!$A$12:$C$2072,3,0) -> 1661 | F71: 1661 | G71: =ROUND(E71*(1-$C$3)/Лист2!$A$6,0) -> 1661
B72: T-ST 06000470 | C72: Полка угловая внешняя G=470 | D72: 1 | E72: =VLOOKUP(B72,'Детали Praktisch'!$A$12:$C$2072,3,0) -> 928 | F72: 928 | G72: =ROUND(E72*(1-$C$3)/Лист2!$A$6,0) -> 928
B73: 6 | C73: Стеллаж пристенный сетчатый, полки сплошные 2150 x 665 x 470
B74: T-PT 01000665 | C74: Плинтус L = 665 | D74: 1 | E74: =VLOOKUP(B74,'Детали Praktisch'!$A$12:$C$2072,3,0) -> 230 | F74: =SUMPRODUCT(D74:D83,E74:E83) -> 12784 | G74: =ROUND(E74*(1-$C$3)/Лист2!$A$6,0) -> 230 | H74: =SUMPRODUCT(D74:D83,G74:G83) -> 12784
B75: T-ST 01370665 | C75: Полка G=370 L = 665 | D75: 4 | E75: =VLOOKUP(B75,'Детали Praktisch'!$A$12:$C$2072,3,0) -> 634 | G75: =ROUND(E75*(1-$C$3)/Лист2!$A$6,0) -> 634
B76: T-BS 01000370 | C76: Кронштейн (комплект) G = 370 | D76: 4 | E76: =VLOOKUP(B76,'Детали Praktisch'!$A$12:$C$2072,3,0) -> 272 | G76: =ROUND(E76*(1-$C$3)/Лист2!$A$6,0) -> 272
B77: T-FL 01060665 | C77: Ограничитель фронтальный Н=60 L=665 | D77: 5 | E77: =VLOOKUP(B77,Аксессуары!$A$105:$F$347,6,0) -> 195 | G77: =ROUND(E77*(1-$C$3)/Лист2!$A$6,0) -> 195
B78: T-TH 01001000 | C78: Ценникодержатель съемный L=1000 | D78: 5 | E78: =Аксессуары!F36 -> 86 | G78: =ROUND(E78*(1-$C$3)/Лист2!$A$6,0) -> 86
B79: T-BP 13160665 | C79: Панель сетчатая H=600 L=665 | D79: 3 | E79: =VLOOKUP(B79,Аксессуары!$A$105:$F$347,6,0) -> 1120 | G79: =ROUND(E79*(1-$C$3)/Лист2!$A$6,0) -> 1120
B80: T-BP 13120665 | C80: Панель сетчатая H=200 L=665 | D80: 1 | E80: =VLOOKUP(B80,Аксессуары!$A$105:$F$347,6,0) -> 551 | G80: =ROUND(E80*(1-$C$3)/Лист2!$A$6,0) -> 551
B81: T-BT 01000470 | C81: База стеллажа G=470 | D81: 1 | E81: =VLOOKUP(B81,'Детали Praktisch'!$A$12:$C$2072,3,0) -> 1171 | G81: =ROUND(E81*(1-$C$3)/Лист2!$A$6,0) -> 1171
B82: T-LT 02802150 | C82: Стойка 80х30 с двухсторонней перфорацией Н = 2150 | D82: 1 | E82: =VLOOKUP(B82,'Детали Praktisch'!$A$12:$C$2072,3,0) -> 1661 | G82: =ROUND(E82*(1-$C$3)/Лист2!$A$6,0) -> 1661
B83: T-ST 01470665 | C83: Полка G=470 L = 665 | D83: 1 | E83: =VLOOKUP(B83,'Детали Praktisch'!$A$12:$C$2072,3,0) -> 782 | G83: =ROUND(E83*(1-$C$3)/Лист2!$A$6,0) -> 782
B84: 7 | C84: Стеллаж пристенный сетчатый, полки сплошные 2150 x 1000 x 470 | F84: =SUMPRODUCT(D85:D94,E85:E94) -> 15462 | H84: =SUMPRODUCT(D85:D94,G85:G94) -> 15462
B85: T-PT 01001000 | C85: Плинтус L = 1000 | D85: 1 | E85: =VLOOKUP(B85,'Детали Praktisch'!$A$12:$C$2072,3,0) -> 287 | G85: =ROUND(E85*(1-$C$3)/Лист2!$A$6,0) -> 287
B86: T-ST 01371000 | C86: Полка G=370 L = 1000 | D86: 4 | E86: =VLOOKUP(B86,'Детали Praktisch'!$A$12:$C$2072,3,0) -> 918 | G86: =ROUND(E86*(1-$C$3)/Лист2!$A$6,0) -> 918
B87: T-BS 01000370 | C87: Кронштейн (комплект) G = 370 | D87: 4 | E87: =VLOOKUP(B87,'Детали Praktisch'!$A$12:$C$2072,3,0) -> 272 | G87: =ROUND(E87*(1-$C$3)/Лист2!$A$6,0) -> 272
B88: T-FL 01060100 | C88: Ограничитель фронтальный Н=60 L=1000 | D88: 5 | E88: =VLOOKUP(B88,Аксессуары!$A$105:$F$347,6,0) -> 246 | G88: =ROUND(E88*(1-$C$3)/Лист2!$A$6,0) -> 246
B89: T-TH 01001000 | C89: Ценникодержатель съемный L=1000 | D89: 5 | E89: =Аксессуары!F36 -> 86 | G89: =ROUND(E89*(1-$C$3)/Лист2!$A$6,0) -> 86
B90: T-BP 13160100 | C90: Панель сетчатая H=600 L=1000 | D90: 3 | E90: =VLOOKUP(B90,Аксессуары!$A$105:$F$347,6,0) -> 1401 | G90: =ROUND(E90*(1-$C$3)/Лист2!$A$6,0) -> 1401
B91: T-BP 13120100 | C91: Панель сетчатая H=200 L=1000 | D91: 1 | E91: =VLOOKUP(B91,Аксессуары!$A$105:$F$347,6,0) -> 689 | G91: =ROUND(E91*(1-$C$3)/Лист2!$A$6,0) -> 689
B92: T-BT 01000470 | C92: База стеллажа G=470 | D92: 1 | E92: =VLOOKUP(B92,'Детали Praktisch'!$A$12:$C$2072,3,0) -> 1171 | G92: =ROUND(E92*(1-$C$3)/Лист2!$A$6,0) -> 1171
B93: T-LT 02802150 | C93: Стойка 80х30 с двухсторонней перфорацией Н = 2150 | D93: 1 | E93: =VLOOKUP(B93,'Детали Praktisch'!$A$12:$C$2072,3,0) -> 1661 | G93: =ROUND(E93*(1-$C$3)/Лист2!$A$6,0) -> 1661
B94: T-ST 01471000 | C94: Полка G=470 L = 1000 | D94: 1 | E94: =VLOOKUP(B94,'Детали Praktisch'!$A$12:$C$2072,3,0) -> 1031 | G94: =ROUND(E94*(1-$C$3)/Лист2!$A$6,0) -> 1031
B95: 8 | C95: Стеллаж пристенный сетчатый, полки сплошные 2150 x 1250 x 470 | F95: =SUMPRODUCT(D96:D105,E96:E105) -> 17440 | H95: =SUMPRODUCT(D96:D105,G96:G105) -> 17440
B96: T-PT 01001250 | C96: Плинтус L = 1250 | D96: 1 | E96: =VLOOKUP(B96,'Детали Praktisch'!$A$12:$C$2072,3,0) -> 345 | G96: =ROUND(E96*(1-$C$3)/Лист2!$A$6,0) -> 345
B97: T-ST 01371250 | C97: Полка G=370 L = 1250 | D97: 4 | E97: =VLOOKUP(B97,'Детали Praktisch'!$A$12:$C$2072,3,0) -> 994 | G97: =ROUND(E97*(1-$C$3)/Лист2!$A$6,0) -> 994
B98: T-BS 01000370 | C98: Кронштейн (комплект) G = 370 | D98: 4 | E98: =VLOOKUP(B98,'Детали Praktisch'!$A$12:$C$2072,3,0) -> 272 | G98: =ROUND(E98*(1-$C$3)/Лист2!$A$6,0) -> 272
B99: T-FL 01060125 | C99: Ограничитель фронтальный Н=60 L=1250 | D99: 5 | E99: =VLOOKUP(B99,Аксессуары!$A$105:$F$347,6,0) -> 311 | G99: =ROUND(E99*(1-$C$3)/Лист2!$A$6,0) -> 311
B100: T-TH 01001250 | C100: Ценникодержатель съемный L=1250 | D100: 5 | E100: =Аксессуары!F42 -> 110 | G100: =ROUND(E100*(1-$C$3)/Лист2!$A$6,0) -> 110
B101: T-BP 13160125 | C101: Панель сетчатая H=600 L=1250 | D101: 3 | E101: =VLOOKUP(B101,Аксессуары!$A$105:$F$347,6,0) -> 1685 | G101: =ROUND(E101*(1-$C$3)/Лист2!$A$6,0) -> 1685
B102: T-BP 13120125 | C102: Панель сетчатая H=200 L=1250 | D102: 1 | E102: =VLOOKUP(B102,Аксессуары!$A$105:$F$347,6,0) -> 819 | G102: =ROUND(E102*(1-$C$3)/Лист2!$A$6,0) -> 819
B103: T-BT 01000470 | C103: База стеллажа G=470 | D103: 1 | E103: =VLOOKUP(B103,'Детали Praktisch'!$A$12:$C$2072,3,0) -> 1171 | G103: =ROUND(E103*(1-$C$3)/Лист2!$A$6,0) -> 1171
B104: T-LT 02802150 | C104: Стойка 80х30 с двухсторонней перфорацией Н = 2150 | D104: 1 | E104: =VLOOKUP(B104,'Детали Praktisch'!$A$12:$C$2072,3,0) -> 1661 | G104: =ROUND(E104*(1-$C$3)/Лист2!$A$6,0) -> 1661
B105: T-ST 01471250 | C105: Полка G=470 L = 1250 | D105: 1 | E105: =VLOOKUP(B105,'Детали Praktisch'!$A$12:$C$2072,3,0) -> 1220 | G105: =ROUND(E105*(1-$C$3)/Лист2!$A$6,0) -> 1220
B106: 9 | C106: Стеллаж пристенный сетчатый с доп. стойкой 2150 x 665 x 470 | F106: =SUMPRODUCT(D107:D115,E107:E115) -> 21025 | H106: =SUMPRODUCT(D107:D115,G107:G115) -> 21025
B107: T-PT 09000665 | C107: Плинтус стеллажа с доп. стойкой L=665 | D107: 1 | E107: =VLOOKUP(B107,'Детали Praktisch'!$A$12:$C$2072,3,0) -> 257 | G107: =ROUND(E107*(1-$C$3)/Лист2!$A$6,0) -> 257
B108: T-ST 11147665 | C108: Полка сетчатая L=665 G=470 | D108: 5 | E108: =VLOOKUP(B108,Аксессуары!$A$105:$F$347,6,0) -> 1908 | G108: =ROUND(E108*(1-$C$3)/Лист2!$A$6,0) -> 1908
B109: T-BS 17000470 | C109: Кронштейн двухст для сетчатой полки стеллажа с доп стойк (комп) G=470 | D109: 5 | E109: =VLOOKUP(B109,Аксессуары!$A$105:$F$347,6,0) -> 480 | G109: =ROUND(E109*(1-$C$3)/Лист2!$A$6,0) -> 480
B110: T-BP 13160665 | C110: Панель сетчатая H=600 L=665 | D110: 3 | E110: =VLOOKUP(B110,Аксессуары!$A$105:$F$347,6,0) -> 1120 | G110: =ROUND(E110*(1-$C$3)/Лист2!$A$6,0) -> 1120
B111: T-BP 13120665 | C111: Панель сетчатая H=200 L=665 | D111: 1 | E111: =VLOOKUP(B111,Аксессуары!$A$105:$F$347,6,0) -> 551 | G111: =ROUND(E111*(1-$C$3)/Лист2!$A$6,0) -> 551
B112: T-LT 62302150 | C112: Стойка дополнительная 30х30 с двухсторонней перфорацией H=2150 | D112: 1 | E112: =VLOOKUP(B112,'Детали Praktisch'!$A$12:$C$2072,3,0) -> 1303 | G112: =ROUND(E112*(1-$C$3)/Лист2!$A$6,0) -> 1303
B113: T-BT 01000470 | C113: База стеллажа G=470 | D113: 1 | E113: =VLOOKUP(B113,'Детали Praktisch'!$A$12:$C$2072,3,0) -> 1171 | G113: =ROUND(E113*(1-$C$3)/Лист2!$A$6,0) -> 1171
B114: T-LT 02802150 | C114: Стойка 80х30 с двухсторонней перфорацией Н = 2150 | D114: 1 | E114: =VLOOKUP(B114,'Детали Praktisch'!$A$12:$C$2072,3,0) -> 1661 | G114: =ROUND(E114*(1-$C$3)/Лист2!$A$6,0) -> 1661
B115: T-ST 01470665 | C115: Полка G=470 L = 665 | D115: 1 | E115: =VLOOKUP(B115,'Детали Praktisch'!$A$12:$C$2072,3,0) -> 782 | G115: =ROUND(E115*(1-$C$3)/Лист2!$A$6,0) -> 782
B116: 10 | C116: Стеллаж пристенный сетчатый с доп. стойкой 2150 x 1000 x 470 | F116: =SUMPRODUCT(D117:D125,E117:E125) -> 24710 | H116: =SUMPRODUCT(D117:D125,G117:G125) -> 24710
B117: T-PT 09001000 | C117: Плинтус стеллажа с дополн стойкой L=1000 | D117: 1 | E117: =VLOOKUP(B117,'Детали Praktisch'!$A$12:$C$2072,3,0) -> 317 | G117: =ROUND(E117*(1-$C$3)/Лист2!$A$6,0) -> 317
B118: T-ST 11147100 | C118: Полка сетчатая L=1000 G=470 | D118: 5 | E118: =VLOOKUP(B118,Аксессуары!$A$105:$F$347,6,0) -> 2387 | G118: =ROUND(E118*(1-$C$3)/Лист2!$A$6,0) -> 2387
B119: T-BS 17000470 | C119: Кронштейн двухст для сетчатой полки стеллажа с доп стойк (комп) G=470 | D119: 5 | E119: =VLOOKUP(B119,Аксессуары!$A$105:$F$347,6,0) -> 480 | G119: =ROUND(E119*(1-$C$3)/Лист2!$A$6,0) -> 480
B120: T-BP 13160100 | C120: Панель сетчатая H=600 L=1000 | D120: 3 | E120: =VLOOKUP(B120,Аксессуары!$A$105:$F$347,6,0) -> 1401 | G120: =ROUND(E120*(1-$C$3)/Лист2!$A$6,0) -> 1401
B121: T-BP 13120100 | C121: Панель сетчатая H=200 L=1000 | D121: 1 | E121: =VLOOKUP(B121,Аксессуары!$A$105:$F$347,6,0) -> 689 | G121: =ROUND(E121*(1-$C$3)/Лист2!$A$6,0) -> 689
B122: T-LT 62302150 | C122: Стойка дополнительная 30х30 с двухсторонней перфорацией H=2150 | D122: 1 | E122: =VLOOKUP(B122,'Детали Praktisch'!$A$12:$C$2072,3,0) -> 1303 | G122: =ROUND(E122*(1-$C$3)/Лист2!$A$6,0) -> 1303
B123: T-BT 01000470 | C123: База стеллажа G=470 | D123: 1 | E123: =VLOOKUP(B123,'Детали Praktisch'!$A$12:$C$2072,3,0) -> 1171 | G123: =ROUND(E123*(1-$C$3)/Лист2!$A$6,0) -> 1171
B124: T-LT 02802150 | C124: Стойка 80х30 с двухсторонней перфорацией Н = 2150 | D124: 1 | E124: =VLOOKUP(B124,'Детали Praktisch'!$A$12:$C$2072,3,0) -> 1661 | G124: =ROUND(E124*(1-$C$3)/Лист2!$A$6,0) -> 1661
B125: T-ST 01471000 | C125: Полка G=470 L = 1000 | D125: 1 | E125: =VLOOKUP(B125,'Детали Praktisch'!$A$12:$C$2072,3,0) -> 1031 | G125: =ROUND(E125*(1-$C$3)/Лист2!$A$6,0) -> 1031
B126: 11 | C126: Стеллаж пристенный сетчатый с доп. стойкой 2150 x 1250 x 470 | F126: =SUMPRODUCT(E127:E135,D127:D135) -> 28225 | H126: =SUMPRODUCT(G127:G135,D127:D135) -> 28225
B127: T-PT 09001250 | C127: Плинтус стеллажа с дополн стойкой L=1250 | D127: 1 | E127: =VLOOKUP(B127,'Детали Praktisch'!$A$12:$C$2072,3,0) -> 391 | G127: =ROUND(E127*(1-$C$3)/Лист2!$A$6,0) -> 391
B128: T-ST 11147125 | C128: Полка сетчатая L=1250 G=470 | D128: 5 | E128: =VLOOKUP(B128,Аксессуары!$A$105:$F$347,6,0) -> 2841 | G128: =ROUND(E128*(1-$C$3)/Лист2!$A$6,0) -> 2841
B129: T-BS 17000470 | C129: Кронштейн двухст для сетчатой полки стеллажа с доп стойк (комп) G=470 | D129: 5 | E129: =VLOOKUP(B129,Аксессуары!$A$105:$F$347,6,0) -> 480 | G129: =ROUND(E129*(1-$C$3)/Лист2!$A$6,0) -> 480
B130: T-BP 13160125 | C130: Панель сетчатая H=600 L=1250 | D130: 3 | E130: =VLOOKUP(B130,Аксессуары!$A$105:$F$347,6,0) -> 1685 | G130: =ROUND(E130*(1-$C$3)/Лист2!$A$6,0) -> 1685
B131: T-BP 13120125 | C131: Панель сетчатая H=200 L=1250 | D131: 1 | E131: =VLOOKUP(B131,Аксессуары!$A$105:$F$347,6,0) -> 819 | G131: =ROUND(E131*(1-$C$3)/Лист2!$A$6,0) -> 819
B132: T-LT 62302150 | C132: Стойка дополнительная 30х30 с двухсторонней перфорацией H=2150 | D132: 1 | E132: =VLOOKUP(B132,'Детали Praktisch'!$A$12:$C$2072,3,0) -> 1303 | G132: =ROUND(E132*(1-$C$3)/Лист2!$A$6,0) -> 1303
B133: T-BT 01000470 | C133: База стеллажа G=470 | D133: 1 | E133: =VLOOKUP(B133,'Детали Praktisch'!$A$12:$C$2072,3,0) -> 1171 | G133: =ROUND(E133*(1-$C$3)/Лист2!$A$6,0) -> 1171
B134: T-LT 02802150 | C134: Стойка 80х30 с двухсторонней перфорацией Н = 2150 | D134: 1 | E134: =VLOOKUP(B134,'Детали Praktisch'!$A$12:$C$2072,3,0) -> 1661 | G134: =ROUND(E134*(1-$C$3)/Лист2!$A$6,0) -> 1661
B135: T-ST 01471250 | C135: Полка G=470 L = 1250 | D135: 1 | E135: =VLOOKUP(B135,'Детали Praktisch'!$A$12:$C$2072,3,0) -> 1220 | G135: =ROUND(E135*(1-$C$3)/Лист2!$A$6,0) -> 1220
B136: 12 | C136: Стеллаж пристенный сетчатый с доп. стойкой, полки сплошные 2150 x 665 x 470 | F136: =SUMPRODUCT(D137:D145,E137:E145) -> 15325 | H136: =SUMPRODUCT(D137:D145,G137:G145) -> 15325
B137: T-PT 09000665 | C137: Плинтус стеллажа с доп. стойкой L=665 | D137: 1 | E137: =VLOOKUP(B137,'Детали Praktisch'!$A$12:$C$2072,3,0) -> 257 | G137: =ROUND(E137*(1-$C$3)/Лист2!$A$6,0) -> 257
B138: T-ST 01470665 | C138: Полка G=470 L = 665 | D138: 5 | E138: =VLOOKUP(B138,'Детали Praktisch'!$A$12:$C$2072,3,0) -> 782 | G138: =ROUND(E138*(1-$C$3)/Лист2!$A$6,0) -> 782
B139: T-BS 13000470 | C139: Кронштейн двухст для стеллажа с доп стойк (комп) G=470 | D139: 5 | E139: =VLOOKUP(B139,'Детали Praktisch'!$A$12:$C$2072,3,0) -> 466 | G139: =ROUND(E139*(1-$C$3)/Лист2!$A$6,0) -> 466
B140: T-BP 13160665 | C140: Панель сетчатая H=600 L=665 | D140: 3 | E140: =VLOOKUP(B140,Аксессуары!$A$105:$F$347,6,0) -> 1120 | G140: =ROUND(E140*(1-$C$3)/Лист2!$A$6,0) -> 1120
B141: T-BP 13120665 | C141: Панель сетчатая H=200 L=665 | D141: 1 | E141: =VLOOKUP(B141,Аксессуары!$A$105:$F$347,6,0) -> 551 | G141: =ROUND(E141*(1-$C$3)/Лист2!$A$6,0) -> 551
B142: T-LT 62302150 | C142: Стойка дополнительная 30х30 с двухсторонней перфорацией H=2150 | D142: 1 | E142: =VLOOKUP(B142,'Детали Praktisch'!$A$12:$C$2072,3,0) -> 1303 | G142: =ROUND(E142*(1-$C$3)/Лист2!$A$6,0) -> 1303
B143: T-BT 01000470 | C143: База стеллажа G=470 | D143: 1 | E143: =VLOOKUP(B143,'Детали Praktisch'!$A$12:$C$2072,3,0) -> 1171 | G143: =ROUND(E143*(1-$C$3)/Лист2!$A$6,0) -> 1171
B144: T-LT 02802150 | C144: Стойка 80х30 с двухсторонней перфорацией Н = 2150 | D144: 1 | E144: =VLOOKUP(B144,'Детали Praktisch'!$A$12:$C$2072,3,0) -> 1661 | G144: =ROUND(E144*(1-$C$3)/Лист2!$A$6,0) -> 1661
B145: T-ST 01470665 | C145: Полка G=470 L = 665 | D145: 1 | E145: =VLOOKUP(B145,'Детали Praktisch'!$A$12:$C$2072,3,0) -> 782 | G145: =ROUND(E145*(1-$C$3)/Лист2!$A$6,0) -> 782
B146: 13 | C146: Стеллаж пристенный сетчатый с доп. стойкой, полки сплошные 2150 x 1000 x 470 | F146: =SUMPRODUCT(D147:D155,E147:E155) -> 17860 | H146: =SUMPRODUCT(D147:D155,G147:G155) -> 17860
B147: T-PT 09001000 | C147: Плинтус стеллажа с дополн стойкой L=1000 | D147: 1 | E147: =VLOOKUP(B147,'Детали Praktisch'!$A$12:$C$2072,3,0) -> 317 | G147: =ROUND(E147*(1-$C$3)/Лист2!$A$6,0) -> 317
B148: T-ST 01471000 | C148: Полка G=470 L = 1000 | D148: 5 | E148: =VLOOKUP(B148,'Детали Praktisch'!$A$12:$C$2072,3,0) -> 1031 | G148: =ROUND(E148*(1-$C$3)/Лист2!$A$6,0) -> 1031
B149: T-BS 13000470 | C149: Кронштейн двухст для стеллажа с доп стойк (комп) G=470 | D149: 5 | E149: =VLOOKUP(B149,'Детали Praktisch'!$A$12:$C$2072,3,0) -> 466 | G149: =ROUND(E149*(1-$C$3)/Лист2!$A$6,0) -> 466
B150: T-BP 13160100 | C150: Панель сетчатая H=600 L=1000 | D150: 3 | E150: =VLOOKUP(B150,Аксессуары!$A$105:$F$347,6,0) -> 1401 | G150: =ROUND(E150*(1-$C$3)/Лист2!$A$6,0) -> 1401
B151: T-BP 13120100 | C151: Панель сетчатая H=200 L=1000 | D151: 1 | E151: =VLOOKUP(B151,Аксессуары!$A$105:$F$347,6,0) -> 689 | G151: =ROUND(E151*(1-$C$3)/Лист2!$A$6,0) -> 689
B152: T-LT 62302150 | C152: Стойка дополнительная 30х30 с двухсторонней перфорацией H=2150 | D152: 1 | E152: =VLOOKUP(B152,'Детали Praktisch'!$A$12:$C$2072,3,0) -> 1303 | G152: =ROUND(E152*(1-$C$3)/Лист2!$A$6,0) -> 1303
B153: T-BT 01000470 | C153: База стеллажа G=470 | D153: 1 | E153: =VLOOKUP(B153,'Детали Praktisch'!$A$12:$C$2072,3,0) -> 1171 | G153: =ROUND(E153*(1-$C$3)/Лист2!$A$6,0) -> 1171
B154: T-LT 02802150 | C154: Стойка 80х30 с двухсторонней перфорацией Н = 2150 | D154: 1 | E154: =VLOOKUP(B154,'Детали Praktisch'!$A$12:$C$2072,3,0) -> 1661 | G154: =ROUND(E154*(1-$C$3)/Лист2!$A$6,0) -> 1661
B155: T-ST 01471000 | C155: Полка G=470 L = 1000 | D155: 1 | E155: =VLOOKUP(B155,'Детали Praktisch'!$A$12:$C$2072,3,0) -> 1031 | G155: =ROUND(E155*(1-$C$3)/Лист2!$A$6,0) -> 1031
B156: 14 | C156: Стеллаж пристенный сетчатый с доп. стойкой, полки сплошные 2150 x 1250 x 470 | F156: =SUMPRODUCT(D157:D165,E157:E165) -> 20050 | H156: =SUMPRODUCT(D157:D165,G157:G165) -> 20050
B157: T-PT 09001250 | C157: Плинтус стеллажа с дополн стойкой L=1250 | D157: 1 | E157: =VLOOKUP(B157,'Детали Praktisch'!$A$12:$C$2072,3,0) -> 391 | G157: =ROUND(E157*(1-$C$3)/Лист2!$A$6,0) -> 391
B158: T-ST 01471250 | C158: Полка G=470 L = 1250 | D158: 5 | E158: =VLOOKUP(B158,'Детали Praktisch'!$A$12:$C$2072,3,0) -> 1220 | G158: =ROUND(E158*(1-$C$3)/Лист2!$A$6,0) -> 1220
B159: T-BS 13000470 | C159: Кронштейн двухст для стеллажа с доп стойк (комп) G=470 | D159: 5 | E159: =VLOOKUP(B159,'Детали Praktisch'!$A$12:$C$2072,3,0) -> 466 | G159: =ROUND(E159*(1-$C$3)/Лист2!$A$6,0) -> 466
B160: T-BP 13160125 | C160: Панель сетчатая H=600 L=1250 | D160: 3 | E160: =VLOOKUP(B160,Аксессуары!$A$105:$F$347,6,0) -> 1685 | G160: =ROUND(E160*(1-$C$3)/Лист2!$A$6,0) -> 1685
B161: T-BP 13120125 | C161: Панель сетчатая H=200 L=1250 | D161: 1 | E161: =VLOOKUP(B161,Аксессуары!$A$105:$F$347,6,0) -> 819 | G161: =ROUND(E161*(1-$C$3)/Лист2!$A$6,0) -> 819
B162: T-LT 62302150 | C162: Стойка дополнительная 30х30 с двухсторонней перфорацией H=2150 | D162: 1 | E162: =VLOOKUP(B162,'Детали Praktisch'!$A$12:$C$2072,3,0) -> 1303 | G162: =ROUND(E162*(1-$C$3)/Лист2!$A$6,0) -> 1303
B163: T-BT 01000470 | C163: База стеллажа G=470 | D163: 1 | E163: =VLOOKUP(B163,'Детали Praktisch'!$A$12:$C$2072,3,0) -> 1171 | G163: =ROUND(E163*(1-$C$3)/Лист2!$A$6,0) -> 1171
B164: T-LT 02802150 | C164: Стойка 80х30 с двухсторонней перфорацией Н = 2150 | D164: 1 | E164: =VLOOKUP(B164,'Детали Praktisch'!$A$12:$C$2072,3,0) -> 1661 | G164: =ROUND(E164*(1-$C$3)/Лист2!$A$6,0) -> 1661
B165: T-ST 01471250 | C165: Полка G=470 L = 1250 | D165: 1 | E165: =VLOOKUP(B165,'Детали Praktisch'!$A$12:$C$2072,3,0) -> 1220 | G165: =ROUND(E165*(1-$C$3)/Лист2!$A$6,0) -> 1220
B166: 15 | C166: Стеллаж островной сетчатый (панель центральная) 1650 x 665 x 470 | F166: =SUMPRODUCT(D167:D176,E167:E176) -> 20612 | H166: =SUMPRODUCT(D167:D176,G167:G176) -> 20612
B167: T-PT 01000665 | C167: Плинтус L = 665 | D167: 2 | E167: =VLOOKUP(B167,'Детали Praktisch'!$A$12:$C$2072,3,0) -> 230 | G167: =ROUND(E167*(1-$C$3)/Лист2!$A$6,0) -> 230
B168: T-ST 11037665 | C168: Полка сетч для центр панели L=665 G=370 | D168: 6 | E168: =VLOOKUP(B168,Аксессуары!$A$105:$F$347,6,0) -> 1631 | G168: =ROUND(E168*(1-$C$3)/Лист2!$A$6,0) -> 1631
B169: T-BS 14000370 | C169: Кронштейн полки сетчатой(компл) G=370 | D169: 6 | E169: =VLOOKUP(B169,Аксессуары!$A$105:$F$347,6,0) -> 264 | G169: =ROUND(E169*(1-$C$3)/Лист2!$A$6,0) -> 264
B170: T-ST 11308665 | C170: Полка-проставка базов к панели сетчат центр L=665 | D170: 1 | E170: =VLOOKUP(B170,Аксессуары!$A$105:$F$347,6,0) -> 382 | G170: =ROUND(E170*(1-$C$3)/Лист2!$A$6,0) -> 382
B171: T-BP 13060665 | C171: Панель сетчатая центральная H=600 L=665 | D171: 2 | E171: =VLOOKUP(B171,Аксессуары!$A$105:$F$347,6,0) -> 1130 | G171: =ROUND(E171*(1-$C$3)/Лист2!$A$6,0) -> 1130
B172: T-BP 13030665 | C172: Панель сетчатая центральная H=300 L=665 | D172: 1 | E172: =VLOOKUP(B172,Аксессуары!$A$105:$F$347,6,0) -> 755 | G172: =ROUND(E172*(1-$C$3)/Лист2!$A$6,0) -> 755
B173: T-BT 01000470 | C173: База стеллажа G=470 | D173: 2 | E173: =VLOOKUP(B173,'Детали Praktisch'!$A$12:$C$2072,3,0) -> 1171 | G173: =ROUND(E173*(1-$C$3)/Лист2!$A$6,0) -> 1171
B174: T-LT 02801650 | C174: Стойка 80х30 с двухсторонней перфорацией Н = 1650 | D174: 1 | E174: =VLOOKUP(B174,'Детали Praktisch'!$A$12:$C$2072,3,0) -> 1361 | G174: =ROUND(E174*(1-$C$3)/Лист2!$A$6,0) -> 1361
B175: N-LC 00003080 | C175: Заглушка стойки 30х80 | D175: 1 | E175: =VLOOKUP(B175,'Детали Praktisch'!$A$12:$C$2072,3,0) -> 118 | G175: =ROUND(E175*(1-$C$3)/Лист2!$A$6,0) -> 118
B176: T-ST 01470665 | C176: Полка G=470 L = 665 | D176: 2 | E176: =VLOOKUP(B176,'Детали Praktisch'!$A$12:$C$2072,3,0) -> 782 | G176: =ROUND(E176*(1-$C$3)/Лист2!$A$6,0) -> 782
B177: 16 | C177: Стеллаж островной сетчатый (панель центральная) 1650 x 1000 x 470 | F177: =SUMPRODUCT(D178:D187,E178:E187) -> 24569 | H177: =SUMPRODUCT(D178:D187,G178:G187) -> 24569
B178: T-PT 01001000 | C178: Плинтус L = 1000 | D178: 2 | E178: =VLOOKUP(B178,'Детали Praktisch'!$A$12:$C$2072,3,0) -> 287 | G178: =ROUND(E178*(1-$C$3)/Лист2!$A$6,0) -> 287
B179: T-ST 11037100 | C179: Полка сетч для центр панели L=1000 G=370 | D179: 6 | E179: =VLOOKUP(B179,Аксессуары!$A$105:$F$347,6,0) -> 2039 | G179: =ROUND(E179*(1-$C$3)/Лист2!$A$6,0) -> 2039
B180: T-BS 14000370 | C180: Кронштейн полки сетчатой(компл) G=370 | D180: 6 | E180: =VLOOKUP(B180,Аксессуары!$A$105:$F$347,6,0) -> 264 | G180: =ROUND(E180*(1-$C$3)/Лист2!$A$6,0) -> 264
B181: T-ST 11308100 | C181: Полка-проставка базов к панели сетчат центр L=1000 | D181: 1 | E181: =VLOOKUP(B181,Аксессуары!$A$105:$F$347,6,0) -> 525 | G181: =ROUND(E181*(1-$C$3)/Лист2!$A$6,0) -> 525
B182: T-BP 13060100 | C182: Панель сетчатая центральная H=600 L=1000 | D182: 2 | E182: =VLOOKUP(B182,Аксессуары!$A$105:$F$347,6,0) -> 1411 | G182: =ROUND(E182*(1-$C$3)/Лист2!$A$6,0) -> 1411
B183: T-BP 13030100 | C183: Панель сетчатая центральная H=300 L=1000 | D183: 1 | E183: =VLOOKUP(B183,Аксессуары!$A$105:$F$347,6,0) -> 947 | G183: =ROUND(E183*(1-$C$3)/Лист2!$A$6,0) -> 947
B184: T-BT 01000470 | C184: База стеллажа G=470 | D184: 2 | E184: =VLOOKUP(B184,'Детали Praktisch'!$A$12:$C$2072,3,0) -> 1171 | G184: =ROUND(E184*(1-$C$3)/Лист2!$A$6,0) -> 1171
B185: T-LT 02801650 | C185: Стойка 80х30 с двухсторонней перфорацией Н = 1650 | D185: 1 | E185: =VLOOKUP(B185,'Детали Praktisch'!$A$12:$C$2072,3,0) -> 1361 | G185: =ROUND(E185*(1-$C$3)/Лист2!$A$6,0) -> 1361
B186: N-LC 00003080 | C186: Заглушка стойки 30х80 | D186: 1 | E186: =VLOOKUP(B186,'Детали Praktisch'!$A$12:$C$2072,3,0) -> 118 | G186: =ROUND(E186*(1-$C$3)/Лист2!$A$6,0) -> 118
B187: T-ST 01471000 | C187: Полка G=470 L = 1000 | D187: 2 | E187: =VLOOKUP(B187,'Детали Praktisch'!$A$12:$C$2072,3,0) -> 1031 | G187: =ROUND(E187*(1-$C$3)/Лист2!$A$6,0) -> 1031
B188: 17 | C188: Стеллаж островной сетчатый (панель центральная) 1650 x 1250 x 470 | F188: =SUMPRODUCT(D189:D198,E189:E198) -> 28207 | H188: =SUMPRODUCT(D189:D198,G189:G198) -> 28207
B189: T-PT 01001250 | C189: Плинтус L = 1250 | D189: 2 | E189: =VLOOKUP(B189,'Детали Praktisch'!$A$12:$C$2072,3,0) -> 345 | G189: =ROUND(E189*(1-$C$3)/Лист2!$A$6,0) -> 345
B190: T-ST 11037125 | C190: Полка сетч для центр панели L=1250 G=370 | D190: 6 | E190: =VLOOKUP(B190,Аксессуары!$A$105:$F$347,6,0) -> 2428 | G190: =ROUND(E190*(1-$C$3)/Лист2!$A$6,0) -> 2428
B191: T-BS 14000370 | C191: Кронштейн полки сетчатой(компл) G=370 | D191: 6 | E191: =VLOOKUP(B191,Аксессуары!$A$105:$F$347,6,0) -> 264 | G191: =ROUND(E191*(1-$C$3)/Лист2!$A$6,0) -> 264
B192: T-ST 11308125 | C192: Полка-проставка базов к панели сетчат центр L=1250 | D192: 1 | E192: =VLOOKUP(B192,Аксессуары!$A$105:$F$347,6,0) -> 624 | G192: =ROUND(E192*(1-$C$3)/Лист2!$A$6,0) -> 624
B193: T-BP 13060125 | C193: Панель сетчатая центральная H=600 L=1250 | D193: 2 | E193: =VLOOKUP(B193,Аксессуары!$A$105:$F$347,6,0) -> 1678 | G193: =ROUND(E193*(1-$C$3)/Лист2!$A$6,0) -> 1678
B194: T-BP 13030125 | C194: Панель сетчатая центральная H=300 L=1250 | D194: 1 | E194: =VLOOKUP(B194,Аксессуары!$A$105:$F$347,6,0) -> 1124 | G194: =ROUND(E194*(1-$C$3)/Лист2!$A$6,0) -> 1124
B195: T-BT 01000470 | C195: База стеллажа G=470 | D195: 2 | E195: =VLOOKUP(B195,'Детали Praktisch'!$A$12:$C$2072,3,0) -> 1171 | G195: =ROUND(E195*(1-$C$3)/Лист2!$A$6,0) -> 1171
B196: T-LT 02801650 | C196: Стойка 80х30 с двухсторонней перфорацией Н = 1650 | D196: 1 | E196: =VLOOKUP(B196,'Детали Praktisch'!$A$12:$C$2072,3,0) -> 1361 | G196: =ROUND(E196*(1-$C$3)/Лист2!$A$6,0) -> 1361
B197: N-LC 00003080 | C197: Заглушка стойки 30х80 | D197: 1 | E197: =VLOOKUP(B197,'Детали Praktisch'!$A$12:$C$2072,3,0) -> 118 | G197: =ROUND(E197*(1-$C$3)/Лист2!$A$6,0) -> 118
B198: T-ST 01471250 | C198: Полка G=470 L = 1250 | D198: 2 | E198: =VLOOKUP(B198,'Детали Praktisch'!$A$12:$C$2072,3,0) -> 1220 | G198: =ROUND(E198*(1-$C$3)/Лист2!$A$6,0) -> 1220
B199: 18 | C199: Стеллаж островной сетчатый (панель центральная), полки сплошные 1650 x 665 x 470 | F199: =SUMPRODUCT(D200:D210,E200:E210) -> 16262 | H199: =SUMPRODUCT(D200:D210,G200:G210) -> 16262
B200: T-PT 01000665 | C200: Плинтус L = 665 | D200: 2 | E200: =VLOOKUP(B200,'Детали Praktisch'!$A$12:$C$2072,3,0) -> 230 | G200: =ROUND(E200*(1-$C$3)/Лист2!$A$6,0) -> 230
B201: T-ST 01370665 | C201: Полка G=370 L = 665 | D201: 6 | E201: =VLOOKUP(B201,'Детали Praktisch'!$A$12:$C$2072,3,0) -> 634 | G201: =ROUND(E201*(1-$C$3)/Лист2!$A$6,0) -> 634
B202: T-BS 01000370 | C202: Кронштейн (комплект) G = 370 | D202: 6 | E202: =VLOOKUP(B202,'Детали Praktisch'!$A$12:$C$2072,3,0) -> 272 | G202: =ROUND(E202*(1-$C$3)/Лист2!$A$6,0) -> 272
... 78 more rows

Sheet Сборки Lager
A1: Cборки полугрузовых стеллажей Lager | I1: На главную
A3: Ваша скидка: | C3: =Содержание!C2 -> 0
A4: НДС: | C4: =IF(Лист2!A1=TRUE,"С НДС","БЕЗ НДС") -> С НДС
A6: Изображение | B6: Артикул | C6: Наименование | D6: Кол-во в сборке, шт. | E6: Базовая цена, руб. (с НДС) | G6: =[7]Лист2!$A$5 -> Ваша цена, руб.
E7: за элемент в сборке | F7: за сборку | G7: за элемент комплекта | H7: за сборку
B8: 1 | C8: Стеллаж LAGER 2200х600х950. 4 уровня хранения | F8: =SUMPRODUCT(D9:D11,E9:E11) -> 16807 | H8: =SUMPRODUCT(D9:D11,G9:G11) -> 16807
B9: L-FR 10602200 | C9: Рама стеллажа G=600 H=2200 | D9: 1 | E9: =INDEX('Детали Lager'!$D$10:$D$30,MATCH('Сборки Lager'!B9,'Детали Lager'!$B$10:$B$30,)) -> 3823 | G9: =ROUND(E9*(1-$C$3)/Лист2!$A$6,0) -> 3823
B10: L-TR 10500950 | C10: Траверса L=950 | D10: 8 | E10: =INDEX('Детали Lager'!$D$10:$D$30,MATCH('Сборки Lager'!B10,'Детали Lager'!$B$10:$B$30,)) -> 792 | G10: =ROUND(E10*(1-$C$3)/Лист2!$A$6,0) -> 792
B11: L-ST 01300600 | C11: Полка L=300 G=600 | D11: 12 | E11: =INDEX('Детали Lager'!$D$10:$D$30,MATCH('Сборки Lager'!B11,'Детали Lager'!$B$10:$B$30,)) -> 554 | G11: =ROUND(E11*(1-$C$3)/Лист2!$A$6,0) -> 554
C12: Стеллаж LAGER 2200х600х1250. 4 уровня хранения | F12: =SUMPRODUCT(D13:D15,E13:E15) -> 20367 | H12: =SUMPRODUCT(D13:D15,G13:G15) -> 20367
B13: L-FR 10602200 | C13: Рама стеллажа G=600 H=2200 | D13: 1 | E13: =INDEX('Детали Lager'!$D$10:$D$30,MATCH('Сборки Lager'!B13,'Детали Lager'!$B$10:$B$30,)) -> 3823 | G13: =ROUND(E13*(1-$C$3)/Лист2!$A$6,0) -> 3823
B14: L-TR 10501250 | C14: Траверса L=1250 | D14: 8 | E14: =INDEX('Детали Lager'!$D$10:$D$30,MATCH('Сборки Lager'!B14,'Детали Lager'!$B$10:$B$30,)) -> 960 | G14: =ROUND(E14*(1-$C$3)/Лист2!$A$6,0) -> 960
B15: L-ST 01300600 | C15: Полка L=300 G=600 | D15: 16 | E15: =INDEX('Детали Lager'!$D$10:$D$30,MATCH('Сборки Lager'!B15,'Детали Lager'!$B$10:$B$30,)) -> 554 | G15: =ROUND(E15*(1-$C$3)/Лист2!$A$6,0) -> 554
C16: Стеллаж LAGER 2200х600х1550. 4 уровня хранения | F16: =SUMPRODUCT(D17:D19,E17:E19) -> 23863 | H16: =SUMPRODUCT(D17:D19,G17:G19) -> 23863
B17: L-FR 10602200 | C17: Рама стеллажа G=600 H=2200 | D17: 1 | E17: =INDEX('Детали Lager'!$D$10:$D$30,MATCH('Сборки Lager'!B17,'Детали Lager'!$B$10:$B$30,)) -> 3823 | G17: =ROUND(E17*(1-$C$3)/Лист2!$A$6,0) -> 3823
B18: L-TR 10501550 | C18: Траверса L=1550 | D18: 8 | E18: =INDEX('Детали Lager'!$D$10:$D$30,MATCH('Сборки Lager'!B18,'Детали Lager'!$B$10:$B$30,)) -> 1120 | G18: =ROUND(E18*(1-$C$3)/Лист2!$A$6,0) -> 1120
B19: L-ST 01300600 | C19: Полка L=300 G=600 | D19: 20 | E19: =INDEX('Детали Lager'!$D$10:$D$30,MATCH('Сборки Lager'!B19,'Детали Lager'!$B$10:$B$30,)) -> 554 | G19: =ROUND(E19*(1-$C$3)/Лист2!$A$6,0) -> 554
C20: Доп. Рама G=600 H=2200 | F20: =D21*E21 -> 3823 | H20: =D21*G21 -> 3823
B21: L-FR 10602200 | C21: Рама стеллажа G=600 H=2200 | D21: 1 | E21: =INDEX('Детали Lager'!$D$10:$D$30,MATCH('Сборки Lager'!B21,'Детали Lager'!$B$10:$B$30,)) -> 3823 | G21: =ROUND(E21*(1-$C$3)/Лист2!$A$6,0) -> 3823

Sheet Аксессуары
A1: Аксессуары для серий Praktisch и Eco Line | H1: На главную
A3: Ваша скидка: | C3: =Содержание!C2 -> 0
A4: НДС: | C4: =IF(Лист2!A1=TRUE,"С НДС","БЕЗ НДС") -> С НДС
B7: Новинки
B8: Складская программа
A9: Наименование | F9: Базовая цена, руб. (с НДС) | G9: =[7]Лист2!$A$5 -> Ваша цена, руб.
G10: =[7]Лист2!$A$5 -> Ваша цена, руб.
A11: Крючки | C11: D | D11: L | E11: шаг
B12: Крючок для перфорации
A13: A-HP 10050100 | B13: Крючок одинарный L=100 D=5 | C13: 5 | D13: 100 | E13: 50 | F13: 38 | G13: =ROUND(F13*(1-$C$3)/Лист2!$A$6,0) -> 38
A14: A-HP 10050150 | B14: Крючок одинарный L=150 D=5 | C14: 5 | D14: 150 | E14: 50 | F14: 48 | G14: =ROUND(F14*(1-$C$3)/Лист2!$A$6,0) -> 48
A15: A-HP 10050200 | B15: Крючок одинарный L=200 D=5 | C15: 5 | D15: 200 | E15: 50 | F15: 57 | G15: =ROUND(F15*(1-$C$3)/Лист2!$A$6,0) -> 57
A16: A-HP 10050250 | B16: Крючок одинарный L=250 D=5 | C16: 5 | D16: 250 | E16: 50 | F16: 63 | G16: =ROUND(F16*(1-$C$3)/Лист2!$A$6,0) -> 63
A17: A-HP 10050300 | B17: Крючок одинарный L=300 D=5 | C17: 5 | D17: 300 | E17: 50 | F17: 71 | G17: =ROUND(F17*(1-$C$3)/Лист2!$A$6,0) -> 71
A18: A-HP 10050400 | B18: Крючок одинарный L=400 D=5 | C18: 5 | D18: 400 | E18: 50 | F18: 84 | G18: =ROUND(F18*(1-$C$3)/Лист2!$A$6,0) -> 84
A19: A-HP 20050150 | B19: Крючок двойной L=150 D=5 | C19: 4 | D19: 150 | E19: 50 | F19: 75 | G19: =ROUND(F19*(1-$C$3)/Лист2!$A$6,0) -> 75
A20: A-HP 20050200 | B20: Крючок двойной L=200 D=5 | C20: 4 | D20: 200 | E20: 50 | F20: 83 | G20: =ROUND(F20*(1-$C$3)/Лист2!$A$6,0) -> 83
A21: A-HP 20050300 | B21: Крючок двойной L=300 D=5 | C21: 4 | D21: 300 | E21: 50 | F21: 118 | G21: =ROUND(F21*(1-$C$3)/Лист2!$A$6,0) -> 118
A22: A-HP 20060400 | B22: Крючок двойной L=400 D=5 | C22: 4 | D22: 400 | E22: 50 | F22: 121 | G22: =ROUND(F22*(1-$C$3)/Лист2!$A$6,0) -> 121
A23: A-HP 11250150 | B23: Крюк одинарный с ценникодержателем L=150 D=5 | C23: 5 | D23: 150 | E23: 50 | F23: 84 | G23: =ROUND(F23*(1-$C$3)/Лист2!$A$6,0) -> 84
A24: A-HP 11250200 | B24: Крюк одинарный с ценникодержателем L=200 D=5 | C24: 5 | D24: 200 | E24: 50 | F24: 99 | G24: =ROUND(F24*(1-$C$3)/Лист2!$A$6,0) -> 99
A25: A-HP 11250250 | B25: Крюк одинарный с ценникодержателем L=250 D=5 | C25: 5 | D25: 250 | E25: 50 | F25: 114 | G25: =ROUND(F25*(1-$C$3)/Лист2!$A$6,0) -> 114
A26: A-HP 11250300 | B26: Крюк одинарный с ценникодержателем L=300 D=5 | C26: 5 | D26: 300 | E26: 50 | F26: 124 | G26: =ROUND(F26*(1-$C$3)/Лист2!$A$6,0) -> 124
A27: A-HP 11250400 | B27: Крюк одинарный с ценникодержателем L=400 D=5 | C27: 5 | D27: 400 | E27: 50 | F27: 144 | G27: =ROUND(F27*(1-$C$3)/Лист2!$A$6,0) -> 144
A28: A-HP 21250200 | B28: Крюк двойной с ценникодержателем L=200 D=4 | C28: 4 | D28: 200 | E28: 50 | F28: 103 | G28: =ROUND(F28*(1-$C$3)/Лист2!$A$6,0) -> 103
A29: A-HP 21250300 | B29: Крюк двойной с ценникодержателем L=300 D=4 | C29: 4 | D29: 300 | E29: 50 | F29: 139 | G29: =ROUND(F29*(1-$C$3)/Лист2!$A$6,0) -> 139
A30: Ценникодержатели | F30: 0
A31: Ценникодержатель съемный L=1000 белый | F31: 86 | G31: =ROUND(F31*(1-$C$3)/Лист2!$A$6,0) -> 86
A32: Ценникодержатель съемный L=1000 желтый | F32: 86 | G32: =ROUND(F32*(1-$C$3)/Лист2!$A$6,0) -> 86
A33: Ценникодержатель съемный L=1000 зеленый | F33: 86 | G33: =ROUND(F33*(1-$C$3)/Лист2!$A$6,0) -> 86
A34: Ценникодержатель съемный L=1000 красный | F34: 86 | G34: =ROUND(F34*(1-$C$3)/Лист2!$A$6,0) -> 86
A35: Ценникодержатель съемный L=1000 синий | F35: 86 | G35: =ROUND(F35*(1-$C$3)/Лист2!$A$6,0) -> 86
A36: Ценникодержатель съемный L=1000 прозрачный | F36: 86 | G36: =ROUND(F36*(1-$C$3)/Лист2!$A$6,0) -> 86
A37: Ценникодержатель съемный L=1250 белый | F37: 110 | G37: =ROUND(F37*(1-$C$3)/Лист2!$A$6,0) -> 110
A38: Ценникодержатель съемный L=1250 желтый | F38: 110 | G38: =ROUND(F38*(1-$C$3)/Лист2!$A$6,0) -> 110
A39: Ценникодержатель съемный L=1250 зеленый | F39: 110 | G39: =ROUND(F39*(1-$C$3)/Лист2!$A$6,0) -> 110
A40: Ценникодержатель съемный L=1250 красный | F40: 110 | G40: =ROUND(F40*(1-$C$3)/Лист2!$A$6,0) -> 110
A41: Ценникодержатель съемный L=1250 синий | F41: 110 | G41: =ROUND(F41*(1-$C$3)/Лист2!$A$6,0) -> 110
A42: Ценникодержатель съемный L=1250 прозрачный | F42: 110 | G42: =ROUND(F42*(1-$C$3)/Лист2!$A$6,0) -> 110
A43: Ценникодержатель съемный L=1330 прозрачный | F43: 169 | G43: =ROUND(F43*(1-$C$3)/Лист2!$A$6,0) -> 169
A44: Ценникодержатель съемный,L=1000, H=60 прозрачный | F44: 195 | G44: =ROUND(F44*(1-$C$3)/Лист2!$A$6,0) -> 195
A45: Ценникодержатель съемный,L=1250, H=60 прозрачный | F45: 242 | G45: =ROUND(F45*(1-$C$3)/Лист2!$A$6,0) -> 242
A46: Профиль из ПВХ DBR39 L=1000, белый | F46: 83 | G46: =ROUND(F46*(1-$C$3)/Лист2!$A$6,0) -> 83
A47: Профиль из ПВХ DBR39 L=1000, желтый | F47: 83 | G47: =ROUND(F47*(1-$C$3)/Лист2!$A$6,0) -> 83
A48: Профиль из ПВХ DBR39 L=1000, зеленый | F48: 83 | G48: =ROUND(F48*(1-$C$3)/Лист2!$A$6,0) -> 83
A49: Профиль из ПВХ DBR39 L=1000, красный | F49: 83 | G49: =ROUND(F49*(1-$C$3)/Лист2!$A$6,0) -> 83
A50: Профиль из ПВХ DBR39 L=1000, синий | F50: 83 | G50: =ROUND(F50*(1-$C$3)/Лист2!$A$6,0) -> 83
A51: Профиль из ПВХ DBR39 L=1000, прозрачный | F51: 83 | G51: =ROUND(F51*(1-$C$3)/Лист2!$A$6,0) -> 83
A52: Профиль из ПВХ DBR39 L=1250, белый | F52: 105 | G52: =ROUND(F52*(1-$C$3)/Лист2!$A$6,0) -> 105
A53: Профиль из ПВХ DBR39 L=1250, желтый | F53: 105 | G53: =ROUND(F53*(1-$C$3)/Лист2!$A$6,0) -> 105
A54: Профиль из ПВХ DBR39 L=1250, зеленый | F54: 105 | G54: =ROUND(F54*(1-$C$3)/Лист2!$A$6,0) -> 105
A55: Профиль из ПВХ DBR39 L=1250, красный | F55: 105 | G55: =ROUND(F55*(1-$C$3)/Лист2!$A$6,0) -> 105
A56: Профиль из ПВХ DBR39 L=1250, синий | F56: 105 | G56: =ROUND(F56*(1-$C$3)/Лист2!$A$6,0) -> 105
A57: Профиль из ПВХ КЕ L=1000, прозрачный (для корзин) | F57: 184 | G57: =ROUND(F57*(1-$C$3)/Лист2!$A$6,0) -> 184
A58: Профиль из ПВХ КЕ L=1250, прозрачный (для корзин) | F58: 208 | G58: =ROUND(F58*(1-$C$3)/Лист2!$A$6,0) -> 208
A59: Профиль из ПВХ КЕ L=1330, прозрачный (для корзин) | F59: 218 | G59: =ROUND(F59*(1-$C$3)/Лист2!$A$6,0) -> 218
A60: Ценникодержатель съемный сетчатой полки FRW39 L=1000 | F60: 373 | G60: =ROUND(F60*(1-$C$3)/Лист2!$A$6,0) -> 373
A61: Ценникодержатель съемный сетчатой полки FRW39 L=1250 | F61: 468 | G61: =ROUND(F61*(1-$C$3)/Лист2!$A$6,0) -> 468
A62: Сетчатые изделия
A63: T-WB 02370665 | B63: Корзина H=160 G=370 L=665 | C63: 160 | D63: 370 | E63: 665 | F63: 1569 | G63: =ROUND(F63*(1-$C$3)/Лист2!$A$6,0) -> 1569
A64: T-WB 02370100 | B64: Корзина H=160 G=370 L=1000 | C64: 160 | D64: 370 | E64: 1000 | F64: 1976 | G64: =ROUND(F64*(1-$C$3)/Лист2!$A$6,0) -> 1976
A65: T-WB 02370125 | B65: Корзина H=160 G=370 L=1250 | C65: 160 | D65: 370 | E65: 1250 | F65: 2322 | G65: =ROUND(F65*(1-$C$3)/Лист2!$A$6,0) -> 2322
A66: T-WB 02370133 | B66: Корзина H=160 G=370 L=1330 | C66: 160 | D66: 370 | E66: 1330 | F66: 2665 | G66: =ROUND(F66*(1-$C$3)/Лист2!$A$6,0) -> 2665
A67: T-WB 02470665 | B67: Корзина H=160 G=470 L=665 | C67: 160 | D67: 470 | E67: 665 | F67: 1731 | G67: =ROUND(F67*(1-$C$3)/Лист2!$A$6,0) -> 1731
A68: T-WB 02470100 | B68: Корзина H=160 G=470 L=1000 | C68: 160 | D68: 470 | E68: 1000 | F68: 1993 | G68: =ROUND(F68*(1-$C$3)/Лист2!$A$6,0) -> 1993
A69: T-WB 02470125 | B69: Корзина H=160 G=470 L=1250 | C69: 160 | D69: 470 | E69: 1250 | F69: 2457 | G69: =ROUND(F69*(1-$C$3)/Лист2!$A$6,0) -> 2457
A70: T-WB 02470133 | B70: Корзина H=160 G=470 L=1330 | C70: 160 | D70: 470 | E70: 1330 | F70: 2639 | G70: =ROUND(F70*(1-$C$3)/Лист2!$A$6,0) -> 2639
A71: T-WB 02570665 | B71: Корзина H=160 G=570 L=665 | C71: 160 | D71: 570 | E71: 665 | F71: 2057 | G71: =ROUND(F71*(1-$C$3)/Лист2!$A$6,0) -> 2057
A72: T-WB 02570100 | B72: Корзина H=160 G=570 L=1000 | C72: 160 | D72: 570 | E72: 1000 | F72: 2322 | G72: =ROUND(F72*(1-$C$3)/Лист2!$A$6,0) -> 2322
A73: T-WB 02570125 | B73: Корзина H=160 G=570 L=1250 | C73: 160 | D73: 570 | E73: 1250 | F73: 3028 | G73: =ROUND(F73*(1-$C$3)/Лист2!$A$6,0) -> 3028
A74: T-WB 02570133 | B74: Корзина H=160 G=570 L=1330 | C74: 160 | D74: 570 | E74: 1330 | F74: 3249 | G74: =ROUND(F74*(1-$C$3)/Лист2!$A$6,0) -> 3249
A75: T-WB 01370665 | B75: Корзина H=320 G=370 L=665 | C75: 320 | D75: 370 | E75: 665 | F75: 2325 | G75: =ROUND(F75*(1-$C$3)/Лист2!$A$6,0) -> 2325
A76: T-WB 01370100 | B76: Корзина H=320 G=370 L=1000 | C76: 320 | D76: 370 | E76: 1000 | F76: 2697 | G76: =ROUND(F76*(1-$C$3)/Лист2!$A$6,0) -> 2697
A77: T-WB 01370125 | B77: Корзина H=320 G=370 L=1250 | C77: 320 | D77: 370 | E77: 1250 | F77: 2987 | G77: =ROUND(F77*(1-$C$3)/Лист2!$A$6,0) -> 2987
A78: T-WB 01370133 | B78: Корзина H=320 G=370 L=1330 | C78: 320 | D78: 370 | E78: 1330 | F78: 3144 | G78: =ROUND(F78*(1-$C$3)/Лист2!$A$6,0) -> 3144
A79: T-WB 01470665 | B79: Корзина H=320 G=470 L=665 | C79: 320 | D79: 470 | E79: 665 | F79: 2007 | G79: =ROUND(F79*(1-$C$3)/Лист2!$A$6,0) -> 2007
A80: T-WB 01470100 | B80: Корзина H=320 G=470 L=1000 | C80: 320 | D80: 470 | E80: 1000 | F80: 2636 | G80: =ROUND(F80*(1-$C$3)/Лист2!$A$6,0) -> 2636
A81: T-WB 01470125 | B81: Корзина H=320 G=470 L=1250 | C81: 320 | D81: 470 | E81: 1250 | F81: 2847 | G81: =ROUND(F81*(1-$C$3)/Лист2!$A$6,0) -> 2847
A82: T-WB 01470133 | B82: Корзина H=320 G=470 L=1330 | C82: 320 | D82: 470 | E82: 1330 | F82: 3239 | G82: =ROUND(F82*(1-$C$3)/Лист2!$A$6,0) -> 3239
A83: T-WB 01570665 | B83: Корзина H=320 G=570 L=665 | C83: 320 | D83: 570 | E83: 665 | F83: 2290 | G83: =ROUND(F83*(1-$C$3)/Лист2!$A$6,0) -> 2290
A84: T-WB 01570100 | B84: Корзина H=320 G=570 L=1000 | C84: 320 | D84: 570 | E84: 1000 | F84: 2866 | G84: =ROUND(F84*(1-$C$3)/Лист2!$A$6,0) -> 2866
A85: T-WB 01570125 | B85: Корзина H=320 G=570 L=1250 | C85: 320 | D85: 570 | E85: 1250 | F85: 3289 | G85: =ROUND(F85*(1-$C$3)/Лист2!$A$6,0) -> 3289
A86: T-WB 01570133 | B86: Корзина H=320 G=570 L=1330 | C86: 320 | D86: 570 | E86: 1330 | F86: 3562 | G86: =ROUND(F86*(1-$C$3)/Лист2!$A$6,0) -> 3562
A87: T-WB 09370100 | B87: Корзина штабелируемая H=320 G=370 L=1000 | C87: 320 | D87: 370 | E87: 100 | F87: 2386 | G87: =ROUND(F87*(1-$C$3)/Лист2!$A$6,0) -> 2386
A88: T-WB 09470665 | B88: Корзина штабелируемая H=320 G=470 L=665 | C88: 320 | D88: 470 | E88: 665 | F88: 2050 | G88: =ROUND(F88*(1-$C$3)/Лист2!$A$6,0) -> 2050
A89: T-WB 09470100 | B89: Корзина штабелируемая H=320 G=470 L=1000 | C89: 320 | D89: 470 | E89: 1000 | F89: 2533 | G89: =ROUND(F89*(1-$C$3)/Лист2!$A$6,0) -> 2533
A90: T-WB 09470125 | B90: Корзина штабелируемая H=320 G=470 L=1250 | C90: 320 | D90: 470 | E90: 1250 | F90: 3012 | G90: =ROUND(F90*(1-$C$3)/Лист2!$A$6,0) -> 3012
A91: T-WB 09570665 | B91: Корзина штабелируемая H=320 G=570 L=665 | C91: 320 | D91: 570 | E91: 665 | F91: 2311 | G91: =ROUND(F91*(1-$C$3)/Лист2!$A$6,0) -> 2311
A92: T-WB 09570100 | B92: Корзина штабелируемая H=320 G=570 L=1000 | C92: 320 | D92: 570 | E92: 1000 | F92: 2808 | G92: =ROUND(F92*(1-$C$3)/Лист2!$A$6,0) -> 2808
A93: T-WB 09570125 | B93: Корзина штабелируемая H=320 G=570 L=1250 | C93: 320 | D93: 570 | E93: 1250 | F93: 3317 | G93: =ROUND(F93*(1-$C$3)/Лист2!$A$6,0) -> 3317
A94: T-WB 09570133 | B94: Корзина штабелируемая H=320 G=570 L=1330 | C94: 320 | D94: 570 | E94: 1330 | F94: 3586 | G94: =ROUND(F94*(1-$C$3)/Лист2!$A$6,0) -> 3586
A95: T-DS 04160370 | B95: Разделитель для корзин H=160 G=370 | C95: 160 | D95: 370 | F95: 291 | G95: =ROUND(F95*(1-$C$3)/Лист2!$A$6,0) -> 291
A96: T-DS 04160470 | B96: Разделитель для корзин H=160 G=470 | C96: 160 | D96: 470 | F96: 306 | G96: =ROUND(F96*(1-$C$3)/Лист2!$A$6,0) -> 306
A97: T-DS 04160570 | B97: Разделитель для корзин H=160 G=570 | C97: 160 | D97: 570 | F97: 341 | G97: =ROUND(F97*(1-$C$3)/Лист2!$A$6,0) -> 341
A98: T-DS 04160670 | B98: Разделитель для корзин H=160 G=670 | C98: 160 | D98: 670 | F98: 379 | G98: =ROUND(F98*(1-$C$3)/Лист2!$A$6,0) -> 379
A99: T-DS 04160770 | B99: Разделитель для корзин H=160 G=770 | C99: 160 | D99: 770 | F99: 408 | G99: =ROUND(F99*(1-$C$3)/Лист2!$A$6,0) -> 408
A100: T-DS 04320370 | B100: Разделитель для корзин H=320 G=370 | C100: 320 | D100: 370 | F100: 300 | G100: =ROUND(F100*(1-$C$3)/Лист2!$A$6,0) -> 300
A101: T-DS 04320470 | B101: Разделитель для корзин H=320 G=470 | C101: 320 | D101: 470 | F101: 316 | G101: =ROUND(F101*(1-$C$3)/Лист2!$A$6,0) -> 316
A102: T-DS 04320570 | B102: Разделитель для корзин H=320 G=570 | C102: 320 | D102: 570 | F102: 373 | G102: =ROUND(F102*(1-$C$3)/Лист2!$A$6,0) -> 373
A103: T-DS 04320670 | B103: Разделитель для корзин H=320 G=670 | C103: 320 | D103: 670 | F103: 391 | G103: =ROUND(F103*(1-$C$3)/Лист2!$A$6,0) -> 391
A104: T-DS 04320770 | B104: Разделитель для корзин H=320 G=770 | C104: 320 | D104: 770 | F104: 427 | G104: =ROUND(F104*(1-$C$3)/Лист2!$A$6,0) -> 427
A105: T-FL 01085665 | B105: Ограничитель фронтальный Н=85 L=665 | C105: 85 | E105: 665 | F105: 195 | G105: =ROUND(F105*(1-$C$3)/Лист2!$A$6,0) -> 195
A106: T-FL 01085850 | B106: Ограничитель фронтальный Н=85 L=850 | C106: 85 | E106: 850 | F106: 258 | G106: =ROUND(F106*(1-$C$3)/Лист2!$A$6,0) -> 258
A107: T-FL 01085100 | B107: Ограничитель фронтальный Н=85 L=1000 | C107: 85 | E107: 1000 | F107: 264 | G107: =ROUND(F107*(1-$C$3)/Лист2!$A$6,0) -> 264
A108: T-FL 01085125 | B108: Ограничитель фронтальный Н=85 L=1250 | C108: 85 | E108: 1250 | F108: 323 | G108: =ROUND(F108*(1-$C$3)/Лист2!$A$6,0) -> 323
A109: T-FL 01085133 | B109: Ограничитель фронтальный Н=85 L=1330 | C109: 85 | E109: 1330 | F109: 323 | G109: =ROUND(F109*(1-$C$3)/Лист2!$A$6,0) -> 323
A110: T-FL 07850665 | B110: Ограничитель фронтальный (с тремя петлями) H=85 G=665 | C110: 85 | E110: 665 | F110: 206 | G110: =ROUND(F110*(1-$C$3)/Лист2!$A$6,0) -> 206
A111: T-FL 07851000 | B111: Ограничитель фронтальный (с тремя петлями) H=85 G=1000 | C111: 85 | E111: 1000 | F111: 264 | G111: =ROUND(F111*(1-$C$3)/Лист2!$A$6,0) -> 264
A112: T-FL 07851250 | B112: Ограничитель фронтальный (с тремя петлями) H=85 G=1250 | C112: 85 | E112: 1250 | F112: 297 | G112: =ROUND(F112*(1-$C$3)/Лист2!$A$6,0) -> 297
A113: T-FL 07851330 | B113: Ограничитель фронтальный (с тремя петлями) H=85 G=1330 | C113: 85 | E113: 1330 | F113: 321 | G113: =ROUND(F113*(1-$C$3)/Лист2!$A$6,0) -> 321
A114: T-FL 01145665 | B114: Ограничитель фронтальный Н=145 L=665 | C114: 145 | E114: 665 | F114: 215 | G114: =ROUND(F114*(1-$C$3)/Лист2!$A$6,0) -> 215
A115: T-FL 01145100 | B115: Ограничитель фронтальный Н=145 L=1000 | C115: 145 | E115: 1000 | F115: 285 | G115: =ROUND(F115*(1-$C$3)/Лист2!$A$6,0) -> 285
A116: T-FL 01145125 | B116: Ограничитель фронтальный Н=145 L=1250 | C116: 145 | E116: 1250 | F116: 344 | G116: =ROUND(F116*(1-$C$3)/Лист2!$A$6,0) -> 344
A117: T-FL 01145133 | B117: Ограничитель фронтальный Н=145 L=1330 | C117: 145 | E117: 1330 | F117: 361 | G117: =ROUND(F117*(1-$C$3)/Лист2!$A$6,0) -> 361
A118: T-FL 01060333 | B118: Ограничитель фронтальный Н=60 L=333 | C118: 60 | E118: 333 | F118: 127 | G118: =ROUND(F118*(1-$C$3)/Лист2!$A$6,0) -> 127
A119: T-FL 01060665 | B119: Ограничитель фронтальный Н=60 L=665 | C119: 60 | E119: 665 | F119: 195 | G119: =ROUND(F119*(1-$C$3)/Лист2!$A$6,0) -> 195
A120: T-FL 01060850 | B120: Ограничитель фронтальный Н=60 L=850 | C120: 60 | E120: 850 | F120: 234 | G120: =ROUND(F120*(1-$C$3)/Лист2!$A$6,0) -> 234
A121: T-FL 01060100 | B121: Ограничитель фронтальный Н=60 L=1000 | C121: 60 | E121: 1000 | F121: 246 | G121: =ROUND(F121*(1-$C$3)/Лист2!$A$6,0) -> 246
A122: T-FL 01060125 | B122: Ограничитель фронтальный Н=60 L=1250 | C122: 60 | E122: 1250 | F122: 311 | G122: =ROUND(F122*(1-$C$3)/Лист2!$A$6,0) -> 311
A123: T-FL 01060133 | B123: Ограничитель фронтальный Н=60 L=1330 | C123: 60 | E123: 1330 | F123: 323 | G123: =ROUND(F123*(1-$C$3)/Лист2!$A$6,0) -> 323
A124: T-FL 05908531 | B124: Ограничитель фронтальный угла внутр.90гр.Н=85 G=310 | C124: 85 | D124: 310 | E124: 560 | F124: 175 | G124: =ROUND(F124*(1-$C$3)/Лист2!$A$6,0) -> 175
A125: T-FL 05908537 | B125: Ограничитель фронтальный угла внутр.90гр.Н=85 G=370 | C125: 85 | D125: 370 | E125: 450 | F125: 158 | G125: =ROUND(F125*(1-$C$3)/Лист2!$A$6,0) -> 158
A126: T-FL 05908547 | B126: Ограничитель фронтальный угла внутр.90гр.Н=85 G=470 | C126: 85 | D126: 470 | E126: 320 | F126: 133 | G126: =ROUND(F126*(1-$C$3)/Лист2!$A$6,0) -> 133
A127: T-FL 05908557 | B127: Ограничитель фронтальный угла внутр.90гр.Н=85 G=570 | C127: 85 | D127: 570 | E127: 180 | F127: 121 | G127: =ROUND(F127*(1-$C$3)/Лист2!$A$6,0) -> 121
A128: T-FL 07908531 | B128: Ограничитель фронтальный угла внутреннего 90гр. H=85 G=310 (с тремя петлями) | C128: 85 | D128: 310 | E128: 560 | F128: 205 | G128: =ROUND(F128*(1-$C$3)/Лист2!$A$6,0) -> 205
A129: T-FL 07908537 | B129: Ограничитель фронтальный угла внутреннего 90гр. H=85 G=370 (с тремя петлями) | C129: 85 | D129: 370 | E129: 450 | F129: 185 | G129: =ROUND(F129*(1-$C$3)/Лист2!$A$6,0) -> 185
A130: T-FL 07908547 | B130: Ограничитель фронтальный угла внутреннего 90гр. H=85 G=470 (с тремя петлями) | C130: 85 | D130: 470 | E130: 320 | F130: 170 | G130: =ROUND(F130*(1-$C$3)/Лист2!$A$6,0) -> 170
A131: T-FL 07908557 | B131: Ограничитель фронтальный угла внутреннего 90гр. H=85 G=570 (с тремя петлями) | C131: 85 | D131: 570 | E131: 180 | F131: 153 | G131: =ROUND(F131*(1-$C$3)/Лист2!$A$6,0) -> 153
A132: T-FL 06908531 | B132: Ограничитель фронтальный угла внешн.90гр.Н=85 G=310 | C132: 85 | D132: 310 | E132: 630 | F132: 195 | G132: =ROUND(F132*(1-$C$3)/Лист2!$A$6,0) -> 195
A133: T-FL 06908537 | B133: Ограничитель фронтальный угла внешн.90гр.Н=85 G=370 | C133: 85 | D133: 370 | E133: 730 | F133: 205 | G133: =ROUND(F133*(1-$C$3)/Лист2!$A$6,0) -> 205
A134: T-FL 06908547 | B134: Ограничитель фронтальный угла внешн.90гр.Н=85 G=470 | C134: 85 | D134: 470 | E134: 870 | F134: 262 | G134: =ROUND(F134*(1-$C$3)/Лист2!$A$6,0) -> 262
A135: T-FL 06908557 | B135: Ограничитель фронтальный угла внешн.90гр.Н=85 G=570 | C135: 85 | D135: 570 | E135: 1010 | F135: 275 | G135: =ROUND(F135*(1-$C$3)/Лист2!$A$6,0) -> 275
A136: T-FL 05906031 | B136: Ограничитель фронтальный угла внутр.90гр.Н=60 G=310 | C136: 60 | D136: 310 | E136: 560 | F136: 179 | G136: =ROUND(F136*(1-$C$3)/Лист2!$A$6,0) -> 179
A137: T-FL 05906037 | B137: Ограничитель фронтальный угла внутр.90гр.Н=60 G=370 | C137: 60 | D137: 370 | E137: 450 | F137: 150 | G137: =ROUND(F137*(1-$C$3)/Лист2!$A$6,0) -> 150
A138: T-FL 05906047 | B138: Ограничитель фронтальный угла внутр.90гр.Н=60 G=470 | C138: 60 | D138: 470 | E138: 320 | F138: 123 | G138: =ROUND(F138*(1-$C$3)/Лист2!$A$6,0) -> 123
A139: T-FL 05906057 | B139: Ограничитель фронтальный угла внутр.90гр.Н=60 G=570 | C139: 60 | D139: 570 | E139: 180 | F139: 114 | G139: =ROUND(F139*(1-$C$3)/Лист2!$A$6,0) -> 114
A140: T-FL 06906031 | B140: Ограничитель фронтальный угла внешн.90гр.Н=60 G=310 | C140: 60 | D140: 310 | E140: 630 | F140: 195 | G140: =ROUND(F140*(1-$C$3)/Лист2!$A$6,0) -> 195
A141: T-FL 06906037 | B141: Ограничитель фронтальный угла внешн.90гр.Н=60 G=370 | C141: 60 | D141: 370 | E141: 730 | F141: 205 | G141: =ROUND(F141*(1-$C$3)/Лист2!$A$6,0) -> 205
A142: T-FL 06906047 | B142: Ограничитель фронтальный угла внешн.90гр.Н=60 G=470 | C142: 60 | D142: 470 | E142: 870 | F142: 244 | G142: =ROUND(F142*(1-$C$3)/Лист2!$A$6,0) -> 244
A143: T-FL 06906057 | B143: Ограничитель фронтальный угла внешн.90гр.Н=60 G=570 | C143: 60 | D143: 570 | E143: 1010 | F143: 275 | G143: =ROUND(F143*(1-$C$3)/Лист2!$A$6,0) -> 275
A144: T-FR 01065310 | B144: Ограничитель фронтальный торцевой полукруглый H=65 G=310 | C144: 65 | D144: 310 | F144: 280 | G144: =ROUND(F144*(1-$C$3)/Лист2!$A$6,0) -> 280
A145: T-FR 01065370 | B145: Ограничитель фронтальный торцевой полукруглый H=65 G=370 | C145: 65 | D145: 370 | F145: 291 | G145: =ROUND(F145*(1-$C$3)/Лист2!$A$6,0) -> 291
A146: T-FR 01065470 | B146: Ограничитель фронтальный торцевой полукруглый H=65 G=470 | C146: 65 | D146: 470 | F146: 325 | G146: =ROUND(F146*(1-$C$3)/Лист2!$A$6,0) -> 325
A147: T-FR 01040310 | B147: Ограничитель фронтальный торцевой полукруглый H=40 G=310 | C147: 40 | D147: 310 | F147: 279 | G147: =ROUND(F147*(1-$C$3)/Лист2!$A$6,0) -> 279
A148: T-FR 01040370 | B148: Ограничитель фронтальный торцевой полукруглый H=40 G=370 | C148: 40 | D148: 370 | F148: 285 | G148: =ROUND(F148*(1-$C$3)/Лист2!$A$6,0) -> 285
A149: T-FR 01040470 | B149: Ограничитель фронтальный торцевой полукруглый H=40 G=470 | C149: 40 | D149: 470 | F149: 310 | G149: =ROUND(F149*(1-$C$3)/Лист2!$A$6,0) -> 310
A150: T-FR 01040570 | B150: Ограничитель фронтальный торцевой полукруглый H=40 G=570 | C150: 40 | D150: 570 | F150: 321 | G150: =ROUND(F150*(1-$C$3)/Лист2!$A$6,0) -> 321
A151: E-FR 01065310 | B151: Огран фронт торц полукр полки Эко H=65, G=310 | C151: 65 | D151: 310 | F151: 273 | G151: =ROUND(F151*(1-$C$3)/Лист2!$A$6,0) -> 273
A152: E-FR 01065370 | B152: Огран фронт торц полукр полки Эко H=65, G=370 | C152: 65 | D152: 370 | F152: 282 | G152: =ROUND(F152*(1-$C$3)/Лист2!$A$6,0) -> 282
A153: E-FR 01065470 | B153: Огран фронт торц полукр полки Эко H=65, G=470 | C153: 65 | D153: 470 | F153: 317 | G153: =ROUND(F153*(1-$C$3)/Лист2!$A$6,0) -> 317
A154: T-FL 02040665 | B154: Ограничитель фронт сетчатой полки L=665, H=40 | C154: 40 | E154: 665 | F154: 310 | G154: =ROUND(F154*(1-$C$3)/Лист2!$A$6,0) -> 310
A155: T-FL 02040850 | B155: Ограничитель фронт сетчатой полки L=850, H=40 | C155: 40 | E155: 850 | F155: 354 | G155: =ROUND(F155*(1-$C$3)/Лист2!$A$6,0) -> 354
A156: T-FL 02040100 | B156: Ограничитель фронт сетчатой полки L=1000, H=40 | C156: 40 | E156: 1000 | F156: 374 | G156: =ROUND(F156*(1-$C$3)/Лист2!$A$6,0) -> 374
A157: T-FL 02040125 | B157: Ограничитель фронт сетчатой полки L=1250, H=40 | C157: 40 | E157: 1250 | F157: 415 | G157: =ROUND(F157*(1-$C$3)/Лист2!$A$6,0) -> 415
A158: T-FL 02140370 | B158: Ограничитель фронтальный сетчатой полки угла внутр.90гр.Н=40 G=370 | C158: 40 | D158: 370 | F158: 273 | G158: =ROUND(F158*(1-$C$3)/Лист2!$A$6,0) -> 273
A159: T-FL 02140470 | B159: Ограничитель фронтальный сетчатой полки угла внутр.90гр.Н=40 G=470 | C159: 40 | D159: 470 | F159: 250 | G159: =ROUND(F159*(1-$C$3)/Лист2!$A$6,0) -> 250
A160: T-FL 02140570 | B160: Ограничитель фронтальный сетчатой полки угла внутр.90гр.Н=40 G=570 | C160: 40 | D160: 570 | F160: 222 | G160: =ROUND(F160*(1-$C$3)/Лист2!$A$6,0) -> 222
A161: T-FL 02240370 | B161: Ограничитель фронтальный сетчатой полки угла внешн.90гр.Н=40 G=370 | C161: 40 | D161: 370 | F161: 343 | G161: =ROUND(F161*(1-$C$3)/Лист2!$A$6,0) -> 343
A162: T-FL 02240470 | B162: Ограничитель фронтальный сетчатой полки угла внешн.90гр.Н=40 G=470 | C162: 40 | D162: 470 | F162: 317 | G162: =ROUND(F162*(1-$C$3)/Лист2!$A$6,0) -> 317
A163: T-FL 02240570 | B163: Ограничитель фронтальный сетчатой полки угла внешн.90гр.Н=40 G=570 | C163: 40 | D163: 570 | F163: 282 | G163: =ROUND(F163*(1-$C$3)/Лист2!$A$6,0) -> 282
A164: T-FL 11040370 | B164: Ограничитель сетчатой торцевой полукруглой полки H=40 G=370 | C164: 40 | D164: 370 | F164: 575 | G164: =ROUND(F164*(1-$C$3)/Лист2!$A$6,0) -> 575
A165: T-FL 11040470 | B165: Ограничитель сетчатой торцевой полукруглой полки H=40 G=470 | C165: 40 | D165: 370 | F165: 670 | G165: =ROUND(F165*(1-$C$3)/Лист2!$A$6,0) -> 670
A166: T-FL 07600665 | B166: Ограничитель пластиковый L=665, H=62, G=6 | C166: 62 | D166: 665 | F166: 537 | G166: =ROUND(F166*(1-$C$3)/Лист2!$A$6,0) -> 537
A167: T-FL 07600850 | B167: Ограничитель пластиковый L=850, H=62, G=6 | C167: 62 | D167: 850 | F167: 567 | G167: =ROUND(F167*(1-$C$3)/Лист2!$A$6,0) -> 567
A168: T-FL 07601000 | B168: Ограничитель пластиковый L=1000, H=62, G=6 | C168: 62 | D168: 1000 | F168: 596 | G168: =ROUND(F168*(1-$C$3)/Лист2!$A$6,0) -> 596
A169: T-FL 07601250 | B169: Ограничитель пластиковый L=1250, H=62, G=6 | C169: 62 | D169: 1250 | F169: 746 | G169: =ROUND(F169*(1-$C$3)/Лист2!$A$6,0) -> 746
A170: T-FL 07601330 | B170: Ограничитель пластиковый L=1330, H=62, G=6 | C170: 62 | D170: 1330 | F170: 810 | G170: =ROUND(F170*(1-$C$3)/Лист2!$A$6,0) -> 810
A171: T-FL 07621310 | B171: Ограничитель пластиковый угла внутр.90гр.Н=62 G=310 | C171: 62 | D171: 310 | F171: 336 | G171: =ROUND(F171*(1-$C$3)/Лист2!$A$6,0) -> 336
A172: T-FL 07621370 | B172: Ограничитель пластиковый угла внутр.90гр.Н=62 G=370 | C172: 62 | D172: 370 | F172: 291 | G172: =ROUND(F172*(1-$C$3)/Лист2!$A$6,0) -> 291
A173: T-FL 07621470 | B173: Ограничитель пластиковый угла внутр.90гр.Н=62 G=470 | C173: 62 | D173: 470 | F173: 221 | G173: =ROUND(F173*(1-$C$3)/Лист2!$A$6,0) -> 221
A174: T-FL 07621570 | B174: Ограничитель пластиковый угла внутр.90гр.Н=62 G=570 | C174: 62 | D174: 570 | F174: 148 | G174: =ROUND(F174*(1-$C$3)/Лист2!$A$6,0) -> 148
A175: T-FL 07622310 | B175: Ограничитель пластиковый угла внешн.90гр.Н=62 G=310 | C175: 62 | D175: 310 | F175: 391 | G175: =ROUND(F175*(1-$C$3)/Лист2!$A$6,0) -> 391
A176: T-FL 07622370 | B176: Ограничитель пластиковый угла внешн.90гр.Н=62 G=370 | C176: 62 | D176: 370 | F176: 452 | G176: =ROUND(F176*(1-$C$3)/Лист2!$A$6,0) -> 452
A177: T-FL 07622470 | B177: Ограничитель пластиковый угла внешн.90гр.Н=62 G=470 | C177: 62 | D177: 470 | F177: 525 | G177: =ROUND(F177*(1-$C$3)/Лист2!$A$6,0) -> 525
A178: T-FL 07622570 | B178: Ограничитель пластиковый угла внешн.90гр.Н=62 G=570 | C178: 62 | D178: 570 | F178: 588 | G178: =ROUND(F178*(1-$C$3)/Лист2!$A$6,0) -> 588
A179: T-DS 01160310 | B179: Разделитель Н=60 (с тремя петлями) G=310 | C179: 60 | D179: 310 | F179: 179 | G179: =ROUND(F179*(1-$C$3)/Лист2!$A$6,0) -> 179
A180: T-DS 01160370 | B180: Разделитель Н=60 (с тремя петлями) G=370 | C180: 60 | D180: 370 | F180: 197 | G180: =ROUND(F180*(1-$C$3)/Лист2!$A$6,0) -> 197
A181: T-DS 01160470 | B181: Разделитель Н=60 (с тремя петлями) G=470 | C181: 60 | D181: 470 | F181: 215 | G181: =ROUND(F181*(1-$C$3)/Лист2!$A$6,0) -> 215
A182: T-DS 01160570 | B182: Разделитель Н=60 (с тремя петлями) G=570 | C182: 60 | D182: 570 | F182: 233 | G182: =ROUND(F182*(1-$C$3)/Лист2!$A$6,0) -> 233
A183: T-DS 02060210 | B183: Разделитель прямой для полок H=60 G=210 | C183: 60 | D183: 210 | F183: 159 | G183: =ROUND(F183*(1-$C$3)/Лист2!$A$6,0) -> 159
A184: T-DS 02060310 | B184: Разделитель прямой для полок H=60 G=310 | C184: 60 | D184: 310 | F184: 165 | G184: =ROUND(F184*(1-$C$3)/Лист2!$A$6,0) -> 165
A185: T-DS 02060370 | B185: Разделитель прямой для полок H=60 G=370 | C185: 60 | D185: 370 | F185: 175 | G185: =ROUND(F185*(1-$C$3)/Лист2!$A$6,0) -> 175
A186: T-DS 02060470 | B186: Разделитель прямой для полок H=60 G=470 | C186: 60 | D186: 470 | F186: 188 | G186: =ROUND(F186*(1-$C$3)/Лист2!$A$6,0) -> 188
A187: T-DS 02060570 | B187: Разделитель прямой для полок H=60 G=570 | C187: 60 | D187: 570 | F187: 208 | G187: =ROUND(F187*(1-$C$3)/Лист2!$A$6,0) -> 208
A188: T-DS 02060670 | B188: Разделитель прямой для полок H=60 G=670 | C188: 60 | D188: 670 | F188: 226 | G188: =ROUND(F188*(1-$C$3)/Лист2!$A$6,0) -> 226
A189: T-DS 02060770 | B189: Разделитель прямой для полок H=60 G=770 | C189: 60 | D189: 770 | F189: 243 | G189: =ROUND(F189*(1-$C$3)/Лист2!$A$6,0) -> 243
A190: T-DS 02085210 | B190: Разделитель прямой для полок H=85 G=210 | C190: 85 | D190: 210 | F190: 170 | G190: =ROUND(F190*(1-$C$3)/Лист2!$A$6,0) -> 170
A191: T-DS 02085310 | B191: Разделитель прямой для полок H=85 G=310 | C191: 85 | D191: 310 | F191: 169 | G191: =ROUND(F191*(1-$C$3)/Лист2!$A$6,0) -> 169
A192: T-DS 02085370 | B192: Разделитель прямой для полок H=85 G=370 | C192: 85 | D192: 370 | F192: 179 | G192: =ROUND(F192*(1-$C$3)/Лист2!$A$6,0) -> 179
A193: T-DS 02085470 | B193: Разделитель прямой для полок H=85 G=470 | C193: 85 | D193: 470 | F193: 196 | G193: =ROUND(F193*(1-$C$3)/Лист2!$A$6,0) -> 196
A194: T-DS 02085570 | B194: Разделитель прямой для полок H=85 G=570 | C194: 85 | D194: 570 | F194: 215 | G194: =ROUND(F194*(1-$C$3)/Лист2!$A$6,0) -> 215
A195: T-DS 02085670 | B195: Разделитель прямой для полок H=85 G=670 | C195: 85 | D195: 670 | F195: 234 | G195: =ROUND(F195*(1-$C$3)/Лист2!$A$6,0) -> 234
A196: T-DS 02085770 | B196: Разделитель прямой для полок H=85 G=770 | C196: 85 | D196: 770 | F196: 254 | G196: =ROUND(F196*(1-$C$3)/Лист2!$A$6,0) -> 254
A197: T-DS 02145210 | B197: Разделитель прямой для полок H=145 G=210 | C197: 145 | D197: 210 | F197: 175 | G197: =ROUND(F197*(1-$C$3)/Лист2!$A$6,0) -> 175
A198: T-DS 02145310 | B198: Разделитель прямой для полок H=145 G=310 | C198: 145 | D198: 310 | F198: 185 | G198: =ROUND(F198*(1-$C$3)/Лист2!$A$6,0) -> 185
A199: T-DS 02145370 | B199: Разделитель прямой для полок H=145 G=370 | C199: 145 | D199: 370 | F199: 195 | G199: =ROUND(F199*(1-$C$3)/Лист2!$A$6,0) -> 195
A200: T-DS 02145470 | B200: Разделитель прямой для полок H=145 G=470 | C200: 145 | D200: 470 | F200: 215 | G200: =ROUND(F200*(1-$C$3)/Лист2!$A$6,0) -> 215
A201: T-DS 02145570 | B201: Разделитель прямой для полок H=145 G=570 | C201: 145 | D201: 570 | F201: 233 | G201: =ROUND(F201*(1-$C$3)/Лист2!$A$6,0) -> 233
A202: T-DS 02145670 | B202: Разделитель прямой для полок H=145 G=670 | C202: 145 | D202: 670 | F202: 254 | G202: =ROUND(F202*(1-$C$3)/Лист2!$A$6,0) -> 254
A203: T-DS 02145770 | B203: Разделитель прямой для полок H=145 G=770 | C203: 145 | D203: 770 | F203: 273 | G203: =ROUND(F203*(1-$C$3)/Лист2!$A$6,0) -> 273
... 156 more rows

Sheet Оргстекло
A1: Изделия из оргстекла | E1: На главную
A3: Ваша скидка: | C3: =Содержание!C2 -> 0
A4: НДС: | C4: =IF(Лист2!A1=TRUE,"С НДС","БЕЗ НДС") -> С НДС
A6: Изображение | B6: Номенклатура | C6: Базовая цена, руб. (с НДС) | D6: =[7]Лист2!$A$5 -> Ваша цена, руб.
D7: =[7]Лист2!$A$5 -> Ваша цена, руб.
A8: Накопители (стеллажные)
B9: Накопитель 90х30х10, стеллажный 5 секций 173.01 | D9: =ROUND(C9*(1-$C$3)/Лист2!$A$6,0) -> 0 | E9: по запросу
B10: Накопитель 90х40х10, стеллажный 5 секций 173.02 | D10: =ROUND(C10*(1-$C$3)/Лист2!$A$6,0) -> 0 | E10: по запросу
B11: Накопитель 100х45х10, стеллажный 5 секций 173.03 | D11: =ROUND(C11*(1-$C$3)/Лист2!$A$6,0) -> 0 | E11: по запросу
B12: Накопитель 100х40х10, стеллажный 5 секций 173.04 | D12: =ROUND(C12*(1-$C$3)/Лист2!$A$6,0) -> 0 | E12: по запросу
B13: Накопитель 100х35х10, стеллажный 5 секций 173.05 | D13: =ROUND(C13*(1-$C$3)/Лист2!$A$6,0) -> 0 | E13: по запросу
B14: Накопитель 100х30х10, стеллажный 5 секций 173.06 | D14: =ROUND(C14*(1-$C$3)/Лист2!$A$6,0) -> 0 | E14: по запросу
B15: Накопитель 100х45х10, стеллажный 10 секций 173.07 | D15: =ROUND(C15*(1-$C$3)/Лист2!$A$6,0) -> 0 | E15: по запросу
B16: Накопитель 85х35х10, стеллажный 4 секции 173.08 | D16: =ROUND(C16*(1-$C$3)/Лист2!$A$6,0) -> 0 | E16: по запросу
B17: Накопитель 60х20х13/20, стеллажный 3 секции 173.09 | D17: =ROUND(C17*(1-$C$3)/Лист2!$A$6,0) -> 0 | E17: по запросу
B18: Накопитель 100х30х8/18, стеллажный 5 секций 173.10 | D18: =ROUND(C18*(1-$C$3)/Лист2!$A$6,0) -> 0 | E18: по запросу

Sheet Детали и аксессуары KAISER
A1: Детали и аксессуары KAISER
A3: Ваша скидка: | C3: =Содержание!C2 -> 0
A4: НДС: | C4: =IF(Лист2!A1=TRUE,"С НДС","БЕЗ НДС") -> С НДС
C6: новинки
B7: Артикул | C7: Наименование | D7: Характеристика | E7: Базовая цена, руб. (с НДС) | F7: =[7]Лист2!$A$5 -> Ваша цена, руб.
F8: =[7]Лист2!$A$5 -> Ваша цена, руб.
B9: N-LT 22470900 | C9: Стойка кассового модуля 60х30 L-образная G=470 Н=900 (для траверс) | D9: 9010 стр. муар | E9: 1919 | F9: =ROUND(E9*(1-$C$3)/Лист2!$A$6,0) -> 1919
B10: N-LT 22470115 | C10: Стойка кассового модуля 60х30 L-образная G=470 Н=1150 (для траверс) | D10: 9010 стр. муар | E10: 2113 | F10: =ROUND(E10*(1-$C$3)/Лист2!$A$6,0) -> 2113
B11: N-LT 22000900 | C11: Стойка с опорой кассового модуля Н=900 (для траверс) | D11: 9010 стр. муар | E11: 1124 | F11: =ROUND(E11*(1-$C$3)/Лист2!$A$6,0) -> 1124
B12: N-LT 22001150 | C12: Стойка с опорой кассового модуля Н=1150 (для траверс) | D12: 9010 стр. муар | E12: 1297 | F12: =ROUND(E12*(1-$C$3)/Лист2!$A$6,0) -> 1297
B13: N-ST 14100900 | C13: Экономпанель (мет.вставки) L=1000 H=900 | D13: дуб сонома | E13: 7920 | F13: =ROUND(E13*(1-$C$3)/Лист2!$A$6,0) -> 7920
B14: N-ST 14100115 | C14: Экономпанель (мет.вставки) L=1000 H=1150 | D14: дуб сонома | E14: 8340 | F14: =ROUND(E14*(1-$C$3)/Лист2!$A$6,0) -> 8340
B15: N-ST 14665900 | C15: Экономпанель (мет.вставки) L=665 H=900 | D15: дуб сонома | E15: 7432 | F15: =ROUND(E15*(1-$C$3)/Лист2!$A$6,0) -> 7432
B16: N-ST 14665115 | C16: Экономпанель (мет.вставки) L=665 H=1150 | D16: дуб сонома | E16: 7820 | F16: =ROUND(E16*(1-$C$3)/Лист2!$A$6,0) -> 7820
B17: N-SD 24001200 | C17: Экономпанель на стену 2400х1200 (мет встав) | D17: дуб сонома | E17: 11572 | F17: =ROUND(E17*(1-$C$3)/Лист2!$A$6,0) -> 11572
B18: N-DB 04476656 | C18: Столешница прямого модуля L=665 G=470 Н=36 | D18: дуб сонома | E18: 3109 | F18: =ROUND(E18*(1-$C$3)/Лист2!$A$6,0) -> 3109
B19: N-DB 04471006 | C19: Столешница прямого модуля L=1000 G=470 Н=36 | D19: дуб сонома | E19: 4191 | F19: =ROUND(E19*(1-$C$3)/Лист2!$A$6,0) -> 4191
B20: N-DB 32147665 | C20: Столешница прям модуля центр L=665, H=32, G=470 | D20: дуб сонома | E20: 3200 | F20: =ROUND(E20*(1-$C$3)/Лист2!$A$6,0) -> 3200
B21: N-DB 32147100 | C21: Столешница прям модуля центр L=1000, H=32, G=470 | D21: дуб сонома | E21: 4315 | F21: =ROUND(E21*(1-$C$3)/Лист2!$A$6,0) -> 4315
B22: N-DB 04656506 | C22: Столешница углового модуля L=665 G=665 Н=36 | D22: дуб сонома | E22: 5064 | F22: =ROUND(E22*(1-$C$3)/Лист2!$A$6,0) -> 5064
B23: N-DB 04210665 | C23: Столешница надставки прямого модуля L=665 G=210 Н=32 | D23: дуб сонома | E23: 1431 | F23: =ROUND(E23*(1-$C$3)/Лист2!$A$6,0) -> 1431
B24: N-DB 04210100 | C24: Столешница надставки прямого модуля L=1000 G=210 Н=32 | D24: дуб сонома | E24: 1886 | F24: =ROUND(E24*(1-$C$3)/Лист2!$A$6,0) -> 1886
B25: N-BB 09047900 | C25: Боковина ЛДСП кассового модуля h=32 G=470 H=900 (правая) | D25: дуб сонома | E25: 4231 | F25: =ROUND(E25*(1-$C$3)/Лист2!$A$6,0) -> 4231
B26: N-BB 09147900 | C26: Боковина ЛДСП кассового модуля h=32 G=470 H=900 (левая) | D26: дуб сонома | E26: 4231 | F26: =ROUND(E26*(1-$C$3)/Лист2!$A$6,0) -> 4231
B27: N-BB 09247115 | C27: Боковина ЛДСП кассового модуля h=32 G=470 H=1150 (правая) | D27: дуб сонома | E27: 4965 | F27: =ROUND(E27*(1-$C$3)/Лист2!$A$6,0) -> 4965
B28: N-BB 09347115 | C28: Боковина ЛДСП кассового модуля h=32 G=470 H=1150 (левая) | D28: дуб сонома | E28: 4965 | F28: =ROUND(E28*(1-$C$3)/Лист2!$A$6,0) -> 4965
B29: N-BB 09447115 | C29: Боковина ЛДСП кассового модуля (с вырезом) h=32 G=470 H=1150 (правая) | D29: дуб сонома | E29: 4965 | F29: =ROUND(E29*(1-$C$3)/Лист2!$A$6,0) -> 4965
B30: N-BB 09547115 | C30: Боковина ЛДСП кассового модуля (с вырезом) h=32 G=470 H=1150 (левая) | D30: дуб сонома | E30: 4965 | F30: =ROUND(E30*(1-$C$3)/Лист2!$A$6,0) -> 4965
B31: N-BB 03014732 | C31: Боковина ЛДСП кассового модуля 32/32 H=300 (правая) | D31: дуб сонома | E31: 2116 | F31: =ROUND(E31*(1-$C$3)/Лист2!$A$6,0) -> 2116
B32: N-BB 03114732 | C32: Боковина ЛДСП кассового модуля 32/32 H=300 (левая) | D32: дуб сонома | E32: 2116 | F32: =ROUND(E32*(1-$C$3)/Лист2!$A$6,0) -> 2116
B33: N-ST 06900900 | C33: Панель настенная угла внешнего 90гр. Н=900 | D33: дуб сонома | E33: 1618 | F33: =ROUND(E33*(1-$C$3)/Лист2!$A$6,0) -> 1618
B34: N-ST 14090900 | C34: Экономпанель (мет.вставки) угла внешнего 90гр. Н=900 | D34: дуб сонома | E34: 2606 | F34: =ROUND(E34*(1-$C$3)/Лист2!$A$6,0) -> 2606
B35: T-ST 01471000 | C35: Полка G=470 L = 1000 | D35: 9010 стр. муар | E35: 1031 | F35: =ROUND(E35*(1-$C$3)/Лист2!$A$6,0) -> 1031
B36: T-TR 01010665 | C36: Траверса L=665 | D36: 9010 стр. муар | E36: 437 | F36: =ROUND(E36*(1-$C$3)/Лист2!$A$6,0) -> 437
B37: T-TR 01011000 | C37: Траверса L=1000 | D37: 9010 стр. муар | E37: 523 | F37: =ROUND(E37*(1-$C$3)/Лист2!$A$6,0) -> 523
B38: T-BS 01010470 | C38: Кронштейн Г-образный для ДСП (комплект) G=470 | D38: 9010 стр. муар | E38: 807 | F38: =ROUND(E38*(1-$C$3)/Лист2!$A$6,0) -> 807
B39: T-BS 01010210 | C39: Кронштейн Г-образный для ДСП (комплект) G=210 | D39: 9010 стр. муар | E39: 345 | F39: =ROUND(E39*(1-$C$3)/Лист2!$A$6,0) -> 345
B40: T-SC 01210665 | C40: Полка ДСП для Г-образного кронштейна G=210 L=665 | D40: дуб сонома | E40: 847 | F40: =ROUND(E40*(1-$C$3)/Лист2!$A$6,0) -> 847
B41: T-SC 01211000 | C41: Полка ДСП для Г-образного кронштейна G=210 L=1000 | D41: дуб сонома | E41: 1253 | F41: =ROUND(E41*(1-$C$3)/Лист2!$A$6,0) -> 1253
B42: T-WB 10303060 | C42: Полка наклонная 30 град. на экономпанель L=600, H=50, G=300 | D42: цинк | E42: 530 | F42: =ROUND(E42*(1-$C$3)/Лист2!$A$6,0) -> 530
B43: T-WB 10803060 | C43: Корзина прямая на экономпанель L=600, H=80, G=300 | D43: цинк | E43: 689 | F43: =ROUND(E43*(1-$C$3)/Лист2!$A$6,0) -> 689
B44: T-WB 10503060 | C44: Полка прямая на экономпанель L=600, H=50, G=300 | D44: цинк | E44: 611 | F44: =ROUND(E44*(1-$C$3)/Лист2!$A$6,0) -> 611
B45: A-ЕP 11250200 | C45: Крючок одинарный с ценникодержателем прутком для экономпанели L=200, D=5 | D45: цинк | E45: 114 | F45: =ROUND(E45*(1-$C$3)/Лист2!$A$6,0) -> 114
B46: N-RC 02200665 | C46: Полка сетчатая L=665, G=200 | D46: цинк | E46: 1400 | F46: =ROUND(E46*(1-$C$3)/Лист2!$A$6,0) -> 1400
B47: N-RC 02200100 | C47: Полка сетчатая L=1000, G=200 | D47: цинк | E47: 1655 | F47: =ROUND(E47*(1-$C$3)/Лист2!$A$6,0) -> 1655
B48: N-RC 02300665 | C48: Полка сетчатая L=665, G=300 | D48: цинк | E48: 0
B49: N-RC 02300100 | C49: Полка сетчатая L=1000, G=300 | D49: цинк | E49: 0
B50: T-WB 10151515 | C50: Короб пластиковый прозрачный на экономпанель 150х150х150 | D50: оргстекло | E50: 331 | F50: =ROUND(E50*(1-$C$3)/Лист2!$A$6,0) -> 331

Sheet Сборки KAISER
A2: Cборки модулей Кайзер | J2: На главную
A4: Ваша скидка: | C4: =Содержание!C2 -> 0
A5: НДС: | C5: =IF(Лист2!A1=TRUE,"С НДС","БЕЗ НДС") -> С НДС
A7: Изображение | B7: Артикул | C7: Наименование | D7: Характеристика | E7: Кол-во в сборке, шт. | F7: Базовая цена, руб. (с НДС) | H7: =[7]Лист2!$A$5 -> Ваша цена, руб.
F8: за элемент в сборке | G8: за сборку | H8: за элемент комплекта | I8: за сборку
A9: 1 Кассовые модули KAISER
B10: 1 | C10: Модуль прямой L=665 G=470 H=900
B11: N-LT 22470900 | C11: Стойка кассового модуля 60х30 L-образная G=470 Н=900 (для траверс) | D11: 9010 стр. муар | E11: 1 | F11: =VLOOKUP(B11,'Детали и аксессуары KAISER'!B$9:E$50,4,0 ) -> 1919 | G11: =SUMPRODUCT(E11:E17,F11:F17) -> 9685 | H11: =ROUND(F11*(1-C4)/Лист2!$A$6,0) -> 1919 | I11: =SUMPRODUCT(E11:E17,H11:H17) -> 9685
B12: N-DB 04476656 | C12: Столешница прямого модуля L=665 G=470 Н=36 | D12: дуб сонома | E12: 1 | F12: =VLOOKUP(B12,'Детали и аксессуары KAISER'!B$9:E$50,4,0 ) -> 3109 | H12: =ROUND(F12*(1-C4)/Лист2!$A$6,0) -> 3109
B13: T-BS 01010470 | C13: Кронштейн Г-образный для ДСП (комплект) G=470 | D13: 9010 стр. муар | E13: 1 | F13: =VLOOKUP(B13,'Детали и аксессуары KAISER'!B$9:E$50,4,0 ) -> 807 | H13: =ROUND(F13*(1-C4)/Лист2!$A$6,0) -> 807
B14: T-BP 01400665 | C14: Панель сплошная H=400 L = 665 | D14: 9010 стр. муар | E14: 2 | F14: =VLOOKUP(B14,'Детали Praktisch'!$A$12:$C$2072,3,0) -> 440 | H14: =ROUND(F14*(1-C4)/Лист2!$A$6,0) -> 440
B15: T-TR 01010665 | C15: Траверса L=665 | D15: 9010 стр. муар | E15: 2 | F15: =VLOOKUP(B15,'Детали и аксессуары KAISER'!B$9:E$50,4,0 ) -> 437 | H15: =ROUND(F15*(1-C4)/Лист2!$A$6,0) -> 437
B16: T-ST 01470665 | C16: Полка G=470 L = 665 | D16: 9010 стр. муар | E16: 2 | F16: =VLOOKUP(B16,'Детали Praktisch'!A14:C2089,3,0) -> 782 | H16: =ROUND(F16*(1-C4)/Лист2!$A$6,0) -> 782
B17: T-BS 01000470 | C17: Кронштейн (комплект) G = 470 | D17: 9010 стр. муар | E17: 1 | F17: =VLOOKUP(B17,'Детали Praktisch'!A15:C2090,3,0) -> 532 | H17: =ROUND(F17*(1-C4)/Лист2!$A$6,0) -> 532
B18: 2 | C18: Модуль прямой L=1000 G=470 H=900
B19: N-LT 22470900 | C19: Стойка кассового модуля 60х30 L-образная G=470 Н=900 (для траверс) | D19: 9010 стр. муар | E19: 1 | F19: =VLOOKUP(B19,'Детали и аксессуары KAISER'!B$9:E$50,4,0 ) -> 1919 | G19: =SUMPRODUCT(E19:E25,F19:F25) -> 11709 | H19: =ROUND(F19*(1-$C$4)/Лист2!$A$6,0) -> 1919 | I19: =SUMPRODUCT(E19:E25,H19:H25) -> 11709
B20: N-DB 04471006 | C20: Столешница прямого модуля L=1000 G=470 Н=36 | D20: дуб сонома | E20: 1 | F20: =VLOOKUP(B20,'Детали и аксессуары KAISER'!B$9:E$50,4,0 ) -> 4191 | H20: =ROUND(F20*(1-$C$4)/Лист2!$A$6,0) -> 4191
B21: T-BS 01010470 | C21: Кронштейн Г-образный для ДСП (комплект) G=470 | D21: 9010 стр. муар | E21: 1 | F21: =VLOOKUP(B21,'Детали и аксессуары KAISER'!B$9:E$50,4,0 ) -> 807 | H21: =ROUND(F21*(1-$C$4)/Лист2!$A$6,0) -> 807
B22: T-BP 01401000 | C22: Панель сплошная H=400 L = 1000 | D22: 9010 стр. муар | E22: 2 | F22: =VLOOKUP(B22,'Детали Praktisch'!A20:C2095,3,0) -> 576 | H22: =ROUND(F22*(1-$C$4)/Лист2!$A$6,0) -> 576
B23: T-TR 01011000 | C23: Траверса L=1000 | D23: 9010 стр. муар | E23: 2 | F23: =VLOOKUP(B23,'Детали и аксессуары KAISER'!B$9:E$50,4,0 ) -> 523 | H23: =ROUND(F23*(1-$C$4)/Лист2!$A$6,0) -> 523
B24: T-ST 01471000 | C24: Полка G=470 L = 1000 | D24: 9010 стр. муар | E24: 2 | F24: =VLOOKUP(B24,'Детали и аксессуары KAISER'!B$9:E$50,4,0 ) -> 1031 | H24: =ROUND(F24*(1-$C$4)/Лист2!$A$6,0) -> 1031
B25: T-BS 01000470 | C25: Кронштейн (комплект) G = 470 | D25: 9010 стр. муар | E25: 1 | F25: =VLOOKUP(B25,'Детали Praktisch'!A23:C2096,3,0) -> 532 | H25: =ROUND(F25*(1-$C$4)/Лист2!$A$6,0) -> 532
B26: 3 | C26: Модуль угловой L=665 G=665 H=900
B27: N-LT 22470900 | C27: Стойка кассового модуля 60х30 L-образная G=470 Н=900 (для траверс) | D27: 9010 стр. муар | E27: 2 | F27: =VLOOKUP(B27,'Детали и аксессуары KAISER'!B$9:E$50,4,0 ) -> 1919 | G27: =SUMPRODUCT(E27:E35,F27:F35) -> 17786 | H27: =ROUND(F27*(1-$C$4)/Лист2!$A$6,0) -> 1919 | I27: =SUMPRODUCT(E27:E35,H27:H35) -> 17786
B28: N-LT 22000900 | C28: Стойка с опорой кассового модуля Н=900 (для траверс) | D28: 9010 стр. муар | E28: 1 | F28: =VLOOKUP(B28,'Детали и аксессуары KAISER'!B$9:E$50,4,0 ) -> 1124 | H28: =ROUND(F28*(1-$C$4)/Лист2!$A$6,0) -> 1124
B29: N-DB 04656506 | C29: Столешница углового модуля L=665 G=665 Н=36 | D29: дуб сонома | E29: 1 | F29: =VLOOKUP(B29,'Детали и аксессуары KAISER'!B$9:E$50,4,0 ) -> 5064 | H29: =ROUND(F29*(1-$C$4)/Лист2!$A$6,0) -> 5064
B30: T-BS 01010470 | C30: Кронштейн Г-образный для ДСП (комплект) G=470 | D30: 9010 стр. муар | E30: 2 | F30: =VLOOKUP(B30,'Детали и аксессуары KAISER'!B$9:E$50,4,0 ) -> 807 | H30: =ROUND(F30*(1-$C$4)/Лист2!$A$6,0) -> 807
B31: T-BP 01400665 | C31: Панель сплошная H=400 L = 665 | D31: 9010 стр. муар | E31: 4 | F31: =VLOOKUP(B31,'Детали Praktisch'!A29:C2100,3,0) -> 440 | H31: =ROUND(F31*(1-$C$4)/Лист2!$A$6,0) -> 440
B32: T-BP 06900400 | C32: Панель сплошная угловая внешняя Н = 400 | D32: 9010 стр. муар | E32: 2 | F32: =VLOOKUP(B32,'Детали Praktisch'!A30:C2101,3,0) -> 271 | H32: =ROUND(F32*(1-$C$4)/Лист2!$A$6,0) -> 271
B33: T-TR 01010665 | C33: Траверса L=665 | D33: 9010 стр. муар | E33: 4 | F33: =VLOOKUP(B33,'Детали и аксессуары KAISER'!B$9:E$50,4,0 ) -> 437 | H33: =ROUND(F33*(1-$C$4)/Лист2!$A$6,0) -> 437
B34: T-ST 01470665 | C34: Полка G=470 L = 665 | D34: 9010 стр. муар | E34: 2 | F34: =VLOOKUP(B34,'Детали Praktisch'!A32:C2103,3,0) -> 782 | H34: =ROUND(F34*(1-$C$4)/Лист2!$A$6,0) -> 782
B35: T-BS 01000470 | C35: Кронштейн (комплект) G = 470 | D35: 9010 стр. муар | E35: 1 | F35: =VLOOKUP(B35,'Детали Praktisch'!A33:C2104,3,0) -> 532 | H35: =ROUND(F35*(1-$C$4)/Лист2!$A$6,0) -> 532
B36: 4 | C36: Модуль прямой L=665 G=470 H=1150
B37: N-LT 22470115 | C37: Стойка кассового модуля 60х30 L-образная G=470 Н=1150 (для траверс) | D37: 9010 стр. муар | E37: 1 | F37: =VLOOKUP(B37,'Детали и аксессуары KAISER'!B$9:E$50,4,0 ) -> 2113 | G37: =SUMPRODUCT(E37:E44,F37:F44) -> 10258 | H37: =ROUND(F37*(1-$C$4)/Лист2!$A$6,0) -> 2113 | I37: =SUMPRODUCT(E37:E44,H37:H44) -> 10258
B38: N-DB 04476656 | C38: Столешница прямого модуля L=665 G=470 Н=36 | D38: дуб сонома | E38: 1 | F38: =VLOOKUP(B38,'Детали и аксессуары KAISER'!B$9:E$50,4,0 ) -> 3109 | H38: =ROUND(F38*(1-$C$4)/Лист2!$A$6,0) -> 3109
B39: T-BS 01010470 | C39: Кронштейн Г-образный для ДСП (комплект) G=470 | D39: 9010 стр. муар | E39: 1 | F39: =VLOOKUP(B39,'Детали и аксессуары KAISER'!B$9:E$50,4,0 ) -> 807 | H39: =ROUND(F39*(1-$C$4)/Лист2!$A$6,0) -> 807
B40: T-BP 01300665 | C40: Панель сплошная H=300 L = 665 | D40: 9010 стр. муар | E40: 1 | F40: =VLOOKUP(B40,'Детали Praktisch'!A38:C2109,3,0) -> 379 | H40: =ROUND(F40*(1-$C$4)/Лист2!$A$6,0) -> 379
B41: T-BP 01400665 | C41: Панель сплошная H=400 L = 665 | D41: 9010 стр. муар | E41: 2 | F41: =VLOOKUP(B41,'Детали Praktisch'!A39:C2110,3,0) -> 440 | H41: =ROUND(F41*(1-$C$4)/Лист2!$A$6,0) -> 440
B42: T-TR 01010665 | C42: Траверса L=665 | D42: 9010 стр. муар | E42: 2 | F42: =VLOOKUP(B42,'Детали и аксессуары KAISER'!B$9:E$50,4,0 ) -> 437 | H42: =ROUND(F42*(1-$C$4)/Лист2!$A$6,0) -> 437
B43: T-ST 01470665 | C43: Полка G=470 L = 665 | D43: 9010 стр. муар | E43: 2 | F43: =VLOOKUP(B43,'Детали Praktisch'!A41:C2112,3,0) -> 782 | H43: =ROUND(F43*(1-$C$4)/Лист2!$A$6,0) -> 782
B44: T-BS 01000470 | C44: Кронштейн (комплект) G = 470 | D44: 9010 стр. муар | E44: 1 | F44: =VLOOKUP(B44,'Детали Praktisch'!A42:C2113,3,0) -> 532 | H44: =ROUND(F44*(1-$C$4)/Лист2!$A$6,0) -> 532
B45: 5 | C45: Модуль прямой L=1000 G=470 H=1150
B46: N-LT 22470115 | C46: Стойка кассового модуля 60х30 L-образная G=470 Н=1150 (для траверс) | D46: 9010 стр. муар | E46: 1 | F46: =VLOOKUP(B46,'Детали и аксессуары KAISER'!B$9:E$50,4,0 ) -> 2113 | G46: =SUMPRODUCT(E46:E53,F46:F53) -> 12386 | H46: =ROUND(F46*(1-$C$4)/Лист2!$A$6,0) -> 2113 | I46: =SUMPRODUCT(E46:E53,H46:H53) -> 12386
B47: N-DB 04471006 | C47: Столешница прямого модуля L=1000 G=470 Н=36 | D47: дуб сонома | E47: 1 | F47: =VLOOKUP(B47,'Детали и аксессуары KAISER'!B$9:E$50,4,0 ) -> 4191 | H47: =ROUND(F47*(1-$C$4)/Лист2!$A$6,0) -> 4191
B48: T-BS 01010470 | C48: Кронштейн Г-образный для ДСП (комплект) G=470 | D48: 9010 стр. муар | E48: 1 | F48: =VLOOKUP(B48,'Детали и аксессуары KAISER'!B$9:E$50,4,0 ) -> 807 | H48: =ROUND(F48*(1-$C$4)/Лист2!$A$6,0) -> 807
B49: T-BP 01301000 | C49: Панель сплошная H=300 L = 1000 | D49: 9010 стр. муар | E49: 1 | F49: =VLOOKUP(B49,'Детали Praktisch'!A47:C2118,3,0) -> 483 | H49: =ROUND(F49*(1-$C$4)/Лист2!$A$6,0) -> 483
B50: T-BP 01401000 | C50: Панель сплошная H=400 L = 1000 | D50: 9010 стр. муар | E50: 2 | F50: =VLOOKUP(B50,'Детали Praktisch'!A48:C2119,3,0) -> 576 | H50: =ROUND(F50*(1-$C$4)/Лист2!$A$6,0) -> 576
B51: T-TR 01011000 | C51: Траверса L=1000 | D51: 9010 стр. муар | E51: 2 | F51: =VLOOKUP(B51,'Детали и аксессуары KAISER'!B$9:E$50,4,0 ) -> 523 | H51: =ROUND(F51*(1-$C$4)/Лист2!$A$6,0) -> 523
B52: T-ST 01471000 | C52: Полка G=470 L = 1000 | D52: 9010 стр. муар | E52: 2 | F52: =VLOOKUP(B52,'Детали и аксессуары KAISER'!B$9:E$50,4,0 ) -> 1031 | H52: =ROUND(F52*(1-$C$4)/Лист2!$A$6,0) -> 1031
B53: T-BS 01000470 | C53: Кронштейн (комплект) G = 470 | D53: 9010 стр. муар | E53: 1 | F53: =VLOOKUP(B53,'Детали Praktisch'!A51:C2122,3,0) -> 532 | H53: =ROUND(F53*(1-$C$4)/Лист2!$A$6,0) -> 532
B54: 6 | C54: Модуль угловой L=665 G=665 H=1150
B55: N-LT 22470115 | C55: Стойка кассового модуля 60х30 L-образная G=470 Н=1150 (для траверс) | D55: 9010 стр. муар | E55: 2 | F55: =VLOOKUP(B55,'Детали и аксессуары KAISER'!B$9:E$50,4,0 ) -> 2113 | G55: =SUMPRODUCT(E55:E65,F55:F65) -> 19346 | H55: =ROUND(F55*(1-$C$4)/Лист2!$A$6,0) -> 2113 | I55: =SUMPRODUCT(E55:E65,H55:H65) -> 19346
B56: N-LT 22001150 | C56: Стойка с опорой кассового модуля Н=1150 (для траверс) | D56: 9010 стр. муар | E56: 1 | F56: =VLOOKUP(B56,'Детали и аксессуары KAISER'!B$9:E$50,4,0 ) -> 1297 | H56: =ROUND(F56*(1-$C$4)/Лист2!$A$6,0) -> 1297
B57: N-DB 04656506 | C57: Столешница углового модуля L=665 G=665 Н=36 | D57: дуб сонома | E57: 1 | F57: =VLOOKUP(B57,'Детали и аксессуары KAISER'!B$9:E$50,4,0 ) -> 5064 | H57: =ROUND(F57*(1-$C$4)/Лист2!$A$6,0) -> 5064
B58: T-BS 01010470 | C58: Кронштейн Г-образный для ДСП (комплект) G=470 | D58: 9010 стр. муар | E58: 2 | F58: =VLOOKUP(B58,'Детали и аксессуары KAISER'!B$9:E$50,4,0 ) -> 807 | H58: =ROUND(F58*(1-$C$4)/Лист2!$A$6,0) -> 807
B59: T-BP 01300665 | C59: Панель сплошная H=300 L = 665 | D59: 9010 стр. муар | E59: 2 | F59: =VLOOKUP(B59,'Детали Praktisch'!A57:C2128,3,0) -> 379 | H59: =ROUND(F59*(1-$C$4)/Лист2!$A$6,0) -> 379
B60: T-BP 01400665 | C60: Панель сплошная H=400 L = 665 | D60: 9010 стр. муар | E60: 4 | F60: =VLOOKUP(B60,'Детали Praktisch'!A58:C2129,3,0) -> 440 | H60: =ROUND(F60*(1-$C$4)/Лист2!$A$6,0) -> 440
B61: T-BP 06900300 | C61: Панель сплошная угловая внешняя Н = 300 | D61: 9010 стр. муар | E61: 1 | F61: =VLOOKUP(B61,'Детали Praktisch'!A59:C2130,3,0) -> 241 | H61: =ROUND(F61*(1-$C$4)/Лист2!$A$6,0) -> 241
B62: T-BP 06900400 | C62: Панель сплошная угловая внешняя Н = 400 | D62: 9010 стр. муар | E62: 2 | F62: =VLOOKUP(B62,'Детали Praktisch'!A60:C2131,3,0) -> 271 | H62: =ROUND(F62*(1-$C$4)/Лист2!$A$6,0) -> 271
B63: T-TR 01010665 | C63: Траверса L=665 | D63: 9010 стр. муар | E63: 4 | F63: =VLOOKUP(B63,'Детали и аксессуары KAISER'!B$9:E$50,4,0 ) -> 437 | H63: =ROUND(F63*(1-$C$4)/Лист2!$A$6,0) -> 437
B64: T-ST 01470665 | C64: Полка G=470 L = 665 | D64: 9010 стр. муар | E64: 2 | F64: =VLOOKUP(B64,'Детали Praktisch'!A62:C2133,3,0) -> 782 | H64: =ROUND(F64*(1-$C$4)/Лист2!$A$6,0) -> 782
B65: T-BS 01000470 | C65: Кронштейн (комплект) G = 470 | D65: 9010 стр. муар | E65: 1 | F65: =VLOOKUP(B65,'Детали Praktisch'!A63:C2134,3,0) -> 532 | H65: =ROUND(F65*(1-$C$4)/Лист2!$A$6,0) -> 532
B66: 7 | C66: Модуль прямой L=665 G=470 H=1150 с надставкой
B67: N-LT 22470115 | C67: Стойка кассового модуля 60х30 L-образная G=470 Н=1150 (для траверс) | D67: 9010 стр. муар | E67: 1 | F67: =VLOOKUP(B67,'Детали и аксессуары KAISER'!B$9:E$50,4,0 ) -> 2113 | G67: =SUMPRODUCT(E67:E76,F67:F76) -> 12125 | H67: =ROUND(F67*(1-$C$4)/Лист2!$A$6,0) -> 2113 | I67: =SUMPRODUCT(E67:E76,H67:H76) -> 12125
B68: N-DB 32147665 | C68: Столешница прям модуля центр L=665, H=32, G=470 | D68: дуб сонома | E68: 1 | F68: =VLOOKUP(B68,'Детали и аксессуары KAISER'!B$9:E$50,4,0 ) -> 3200 | H68: =ROUND(F68*(1-$C$4)/Лист2!$A$6,0) -> 3200
B69: T-BS 01010470 | C69: Кронштейн Г-образный для ДСП (комплект) G=470 | D69: 9010 стр. муар | E69: 1 | F69: =VLOOKUP(B69,'Детали и аксессуары KAISER'!B$9:E$50,4,0 ) -> 807 | H69: =ROUND(F69*(1-$C$4)/Лист2!$A$6,0) -> 807
B70: N-DB 04210665 | C70: Столешница надставки прямого модуля L=665 G=210 Н=32 | D70: дуб сонома | E70: 1 | F70: =VLOOKUP(B70,'Детали и аксессуары KAISER'!B$9:E$50,4,0 ) -> 1431 | H70: =ROUND(F70*(1-$C$4)/Лист2!$A$6,0) -> 1431
B71: T-BS 01010210 | C71: Кронштейн Г-образный для ДСП (комплект) G=210 | D71: 9010 стр. муар | E71: 1 | F71: =VLOOKUP(B71,'Детали и аксессуары KAISER'!B$9:E$50,4,0 ) -> 345 | H71: =ROUND(F71*(1-$C$4)/Лист2!$A$6,0) -> 345
B72: T-BP 01300665 | C72: Панель сплошная H=300 L = 665 | D72: 9010 стр. муар | E72: 1 | F72: =VLOOKUP(B72,'Детали Praktisch'!A70:C2141,3,0) -> 379 | H72: =ROUND(F72*(1-$C$4)/Лист2!$A$6,0) -> 379
B73: T-BP 01400665 | C73: Панель сплошная H=400 L = 665 | D73: 9010 стр. муар | E73: 2 | F73: =VLOOKUP(B73,'Детали Praktisch'!A71:C2142,3,0) -> 440 | H73: =ROUND(F73*(1-$C$4)/Лист2!$A$6,0) -> 440
B74: T-TR 01010665 | C74: Траверса L=665 | D74: 9010 стр. муар | E74: 2 | F74: =VLOOKUP(B74,'Детали и аксессуары KAISER'!B$9:E$50,4,0 ) -> 437 | H74: =ROUND(F74*(1-$C$4)/Лист2!$A$6,0) -> 437
B75: T-ST 01470665 | C75: Полка G=470 L = 665 | D75: 9010 стр. муар | E75: 2 | F75: =VLOOKUP(B75,'Детали Praktisch'!A73:C2144,3,0) -> 782 | H75: =ROUND(F75*(1-$C$4)/Лист2!$A$6,0) -> 782
B76: T-BS 01000470 | C76: Кронштейн (комплект) G = 470 | D76: 9010 стр. муар | E76: 1 | F76: =VLOOKUP(B76,'Детали Praktisch'!A74:C2145,3,0) -> 532 | H76: =ROUND(F76*(1-$C$4)/Лист2!$A$6,0) -> 532
B77: 8 | C77: Модуль прямой L=1000 G=470 H=1150 с надставкой
B78: N-LT 22470115 | C78: Стойка кассового модуля 60х30 L-образная G=470 Н=1150 (для траверс) | D78: 9010 стр. муар | E78: 1 | F78: =VLOOKUP(B78,'Детали и аксессуары KAISER'!B$9:E$50,4,0 ) -> 2113 | G78: =SUMPRODUCT(E78:E87,F78:F87) -> 14741 | H78: =ROUND(F78*(1-$C$4)/Лист2!$A$6,0) -> 2113 | I78: =SUMPRODUCT(E78:E87,H78:H87) -> 14741
B79: N-DB 32147100 | C79: Столешница прям модуля центр L=1000, H=32, G=470 | D79: дуб сонома | E79: 1 | F79: =VLOOKUP(B79,'Детали и аксессуары KAISER'!B$9:E$50,4,0 ) -> 4315 | H79: =ROUND(F79*(1-$C$4)/Лист2!$A$6,0) -> 4315
B80: T-BS 01010470 | C80: Кронштейн Г-образный для ДСП (комплект) G=470 | D80: 9010 стр. муар | E80: 1 | F80: =VLOOKUP(B80,'Детали и аксессуары KAISER'!B$9:E$50,4,0 ) -> 807 | H80: =ROUND(F80*(1-$C$4)/Лист2!$A$6,0) -> 807
B81: N-DB 04210100 | C81: Столешница надставки прямого модуля L=1000 G=210 Н=32 | D81: дуб сонома | E81: 1 | F81: =VLOOKUP(B81,'Детали и аксессуары KAISER'!B$9:E$50,4,0 ) -> 1886 | H81: =ROUND(F81*(1-$C$4)/Лист2!$A$6,0) -> 1886
B82: T-BS 01010210 | C82: Кронштейн Г-образный для ДСП (комплект) G=210 | D82: 9010 стр. муар | E82: 1 | F82: =VLOOKUP(B82,'Детали и аксессуары KAISER'!B$9:E$50,4,0 ) -> 345 | H82: =ROUND(F82*(1-$C$4)/Лист2!$A$6,0) -> 345
B83: T-BP 01301000 | C83: Панель сплошная H=300 L = 1000 | D83: 9010 стр. муар | E83: 1 | F83: =VLOOKUP(B83,'Детали Praktisch'!A81:C2152,3,0) -> 483 | H83: =ROUND(F83*(1-$C$4)/Лист2!$A$6,0) -> 483
B84: T-BP 01401000 | C84: Панель сплошная H=400 L = 1000 | D84: 9010 стр. муар | E84: 2 | F84: =VLOOKUP(B84,'Детали Praktisch'!A82:C2153,3,0) -> 576 | H84: =ROUND(F84*(1-$C$4)/Лист2!$A$6,0) -> 576
B85: T-TR 01011000 | C85: Траверса L=1000 | D85: 9010 стр. муар | E85: 2 | F85: =VLOOKUP(B85,'Детали и аксессуары KAISER'!B$9:E$50,4,0 ) -> 523 | H85: =ROUND(F85*(1-$C$4)/Лист2!$A$6,0) -> 523
B86: T-ST 01471000 | C86: Полка G=470 L = 1000 | D86: 9010 стр. муар | E86: 2 | F86: =VLOOKUP(B86,'Детали и аксессуары KAISER'!B$9:E$50,4,0 ) -> 1031 | H86: =ROUND(F86*(1-$C$4)/Лист2!$A$6,0) -> 1031
B87: T-BS 01000470 | C87: Кронштейн (комплект) G = 470 | D87: 9010 стр. муар | E87: 1 | F87: =VLOOKUP(B87,'Детали Praktisch'!A85:C2156,3,0) -> 532 | H87: =ROUND(F87*(1-$C$4)/Лист2!$A$6,0) -> 532
B88: 9 | C88: Модуль прямой L=665 G=470 H=900 с перфорацией
B89: N-LT 22470900 | C89: Стойка кассового модуля 60х30 L-образная G=470 Н=900 (для траверс) | D89: 9010 стр. муар | E89: 1 | F89: =VLOOKUP(B89,'Детали и аксессуары KAISER'!B$9:E$50,4,0 ) -> 1919 | G89: =SUMPRODUCT(E89:E95,F89:F95) -> 10209 | H89: =ROUND(F89*(1-$C$4)/Лист2!$A$6,0) -> 1919 | I89: =SUMPRODUCT(E89:E95,H89:H95) -> 10209
B90: N-DB 04476656 | C90: Столешница прямого модуля L=665 G=470 Н=36 | D90: дуб сонома | E90: 1 | F90: =VLOOKUP(B90,'Детали и аксессуары KAISER'!B$9:E$50,4,0 ) -> 3109 | H90: =ROUND(F90*(1-$C$4)/Лист2!$A$6,0) -> 3109
B91: T-BS 01010470 | C91: Кронштейн Г-образный для ДСП (комплект) G=470 | D91: 9010 стр. муар | E91: 1 | F91: =VLOOKUP(B91,'Детали и аксессуары KAISER'!B$9:E$50,4,0 ) -> 807 | H91: =ROUND(F91*(1-$C$4)/Лист2!$A$6,0) -> 807
B92: T-BP 02400665 | C92: Панель перфорированная H=400 L = 665 | D92: 9010 стр. муар | E92: 2 | F92: =VLOOKUP(B92,'Детали Praktisch'!A90:C2161,3,0) -> 702 | H92: =ROUND(F92*(1-$C$4)/Лист2!$A$6,0) -> 702
B93: T-TR 01010665 | C93: Траверса L=665 | D93: 9010 стр. муар | E93: 2 | F93: =VLOOKUP(B93,'Детали и аксессуары KAISER'!B$9:E$50,4,0 ) -> 437 | H93: =ROUND(F93*(1-$C$4)/Лист2!$A$6,0) -> 437
B94: T-ST 01470665 | C94: Полка G=470 L = 665 | D94: 9010 стр. муар | E94: 2 | F94: =VLOOKUP(B94,'Детали Praktisch'!A92:C2163,3,0) -> 782 | H94: =ROUND(F94*(1-$C$4)/Лист2!$A$6,0) -> 782
B95: T-BS 01000470 | C95: Кронштейн (комплект) G = 470 | D95: 9010 стр. муар | E95: 1 | F95: =VLOOKUP(B95,'Детали Praktisch'!A93:C2164,3,0) -> 532 | H95: =ROUND(F95*(1-$C$4)/Лист2!$A$6,0) -> 532
B96: 10 | C96: Модуль прямой L=1000 G=470 H=900 с перфорацией
B97: N-LT 22470900 | C97: Стойка кассового модуля 60х30 L-образная G=470 Н=900 (для траверс) | D97: 9010 стр. муар | E97: 1 | F97: =VLOOKUP(B97,'Детали и аксессуары KAISER'!B$9:E$50,4,0 ) -> 1919 | G97: =SUMPRODUCT(E97:E103,F97:F103) -> 12461 | H97: =ROUND(F97*(1-$C$4)/Лист2!$A$6,0) -> 1919 | I97: =SUMPRODUCT(E97:E103,H97:H103) -> 12461
B98: N-DB 04471006 | C98: Столешница прямого модуля L=1000 G=470 Н=36 | D98: дуб сонома | E98: 1 | F98: =VLOOKUP(B98,'Детали и аксессуары KAISER'!B$9:E$50,4,0 ) -> 4191 | H98: =ROUND(F98*(1-$C$4)/Лист2!$A$6,0) -> 4191
B99: T-BS 01010470 | C99: Кронштейн Г-образный для ДСП (комплект) G=470 | D99: 9010 стр. муар | E99: 1 | F99: =VLOOKUP(B99,'Детали и аксессуары KAISER'!B$9:E$50,4,0 ) -> 807 | H99: =ROUND(F99*(1-$C$4)/Лист2!$A$6,0) -> 807
B100: T-BP 02401000 | C100: Панель перфорированная H=400 L = 1000 | D100: 9010 стр. муар | E100: 2 | F100: =VLOOKUP(B100,'Детали Praktisch'!A98:C2169,3,0) -> 952 | H100: =ROUND(F100*(1-$C$4)/Лист2!$A$6,0) -> 952
B101: T-TR 01011000 | C101: Траверса L=1000 | D101: 9010 стр. муар | E101: 2 | F101: =VLOOKUP(B101,'Детали и аксессуары KAISER'!B$9:E$50,4,0 ) -> 523 | H101: =ROUND(F101*(1-$C$4)/Лист2!$A$6,0) -> 523
B102: T-ST 01471000 | C102: Полка G=470 L = 1000 | D102: 9010 стр. муар | E102: 2 | F102: =VLOOKUP(B102,'Детали и аксессуары KAISER'!B$9:E$50,4,0 ) -> 1031 | H102: =ROUND(F102*(1-$C$4)/Лист2!$A$6,0) -> 1031
B103: T-BS 01000470 | C103: Кронштейн (комплект) G = 470 | D103: 9010 стр. муар | E103: 1 | F103: =VLOOKUP(B103,'Детали Praktisch'!A101:C2172,3,0) -> 532 | H103: =ROUND(F103*(1-$C$4)/Лист2!$A$6,0) -> 532
B104: 11 | C104: Модуль угловой L=665 G=665 H=900 с перфорацией
B105: N-LT 22470900 | C105: Стойка кассового модуля 60х30 L-образная G=470 Н=900 (для траверс) | D105: 9010 стр. муар | E105: 2 | F105: =VLOOKUP(B105,'Детали и аксессуары KAISER'!B$9:E$50,4,0 ) -> 1919 | G105: =SUMPRODUCT(E105:E113,F105:F113) -> 18834 | H105: =ROUND(F105*(1-$C$4)/Лист2!$A$6,0) -> 1919 | I105: =SUMPRODUCT(E105:E113,H105:H113) -> 18834
B106: N-LT 22000900 | C106: Стойка с опорой кассового модуля Н=900 (для траверс) | D106: 9010 стр. муар | E106: 1 | F106: =VLOOKUP(B106,'Детали и аксессуары KAISER'!B$9:E$50,4,0 ) -> 1124 | H106: =ROUND(F106*(1-$C$4)/Лист2!$A$6,0) -> 1124
B107: N-DB 04656506 | C107: Столешница углового модуля L=665 G=665 Н=36 | D107: дуб сонома | E107: 1 | F107: =VLOOKUP(B107,'Детали и аксессуары KAISER'!B$9:E$50,4,0 ) -> 5064 | H107: =ROUND(F107*(1-$C$4)/Лист2!$A$6,0) -> 5064
B108: T-BS 01010470 | C108: Кронштейн Г-образный для ДСП (комплект) G=470 | D108: 9010 стр. муар | E108: 2 | F108: =VLOOKUP(B108,'Детали и аксессуары KAISER'!B$9:E$50,4,0 ) -> 807 | H108: =ROUND(F108*(1-$C$4)/Лист2!$A$6,0) -> 807
B109: T-BP 02400665 | C109: Панель перфорированная H=400 L = 665 | D109: 9010 стр. муар | E109: 4 | F109: =VLOOKUP(B109,'Детали Praktisch'!A107:C2178,3,0) -> 702 | H109: =ROUND(F109*(1-$C$4)/Лист2!$A$6,0) -> 702
B110: T-BP 06900400 | C110: Панель сплошная угловая внешняя Н = 400 | D110: 9010 стр. муар | E110: 2 | F110: =VLOOKUP(B110,'Детали Praktisch'!A108:C2179,3,0) -> 271 | H110: =ROUND(F110*(1-$C$4)/Лист2!$A$6,0) -> 271
B111: T-TR 01010665 | C111: Траверса L=665 | D111: 9010 стр. муар | E111: 4 | F111: =VLOOKUP(B111,'Детали и аксессуары KAISER'!B$9:E$50,4,0 ) -> 437 | H111: =ROUND(F111*(1-$C$4)/Лист2!$A$6,0) -> 437
B112: T-ST 01470665 | C112: Полка G=470 L = 665 | D112: 9010 стр. муар | E112: 2 | F112: =VLOOKUP(B112,'Детали Praktisch'!A110:C2181,3,0) -> 782 | H112: =ROUND(F112*(1-$C$4)/Лист2!$A$6,0) -> 782
B113: T-BS 01000470 | C113: Кронштейн (комплект) G = 470 | D113: 9010 стр. муар | E113: 1 | F113: =VLOOKUP(B113,'Детали Praktisch'!A111:C2182,3,0) -> 532 | H113: =ROUND(F113*(1-$C$4)/Лист2!$A$6,0) -> 532
B114: 12 | C114: Модуль прямой L=665 G=470 H=1150 с перфорацией
B115: N-LT 22470115 | C115: Стойка кассового модуля 60х30 L-образная G=470 Н=1150 (для траверс) | D115: 9010 стр. муар | E115: 1 | F115: =VLOOKUP(B115,'Детали и аксессуары KAISER'!B$9:E$50,4,0 ) -> 2113 | G115: =SUMPRODUCT(E115:E122,F115:F122) -> 11063 | H115: =ROUND(F115*(1-$C$4)/Лист2!$A$6,0) -> 2113 | I115: =SUMPRODUCT(E115:E122,H115:H122) -> 11063
B116: N-DB 04476656 | C116: Столешница прямого модуля L=665 G=470 Н=36 | D116: дуб сонома | E116: 1 | F116: =VLOOKUP(B116,'Детали и аксессуары KAISER'!B$9:E$50,4,0 ) -> 3109 | H116: =ROUND(F116*(1-$C$4)/Лист2!$A$6,0) -> 3109
B117: T-BS 01010470 | C117: Кронштейн Г-образный для ДСП (комплект) G=470 | D117: 9010 стр. муар | E117: 1 | F117: =VLOOKUP(B117,'Детали и аксессуары KAISER'!B$9:E$50,4,0 ) -> 807 | H117: =ROUND(F117*(1-$C$4)/Лист2!$A$6,0) -> 807
B118: T-BP 02300665 | C118: Панель перфорированная H=300 L = 665 | D118: 9010 стр. муар | E118: 1 | F118: =VLOOKUP(B118,'Детали Praktisch'!A118:C2187,3,0) -> 660 | H118: =ROUND(F118*(1-$C$4)/Лист2!$A$6,0) -> 660
B119: T-BP 02400665 | C119: Панель перфорированная H=400 L = 665 | D119: 9010 стр. муар | E119: 2 | F119: =VLOOKUP(B119,'Детали Praktisch'!A119:C2188,3,0) -> 702 | H119: =ROUND(F119*(1-$C$4)/Лист2!$A$6,0) -> 702
B120: T-TR 01010665 | C120: Траверса L=665 | D120: 9010 стр. муар | E120: 2 | F120: =VLOOKUP(B120,'Детали и аксессуары KAISER'!B$9:E$50,4,0 ) -> 437 | H120: =ROUND(F120*(1-$C$4)/Лист2!$A$6,0) -> 437
B121: T-ST 01470665 | C121: Полка G=470 L = 665 | D121: 9010 стр. муар | E121: 2 | F121: =VLOOKUP(B121,'Детали Praktisch'!A121:C2190,3,0) -> 782 | H121: =ROUND(F121*(1-$C$4)/Лист2!$A$6,0) -> 782
B122: T-BS 01000470 | C122: Кронштейн (комплект) G = 470 | D122: 9010 стр. муар | E122: 1 | F122: =VLOOKUP(B122,'Детали Praktisch'!A122:C2191,3,0) -> 532 | H122: =ROUND(F122*(1-$C$4)/Лист2!$A$6,0) -> 532
B123: 13 | C123: Модуль прямой L=1000 G=470 H=1150 с перфорацией
B124: N-LT 22470115 | C124: Стойка кассового модуля 60х30 L-образная G=470 Н=1150 (для траверс) | D124: 9010 стр. муар | E124: 1 | F124: =VLOOKUP(B124,'Детали и аксессуары KAISER'!B$9:E$50,4,0 ) -> 2113 | G124: =SUMPRODUCT(E124:E131,F124:F131) -> 13592 | H124: =ROUND(F124*(1-$C$4)/Лист2!$A$6,0) -> 2113 | I124: =SUMPRODUCT(E124:E131,H124:H131) -> 13592
B125: N-DB 04471006 | C125: Столешница прямого модуля L=1000 G=470 Н=36 | D125: дуб сонома | E125: 1 | F125: =VLOOKUP(B125,'Детали и аксессуары KAISER'!B$9:E$50,4,0 ) -> 4191 | H125: =ROUND(F125*(1-$C$4)/Лист2!$A$6,0) -> 4191
B126: T-BS 01010470 | C126: Кронштейн Г-образный для ДСП (комплект) G=470 | D126: 9010 стр. муар | E126: 1 | F126: =VLOOKUP(B126,'Детали и аксессуары KAISER'!B$9:E$50,4,0 ) -> 807 | H126: =ROUND(F126*(1-$C$4)/Лист2!$A$6,0) -> 807
B127: T-BP 02301000 | C127: Панель перфорированная H=300 L = 1000 | D127: 9010 стр. муар | E127: 1 | F127: =VLOOKUP(B127,'Детали Praktisch'!A127:C2196,3,0) -> 937 | H127: =ROUND(F127*(1-$C$4)/Лист2!$A$6,0) -> 937
B128: T-BP 02401000 | C128: Панель перфорированная H=400 L = 1000 | D128: 9010 стр. муар | E128: 2 | F128: =VLOOKUP(B128,'Детали Praktisch'!A128:C2197,3,0) -> 952 | H128: =ROUND(F128*(1-$C$4)/Лист2!$A$6,0) -> 952
B129: T-TR 01011000 | C129: Траверса L=1000 | D129: 9010 стр. муар | E129: 2 | F129: =VLOOKUP(B129,'Детали и аксессуары KAISER'!B$9:E$50,4,0 ) -> 523 | H129: =ROUND(F129*(1-$C$4)/Лист2!$A$6,0) -> 523
B130: T-ST 01471000 | C130: Полка G=470 L = 1000 | D130: 9010 стр. муар | E130: 2 | F130: =VLOOKUP(B130,'Детали и аксессуары KAISER'!B$9:E$50,4,0 ) -> 1031 | H130: =ROUND(F130*(1-$C$4)/Лист2!$A$6,0) -> 1031
B131: T-BS 01000470 | C131: Кронштейн (комплект) G = 470 | D131: 9010 стр. муар | E131: 1 | F131: =VLOOKUP(B131,'Детали Praktisch'!A131:C2200,3,0) -> 532 | H131: =ROUND(F131*(1-$C$4)/Лист2!$A$6,0) -> 532
B132: 14 | C132: Модуль угловой L=665 G=665 H=1150 с перфорацией
B133: N-LT 22470115 | C133: Стойка кассового модуля 60х30 L-образная G=470 Н=1150 (для траверс) | D133: 9010 стр. муар | E133: 2 | F133: =VLOOKUP(B133,'Детали и аксессуары KAISER'!B$9:E$50,4,0 ) -> 2113 | G133: =SUMPRODUCT(E133:E143,F133:F143) -> 20956 | H133: =ROUND(F133*(1-$C$4)/Лист2!$A$6,0) -> 2113 | I133: =SUMPRODUCT(E133:E143,H133:H143) -> 20956
B134: N-LT 22001150 | C134: Стойка с опорой кассового модуля Н=1150 (для траверс) | D134: 9010 стр. муар | E134: 1 | F134: =VLOOKUP(B134,'Детали и аксессуары KAISER'!B$9:E$50,4,0 ) -> 1297 | H134: =ROUND(F134*(1-$C$4)/Лист2!$A$6,0) -> 1297
B135: N-DB 04656506 | C135: Столешница углового модуля L=665 G=665 Н=36 | D135: дуб сонома | E135: 1 | F135: =VLOOKUP(B135,'Детали и аксессуары KAISER'!B$9:E$50,4,0 ) -> 5064 | H135: =ROUND(F135*(1-$C$4)/Лист2!$A$6,0) -> 5064
B136: T-BS 01010470 | C136: Кронштейн Г-образный для ДСП (комплект) G=470 | D136: 9010 стр. муар | E136: 2 | F136: =VLOOKUP(B136,'Детали и аксессуары KAISER'!B$9:E$50,4,0 ) -> 807 | H136: =ROUND(F136*(1-$C$4)/Лист2!$A$6,0) -> 807
B137: T-BP 02300665 | C137: Панель перфорированная H=300 L = 665 | D137: 9010 стр. муар | E137: 2 | F137: =VLOOKUP(B137,'Детали Praktisch'!A137:C2206,3,0) -> 660 | H137: =ROUND(F137*(1-$C$4)/Лист2!$A$6,0) -> 660
B138: T-BP 02400665 | C138: Панель перфорированная H=400 L = 665 | D138: 9010 стр. муар | E138: 4 | F138: =VLOOKUP(B138,'Детали Praktisch'!A138:C2207,3,0) -> 702 | H138: =ROUND(F138*(1-$C$4)/Лист2!$A$6,0) -> 702
B139: T-BP 06900300 | C139: Панель сплошная угловая внешняя Н = 300 | D139: 9010 стр. муар | E139: 1 | F139: =VLOOKUP(B139,'Детали Praktisch'!A139:C2208,3,0) -> 241 | H139: =ROUND(F139*(1-$C$4)/Лист2!$A$6,0) -> 241
B140: T-BP 06900400 | C140: Панель сплошная угловая внешняя Н = 400 | D140: 9010 стр. муар | E140: 2 | F140: =VLOOKUP(B140,'Детали Praktisch'!A140:C2209,3,0) -> 271 | H140: =ROUND(F140*(1-$C$4)/Лист2!$A$6,0) -> 271
B141: T-TR 01010665 | C141: Траверса L=665 | D141: 9010 стр. муар | E141: 4 | F141: =VLOOKUP(B141,'Детали и аксессуары KAISER'!B$9:E$50,4,0 ) -> 437 | H141: =ROUND(F141*(1-$C$4)/Лист2!$A$6,0) -> 437
B142: T-ST 01470665 | C142: Полка G=470 L = 665 | D142: 9010 стр. муар | E142: 2 | F142: =VLOOKUP(B142,'Детали Praktisch'!A142:C2211,3,0) -> 782 | H142: =ROUND(F142*(1-$C$4)/Лист2!$A$6,0) -> 782
B143: T-BS 01000470 | C143: Кронштейн (комплект) G = 470 | D143: 9010 стр. муар | E143: 1 | F143: =VLOOKUP(B143,'Детали Praktisch'!A143:C2212,3,0) -> 532 | H143: =ROUND(F143*(1-$C$4)/Лист2!$A$6,0) -> 532
B144: 15 | C144: Модуль прямой L=665 G=470 H=1150 с надставкой с перфорацией
B145: N-LT 22470115 | C145: Стойка кассового модуля 60х30 L-образная G=470 Н=1150 (для траверс) | D145: 9010 стр. муар | E145: 1 | F145: =VLOOKUP(B145,'Детали и аксессуары KAISER'!B$9:E$50,4,0 ) -> 2113 | G145: =SUMPRODUCT(E145:E154,F145:F154) -> 12930 | H145: =ROUND(F145*(1-$C$4)/Лист2!$A$6,0) -> 2113 | I145: =SUMPRODUCT(E145:E154,H145:H154) -> 12930
B146: N-DB 32147665 | C146: Столешница прям модуля центр L=665, H=32, G=470 | D146: дуб сонома | E146: 1 | F146: =VLOOKUP(B146,'Детали и аксессуары KAISER'!B$9:E$50,4,0 ) -> 3200 | H146: =ROUND(F146*(1-$C$4)/Лист2!$A$6,0) -> 3200
B147: T-BS 01010470 | C147: Кронштейн Г-образный для ДСП (комплект) G=470 | D147: 9010 стр. муар | E147: 1 | F147: =VLOOKUP(B147,'Детали и аксессуары KAISER'!B$9:E$50,4,0 ) -> 807 | H147: =ROUND(F147*(1-$C$4)/Лист2!$A$6,0) -> 807
B148: N-DB 04210665 | C148: Столешница надставки прямого модуля L=665 G=210 Н=32 | D148: дуб сонома | E148: 1 | F148: =VLOOKUP(B148,'Детали и аксессуары KAISER'!B$9:E$50,4,0 ) -> 1431 | H148: =ROUND(F148*(1-$C$4)/Лист2!$A$6,0) -> 1431
B149: T-BS 01010210 | C149: Кронштейн Г-образный для ДСП (комплект) G=210 | D149: 9010 стр. муар | E149: 1 | F149: =VLOOKUP(B149,'Детали и аксессуары KAISER'!B$9:E$50,4,0 ) -> 345 | H149: =ROUND(F149*(1-$C$4)/Лист2!$A$6,0) -> 345
B150: T-BP 02300665 | C150: Панель перфорированная H=300 L = 665 | D150: 9010 стр. муар | E150: 1 | F150: =VLOOKUP(B150,'Детали Praktisch'!A150:C2219,3,0) -> 660 | H150: =ROUND(F150*(1-$C$4)/Лист2!$A$6,0) -> 660
B151: T-BP 02400665 | C151: Панель перфорированная H=400 L = 665 | D151: 9010 стр. муар | E151: 2 | F151: =VLOOKUP(B151,'Детали Praktisch'!A151:C2220,3,0) -> 702 | H151: =ROUND(F151*(1-$C$4)/Лист2!$A$6,0) -> 702
B152: T-TR 01010665 | C152: Траверса L=665 | D152: 9010 стр. муар | E152: 2 | F152: =VLOOKUP(B152,'Детали и аксессуары KAISER'!B$9:E$50,4,0 ) -> 437 | H152: =ROUND(F152*(1-$C$4)/Лист2!$A$6,0) -> 437
B153: T-ST 01470665 | C153: Полка G=470 L = 665 | D153: 9010 стр. муар | E153: 2 | F153: =VLOOKUP(B153,'Детали Praktisch'!A153:C2222,3,0) -> 782 | H153: =ROUND(F153*(1-$C$4)/Лист2!$A$6,0) -> 782
B154: T-BS 01000470 | C154: Кронштейн (комплект) G = 470 | D154: 9010 стр. муар | E154: 1 | F154: =VLOOKUP(B154,'Детали Praktisch'!A154:C2223,3,0) -> 532 | H154: =ROUND(F154*(1-$C$4)/Лист2!$A$6,0) -> 532
B155: 16 | C155: Модуль прямой L=1000 G=470 H=1150 с надставкой с перфорацией
B156: N-LT 22470115 | C156: Стойка кассового модуля 60х30 L-образная G=470 Н=1150 (для траверс) | D156: 9010 стр. муар | E156: 1 | F156: =VLOOKUP(B156,'Детали и аксессуары KAISER'!B$9:E$50,4,0 ) -> 2113 | G156: =SUMPRODUCT(E156:E165,F156:F165) -> 15947 | H156: =ROUND(F156*(1-$C$4)/Лист2!$A$6,0) -> 2113 | I156: =SUMPRODUCT(E156:E165,H156:H165) -> 15947
B157: N-DB 32147100 | C157: Столешница прям модуля центр L=1000, H=32, G=470 | D157: дуб сонома | E157: 1 | F157: =VLOOKUP(B157,'Детали и аксессуары KAISER'!B$9:E$50,4,0 ) -> 4315 | H157: =ROUND(F157*(1-$C$4)/Лист2!$A$6,0) -> 4315
B158: T-BS 01010470 | C158: Кронштейн Г-образный для ДСП (комплект) G=470 | D158: 9010 стр. муар | E158: 1 | F158: =VLOOKUP(B158,'Детали и аксессуары KAISER'!B$9:E$50,4,0 ) -> 807 | H158: =ROUND(F158*(1-$C$4)/Лист2!$A$6,0) -> 807
B159: N-DB 04210100 | C159: Столешница надставки прямого модуля L=1000 G=210 Н=32 | D159: дуб сонома | E159: 1 | F159: =VLOOKUP(B159,'Детали и аксессуары KAISER'!B$9:E$50,4,0 ) -> 1886 | H159: =ROUND(F159*(1-$C$4)/Лист2!$A$6,0) -> 1886
B160: T-BS 01010210 | C160: Кронштейн Г-образный для ДСП (комплект) G=210 | D160: 9010 стр. муар | E160: 1 | F160: =VLOOKUP(B160,'Детали и аксессуары KAISER'!B$9:E$50,4,0 ) -> 345 | H160: =ROUND(F160*(1-$C$4)/Лист2!$A$6,0) -> 345
B161: T-BP 02301000 | C161: Панель перфорированная H=300 L = 1000 | D161: 9010 стр. муар | E161: 1 | F161: =VLOOKUP(B161,'Детали Praktisch'!A161:C2230,3,0) -> 937 | H161: =ROUND(F161*(1-$C$4)/Лист2!$A$6,0) -> 937
B162: T-BP 02401000 | C162: Панель перфорированная H=400 L = 1000 | D162: 9010 стр. муар | E162: 2 | F162: =VLOOKUP(B162,'Детали Praktisch'!A162:C2231,3,0) -> 952 | H162: =ROUND(F162*(1-$C$4)/Лист2!$A$6,0) -> 952
B163: T-TR 01011000 | C163: Траверса L=1000 | D163: 9010 стр. муар | E163: 2 | F163: =VLOOKUP(B163,'Детали и аксессуары KAISER'!B$9:E$50,4,0 ) -> 523 | H163: =ROUND(F163*(1-$C$4)/Лист2!$A$6,0) -> 523
B164: T-ST 01471000 | C164: Полка G=470 L = 1000 | D164: 9010 стр. муар | E164: 2 | F164: =VLOOKUP(B164,'Детали и аксессуары KAISER'!B$9:E$50,4,0 ) -> 1031 | H164: =ROUND(F164*(1-$C$4)/Лист2!$A$6,0) -> 1031
B165: T-BS 01000470 | C165: Кронштейн (комплект) G = 470 | D165: 9010 стр. муар | E165: 1 | F165: =VLOOKUP(B165,'Детали Praktisch'!A165:C2234,3,0) -> 532 | H165: =ROUND(F165*(1-$C$4)/Лист2!$A$6,0) -> 532
B166: 17 | C166: Модуль прямой L=665 G=470 H=900 с экономпанелью
B167: N-LT 22470900 | C167: Стойка кассового модуля 60х30 L-образная G=470 Н=900 (для траверс) | D167: 9010 стр. муар | E167: 1 | F167: =VLOOKUP(B167,'Детали и аксессуары KAISER'!B$9:E$50,4,0 ) -> 1919 | G167: =SUMPRODUCT(E167:E173,F167:F173) -> 16237 | H167: =ROUND(F167*(1-$C$4)/Лист2!$A$6,0) -> 1919 | I167: =SUMPRODUCT(E167:E173,H167:H173) -> 16237
B168: N-DB 04476656 | C168: Столешница прямого модуля L=665 G=470 Н=36 | D168: дуб сонома | E168: 1 | F168: =VLOOKUP(B168,'Детали и аксессуары KAISER'!B$9:E$50,4,0 ) -> 3109 | H168: =ROUND(F168*(1-$C$4)/Лист2!$A$6,0) -> 3109
B169: T-BS 01010470 | C169: Кронштейн Г-образный для ДСП (комплект) G=470 | D169: 9010 стр. муар | E169: 1 | F169: =VLOOKUP(B169,'Детали и аксессуары KAISER'!B$9:E$50,4,0 ) -> 807 | H169: =ROUND(F169*(1-$C$4)/Лист2!$A$6,0) -> 807
B170: N-ST 14665900 | C170: Экономпанель (мет.вставки) L=665 H=900 | D170: дуб сонома | E170: 1 | F170: =VLOOKUP(B170,'Детали и аксессуары KAISER'!B$9:E$50,4,0 ) -> 7432 | H170: =ROUND(F170*(1-$C$4)/Лист2!$A$6,0) -> 7432
B171: T-TR 01010665 | C171: Траверса L=665 | D171: 9010 стр. муар | E171: 2 | F171: =VLOOKUP(B171,'Детали и аксессуары KAISER'!B$9:E$50,4,0 ) -> 437 | H171: =ROUND(F171*(1-$C$4)/Лист2!$A$6,0) -> 437
B172: T-ST 01470665 | C172: Полка G=470 L = 665 | D172: 9010 стр. муар | E172: 2 | F172: =VLOOKUP(B172,'Детали Praktisch'!A172:C2241,3,0) -> 782 | H172: =ROUND(F172*(1-$C$4)/Лист2!$A$6,0) -> 782
B173: T-BS 01000470 | C173: Кронштейн (комплект) G = 470 | D173: 9010 стр. муар | E173: 1 | F173: =VLOOKUP(B173,'Детали Praktisch'!A173:C2242,3,0) -> 532 | H173: =ROUND(F173*(1-$C$4)/Лист2!$A$6,0) -> 532
B174: 18 | C174: Модуль прямой L=1000 G=470 H=900 с экономпанелью
B175: N-LT 22470900 | C175: Стойка кассового модуля 60х30 L-образная G=470 Н=900 (для траверс) | D175: 9010 стр. муар | E175: 1 | F175: =VLOOKUP(B175,'Детали и аксессуары KAISER'!B$9:E$50,4,0 ) -> 1919 | G175: =SUMPRODUCT(E175:E181,F175:F181) -> 18477 | H175: =ROUND(F175*(1-$C$4)/Лист2!$A$6,0) -> 1919 | I175: =SUMPRODUCT(E175:E181,H175:H181) -> 18477
B176: N-DB 04471006 | C176: Столешница прямого модуля L=1000 G=470 Н=36 | D176: дуб сонома | E176: 1 | F176: =VLOOKUP(B176,'Детали и аксессуары KAISER'!B$9:E$50,4,0 ) -> 4191 | H176: =ROUND(F176*(1-$C$4)/Лист2!$A$6,0) -> 4191
B177: T-BS 01010470 | C177: Кронштейн Г-образный для ДСП (комплект) G=470 | D177: 9010 стр. муар | E177: 1 | F177: =VLOOKUP(B177,'Детали и аксессуары KAISER'!B$9:E$50,4,0 ) -> 807 | H177: =ROUND(F177*(1-$C$4)/Лист2!$A$6,0) -> 807
B178: N-ST 14100900 | C178: Экономпанель (мет.вставки) L=1000 H=900 | D178: дуб сонома | E178: 1 | F178: =VLOOKUP(B178,'Детали и аксессуары KAISER'!B$9:E$50,4,0 ) -> 7920 | H178: =ROUND(F178*(1-$C$4)/Лист2!$A$6,0) -> 7920
B179: T-TR 01011000 | C179: Траверса L=1000 | D179: 9010 стр. муар | E179: 2 | F179: =VLOOKUP(B179,'Детали и аксессуары KAISER'!B$9:E$50,4,0 ) -> 523 | H179: =ROUND(F179*(1-$C$4)/Лист2!$A$6,0) -> 523
B180: T-ST 01471000 | C180: Полка G=470 L = 1000 | D180: 9010 стр. муар | E180: 2 | F180: =VLOOKUP(B180,'Детали и аксессуары KAISER'!B$9:E$50,4,0 ) -> 1031 | H180: =ROUND(F180*(1-$C$4)/Лист2!$A$6,0) -> 1031
B181: T-BS 01000470 | C181: Кронштейн (комплект) G = 470 | D181: 9010 стр. муар | E181: 1 | F181: =VLOOKUP(B181,'Детали Praktisch'!A181:C2250,3,0) -> 532 | H181: =ROUND(F181*(1-$C$4)/Лист2!$A$6,0) -> 532
B182: 19 | C182: Модуль угловой L=665 G=665 H=900 с экономпанелью
B183: N-LT 22470900 | C183: Стойка кассового модуля 60х30 L-образная G=470 Н=900 (для траверс) | D183: 9010 стр. муар | E183: 2 | F183: =VLOOKUP(B183,'Детали и аксессуары KAISER'!B$9:E$50,4,0 ) -> 1919 | G183: =SUMPRODUCT(E183:E191,F183:F191) -> 32954 | H183: =ROUND(F183*(1-$C$4)/Лист2!$A$6,0) -> 1919 | I183: =SUMPRODUCT(E183:E191,H183:H191) -> 32954
B184: N-LT 22000900 | C184: Стойка с опорой кассового модуля Н=900 (для траверс) | D184: 9010 стр. муар | E184: 1 | F184: =VLOOKUP(B184,'Детали и аксессуары KAISER'!B$9:E$50,4,0 ) -> 1124 | H184: =ROUND(F184*(1-$C$4)/Лист2!$A$6,0) -> 1124
B185: N-DB 04656506 | C185: Столешница углового модуля L=665 G=665 Н=36 | D185: дуб сонома | E185: 1 | F185: =VLOOKUP(B185,'Детали и аксессуары KAISER'!B$9:E$50,4,0 ) -> 5064 | H185: =ROUND(F185*(1-$C$4)/Лист2!$A$6,0) -> 5064
B186: T-BS 01010470 | C186: Кронштейн Г-образный для ДСП (комплект) G=470 | D186: 9010 стр. муар | E186: 2 | F186: =VLOOKUP(B186,'Детали и аксессуары KAISER'!B$9:E$50,4,0 ) -> 807 | H186: =ROUND(F186*(1-$C$4)/Лист2!$A$6,0) -> 807
B187: N-ST 14665900 | C187: Экономпанель (мет.вставки) L=665 H=900 | D187: дуб сонома | E187: 2 | F187: =VLOOKUP(B187,'Детали и аксессуары KAISER'!B$9:E$50,4,0 ) -> 7432 | H187: =ROUND(F187*(1-$C$4)/Лист2!$A$6,0) -> 7432
B188: N-ST 14090900 | C188: Экономпанель (мет.вставки) угла внешнего 90гр. Н=900 | D188: дуб сонома | E188: 1 | F188: =VLOOKUP(B188,'Детали и аксессуары KAISER'!B$9:E$50,4,0 ) -> 2606 | H188: =ROUND(F188*(1-$C$4)/Лист2!$A$6,0) -> 2606
B189: T-TR 01010665 | C189: Траверса L=665 | D189: 9010 стр. муар | E189: 4 | F189: =VLOOKUP(B189,'Детали и аксессуары KAISER'!B$9:E$50,4,0 ) -> 437 | H189: =ROUND(F189*(1-$C$4)/Лист2!$A$6,0) -> 437
B190: T-ST 01470665 | C190: Полка G=470 L = 665 | D190: 9010 стр. муар | E190: 2 | F190: =VLOOKUP(B190,'Детали Praktisch'!A190:C2259,3,0) -> 782 | H190: =ROUND(F190*(1-$C$4)/Лист2!$A$6,0) -> 782
B191: T-BS 01000470 | C191: Кронштейн (комплект) G = 470 | D191: 9010 стр. муар | E191: 1 | F191: =VLOOKUP(B191,'Детали Praktisch'!A191:C2260,3,0) -> 532 | H191: =ROUND(F191*(1-$C$4)/Лист2!$A$6,0) -> 532
B192: 20 | C192: Модуль прямой L=665 G=470 H=1150 с надставкой с экономпанелью
B193: N-LT 22470115 | C193: Стойка кассового модуля 60х30 L-образная G=470 Н=1150 (для траверс) | D193: 9010 стр. муар | E193: 1 | F193: =VLOOKUP(B193,'Детали и аксессуары KAISER'!B$9:E$50,4,0 ) -> 2113 | G193: =SUMPRODUCT(E193:E201,F193:F201) -> 18686 | H193: =ROUND(F193*(1-$C$4)/Лист2!$A$6,0) -> 2113 | I193: =SUMPRODUCT(E193:E201,H193:H201) -> 18686
B194: N-DB 32147665 | C194: Столешница прям модуля центр L=665, H=32, G=470 | D194: дуб сонома | E194: 1 | F194: =VLOOKUP(B194,'Детали и аксессуары KAISER'!B$9:E$50,4,0 ) -> 3200 | H194: =ROUND(F194*(1-$C$4)/Лист2!$A$6,0) -> 3200
B195: T-BS 01010470 | C195: Кронштейн Г-образный для ДСП (комплект) G=470 | D195: 9010 стр. муар | E195: 1 | F195: =VLOOKUP(B195,'Детали и аксессуары KAISER'!B$9:E$50,4,0 ) -> 807 | H195: =ROUND(F195*(1-$C$4)/Лист2!$A$6,0) -> 807
B196: N-DB 04210665 | C196: Столешница надставки прямого модуля L=665 G=210 Н=32 | D196: дуб сонома | E196: 1 | F196: =VLOOKUP(B196,'Детали и аксессуары KAISER'!B$9:E$50,4,0 ) -> 1431 | H196: =ROUND(F196*(1-$C$4)/Лист2!$A$6,0) -> 1431
B197: T-BS 01010210 | C197: Кронштейн Г-образный для ДСП (комплект) G=210 | D197: 9010 стр. муар | E197: 1 | F197: =VLOOKUP(B197,'Детали и аксессуары KAISER'!B$9:E$50,4,0 ) -> 345 | H197: =ROUND(F197*(1-$C$4)/Лист2!$A$6,0) -> 345
B198: N-ST 14665115 | C198: Экономпанель (мет.вставки) L=665 Н=1150 | D198: дуб сонома | E198: 1 | F198: =VLOOKUP(B198,'Детали и аксессуары KAISER'!B$9:E$50,4,0 ) -> 7820 | H198: =ROUND(F198*(1-$C$4)/Лист2!$A$6,0) -> 7820
B199: T-TR 01010665 | C199: Траверса L=665 | D199: 9010 стр. муар | E199: 2 | F199: =VLOOKUP(B199,'Детали и аксессуары KAISER'!B$9:E$50,4,0 ) -> 437 | H199: =ROUND(F199*(1-$C$4)/Лист2!$A$6,0) -> 437
B200: T-ST 01470665 | C200: Полка G=470 L = 665 | D200: 9010 стр. муар | E200: 2 | F200: =VLOOKUP(B200,'Детали Praktisch'!A203:C2269,3,0) -> 782 | H200: =ROUND(F200*(1-$C$4)/Лист2!$A$6,0) -> 782
B201: T-BS 01000470 | C201: Кронштейн (комплект) G = 470 | D201: 9010 стр. муар | E201: 1 | F201: =VLOOKUP(B201,'Детали Praktisch'!A205:C2270,3,0) -> 532 | H201: =ROUND(F201*(1-$C$4)/Лист2!$A$6,0) -> 532
B202: 21 | C202: Модуль прямой L=1000 G=470 H=1150 с надставкой с экономпанелью
B203: N-LT 22470115 | C203: Стойка кассового модуля 60х30 L-образная G=470 Н=1150 (для траверс) | D203: 9010 стр. муар | E203: 1 | F203: =VLOOKUP(B203,'Детали и аксессуары KAISER'!B$9:E$50,4,0 ) -> 2113 | G203: =SUMPRODUCT(E203:E211,F203:F211) -> 21446 | H203: =ROUND(F203*(1-$C$4)/Лист2!$A$6,0) -> 2113 | I203: =SUMPRODUCT(E203:E211,H203:H211) -> 21446
... 38 more rows

Sheet Кассовые боксы
A1: Кассовые боксы | E1: На главную
A3: Ваша скидка: | C3: =Содержание!C2 -> 0
A4: НДС: | C4: =IF(Лист2!A1=TRUE,"С НДС","БЕЗ НДС") -> С НДС
A6: Изображение | B6: Номенклатура | C6: Базовая цена, руб. (с НДС) | D6: =[7]Лист2!$A$5 -> Ваша цена, руб.
D7: =[7]Лист2!$A$5 -> Ваша цена, руб.
A8: Кассовые боксы
B9: Кассовый бокс Standart Mini 1500 (узкий накопитель, тумба под денежный ящик) | C9: 29042 | D9: =ROUND(C9*(1-$C$3)/Лист2!$A$6,0) -> 29042
B10: Кассовый бокс Standart Mini 1900 (узкий накопитель, тумба под денежный ящик) | C10: 33399 | D10: =ROUND(C10*(1-$C$3)/Лист2!$A$6,0) -> 33399
B12: Standart Maxi 1900 (широкий накопитель, тумба под денежный ящик) | C12: 48428 | D12: =ROUND(C12*(1-$C$3)/Лист2!$A$6,0) -> 48428
B14: Денежный ящик вертикальн (flip-top) с внутренн запираемым блоком для купюр 460х170х100 н№99.1144 | C14: 9529 | D14: =ROUND(C14*(1-$C$3)/Лист2!$A$6,0) -> 9529
A15: * Столешница выполнена из шлифованной нержавеющей стали
A19: *Сечение кассового бокса с узким накопителем
A42: * Наценка за нестандартный цвет (после согласования с менеджером) 3%

Sheet Лист1 (hidden)

Sheet Лист2 (hidden)
A1: TRUE
A2: Базовая цена, руб.
A3: Базовая цена, руб. б/НДС
A4: =IF(A1=TRUE,"руб.","руб. б/НДС") -> руб.
A5: =CONCATENATE("Ваша цена, ",A4) -> Ваша цена, руб.
A6: =IF(A1=TRUE,1,1.22) -> 1
A7: =IF(A1=TRUE,1,1.22) -> 1
